Workbook

Sheet INDICE
F1: IRLANDA
F2: Trocas comerciais com Portugal (PT) 2018-2022 Setores agrícola e agroalimentar, do mar e das florestas
C3: Fonte
D4: Estatísticas do Comércio Internacional | F4: Irlanda - Síntese
D5: dados: 2021 provisórios; 2022 preliminares | F5: 1. Evolução da balança comercial
F6: 2. Ranking dos parceiros comerciais de Portugal por país
C7: Data | D7: 2023-04-27T17:41:12.820 | F7: 2A Parceiros comerciais de Portugal - UE vs. Países Terceiros
F8: 3. Principais produtos transacionados (NC a 2 e 4 dígitos)
F9: 3A Principais produtos transacionados (sem mar nem florestas)
F10: 4. Evolução da balança comercial por país x produto
F11: 4A Evolução da balança comercial por produto
F12: 5.2. Trocas comerciais por produto (NC 2 dígitos)

Sheet Sintese
A1: Irlanda - Síntese (2018-2022)
A3: • As trocas comerciais de bens transacionáveis (excluindo serviços) entre Portugal e Irlanda representam um total de 456,6 milhões de € (M€) em exportações e 628,2 M€ em importações, na média do período 2018-2022, correspondendo a um saldo negativo da balança comercial de cerca de -171,6 M€.
A4: • No que respeita aos produtos dos setores agrícola e agroalimentar, mar e florestas, Portugal exportou para Irlanda 64 M€ em média anual, no mesmo período (este país ocupa assim a 27ª posição em relação ao total dos países), enquanto as importações totalizaram 118,3 M€ (17ª posição), com um saldo negativo de -54,3 M€. Estes setores representam perto de 14% do total de exportações de bens transacionáveis e 18,8% das correspondentes importações.
A5: • Se nos referirmos apenas ao setor agrícola e agroalimentar, as exportações representam, em média, 26,8 M€ (25ª posição) e as importações 110,3 milhões (13ª posição), ou seja, Portugal tem um saldo negativo de -83,5 M€. Estes valores representam, respetivamente, cerca de 41,9% das exportações do setor agroflorestal e mar e 93,2% das importações.
A6: • As principais exportações agrícolas e agroalimentares (NC 4 dígitos) neste período são Vinhos de uvas frescas (18%), Produtos de padaria, pastelaria, etc. (12%) e Sumos de frutas (11%). As importações agrícolas e agroalimentares mais relevantes referem-se a Misturas de substâncias odoríferas p/ alimentação e bebidas (27%), Sumos de frutas (24%) e Carnes de bovino, frescas ou refrigeradas (14%). Se considerarmos também os produtos do mar e da floresta, merecem particular destaque, em termos de exportações, Painéis de partículas de madeira, etc. (16%), Papel e cartão p/ escrita, etc. (10%) e Vinhos de uvas frescas (8%). Nas importações destes setores, destacam-se Misturas de substâncias odoríferas p/ alimentação e bebidas (25%), Sumos de frutas (23%) e Carnes de bovino, frescas ou refrigeradas (13%).
A9: Saldo da Balança Comercial | B9: 2018 | C9: 2019 | D9: 2020 | E9: 2021 | F9: 2022 | G9: média 2018-2022 | J9: Posição entre os parceiros comerciais de Portugal (milhares de euros)
A10: Total de Bens Transacionáveis* | B10: -154895.109 | C10: -110065.119 | D10: 21619.502 | E10: -389571.664 | F10: -225333.438 | G10: -171649.1656 | J10: AA + M + F | K10: Posição | L10: média 2018-2022 | M10: % do total | N10: TVMA* 2018-2022 | O10: TVT* 2018-2022
A11: Agrícola e Agroalimentar (AA) | B11: -85344.749 | C11: -91229.257 | D11: -72474.158 | E11: -76819.419 | F11: -91676.878 | G11: -83508.8922 | J11: Exportações | K11: 27ª | L11: 63977.066 | M11: 0.004936306569 | N11: 0.1756020758 | O11: 0.9100352264
A12: Mar (M) | B12: 83.744 | C12: -3724.63 | D12: -2063.328 | E12: -3407.203 | F12: -7307.106 | G12: -3283.7046 | J12: Importações | K12: 17ª | L12: 118290.7746 | M12: 0.007908247626 | N12: 0.0530560533 | O12: 0.2297192053
A13: Florestas (F) | B13: 18894.989 | C13: 1980-03-01T02:06:43.200 | D13: 30056.968 | E13: 35096.341 | F13: 2034-05-01T01:19:12 | G13: 32478.8882 | J13: AA
A14: AA + M + F | B14: -66366.016 | C14: -65672.799 | D14: -44480.518 | E14: -45130.281 | F14: -49918.929 | G14: -54313.7086 | J14: Exportações | K14: 25ª | L14: 26782.2878 | M14: 0.003789982082 | N14: 0.1003242137 | O14: 0.4658268769
J15: Importações | K15: 13ª | L15: 110291.18 | M15: 0.01081218582 | N15: 0.02939752558 | O15: 0.155887587
A16: milhares de euros *exclui serviços | K16: *TVMA - Taxa de variação média anual; TVT - Taxa de variação total
A18: Evolução das trocas comerciais Portugal-Irlanda em milhares de euros (2018-2022)
E27: Exportações | G27: Importações | I27: Saldo
A28: Principais produtos agrícolas e agroalimentares, do mar e da floresta transacionados (NC 4 dígitos)
A47: Principais produtos agrícolas e agroalimentares transacionados (NC 4 dígitos)
A81: Fonte: GPP a partir de dados INE/Comércio Internacional (2021 provisórios; 2022 preliminares) | N81: 2023-04-27T17:41:12.820

Sheet 1
A1: Evolução da balança comercial Portugal-Irlanda 2018-2022 em milhões de euros
A3: Total de Bens Transacionáveis (BT)(1) | B3: 2018 | C3: 2019 | D3: 2020 | E3: 2021 | F3: 2022 | G3: média quinquénio | H3: var. 18/19 | I3: var. 19/20 | J3: var. 20/21 | K3: var. 21/22 | L3: TVMA* 2018-2022 | M3: TVT* 2018-2022
A4: Exportações | B4: 324.989315 | C4: 413.939664 | D4: 489.252568 | E4: 412.743584 | F4: 642.050025 | G4: 456.5950312 | H4: 0.27370238 | I4: 0.1819417431 | J4: -0.1563793202 | K4: 0.5555663368 | L4: 0.1855638439 | M4: 0.9756034902
A5: Importações | B5: 479.884424 | C5: 524.004783 | D5: 467.633066 | E5: 802.315248 | F5: 867.383463 | G5: 628.2441968 | H5: 0.0919395521 | I5: -0.1075786306 | J5: 0.7156940053 | K5: 0.08110055887 | L5: 0.159494308 | M5: 0.8074840933
A6: Saldo (exp-imp) | B6: -154.895109 | C6: -110.065119 | D6: 21.619502 | E6: -389.571664 | F6: -225.333438 | G6: -171.6491656
A7: Cobertura (exp/imp) | B7: 0.6772241372 | C7: 0.7899539802 | D7: 1.046231765 | E7: 0.5144406579 | F7: 0.7402147405 | G7: 0.7267795445
A8: Exp BT Irlanda / Exp BT Mundo | B8: 0.00561779364 | C8: 0.006910187759 | D8: 0.009101121626 | E8: 0.006487789243 | F8: 0.008210226254 | G8: 0.007286168951 | L8: Exportações
A9: Imp BT Irlanda / Imp BT Mundo | B9: 0.00636120385 | C9: 0.006551932957 | D9: 0.006862266761 | E9: 0.009649508094 | F9: 0.007936482552 | G9: 0.007551042415 | L9: Importações
A10: Exp BT Irlanda / Exp TE Mundo | B10: 0.003645678263 | C10: 0.004438031134 | D10: 0.006586087411 | E10: 0.004616575391 | F10: 0.005361507376 | G10: 0.004900592295
A11: Imp BT Irlanda / Imp TE Mundo | B11: 0.005441213316 | C11: 0.005677082715 | D11: 0.005950682914 | E11: 0.008398508094 | F11: 0.006900539069 | G11: 0.00653999296
A12: (1) Todos os produtos transacionados entre PT e Irlanda (exclui serviços) | D12: TE - Total da Economia (bens e serviços) Fonte: INE/Contas Nacionais | H12: *TVMA - Taxa de variação média anual; TVT - Taxa de variação total
A24: Agro(1) + Mar + Florestas (AMF) | B24: 2018 | C24: 2019 | D24: 2020 | E24: 2021 | F24: 2022 | G24: média quinquénio | H24: var. 18/19 | I24: var. 19/20 | J24: var. 20/21 | K24: var. 21/22 | L24: TVMA* 2018-2022 | M24: TVT* 2018-2022
A25: Exportações | B25: 46.585167 | C25: 56.371221 | D25: 59.472386 | E25: 68.477246 | F25: 88.97931 | G25: 63.977066 | H25: 0.2100680244 | I25: 0.05501326643 | J25: 0.1514124555 | K25: 0.2993996575 | L25: 0.1756020758 | M25: 0.9100352264
A26: Importações | B26: 112.951183 | C26: 122.04402 | D26: 103.952904 | E26: 113.607527 | F26: 138.898239 | G26: 118.2907746 | H26: 0.0805023618 | I26: -0.1482343502 | J26: 0.09287497154 | K26: 0.2226147569 | L26: 0.0530560533 | M26: 0.2297192053
A27: Saldo (exp-imp) | B27: -66.366016 | C27: -65.672799 | D27: -44.480518 | E27: -45.130281 | F27: -49.918929 | G27: -54.3137086
A28: Cobertura (exp/imp) | B28: 0.4124362912 | C28: 0.4618925286 | D28: 0.5721089427 | E28: 0.6027527208 | F28: 0.6406079058 | G28: 0.5408457778
A29: Exp AMF / Exp BT | B29: 0.1433436881 | C29: 0.1361822166 | D29: 0.1215576369 | E29: 0.1659074754 | F29: 0.1385862574 | G29: 0.1401177447 | L29: Exportações
A30: Imp AMF / Imp BT | B30: 0.2353716382 | C30: 0.2329063092 | D30: 0.2222958802 | E30: 0.141599611 | F30: 0.1601347558 | G30: 0.1882878906 | L30: Importações
A31: Exp AMF Irlanda / Exp AMF Mundo | B31: 0.003998483237 | C31: 0.004765983527 | D31: 0.005155623965 | E31: 0.005111550813 | F31: 0.005428208321 | G31: 0.004936306569
A32: Imp AMF Irlanda / Imp AMF Mundo | B32: 0.008286591169 | C32: 0.008822438727 | D32: 0.007968556047 | E32: 0.007601905879 | F32: 0.007183572827 | G32: 0.007908247626
A33: (1) Produtos agrícolas e agroalimentares | B33: BT - Total de Bens Transacionáveis (exclui serviços) | H33: *TVMA - Taxa de variação média anual; TVT - Taxa de variação total
A45: Agroalimentar (AA)(1) | B45: 2018 | C45: 2019 | D45: 2020 | E45: 2021 | F45: 2022 | G45: média quinquénio | H45: var. 18/19 | I45: var. 19/20 | J45: var. 20/21 | K45: var. 21/22 | L45: TVMA* 2018-2022 | M45: TVT* 2018-2022
A46: Exportações | B46: 22.494915 | C46: 23.385534 | D46: 26.654385 | E46: 28.402954 | F46: 32.973651 | G46: 26.7822878 | H46: 0.03959201446 | I46: 0.1397809004 | J46: 0.06560155111 | K46: 0.1609232969 | L46: 0.1003242137 | M46: 0.4658268769
A47: Importações | B47: 107.839664 | C47: 114.614791 | D47: 99.128543 | E47: 105.222373 | F47: 124.650529 | G47: 110.29118 | H47: 0.06282592832 | I47: -0.1351156152 | J47: 0.06147401965 | K47: 0.1846390216 | L47: 0.03688096064 | M47: 0.155887587
A48: Saldo (exp-imp) | B48: -85.344749 | C48: -91.229257 | D48: -72.474158 | E48: -76.819419 | F48: -91.676878 | G48: -83.5088922
A49: Cobertura (exp/imp) | B49: 0.20859593 | C49: 0.2040359171 | D49: 0.2688870853 | E49: 0.2699326502 | F49: 0.2645287691 | G49: 0.2428325438
A50: Exp AA / Exp AMF | B50: 0.4828771999 | C50: 0.4148488109 | D50: 0.4481808583 | E50: 0.4147794437 | F50: 0.3705766093 | G50: 0.4186232579 | L50: Exportações
A51: Imp AA / Imp AMF | B51: 0.9547457684 | C51: 0.9391266446 | D51: 0.9535908973 | E51: 0.9261919151 | F51: 0.8974233935 | G51: 0.9323734701 | L51: Importações
A52: Exp AA / Exp BT | B52: 0.06921739873 | C52: 0.05649503064 | D52: 0.05447980602 | E52: 0.06881501034 | F52: 0.05135682535 | G52: 0.05865654676
A53: Imp AA / Imp BT | B53: 0.2247200755 | C53: 0.2187285207 | D53: 0.2119793278 | E53: 0.1311484149 | F53: 0.1437086759 | G53: 0.1755546339
A54: Exp AA Irlanda / Exp AA Mundo | B54: 0.003683538361 | C54: 0.003716910338 | D54: 0.004028117904 | E54: 0.003811554699 | F54: 0.003719288697 | G54: 0.003789982082
A55: Imp AA Irlanda / Imp AA Mundo | B55: 0.01185588471 | C55: 0.01230158755 | D55: 0.01091189121 | E55: 0.01024476451 | F55: 0.009418292423 | G55: 0.01081218582
A56: (1) Produtos agrícolas e agroalimentares | B56: AMF - Agroalimentar, Mar e Florestas; BT - Total de Bens Transacionáveis (exclui serviços) | H56: *TVMA - Taxa de variação média anual; TVT - Taxa de variação total
A67: Mar (M) | B67: 2018 | C67: 2019 | D67: 2020 | E67: 2021 | F67: 2022 | G67: média quinquénio | H67: var. 18/19 | I67: var. 19/20 | J67: var. 20/21 | K67: var. 21/22 | L67: TVMA* 2018-2022 | M67: TVT* 2018-2022
A68: Exportações | B68: 3.882246 | C68: 0.432255 | D68: 1.10718 | E68: 3.040276 | F68: 1.540636 | G68: 2.0005186 | H68: -0.888658524 | I68: 1.561404726 | J68: 1.745963619 | K68: -0.493257849 | L68: -0.2063038975 | M68: -0.603158584
A69: Importações | B69: 3.798502 | C69: 4.156885 | D69: 3.170508 | E69: 6.447479 | F69: 8.847742 | G69: 5.2842232 | H69: 0.09434850896 | I69: -0.2372875362 | J69: 1.033579161 | K69: 0.3722793048 | L69: 0.2353926771
A70: Saldo (exp-imp) | B70: 0.083744 | C70: -3.72463 | D70: -2.063328 | E70: -3.407203 | F70: -7.307106 | G70: -3.2837046
A71: Cobertura (exp/imp) | B71: 1.022046586 | C71: 0.1039853159 | D71: 0.3492121767 | E71: 0.4715449248 | F71: 0.174127591 | G71: 0.3785832892
A72: Exp M / Exp AMF | B72: 0.08333652641 | C72: 0.007668008468 | D72: 0.01861670726 | E72: 0.04439833927 | F72: 0.017314542 | G72: 0.03126930829 | L72: Exportações
A73: Imp M / Imp AMF | B73: 0.03362959023 | C73: 0.03406053816 | D73: 0.03049946541 | E73: 0.05675221678 | F73: 0.0636994541 | G73: 0.04467147348 | L73: Importações
A74: Exp M / Exp BT | B74: 0.01194576505 | C74: 0.00104424639 | D74: 0.00226300294 | E74: 0.007366016379 | F74: 0.002399557573 | G74: 0.004381384955
A75: Imp M / Imp BT | B75: 0.007915451742 | C75: 0.007932914231 | D75: 0.006779905508 | E75: 0.008036091818 | F75: 0.01020049652 | G75: 0.008411097511
A76: Exp M Irlanda / Exp M Mundo | B76: 0.003559058285 | C76: 0.0004045865645 | D76: 0.001230651661 | E76: 0.002775427837 | F76: 0.001198668763 | G76: 0.001838854268
A77: Imp M Irlanda / Imp M Mundo | B77: 0.001723274623 | C77: 0.001907403491 | D77: 0.001647131027 | E77: 0.003081888501 | F77: 0.003392717098 | G77: 0.002400095175
A78: AMF - Agroalimentar, Mar e Florestas; BT - Total de Bens Transacionáveis (exclui serviços) | H78: *TVMA - Taxa de variação média anual; TVT - Taxa de variação total
A90: Florestas (F) | B90: 2018 | C90: 2019 | D90: 2020 | E90: 2021 | F90: 2022 | G90: média quinquénio | H90: var. 18/19 | I90: var. 19/20 | J90: var. 20/21 | K90: var. 21/22 | L90: TVMA* 2018-2022 | M90: TVT* 2018-2022
A91: Exportações | B91: 20.208006 | C91: 32.553432 | D91: 31.710821 | E91: 37.034016 | F91: 54.465023 | G91: 35.1942596 | H91: 0.610917574 | I91: -0.02588393752 | J91: 0.1678668301 | K91: 0.4706755811 | L91: 0.2812933062 | M91: 1.695220053
A92: Importações | B92: 1.313017 | C92: 3.272344 | D92: 1.653853 | E92: 1.937675 | F92: 5.399968 | G92: 2.7153714 | H92: 1.492232774 | I92: -0.4945968395 | J92: 0.1716125919 | K92: 1.786828545 | L92: 0.4240663005 | M92: 3.112641344
A93: Saldo (exp-imp) | B93: 18.894989 | C93: 29.281088 | D93: 30.056968 | E93: 35.096341 | F93: 49.065055 | G93: 32.4788882
A94: Cobertura (exp/imp) | B94: 15.3905136 | C94: 9.948047027 | D94: 19.17390542 | E94: 19.11260454 | F94: 10.08617514 | G94: 12.96112186
A95: Exp F / Exp AMF | B95: 0.4337862736 | C95: 0.5774831806 | D95: 0.5332024345 | E95: 0.5408222171 | F95: 0.6121088487 | G95: 0.5501074338 | L95: Exportações
A96: Imp F / Imp AMF | B96: 0.01162464142 | C96: 0.02681281721 | D96: 0.01590963731 | E96: 0.01705586814 | F96: 0.03887715236 | G96: 0.02295505638 | L96: Importações
A97: Exp F / Exp BT | B97: 0.0621805243 | C97: 0.07864293961 | D97: 0.06481482791 | E97: 0.08972644866 | F97: 0.08482987443 | G97: 0.07707981295
A98: Imp F / Imp BT | B98: 0.002736110893 | C98: 0.006244874295 | D98: 0.003536646829 | E98: 0.002415104293 | F98: 0.006225583298 | G98: 0.004322159144
A99: Exp F Irlanda / Exp F Mundo | B99: 0.00453803939 | C99: 0.007286267252 | D99: 0.007890839795 | E99: 0.007636917766 | F99: 0.008726756711 | G99: 0.007322987946
A100: Imp F Irlanda / Imp F Mundo | B100: 0.0005634092467 | C100: 0.001400262636 | D100: 0.0008122771889 | E100: 0.0007505384967 | F100: 0.001546057358 | G100: 0.001062522077
A101: AMF - Agroalimentar, Mar e Florestas; BT - Total de Bens Transacionáveis (exclui serviços) | H101: *TVMA - Taxa de variação média anual; TVT - Taxa de variação total
A111: Fonte: GPP a partir de dados INE/Comércio Internacional (2021 provisórios; 2022 preliminares) | H111: 2023-04-27T17:41:12.820

Sheet 2
A1: Ranking dos parceiros comerciais de Portugal por país (média 2018-2022 em milhares de euros) produtos agrícolas e agroalimentares, do mar e da floresta
A2: Exportações | F2: Importações | K2: Trocas comerciais (total e saldo)
A3: P | B3: País | C3: média quinquénio | D3: % do Total | F3: P | G3: País | H3: média quinquénio | I3: % do Total | K3: P | L3: País | M3: Total (exp+imp) | N3: % do Total | O3: Saldo (exp-imp)
A4: 1 | B4: Espanha | C4: 4147137.938 | D4: 0.3199825426 | F4: 1 | G4: Espanha | H4: 6901979.232 | I4: 0.4614270306 | K4: 1 | L4: Espanha | M4: 11049117.17 | N4: 0.3957645176 | O4: -2754841.293
A5: 2 | B5: França | C5: 1359640.969 | D5: 0.1049064152 | F5: 2 | G5: França | H5: 986185.2734 | I5: 0.0659307319 | K5: 2 | L5: França | M5: 2345826.243 | N5: 0.08402434124 | O5: 373455.696
A6: 3 | B6: Itália | C6: 876774.7284 | D6: 0.06764969264 | F6: 3 | G6: Alemanha | H6: 880951.0908 | I6: 0.05889537367 | K6: 3 | L6: Alemanha | M6: 1516599.607 | N6: 0.05432255832 | O6: -245302.5748
A7: 4 | B7: Alemanha | C7: 635648.516 | D7: 0.04904501161 | F7: 4 | G7: Países Baixos | H7: 833152.697 | I7: 0.05569984523 | K7: 4 | L7: Países Baixos | M7: 1421542.299 | N7: 0.0509177334 | O7: -244763.0948
A8: 5 | B8: Países Baixos | C8: 588389.6022 | D8: 0.04539863485 | F8: 5 | G8: Brasil | H8: 705274.2876 | I8: 0.04715062294 | K8: 5 | L8: Itália | M8: 1323334.658 | N8: 0.04740006776 | O8: 430214.799
A9: 6 | B9: Estados Unidos | C9: 554106.8534 | D9: 0.04275346575 | F9: 6 | G9: Itália | H9: 446559.9294 | I9: 0.02985445411 | K9: 6 | L9: Brasil | M9: 1157990.816 | N9: 0.04147767371 | O9: -252557.7592 | P9: Nota: Nesta listagem, o Reino Unido passa a ser constituído por três componentes: Reino Unido [até 2020] ; Reino Unido (sem Irlanda do Norte) pós-2020 e Reino Unido (Irlanda do Norte) pós-2020. Estas componentes são calculadas igualmente como média do quinquénio, embora a primeira corresponda apenas a 2018-2020 e as duas últimas a 2021-2022.
A10: 7 | B10: Brasil | C10: 452716.5284 | D10: 0.03493044793 | F10: 7 | G10: Suécia | H10: 342692.7562 | I10: 0.02291048634 | K10: 7 | L10: Estados Unidos | M10: 835578.634 | N10: 0.02992930294 | O10: 272635.0728
A11: 8 | B11: Reino Unido | C11: 382822.421 | D11: 0.0295375976 | F11: 8 | G11: Bélgica | H11: 284922.9008 | I11: 0.01904832276 | K11: 8 | L11: Reino Unido | M11: 527725.3878 | N11: 0.01890241368 | O11: 237919.4542
A12: 9 | B12: Angola | C12: 331120.0664 | D12: 0.02554837633 | F12: 9 | G12: Estados Unidos | H12: 281471.7806 | I12: 0.01881760051 | K12: 9 | L12: Bélgica | M12: 524078.8948 | N12: 0.01877180121 | O12: -45766.9068
A13: 10 | B13: Reino Unido (sem Irlanda do Norte) pós 2020 | C13: 297928.3204 | D13: 0.02298738621 | F13: 10 | G13: Polónia | H13: 207249.91 | I13: 0.01385554887 | K13: 10 | L13: Polónia | M13: 458630.3884 | N13: 0.01642752372 | O13: 44130.5684
A14: 11 | B14: Polónia | C14: 251380.4784 | D14: 0.01939587393 | F14: 11 | G14: Ucrânia | H14: 195332.8996 | I14: 0.01305884541 | K14: 11 | L14: Suécia | M14: 436691.4122 | N14: 0.0156416991 | O14: -248694.1002
A15: 12 | B15: Bélgica | C15: 239155.994 | D15: 0.01845266402 | F15: 12 | G15: China, República Popular da | H15: 173709.004 | I15: 0.01161319488 | K15: 12 | L15: China, República Popular da | M15: 367378.4436 | N15: 0.01315900178 | O15: 19960.4356
A16: 13 | B16: Israel | C16: 214334.0624 | D16: 0.01653746735 | F16: 13 | G16: África do Sul | H16: 145344.5192 | I16: 0.009716906942 | K16: 13 | L16: Reino Unido (sem Irlanda do Norte) pós 2020 | M16: 358990.3996 | N16: 0.01285855333 | O16: 236866.2412
A17: 14 | B17: China, República Popular da | C17: 193669.4396 | D17: 0.01494303798 | F17: 14 | G17: Reino Unido | H17: 144902.9668 | I17: 0.009687387263 | K17: 14 | L17: Angola | M17: 346543.215 | N17: 0.01241271191 | O17: 315696.9178
A18: 15 | B18: Turquia | C18: 167228.7496 | D18: 0.01290294205 | F18: 15 | G18: Dinamarca | H18: 144434.8984 | I18: 0.009656094875 | K18: 15 | L18: Dinamarca | M18: 229206.2586 | N18: 0.008209859936 | O18: -59663.5382
A19: 16 | B19: Suíça | C19: 143381.926 | D19: 0.01106298221 | F19: 16 | G19: Roménia | H19: 138756.2138 | I19: 0.009276450357 | K19: 16 | L19: Turquia | M19: 223208.1582 | N19: 0.007995016046 | O19: 111249.341
A20: 17 | B20: Marrocos | C20: 109032.6026 | D20: 0.008412676387 | F20: 17 | G20: Irlanda | H20: 118290.7746 | I20: 0.007908247626 | K20: 17 | L20: Israel | M20: 222677.5138 | N20: 0.007976009077 | O20: 205990.611
A21: 18 | B21: Cabo Verde | C21: 100901.0544 | D21: 0.007785266952 | F21: 18 | G21: Canadá | H21: 108500.262 | I21: 0.007253709702 | K21: 18 | L21: Ucrânia | M21: 209672.7922 | N21: 0.007510197439 | O21: -180993.007
A22: 19 | B22: Canadá | C22: 96471.0096 | D22: 0.007443456041 | F22: 19 | G22: Rússia, Federação da | H22: 105947.3528 | I22: 0.007083036729 | K22: 19 | L22: Canadá | M22: 204971.2716 | N22: 0.007341795294 | O22: -12029.2524
A23: 20 | B23: Suécia | C23: 93998.656 | D23: 0.007252695569 | F23: 20 | G23: Uruguai | H23: 102111.7952 | I23: 0.006826613188 | K23: 20 | L23: Rússia, Federação da | M23: 185992.9178 | N23: 0.006662016183 | O23: -25901.7878
A24: 21 | B24: Dinamarca | C24: 84771.3602 | D24: 0.006540741055 | F24: 21 | G24: Argentina | H24: 97726.5184 | I24: 0.006533438552 | K24: 21 | L24: África do Sul | M24: 182500.0166 | N24: 0.00653690516 | O24: -108189.0218
A25: 22 | B25: Egito | C25: 83378.3752 | D25: 0.0064332619 | F25: 22 | G25: Índia | H25: 75540.6788 | I25: 0.005050219645 | K25: 22 | L25: Irlanda | M25: 182267.8406 | N25: 0.006528588928 | O25: -54313.7086
A26: 23 | B26: Rússia, Federação da | C26: 80045.565 | D26: 0.006176110801 | F26: 23 | G26: Finlândia | H26: 74110.91 | I26: 0.004954633445 | K26: 23 | L26: Roménia | M26: 164596.3888 | N26: 0.00589562129 | O26: -112916.0388
A27: 24 | B27: Argélia | C27: 78380.8918 | D27: 0.00604766888 | F27: 24 | G27: Vietname | H27: 70006.3292 | I27: 0.004680224545 | K27: 24 | L27: Marrocos | M27: 151640.996 | N27: 0.005431576543 | O27: 66424.2092
A28: 25 | B28: México | C28: 73464.5916 | D28: 0.005668339747 | F28: 25 | G28: Costa Rica | H28: 69968.8442 | I28: 0.004677718511 | K28: 25 | L28: Suíça | M28: 147879.1934 | N28: 0.005296833833 | O28: 138884.6586
A29: 26 | B29: Japão | C29: 66614.1746 | D29: 0.005139779115 | F29: 26 | G29: Áustria | H29: 64420.9792 | I29: 0.004306819847 | K29: 26 | L29: Grécia | M29: 116206.8788 | N29: 0.004162374118 | O29: -11091.8156
A30: 27 | B30: Irlanda | C30: 63977.066 | D30: 0.004936306569 | F30: 27 | G30: Grécia | H30: 63649.3472 | I30: 0.004255232926 | K30: 27 | L30: Argentina | M30: 113791.3158 | N30: 0.0040758519 | O30: -81661.721
A31: 28 | B31: Luxemburgo | C31: 55247.7972 | D31: 0.004262778544 | F31: 28 | G31: Reino Unido (sem Irlanda do Norte) pós 2020 | H31: 61062.0792 | I31: 0.004082262919 | K31: 28 | L31: Uruguai | M31: 105100.8748 | N31: 0.003764571991 | O31: -99122.7156
A32: 29 | B32: Grécia | C32: 52557.5316 | D32: 0.00405520454 | F32: 29 | G32: Turquia | H32: 55979.4086 | I32: 0.003742464504 | K32: 29 | L32: Áustria | M32: 103584.973 | N32: 0.003710274427 | O32: -25256.9854
A33: 30 | B33: Áustria | C33: 39163.9938 | D33: 0.003021793463 | F33: 30 | G33: Equador | H33: 48766.9652 | I33: 0.003260281607 | K33: 30 | L33: Finlândia | M33: 103332.8204 | N33: 0.00370124266 | O33: -44888.9996
A34: 31 | B34: Moçambique | C34: 37451.371 | D34: 0.002889651874 | F34: 31 | G34: Chile | H34: 47783.2146 | I34: 0.003194513644 | K34: 31 | L34: Cabo Verde | M34: 101737.191 | N34: 0.003644089361 | O34: 100064.9178
A35: 32 | B35: África do Sul | C35: 37155.4974 | D35: 0.002866823025 | F35: 32 | G35: Bulgária | H35: 47615.198 | I35: 0.003183281011 | K35: 32 | L35: Índia | M35: 100003.3314 | N35: 0.003581984841 | O35: -51078.0262
A36: 33 | B36: Chile | C36: 36026.5554 | D36: 0.002779716751 | F36: 33 | G36: Cuba | H36: 43073.8564 | I36: 0.00287967277 | K36: 33 | L36: Egito | M36: 93743.8836 | N36: 0.003357779839 | O36: 73012.8668
A37: 34 | B37: Austrália | C37: 34889.2258 | D37: 0.002691963312 | F37: 34 | G37: Marrocos | H37: 42608.3934 | I37: 0.002848554565 | K37: 34 | L37: México | M37: 93550.6764 | N37: 0.003350859417 | O37: 53378.5068
A38: 35 | B38: Arábia Saudita | C38: 32824.7102 | D38: 0.002532670576 | F38: 35 | G38: Moçambique | H38: 40008.1492 | I38: 0.002674717044 | K38: 35 | L38: Chile | M38: 83809.77 | N38: 0.00300195325 | O38: -11756.6592
A39: 36 | B39: Guiné-Bissau | C39: 32182.3282 | D39: 0.002483106026 | F39: 36 | G39: Checa, República | H39: 35954.3558 | I39: 0.0024037035 | K39: 36 | L39: Argélia | M39: 83292.5462 | N39: 0.002983426989 | O39: 73469.2374
A40: 37 | B40: Finlândia | C40: 29221.9104 | D40: 0.00225468777 | F40: 37 | G40: Colômbia | H40: 29155.8878 | I40: 0.001949196641 | K40: 37 | L40: Japão | M40: 83024.7762 | N40: 0.002973835828 | O40: 50203.573
A41: 38 | B41: Checa, República | C41: 29121.3328 | D41: 0.00224692746 | F41: 38 | G41: Indonésia | H41: 28536.2748 | I41: 0.001907772844 | K41: 38 | L41: Moçambique | M41: 77459.5202 | N41: 0.002774495842 | O41: -2556.7782
A42: 39 | B42: Emirados Árabes Unidos | C42: 29075.6888 | D42: 0.002243405686 | F42: 39 | G42: Guiana | H42: 28025.2642 | I42: 0.001873609585 | K42: 39 | L42: Vietname | M42: 75952.8202 | N42: 0.002720527875 | O42: -64059.8382
A43: 40 | B43: São Tomé e Príncipe | C43: 26794.1658 | D43: 0.002067369214 | F43: 40 | G43: Hungria | H43: 24241.9694 | I43: 0.001620680037 | K43: 40 | L43: Costa Rica | M43: 73986.1334 | N43: 0.002650083798 | O43: -65951.555
A44: 41 | B44: Jordânia | C44: 26642.1032 | D44: 0.002055636453 | F44: 41 | G44: Namíbia | H44: 22812.3548 | I44: 0.001525104145 | K44: 41 | L44: Checa, República | M44: 65075.6886 | N44: 0.002330923649 | O44: -6833.023
A45: 42 | B45: Roménia | C45: 25840.175 | D45: 0.001993761727 | F45: 42 | G45: Costa do Marfim | H45: 22796.1714 | I45: 0.001524022215 | K45: 42 | L45: Luxemburgo | M45: 63935.742 | N45: 0.002290092295 | O45: 46559.8524
A46: 43 | B46: Tunísia | C46: 24967.3514 | D46: 0.001926416893 | F46: 43 | G46: Uganda | H46: 22685.1304 | I46: 0.001516598646 | K46: 43 | L46: Bulgária | M46: 60599.4354 | N46: 0.002170590279 | O46: -34630.9606
A47: 44 | B47: Índia | C47: 24462.6526 | D47: 0.001887475626 | F47: 44 | G47: México | H47: 20086.0848 | I47: 0.001342841257 | K47: 44 | L47: Equador | M47: 51816.5236 | N47: 0.00185599819 | O47: -45717.4068
A48: 45 | B48: Noruega | C48: 22053.074 | D48: 0.001701558712 | F48: 45 | G48: Peru | H48: 19492.7516 | I48: 0.001303174378 | K48: 45 | L48: Austrália | M48: 48706.4602 | N48: 0.001744599902 | O48: 21071.9914
A49: 46 | B49: Coreia, República da | C49: 18918.1652 | D49: 0.001459677178 | F49: 46 | G49: Paraguai | H49: 18841.0926 | I49: 0.001259608167 | K49: 46 | L49: Cuba | M49: 48370.083 | N49: 0.001732551323 | O49: -37777.6298
A50: 47 | B50: Hungria | C50: 18307.2964 | D50: 0.001412544106 | F50: 47 | G50: Senegal | H50: 17576.369 | I50: 0.001175055949 | K50: 47 | L50: Hungria | M50: 42549.2658 | N50: 0.001524057479 | O50: -5934.673
A51: 48 | B51: Nigéria | C51: 16230.2952 | D51: 0.001252288012 | F51: 48 | G51: Nova Zelânda | H51: 17376.4264 | I51: 0.001161688925 | K51: 48 | L51: Colômbia | M51: 37488.773 | N51: 0.001342797432 | O51: -20823.0026
A52: 49 | B52: Argentina | C52: 16064.7974 | D52: 0.001239518626 | F52: 49 | G52: Japão | H52: 16410.6016 | I52: 0.001097119379 | K52: 49 | L52: Tunísia | M52: 35512.9364 | N52: 0.001272025622 | O52: 14421.7664
A53: 50 | B53: Lituânia | C53: 14413.7628 | D53: 0.001112129024 | F53: 50 | G53: Angola | H53: 15423.1486 | I53: 0.001031103894 | K53: 50 | L53: Noruega | M53: 34929.1028 | N53: 0.001251113488 | O53: 9177.0452
A54: 51 | B54: Ucrânia | C54: 14339.8926 | D54: 0.001106429389 | F54: 51 | G54: Lituânia | H54: 14634.3552 | I54: 0.0009783696586 | K54: 51 | L54: Costa do Marfim | M54: 32980.227 | N54: 0.001181307378 | O54: -12612.1158
A55: 52 | B55: Macau | C55: 14162.3014 | D55: 0.001092726907 | F55: 52 | G55: Mauritânia | H55: 14124.4552 | I55: 0.0009442806481 | K55: 52 | L55: Arábia Saudita | M55: 32858.648 | N55: 0.001176952581 | O55: 32790.7724
A56: 53 | B56: Síria, República Árabe da | C56: 13309.7072 | D56: 0.001026942922 | F56: 53 | G56: Austrália | H56: 13817.2344 | I56: 0.0009237416147 | K56: 53 | L56: Guiné-Bissau | M56: 32561.5328 | N56: 0.001166310315 | O56: 31803.1236
A57: 54 | B57: Iraque | C57: 13221.9204 | D57: 0.001020169517 | F57: 54 | G57: Tanzânia, República Unida da | H57: 13710.948 | I57: 0.0009166359112 | K57: 54 | L57: Indonésia | M57: 32138.0738 | N57: 0.001151142583 | O57: -24934.4758
A58: 55 | B58: Bulgária | C58: 12984.2374 | D58: 0.001001830505 | F58: 55 | G58: Eslovénia | H58: 13650.401 | I58: 0.0009125880836 | K58: 55 | L58: Coreia, República da | M58: 31290.6162 | N58: 0.001120787791 | O58: 6545.7142
A59: 56 | B59: HongKong | C59: 12801.5844 | D59: 0.0009877374677 | F59: 56 | G59: Suazilândia | H59: 13238.574 | I59: 0.0008850556754 | K59: 56 | L59: Emirados Árabes Unidos | M59: 29704.3194 | N59: 0.001063968773 | O59: 28447.0582
A60: 57 | B60: Eslováquia | C60: 12721.3848 | D60: 0.000981549472 | F60: 57 | G60: Noruega | H60: 12876.0288 | I60: 0.0008608179677 | K60: 57 | L60: Lituânia | M60: 29048.118 | N60: 0.001040464521 | O60: -220.5924
A61: 58 | B61: Letónia | C61: 11855.2754 | D61: 0.0009147226888 | F61: 58 | G61: Tailândia | H61: 12763.9036 | I61: 0.0008533219153 | K61: 58 | L61: Senegal | M61: 28854.7126 | N61: 0.001033537 | O61: -6298.0254
A62: 59 | B62: Croácia | C62: 11368.3906 | D62: 0.0008771559045 | F62: 59 | G62: Camarões | H62: 12420.1756 | I62: 0.0008303422184 | K62: 59 | L62: Guiana | M62: 28164.8444 | N62: 0.001008826849 | O62: -27885.684
A63: 60 | B63: Senegal | C63: 11278.3436 | D63: 0.0008702081086 | F63: 60 | G63: Coreia, República da | H63: 12372.451 | I63: 0.0008271516234 | K63: 60 | L63: São Tomé e Príncipe | M63: 27847.8924 | N63: 0.0009974740546 | O63: 25740.4392
A64: 61 | B64: Dominicana, República | C64: 11207.4662 | D64: 0.0008647393899 | F64: 61 | G64: Estónia | H64: 12168.0976 | I64: 0.0008134897187 | K64: 61 | L64: Jordânia | M64: 26698.3012 | N64: 0.0009562972438 | O64: 26585.9052
A65: 62 | B65: Líbia, Jamahira Árabe da | C65: 11110.442 | D65: 0.0008572532511 | F65: 62 | G65: Moldava, República de | H65: 11911.7076 | I65: 0.0007963489432 | K65: 62 | L65: Peru | M65: 25630.734 | N65: 0.0009180584224 | O65: -13354.7692
A66: 63 | B66: Costa do Marfim | C66: 10184.0556 | D66: 0.000785775649 | F66: 63 | G66: Sérvia | H66: 11556.9174 | I66: 0.0007726296907 | K66: 63 | L66: Uganda | M66: 23651.9568 | N66: 0.0008471812843 | O66: -21718.304
A67: 64 | B67: Malta | C67: 9933.0434 | D67: 0.0007664081904 | F67: 64 | G67: Letónia | H67: 10708.7876 | I67: 0.0007159285616 | K67: 64 | L67: Namíbia | M67: 23552.016 | N67: 0.0008436015392 | O67: -22072.6936
A68: 65 | B68: Líbano | C68: 9909.3948 | D68: 0.000764583525 | F68: 65 | G68: Tunísia | H68: 10545.585 | I68: 0.0007050177651 | K68: 65 | L68: Letónia | M68: 22564.063 | N68: 0.0008082143914 | O68: 1146.4878
A69: 66 | B69: Território Palestiniano Ocupado | C69: 9895.7186 | D69: 0.0007635283045 | F69: 66 | G69: Paquistão | H69: 10439.2814 | I69: 0.0006979109117 | K69: 66 | L69: Tailândia | M69: 22047.6444 | N69: 0.0007897169717 | O69: -3480.1628
A70: 67 | B70: Chipre | C70: 9812.818 | D70: 0.0007571319065 | F70: 67 | G70: Egito | H70: 10365.5084 | I70: 0.000692978869 | K70: 67 | L70: Eslovénia | M70: 21976.3266 | N70: 0.000787162464 | O70: -5324.4754
A71: 68 | B71: Tailândia | C71: 9283.7408 | D71: 0.0007163096647 | F71: 68 | G71: Islândia | H71: 10004.2966 | I71: 0.0006688303048 | K71: 68 | L71: Nigéria | M71: 21616.2318 | N71: 0.0007742643525 | O71: 10844.3586
A72: 69 | B72: Kuwait | C72: 9136.5242 | D72: 0.0007049508088 | F72: 69 | G72: Maurícias | H72: 9636.258 | I72: 0.0006442253397 | K72: 69 | L72: Nova Zelânda | M72: 21601.4804 | N72: 0.0007737359772 | O72: -13151.3724
A73: 70 | B73: Camarões | C73: 9091.9556 | D73: 0.0007015120098 | F73: 70 | G73: Luxemburgo | H73: 8687.9448 | I73: 0.000580826519 | K73: 70 | L73: Camarões | M73: 21512.1312 | N73: 0.000770535609 | O73: -3328.22
A74: 71 | B74: Colômbia | C74: 8332.8852 | D74: 0.0006429440817 | F74: 71 | G74: Israel | H74: 8343.4514 | I74: 0.0005577956518 | K74: 71 | L74: Estónia | M74: 20482.628 | N74: 0.0007336601889 | O74: -3853.5672
A75: 72 | B75: Eslovénia | C75: 8325.9256 | D75: 0.0006424070968 | F75: 72 | G75: Filipinas | H75: 8336.7014 | I75: 0.0005573443853 | K75: 72 | L75: Paraguai | M75: 20050.3854 | N75: 0.0007181778403 | O75: -17631.7998
A76: 73 | B76: Estónia | C76: 8314.5304 | D76: 0.0006415278723 | F76: 73 | G76: Belize | H76: 8129.6594 | I76: 0.0005435027361 | K76: 73 | L76: Croácia | M76: 18456.18 | N76: 0.0006610755468 | O76: 4280.6012
A77: 74 | B77: Geórgia | C77: 8048.6886 | D77: 0.0006210161999 | F77: 74 | G77: Malásia | H77: 8111.8758 | I77: 0.0005423138258 | K77: 74 | L77: Eslováquia | M77: 18115.4256 | N77: 0.0006488701825 | O77: 7327.344
A78: 75 | B78: Gibraltar | C78: 7970.9208 | D78: 0.0006150158356 | F78: 75 | G78: Bangladesh | H78: 7928.3318 | I78: 0.0005300431191 | K78: 75 | L78: Sérvia | M78: 17501.5482 | N78: 0.0006268819196 | O78: -5612.2866
A79: 76 | B79: Gana | C79: 7302.601 | D79: 0.0005634499914 | F79: 76 | G79: Croácia | H79: 7087.7894 | I79: 0.0004738492404 | K79: 76 | L79: Mauritânia | M79: 16926.9998 | N79: 0.0006063023686 | O79: -11321.9106
A80: 77 | B80: Taiwan | C80: 6604.3054 | D80: 0.0005095712912 | F80: 77 | G80: Quénia | H80: 6720.3804 | I80: 0.0004492863668 | K80: 77 | L80: HongKong | M80: 15599.17 | N80: 0.0005587412909 | O80: 10003.9988
A81: 78 | B81: Belarus | C81: 6189.2796 | D81: 0.0004775489633 | F81: 78 | G81: Gana | H81: 6620.3222 | I81: 0.0004425970453 | K81: 78 | L81: Maurícias | M81: 15492.8062 | N81: 0.0005549314826 | O81: -3779.7098
A82: 79 | B82: Guatemala | C82: 6179.8032 | D82: 0.0004768177886 | F82: 79 | G82: Reino Unido (Irlanda do Norte) pós-2020 | H82: 6512.7256 | I82: 0.0004354037492 | K82: 79 | L82: Suazilândia | M82: 15229.7308 | N82: 0.0005455084756 | O82: -11247.4172
A83: 80 | B83: Peru | C83: 6137.9824 | D83: 0.0004735910027 | F83: 80 | G83: Panamá | H83: 6501.636 | I83: 0.0004346623617 | K83: 80 | L83: Moldava, República de | M83: 14880.8148 | N83: 0.0005330107737 | O83: -8942.6004
A84: 81 | B84: Vietname | C84: 5946.491 | D84: 0.0004588160167 | F84: 81 | G84: Honduras | H84: 6221.2504 | I84: 0.0004159173771 | K84: 81 | L84: Síria, República Árabe da | M84: 14259.5412 | N84: 0.0005107575889 | O84: 12359.8732
A85: 82 | B85: Sérvia | C85: 5944.6308 | D85: 0.0004586724885 | F85: 82 | G85: Suriname | H85: 5829.6302 | I85: 0.0003897358804 | K85: 82 | L85: Tanzânia, República Unida da | M85: 14227.4994 | N85: 0.0005096098947 | O85: -13194.3966
A86: 83 | B86: Maurícias | C86: 5856.5482 | D86: 0.0004518762606 | F86: 83 | G86: Eslováquia | H86: 5394.0408 | I86: 0.0003606148535 | K86: 83 | L86: Macau | M86: 14180.6616 | N86: 0.0005079322277 | O86: 14143.9412
A87: 84 | B87: Andorra | C87: 5401.2632 | D87: 0.000416747636 | F87: 84 | G87: Nigéria | H87: 5385.9366 | I87: 0.0003600730528 | K87: 84 | L87: Gana | M87: 13922.9232 | N87: 0.0004987003848 | O87: 682.2788
A88: 85 | B88: Cuba | C88: 5296.2266 | D88: 0.0004086432809 | F88: 85 | G88: Etiópia | H88: 5332.739 | I88: 0.0003565165642 | K88: 85 | L88: Paquistão | M88: 13694.5862 | N88: 0.0004905216605 | O88: -7183.9766
A89: 86 | B89: Singapura | C89: 4688.1098 | D89: 0.000361722546 | F89: 86 | G89: Congo | H89: 5207.2118 | I89: 0.0003481245304 | K89: 86 | L89: Dominicana, República | M89: 13458.9994 | N89: 0.0004820832582 | O89: 8955.933
A90: 87 | B90: Omã | C90: 4393.4536 | D90: 0.0003389876282 | F90: 87 | G90: Guatemala | H90: 5138.5064 | I90: 0.0003435312785 | K90: 87 | L90: Chipre | M90: 13259.2352 | N90: 0.0004749279732 | O90: 6366.4008
A91: 88 | B91: Nova Zelânda | C91: 4225.054 | D91: 0.0003259943464 | F91: 88 | G91: Camboja | H91: 4965.2796 | I91: 0.0003319503211 | K91: 88 | L91: Iraque | M91: 13234.1844 | N91: 0.0004740306872 | O91: 13209.6564
A92: 89 | B92: Panamá | C92: 4203.97 | D92: 0.0003243675589 | F92: 89 | G92: Argélia | H92: 4911.6544 | I92: 0.0003283652455 | K92: 89 | L92: Malta | M92: 12121.6218 | N92: 0.0004341801911 | O92: 7744.465
A93: 90 | B93: Costa Rica | C93: 4017.2892 | D93: 0.0003099637465 | F93: 90 | G93: Macedónia, Antiga República jugoslava da | H93: 4838.0028 | I93: 0.0003234413189 | K93: 90 | L93: Filipinas | M93: 11815.5126 | N93: 0.0004232157713 | O93: -4857.8902
A94: 91 | B94: Catar | C94: 3815.048 | D94: 0.0002943593334 | F94: 91 | G94: Zimbabwe | H94: 4709.1506 | I94: 0.0003148269946 | K94: 91 | L94: Islândia | M94: 11807.758 | N94: 0.0004229380119 | O94: -8200.8352
A95: 92 | B95: Burquina Faso | C95: 3646.8948 | D95: 0.0002813850632 | F95: 92 | G95: Suíça | H95: 4497.2674 | I95: 0.0003006616903 | K95: 92 | L95: Malásia | M95: 11523.7994 | N95: 0.0004127669968 | O95: -4699.9522
A96: 93 | B96: Indonésia | C96: 3601.799 | D96: 0.0002779055867 | F96: 93 | G96: Sri Lanca | H96: 4393.1556 | I96: 0.0002937013682 | K96: 93 | L96: Guatemala | M96: 11318.3096 | N96: 0.0004054066285 | O96: 1041.2968
A97: 94 | B97: Sudão | C97: 3570.9408 | D97: 0.000275524647 | F97: 94 | G97: Madagáscar | H97: 3797.768 | I97: 0.0002538971435 | K97: 94 | L97: Líbia, Jamahira Árabe da | M97: 11116.443 | N97: 0.0003981760383 | O97: 11104.441
A98: 95 | B98: Filipinas | C98: 3478.8112 | D98: 0.000268416163 | F98: 95 | G98: Mali | H98: 3762.5872 | I98: 0.0002515451555 | K98: 95 | L98: Panamá | M98: 10705.606 | N98: 0.0003834604095 | O98: -2297.666
A99: 96 | B99: Mali | C99: 3441.82 | D99: 0.0002655620168 | F99: 96 | G99: Myanmar | H99: 3487.5904 | I99: 0.0002331604353 | K99: 96 | L99: Líbano | M99: 10450.9178 | N99: 0.0003743378207 | O99: 9367.8718
A100: 97 | B100: Malásia | C100: 3411.9236 | D100: 0.0002632552871 | F100: 97 | G100: Nicarágua | H100: 3458.6086 | I100: 0.0002312228772 | K100: 97 | L100: Kuwait | M100: 10320.1982 | N100: 0.0003696556204 | O100: 7952.8502
A101: 98 | B101: Venezuela | C101: 3292.4432 | D101: 0.0002540364854 | F101: 98 | G101: Chipre | H101: 3446.4172 | I101: 0.0002304078296 | K101: 98 | L101: Taiwan | M101: 10028.0136 | N101: 0.000359189961 | O101: 3180.5972
A102: 99 | B102: Paquistão | C102: 3255.3048 | D102: 0.0002511709816 | F102: 99 | G102: Taiwan | H102: 3423.7082 | I102: 0.0002288896352 | K102: 99 | L102: Território Palestiniano Ocupado | M102: 9896.2038 | N102: 0.0003544687112 | O102: 9895.2334
A103: 100 | B103: Irão, República Islâmica do | C103: 3151.3458 | D103: 0.0002431497714 | F103: 100 | G103: Congo, República Democrática do | H103: 3287.5874 | I103: 0.0002197893736 | K103: 100 | L103: Bangladesh | M103: 9893.1502 | N103: 0.0003543593354 | O103: -5963.5134
A104: 101 | B104: Equador | C104: 3049.5584 | D104: 0.0002352961163 | F104: 101 | G104: Malavi | H104: 3258.318 | I104: 0.0002178325882 | K104: 101 | L104: Quénia | M104: 9767.4084 | N104: 0.0003498554332 | O104: -3673.3524
A105: 102 | B105: Quénia | C105: 3047.028 | D105: 0.0002351008771 | F105: 102 | G105: Papuásia-Nova Guiné | H105: 3105.1676 | I105: 0.0002075938245 | K105: 102 | L105: Reino Unido (Irlanda do Norte) pós-2020 | M105: 9039.3634 | N105: 0.0003237778404 | O105: -3986.0878
A106: 103 | B106: Uruguai | C106: 2989.0796 | D106: 0.000230629727 | F106: 103 | G106: HongKong | H106: 2797.5856 | I106: 0.0001870306434 | K106: 103 | L106: Geórgia | M106: 8359.3498 | N106: 0.0002994206678 | O106: 7738.0274
A107: 104 | B107: Moldava, República de | C107: 2969.1072 | D107: 0.0002290887077 | F107: 104 | G107: Gabão | H107: 2642.8406 | I107: 0.0001766852738 | K107: 104 | L107: Belize | M107: 8131.84 | N107: 0.0002912715727 | O107: -8127.4788
A108: 105 | B108: Mauritânia | C108: 2802.5446 | D108: 0.0002162371641 | F108: 105 | G108: Centro-Africana, República | H108: 2579.2684 | I108: 0.0001724351985 | K108: 105 | L108: Gibraltar | M108: 7990.6994 | N108: 0.0002862161062 | O108: 7951.1422
A109: 106 | B109: Timor-Leste | C109: 2726.394 | D109: 0.0002103615788 | F109: 106 | G109: Gâmbia | H109: 2389.373 | I109: 0.0001597398734 | K109: 106 | L109: Congo | M109: 7640.4052 | N109: 0.0002736690391 | O109: -2774.0184
A110: 107 | B110: Guiné | C110: 2676.647 | D110: 0.0002065232277 | F110: 107 | G110: Dominicana, República | H110: 2251.5332 | I110: 0.0001505246892 | K110: 107 | L110: Honduras | M110: 7590.891 | N110: 0.000271895507 | O110: -4851.6098
A111: 108 | B111: Arménia | C111: 2588.4812 | D111: 0.0001997205803 | F111: 108 | G111: Malta | H111: 2188.5784 | I111: 0.0001463158898 | K111: 108 | L111: Etiópia | M111: 7364.853 | N111: 0.0002637991299 | O111: -3300.625
A112: 109 | B112: Gabão | C112: 2550.5466 | D112: 0.0001967936438 | F112: 109 | G112: Serra Leoa | H112: 1997.8504 | I112: 0.0001335649017 | K112: 109 | L112: Mali | M112: 7204.4072 | N112: 0.0002580521771 | O112: -320.7672
A113: 110 | B113: Reino Unido (Irlanda do Norte) pós-2020 | C113: 2526.6378 | D113: 0.000194948902 | F113: 110 | G113: Benim | H113: 1832.152 | I113: 0.0001224872502 | K113: 110 | L113: Belarus | M113: 7048.6518 | N113: 0.0002524732281 | O113: 5329.9074
A114: 111 | B114: Congo | C114: 2433.1934 | D114: 0.0001877389714 | F114: 111 | G114: El Salvador | H114: 1779.4546 | I114: 0.0001189642021 | K114: 111 | L114: Suriname | M114: 6411.9606 | N114: 0.0002296678056 | O114: -5247.2998
A115: 112 | B115: Albânia | C115: 2230.3856 | D115: 0.0001720908409 | F115: 112 | G115: Burquina Faso | H115: 1725.7416 | I115: 0.0001153732568 | K115: 112 | L115: Singapura | M115: 5996.509 | N115: 0.000214786888 | O115: 3379.7106
A116: 113 | B116: Seychelles | C116: 2209.8298 | D116: 0.000170504808 | F116: 113 | G116: Laos, República Democrática Popular do | H116: 1570.485 | I116: 0.0001049936845 | K116: 113 | L116: Camboja | M116: 5868.657 | N116: 0.0002102074013 | O116: -4061.9022
A117: 114 | B117: Guiné Equatorial | C117: 2176.4366 | D117: 0.0001679282743 | F117: 114 | G117: Singapura | H117: 1308.3992 | I117: 8.74721203e-05 | K117: 114 | L117: Sri Lanca | M117: 5833.9434 | N117: 0.0002089640068 | O117: -2952.3678
A118: 115 | B118: Etiópia | C118: 2032.114 | D118: 0.000156792712 | F118: 115 | G118: Seychelles | H118: 1264.2444 | I118: 8.45201818e-05 | K118: 115 | L118: Macedónia, Antiga República jugoslava da | M118: 5788.8886 | N118: 0.0002073502045 | O118: -3887.117
A119: 116 | B119: Suazilândia | C119: 1991.1568 | D119: 0.0001536325594 | F119: 116 | G119: Kuwait | H119: 1183.674 | I119: 7.913370364e-05 | K119: 116 | L119: Andorra | M119: 5443.4826 | N119: 0.0001949782261 | O119: 5359.0438
A120: 117 | B120: Bangladesh | C120: 1964.8184 | D120: 0.0001516003559 | F120: 117 | G120: Bolívia | H120: 1171.2708 | I120: 7.830449631e-05 | K120: 117 | L120: Burquina Faso | M120: 5372.6364 | N120: 0.0001924406105 | O120: 1921.1532
A121: 118 | B121: Islândia | C121: 1803.4614 | D121: 0.000139150463 | F121: 118 | G121: Togo | H121: 1123.3014 | I121: 7.509753537e-05 | K121: 118 | L121: Gabão | M121: 5193.3872 | N121: 0.0001860201452 | O121: -92.294
A122: 119 | B122: Benim | C122: 1771.8166 | D122: 0.0001367088313 | F122: 119 | G122: São Tomé e Príncipe | H122: 1053.7266 | I122: 7.044616041e-05 | K122: 119 | L122: Nicarágua | M122: 5085.0522 | N122: 0.0001821397312 | O122: -1832.165
A123: 120 | B123: Congo, República Democrática do | C123: 1727.2344 | D123: 0.0001332689829 | F123: 120 | G123: Venezuela | H123: 1042.4414 | I123: 6.96916962e-05 | K123: 120 | L123: Congo, República Democrática do | M123: 5014.8218 | N123: 0.0001796241727 | O123: -1560.353
A124: 121 | B124: Jamaica | C124: 1687.498 | D124: 0.000130203024 | F124: 121 | G124: Iémen | H124: 1024.4982 | I124: 6.849211602e-05 | K124: 121 | L124: Omã | M124: 4887.3662 | N124: 0.0001750588845 | O124: 3899.541
A125: 122 | B125: Nicarágua | C125: 1626.4436 | D125: 0.0001254922229 | F125: 122 | G125: Síria, República Árabe da | H125: 949.834 | I125: 6.350049275e-05 | K125: 122 | L125: Zimbabwe | M125: 4774.1098 | N125: 0.0001710021926 | O125: -4644.1914
A126: 123 | B126: Togo | C126: 1570.864 | D126: 0.0001212038433 | F126: 123 | G126: Belarus | H126: 859.3722 | I126: 5.745273191e-05 | K126: 123 | L126: Venezuela | M126: 4334.8846 | N126: 0.0001552697366 | O126: 2250.0018
A127: 124 | B127: El Salvador | C127: 1565.6294 | D127: 0.000120799955 | F127: 124 | G127: Cabo Verde | H127: 836.1366 | I127: 5.5899332e-05 | K127: 124 | L127: Madagáscar | M127: 4107.7632 | N127: 0.0001471345535 | O127: -3487.7728
A128: 125 | B128: Cazaquistão | C128: 1539.9044 | D128: 0.0001188150798 | F128: 125 | G128: Bósnia-Herzegovina | H128: 758.1446 | I128: 5.068523098e-05 | K128: 125 | L128: Myanmar | M128: 3979.9732 | N128: 0.0001425572876 | O128: -2995.2076
A129: 126 | B129: Sri Lanca | C129: 1440.7878 | D129: 0.0001111674968 | F129: 126 | G129: Turquemenistão | H129: 720.6558 | I129: 4.817894327e-05 | K129: 126 | L129: Catar | M129: 3835.8118 | N129: 0.0001373936201 | O129: 3794.2842
A130: 127 | B130: Azerbaijão | C130: 1435.1898 | D130: 0.0001107355695 | F130: 127 | G130: Chade | H130: 675.9004 | I130: 4.518685207e-05 | K130: 127 | L130: Benim | M130: 3603.9686 | N130: 0.0001290893085 | O130: -60.3354
A131: 128 | B131: Bolívia | C131: 1412.2374 | D131: 0.0001089646211 | F131: 128 | G131: Emirados Árabes Unidos | H131: 628.6306 | I131: 4.202666241e-05 | K131: 128 | L131: Sudão | M131: 3591.4234 | N131: 0.0001286399563 | O131: 3550.4582
A132: 129 | B132: Honduras | C132: 1369.6406 | D132: 0.0001056779611 | F132: 129 | G132: Timor-Leste | H132: 614.51 | I132: 4.108263949e-05 | K132: 129 | L132: Seychelles | M132: 3474.0742 | N132: 0.0001244366657 | O132: 945.5854
A133: 130 | B133: São Bartolomeu | C133: 1280.9726 | D133: 9.883656527e-05 | F133: 130 | G133: Faroé, Ilhas | H133: 597.6172 | I133: 3.995328308e-05 | K133: 130 | L133: Irão, República Islâmica do | M133: 3375.8016 | N133: 0.0001209166734 | O133: 2926.89
A134: 131 | B134: Ruanda | C134: 1241.2404 | D134: 9.577093048e-05 | F134: 131 | G134: Líbano | H134: 541.523 | I134: 3.620314427e-05 | K134: 131 | L134: El Salvador | M134: 3345.084 | N134: 0.0001198164103 | O134: -213.8252
A135: 132 | B135: Paraguai | C135: 1209.2928 | D135: 9.330593548e-05 | F135: 132 | G135: Omã | H135: 493.9126 | I135: 3.302018403e-05 | K135: 132 | L135: Timor-Leste | M135: 3340.904 | N135: 0.0001196666883 | O135: 2111.884
A136: 133 | B136: Iémen | C136: 1145.3826 | D136: 8.837478812e-05 | F136: 133 | G136: Gronelândia | H136: 481.3548 | I136: 3.218064103e-05 | K136: 133 | L136: Malavi | M136: 3267.4472 | N136: 0.0001170355645 | O136: -3249.1888
A137: 134 | B137: Montenegro | C137: 1046.3476 | D137: 8.073350114e-05 | F137: 134 | G137: Guiné-Bissau | H137: 379.2046 | I137: 2.535146031e-05 | K137: 134 | L137: Papuásia-Nova Guiné | M137: 3108.0532 | N137: 0.0001113262858 | O137: -3102.282
A138: 135 | B138: Uganda | C138: 966.8264 | D138: 7.4597849e-05 | F138: 135 | G138: Geórgia | H138: 310.6612 | I138: 2.076903888e-05 | K138: 135 | L138: Guiné | M138: 2979.4642 | N138: 0.0001067204007 | O138: 2373.8298
A139: 136 | B139: Macedónia, Antiga República jugoslava da | C139: 950.8858 | D139: 7.336791313e-05 | F139: 136 | G139: Usbequistão | H139: 308.3052 | I139: 2.061153014e-05 | K139: 136 | L139: Gâmbia | M139: 2880.9438 | N139: 0.0001031915325 | O139: -1897.8022
A140: 137 | B140: Bermudas | C140: 907.5284 | D140: 7.002256718e-05 | F140: 137 | G140: Guiné | H140: 302.8172 | I140: 2.024463371e-05 | K140: 137 | L140: Togo | M140: 2694.1654 | N140: 9.650138139e-05 | O140: 447.5626
A141: 138 | B141: Camboja | C141: 903.3774 | D141: 6.970228665e-05 | F141: 138 | G141: Irão, República Islâmica do | H141: 224.4558 | I141: 1.500583671e-05 | K141: 138 | L141: Centro-Africana, República | M141: 2675.6308 | N141: 9.583749694e-05 | O141: -2482.906
A142: 139 | B142: Barbados | C142: 886.8842 | D142: 6.842971358e-05 | F142: 139 | G142: Zâmbia | H142: 199.4064 | I142: 1.333117646e-05 | K142: 139 | L142: Arménia | M142: 2615.4888 | N142: 9.368329138e-05 | O142: 2561.4736
A143: 140 | B143: Trindade e Tobago | C143: 878.7574 | D143: 6.780267051e-05 | F143: 140 | G143: Azerbaijão | H143: 125.9648 | I143: 8.421289267e-06 | K143: 140 | L143: Bolívia | M143: 2583.5082 | N143: 9.25377893e-05 | O143: 240.9666
A144: 141 | B144: Namíbia | C144: 739.6612 | D144: 5.707036394e-05 | F144: 141 | G144: Fiji, Ilhas | H144: 123.8224 | I144: 8.278060602e-06 | K144: 141 | L144: Serra Leoa | M144: 2504.667 | N144: 8.971380354e-05 | O144: -1491.0338
A145: 142 | B145: Turquemenistão | C145: 730.8192 | D145: 5.638813786e-05 | F145: 142 | G145: Maldivas | H145: 106.1904 | I145: 7.099285481e-06 | K145: 142 | L145: Albânia | M145: 2336.138 | N145: 8.367732141e-05 | O145: 2124.6332
A146: 143 | B146: Barém | C146: 714.5288 | D146: 5.513121232e-05 | F146: 143 | G146: Albânia | H146: 105.7524 | I146: 7.070003295e-06 | K146: 143 | L146: Guiné Equatorial | M146: 2182.423 | N146: 7.817145683e-05 | O146: 2170.4502
A147: 144 | B147: Burundi | C147: 677.1012 | D147: 5.224339455e-05 | F147: 144 | G147: Tajiquistão | H147: 59.4122 | I147: 3.971961391e-06 | K147: 144 | L147: Iémen | M147: 2169.8808 | N147: 7.77222121e-05 | O147: 120.8844
A148: 145 | B148: Aruba | C148: 656.9934 | D148: 5.06919282e-05 | F148: 145 | G148: Jordânia | H148: 56.198 | I148: 3.757078281e-06 | K148: 145 | L148: Jamaica | M148: 1698.6206 | N148: 6.084230551e-05 | O148: 1676.3754
A149: 146 | B149: Niger | C149: 652.165 | D149: 5.031938122e-05 | F149: 146 | G149: Andorra | H149: 42.2194 | I149: 2.822548681e-06 | K149: 146 | L149: Laos, República Democrática Popular do | M149: 1586.3348 | N149: 5.682037916e-05 | O149: -1554.6352
A150: 147 | B150: São Martinho (parte holandesa) | C150: 597.7744 | D150: 4.612274182e-05 | F150: 147 | G150: Libéria | H150: 38.8276 | I150: 2.595792246e-06 | K150: 147 | L150: Azerbaijão | M150: 1561.1546 | N150: 5.591845826e-05 | O150: 1309.225
A151: 148 | B151: Suriname | C151: 582.3304 | D151: 4.493112233e-05 | F151: 148 | G151: Falkland Ilhas (Malvinas) | H151: 38.0622 | I151: 2.544621961e-06 | K151: 148 | L151: Cazaquistão | M151: 1555.7084 | N151: 5.57233827e-05 | O151: 1524.1004
A152: 149 | B152: Bósnia-Herzegovina | C152: 535.6404 | D152: 4.13286415e-05 | F152: 149 | G152: Aruba | H152: 38.029 | I152: 2.542402398e-06 | K152: 149 | L152: Turquemenistão | M152: 1451.475 | N152: 5.198988249e-05 | O152: 10.1634
A153: 150 | B153: Tanzânia, República Unida da | C153: 516.5514 | D153: 3.985578315e-05 | F153: 150 | G153: Arábia Saudita | H153: 33.9378 | I153: 2.268888061e-06 | K153: 150 | L153: Bósnia-Herzegovina | M153: 1293.785 | N153: 4.634163876e-05 | O153: -222.5042
A154: 151 | B154: Ceuta e Melilha | C154: 507.8786 | D154: 3.918661211e-05 | F154: 151 | G154: São Marino | H154: 32.7702 | I154: 2.190828974e-06 | K154: 151 | L154: São Bartolomeu | M154: 1281.3862 | N154: 4.589753041e-05 | O154: 1280.559
A155: 152 | B155: Serra Leoa | C155: 506.8166 | D155: 3.910467091e-05 | F155: 152 | G155: Botswana | H155: 29.9908 | I155: 2.005014116e-06 | K155: 152 | L155: Ruanda | M155: 1241.8804 | N155: 4.448248579e-05 | O155: 1240.6004
A156: 153 | B156: Myanmar | C156: 492.3828 | D156: 3.799099587e-05 | F156: 153 | G156: São Pedro e Miquelon | H156: 28.9156 | I156: 1.933132367e-06 | K156: 153 | L156: Montenegro | M156: 1046.6634 | N156: 3.749007539e-05 | O156: 1046.0318
A157: 154 | B157: Gâmbia | C157: 491.5708 | D157: 3.792834403e-05 | F157: 154 | G157: Arménia | H157: 27.0076 | I157: 1.805574351e-06 | K157: 154 | L157: Bermudas | M157: 908.2538 | N157: 3.253242965e-05 | O157: 906.803
A158: 155 | B158: Curaçau | C158: 479.6396 | D158: 3.700776319e-05 | F158: 155 | G158: Catar | H158: 20.7638 | I158: 1.388149436e-06 | K158: 155 | L158: Barbados | M158: 897.2042 | N158: 3.213664784e-05 | O158: 876.5642
A159: 156 | B159: Kosovo | C159: 471.1818 | D159: 3.6355181e-05 | F159: 156 | G159: Sudão | H159: 20.4826 | I159: 1.369350005e-06 | K159: 156 | L159: Trindade e Tobago | M159: 878.7678 | N159: 3.147628079e-05 | O159: 878.747
A160: 157 | B160: Polinésia Francesa | C160: 366.6458 | D160: 2.828945096e-05 | F160: 157 | G160: Gibraltar | H160: 19.7786 | I160: 1.322284574e-06 | K160: 157 | L160: Barém | M160: 719.082 | N160: 2.575655018e-05 | O160: 709.9756
A161: 158 | B161: Antígua e Barbuda | C161: 363.7054 | D161: 2.806257722e-05 | F161: 158 | G161: Macau | H161: 18.3602 | I161: 1.227458426e-06 | K161: 158 | L161: Aruba | M161: 695.0224 | N161: 2.489476767e-05 | O161: 618.9644
A162: 159 | B162: Haiti | C162: 328.5232 | D162: 2.534800877e-05 | F162: 159 | G162: Quirguizistão | H162: 17.4752 | I162: 1.168292366e-06 | K162: 159 | L162: Burundi | M162: 677.2152 | N162: 2.425693771e-05 | O162: 676.9872
A163: 160 | B163: Comores | C163: 311.607 | D163: 2.40427981e-05 | F163: 160 | G163: Salomão, Ilhas | H163: 16.0532 | I163: 1.073225543e-06 | K163: 160 | L163: Chade | M163: 676.014 | N163: 2.421391234e-05 | O163: -675.7868
A164: 161 | B164: Madagáscar | C164: 309.9952 | D164: 2.391843574e-05 | F164: 161 | G164: Cazaquistão | H164: 15.804 | I164: 1.05656545e-06 | K164: 161 | L164: Niger | M164: 655.4318 | N164: 2.347668562e-05 | O164: 648.8982
A165: 162 | B165: Nova Caledónia | C165: 302.6442 | D165: 2.335125141e-05 | F165: 162 | G165: Santa Helena | H165: 15.7338 | I165: 1.051872278e-06 | K165: 162 | L165: Faroé, Ilhas | M165: 598.4668 | N165: 2.143627593e-05 | O165: -596.7676
A166: 163 | B166: Libéria | C166: 295.8354 | D166: 2.282590184e-05 | F166: 163 | G166: Marshall, Ilhas | H166: 13.4098 | I166: 8.965028707e-07 | K166: 163 | L166: São Martinho (parte holandesa) | M166: 597.7772 | N166: 2.141157538e-05 | O166: 597.7716
A167: 164 | B167: Somália | C167: 292.9902 | D167: 2.260637349e-05 | F167: 164 | G167: Curaçau | H167: 12.9632 | I167: 8.666457377e-07 | K167: 164 | L167: Usbequistão | M167: 531.3872 | N167: 1.903357487e-05 | O167: -85.2232
A168: 165 | B168: Bahamas | C168: 280.4744 | D168: 2.164068642e-05 | F168: 165 | G168: Iraque | H168: 12.264 | I168: 8.199012071e-07 | K168: 165 | L168: Ceuta e Melilha | M168: 507.8786 | N168: 1.819152843e-05 | O168: 507.8786
A169: 166 | B169: Usbequistão | C169: 223.082 | D169: 1.721243581e-05 | F169: 166 | G169: Jamaica | H169: 11.1226 | I169: 7.435937024e-07 | K169: 166 | L169: Curaçau | M169: 492.6028 | N169: 1.764436982e-05 | O169: 466.6764
A170: 167 | B170: São Marino | C170: 219.9688 | D170: 1.697222927e-05 | F170: 167 | G170: Nepal | H170: 10.3458 | I170: 6.916612776e-07 | K170: 167 | L170: Gronelândia | M170: 481.9304 | N170: 1.72620988e-05 | O170: -480.7792
A171: 168 | B171: Bonaire, Santo Eustáquio e Saba | C171: 206.5448 | D171: 1.593646781e-05 | F171: 168 | G171: Barbados | H171: 10.32 | I171: 6.899364365e-07 | K171: 168 | L171: Kosovo | M171: 479.554 | N171: 1.717697935e-05 | O171: 462.8096
A172: 169 | B172: Guiana | C172: 139.5802 | D172: 1.076965077e-05 | F172: 169 | G172: Antígua e Barbuda | H172: 9.2326 | I172: 6.172390643e-07 | K172: 169 | L172: Antígua e Barbuda | M172: 372.938 | N172: 1.335813762e-05 | O172: 354.4728
A173: 170 | B173: Zâmbia | C173: 138.1944 | D173: 1.066272599e-05 | F173: 170 | G173: Kosovo | H173: 8.3722 | I173: 5.597176195e-07 | K173: 170 | L173: Polinésia Francesa | M173: 367.1436 | N173: 1.315059e-05 | O173: 366.148
A174: 171 | B174: Maldivas | C174: 129.0678 | D174: 9.958540908e-06 | F174: 171 | G174: Jibuti | H174: 7.3022 | I174: 4.881835123e-07 | K174: 171 | L174: Zâmbia | M174: 337.6008 | N174: 1.209240663e-05 | O174: -61.212
A175: 172 | B175: Santa Lúcia | C175: 120.252 | D175: 9.278336357e-06 | F175: 172 | G175: Líbia, Jamahira Árabe da | H175: 6.001 | I175: 4.011926895e-07 | K175: 172 | L175: Libéria | M175: 334.663 | N175: 1.198717859e-05 | O175: 257.0078
A176: 173 | B176: Liechtenstein | C176: 119.4194 | D176: 9.214095074e-06 | F176: 173 | G176: Guiné Equatorial | H176: 5.9864 | I176: 4.002166166e-07 | K176: 173 | L176: Haiti | M176: 328.8008 | N176: 1.177720247e-05 | O176: 328.2456
A177: 174 | B177: Afeganistão | C177: 109.4574 | D177: 8.445452666e-06 | F177: 174 | G177: Barém | H177: 4.5532 | I177: 3.044010254e-07 | K177: 174 | L177: Comores | M177: 311.607 | N177: 1.116134368e-05 | O177: 311.607
A178: 175 | B178: Quirguizistão | C178: 109.2342 | D178: 8.428231126e-06 | F178: 175 | G178: São Cristovão e Nevis | H178: 4.4378 | I178: 2.966860385e-07 | K178: 175 | L178: Nova Caledónia | M178: 303.3498 | N178: 1.086558188e-05 | O178: 301.9386
A179: 176 | B179: Virgens Britânicas, Ilhas | C179: 102.589 | D179: 7.915504512e-06 | F179: 176 | G179: Afeganistão | H179: 4.3662 | I179: 2.918992702e-07 | K179: 176 | L179: Somália | M179: 292.9902 | N179: 1.049451494e-05 | O179: 292.9902
A180: 177 | B180: Botswana | C180: 98.1832 | D180: 7.575564267e-06 | F180: 177 | G180: Niger | H180: 3.2668 | I180: 2.183996464e-07 | K180: 177 | L180: Bahamas | M180: 280.4744 | N180: 1.004621581e-05 | O180: 280.4744
A181: 178 | B181: Jibuti | C181: 96.957 | D181: 7.480953815e-06 | F181: 178 | G181: Liechtenstein | H181: 1.7444 | I181: 1.166206511e-07 | K181: 178 | L181: São Marino | M181: 252.739 | N181: 9.052771085e-06 | O181: 187.1986
A182: 179 | B182: Centro-Africana, República | C182: 96.3624 | D182: 7.435076002e-06 | F182: 179 | G182: Lesoto | H182: 1.7136 | I182: 1.145615385e-07 | K182: 179 | L182: Maldivas | M182: 235.2582 | N182: 8.426632338e-06 | O182: 22.8774
A183: 180 | B183: Nepal | C183: 77.231 | D183: 5.958946173e-06 | F183: 180 | G183: Butão | H183: 1.2178 | I183: 8.141517368e-08 | K183: 180 | L183: Bonaire, Santo Eustáquio e Saba | M183: 206.5448 | N183: 7.398156965e-06 | O183: 206.5448
A184: 181 | B184: Zimbabwe | C184: 64.9592 | D184: 5.012085513e-06 | F184: 181 | G184: Bermudas | H184: 0.7254 | I184: 4.849611347e-08 | K184: 181 | L184: Fiji, Ilhas | M184: 135.9286 | N184: 4.868779649e-06 | O184: -111.7162
A185: 182 | B185: Caimão, Ilhas | C185: 51.6906 | D185: 3.988314318e-06 | F185: 182 | G185: Nova Caledónia | H185: 0.7056 | I185: 4.717239822e-08 | K185: 182 | L185: Botswana | M185: 128.174 | N185: 4.591020305e-06 | O185: 68.1924
A186: 183 | B186: Mongólia | C186: 37.8358 | D186: 2.919313431e-06 | F186: 183 | G186: Ruanda | H186: 0.64 | I186: 4.278675575e-08 | K186: 183 | L186: Quirguizistão | M186: 126.7094 | N186: 4.538560303e-06 | O186: 91.759
A187: 184 | B187: Turcas e Caicos, Ilhas | C187: 19.071 | D187: 1.47146952e-06 | F187: 184 | G187: Polinésia Francesa | H187: 0.4978 | I187: 3.328007346e-08 | K187: 184 | L187: Liechtenstein | M187: 121.1638 | N187: 4.339924369e-06 | O187: 117.675
A188: 185 | B188: Laos, República Democrática Popular do | C188: 15.8498 | D188: 1.222929977e-06 | F188: 185 | G188: Território Palestiniano Ocupado | H188: 0.4852 | I188: 3.24377092e-08 | K188: 185 | L188: Santa Lúcia | M188: 120.2706 | N188: 4.307931146e-06 | O188: 120.2334
A189: 186 | B189: Fiji, Ilhas | C189: 12.1062 | D189: 9.340833883e-07 | F189: 186 | G189: São Bartolomeu | H189: 0.4136 | I189: 2.76509409e-08 | K189: 186 | L189: Afeganistão | M189: 113.8236 | N189: 4.077008277e-06 | O189: 105.0912
A190: 187 | B190: Anguila | C190: 10.0614 | D190: 7.76311857e-07 | F190: 187 | G190: Micronésia, Estados Federados da | H190: 0.3438 | I190: 2.298451035e-08 | K190: 187 | L190: Jibuti | M190: 104.2592 | N190: 3.734424331e-06 | O190: 89.6548
A191: 188 | B191: Malavi | C191: 9.1292 | D191: 7.043856923e-07 | F191: 188 | G191: Montenegro | H191: 0.3158 | I191: 2.111258979e-08 | K191: 188 | L191: Virgens Britânicas, Ilhas | M191: 102.589 | N191: 3.674600013e-06 | O191: 102.589
A192: 189 | B192: Brunei Darussalam | C192: 7.7238 | D192: 5.959486275e-07 | F192: 189 | G192: Haiti | H192: 0.2776 | I192: 1.855875531e-08 | K192: 189 | L192: Nepal | M192: 87.5768 | N192: 3.136883199e-06 | O192: 66.8852
A193: 190 | B193: São Vicente e Granadinas | C193: 7.6034 | D193: 5.866588719e-07 | F193: 190 | G193: Burundi | H193: 0.114 | I193: 7.621390868e-09 | K193: 190 | L193: Tajiquistão | M193: 59.4122 | N193: 2.128065104e-06 | O193: -59.4122
A194: 191 | B194: Guam | C194: 6.6636 | D194: 5.141463107e-07 | F194: 191 | G194: Oceano Indico, Território Britânico do | H194: 0.098 | I194: 6.551721974e-09 | K194: 191 | L194: Caimão, Ilhas | M194: 51.6906 | N194: 1.851487776e-06 | O194: 51.6906
A195: 192 | B195: Territórios Franceses do Sul | C195: 6.3102 | D195: 4.868788717e-07 | F195: 192 | G195: Nauru | H195: 0.0694 | I195: 4.639688827e-09 | K195: 192 | L195: Falkland Ilhas (Malvinas) | M195: 38.0622 | N195: 1.363336816e-06 | O195: -38.0622
A196: 193 | B196: Menores distantes dos Estados Unidos, lhas | C196: 4.5544 | D196: 3.514058403e-07 | F196: 193 | G196: Vanuatu | H196: 0.065 | I196: 4.345529881e-09 | K196: 193 | L196: Mongólia | M196: 37.8488 | N196: 1.355693115e-06 | O196: 37.8228
A197: 194 | B197: Sudão do Sul | C197: 3.771 | D197: 2.909607026e-07 | F197: 194 | G197: São Vicente e Granadinas | H197: 0.0416 | I197: 2.781139124e-09 | K197: 194 | L197: São Pedro e Miquelon | M197: 29.2314 | N197: 1.047029436e-06 | O197: -28.5998
A198: 195 | B198: Melilha | C198: 3.6164 | D198: 2.790321625e-07 | F198: 195 | G198: Santa Sé (Cidade Estado do Vaticano) | H198: 0.021 | I198: 1.403940423e-09 | K198: 195 | L198: Turcas e Caicos, Ilhas | M198: 19.071 | N198: 6.830975724e-07 | O198: 19.071
A199: 196 | B199: Marianas do Norte, Ilhas | C199: 2.9244 | D199: 2.256392147e-07 | F199: 196 | G199: Santa Lúcia | H199: 0.0186 | I199: 1.243490089e-09 | K199: 196 | L199: Salomão, Ilhas | M199: 16.0532 | N199: 5.750040349e-07 | O199: -16.0532
A200: 197 | B200: Papuásia-Nova Guiné | C200: 2.8856 | D200: 2.22645506e-07 | F200: 197 | G200: Mongólia | H200: 0.013 | I200: 8.691059762e-10 | K200: 197 | L200: Santa Helena | M200: 15.7338 | N200: 5.635635564e-07 | O200: -15.7338
... 58 more rows

Sheet 2AA
A1: Ranking dos parceiros comerciais de Portugal por país (média 2018-2022 em milhares de euros) produtos agrícolas e agroalimentares
A2: Exportações | F2: Importações | K2: Trocas comerciais (total e saldo)
A3: P | B3: País | C3: média quinquénio | D3: % do Total | F3: P | G3: País | H3: média quinquénio | I3: % do Total | K3: P | L3: País | M3: Total (exp+imp) | N3: % do Total | O3: Saldo (exp-imp)
A4: 1 | B4: Espanha | C4: 2411384.356 | D4: 0.3412368491 | F4: 1 | G4: Espanha | H4: 4705156.347 | I4: 0.461261043 | K4: 1 | L4: Espanha | M4: 7116540.703 | N4: 0.4121412567 | O4: -2293771.991
A5: 2 | B5: França | C5: 676917.193 | D5: 0.095791071 | F5: 2 | G5: França | H5: 802414.1936 | I5: 0.07866314753 | K5: 2 | L5: França | M5: 1479331.387 | N5: 0.08567273374 | O5: -125497.0006
A6: 3 | B6: Itália | C6: 450062.431 | D6: 0.06368867969 | F6: 3 | G6: Alemanha | H6: 691414.1182 | I6: 0.0677814665 | K6: 3 | L6: Alemanha | M6: 951387.8206 | N6: 0.05509786122 | O6: -431440.4158
A7: 4 | B7: Brasil | C7: 371211.2184 | D7: 0.05253038414 | F7: 4 | G7: Países Baixos | H7: 595089.4646 | I7: 0.05833846251 | K7: 4 | L7: Países Baixos | M7: 927519.5784 | N7: 0.05371557624 | O7: -262659.3508
A8: 5 | B8: Países Baixos | C8: 332430.1138 | D8: 0.04704244029 | F8: 5 | G8: Brasil | H8: 551854.2014 | I8: 0.05409997581 | K8: 5 | L8: Brasil | M8: 923065.4198 | N8: 0.0534576219 | O8: -180642.983
A9: 6 | B9: Angola | C9: 270815.6406 | D9: 0.03832332895 | F9: 6 | G9: Itália | H9: 325226.391 | I9: 0.03188294995 | K9: 6 | L9: Itália | M9: 775288.822 | N9: 0.0448994143 | O9: 124836.04 | P9: Nota: Nesta listagem, o Reino Unido passa a ser constituído por três componentes: Reino Unido [até 2020] ; Reino Unido (sem Irlanda do Norte) pós-2020 e Reino Unido (Irlanda do Norte) pós-2020. Estas componentes são calculadas igualmente como média do quinquénio, embora a primeira corresponda apenas a 2018-2020 e as duas últimas a 2021-2022.
A10: 7 | B10: Alemanha | C10: 259973.7024 | D10: 0.03678907796 | F10: 7 | G10: Bélgica | H10: 255604.7054 | I10: 0.02505772058 | K10: 7 | L10: Bélgica | M10: 422129.3612 | N10: 0.02444683909 | O10: -89080.0496
A11: 8 | B11: Reino Unido | C11: 202835.6198 | D11: 0.02870342408 | F11: 8 | G11: Estados Unidos | H11: 216780.4662 | I11: 0.02125166022 | K11: 8 | L11: Estados Unidos | M11: 400397.4384 | N11: 0.02318827508 | O11: -33163.494
A12: 9 | B12: Estados Unidos | C12: 183616.9722 | D12: 0.02598377852 | F12: 9 | G12: Ucrânia | H12: 191923.2566 | I12: 0.01881483101 | K12: 9 | L12: Polónia | M12: 317728.7036 | N12: 0.01840066862 | O12: -49129.98
A13: 10 | B13: Israel | C13: 169490.6434 | D13: 0.0239847509 | F13: 10 | G13: Polónia | H13: 183429.3418 | I13: 0.01798214624 | K13: 10 | L13: Reino Unido | M13: 313115.4092 | N13: 0.01813349823 | O13: 92555.8304
A14: 11 | B14: Bélgica | C14: 166524.6558 | D14: 0.02356503172 | F14: 11 | G14: Roménia | H14: 135147.0966 | I14: 0.01324888827 | K14: 11 | L14: Angola | M14: 277936.943 | N14: 0.0160962026 | O14: 263694.3382
A15: 12 | B15: Reino Unido (sem Irlanda do Norte) pós 2020 | C15: 153212.605 | D15: 0.02168123321 | F15: 12 | G15: África do Sul | H15: 112523.4846 | I15: 0.01103102555 | K15: 12 | L15: Reino Unido (sem Irlanda do Norte) pós 2020 | M15: 202799.7018 | N15: 0.01174476862 | O15: 103625.5082
A16: 13 | B16: Polónia | C16: 134299.3618 | D16: 0.01900480566 | F16: 13 | G16: Irlanda | H16: 110291.18 | I16: 0.01081218582 | K16: 13 | L16: Ucrânia | M16: 198678.4348 | N16: 0.01150609309 | O16: -185168.0784
A17: 14 | B17: Suíça | C17: 92002.5032 | D17: 0.01301934477 | F17: 14 | G17: Reino Unido | H17: 110279.7894 | I17: 0.01081106916 | K17: 14 | L17: Canadá | M17: 175349.2144 | N17: 0.01015502456 | O17: -30879.5124
A18: 15 | B18: Cabo Verde | C18: 85448.1822 | D18: 0.01209183778 | F18: 15 | G18: Canadá | H18: 103114.3634 | I18: 0.01010862027 | K18: 15 | L18: Israel | M18: 174656.3316 | N18: 0.01011489753 | O18: 164324.9552
A19: 16 | B19: Canadá | C19: 72234.851 | D19: 0.01022200915 | F19: 16 | G19: Argentina | H19: 72786.9924 | I19: 0.007135534201 | K19: 16 | L19: Roménia | M19: 150956.573 | N19: 0.008742369966 | O19: -119337.6202
A20: 17 | B20: China, República Popular da | C20: 72213.8082 | D20: 0.01021903137 | F20: 17 | G20: Dinamarca | H20: 70235.3942 | I20: 0.00688539313 | K20: 17 | L20: Irlanda | M20: 137073.4678 | N20: 0.007938355676 | O20: -83508.8922
A21: 18 | B21: Japão | C21: 54930.0814 | D21: 0.007773197936 | F21: 18 | G21: Costa Rica | H21: 69966.4528 | I21: 0.006859027972 | K21: 18 | L21: África do Sul | M21: 134358.9168 | N21: 0.007781147489 | O21: -90688.0524
A22: 19 | B22: Suécia | C22: 50847.6768 | D22: 0.007195493731 | F22: 19 | G22: Reino Unido (sem Irlanda do Norte) pós 2020 | H22: 49587.0968 | I22: 0.004861176612 | K22: 19 | L22: Dinamarca | M22: 117607.5464 | N22: 0.006811022939 | O22: -22863.242
A23: 20 | B23: Rússia, Federação da | C23: 48396.534 | D23: 0.006848630634 | F23: 20 | G23: Bulgária | H23: 45267.761 | I23: 0.004437738752 | K23: 20 | L23: China, República Popular da | M23: 117263.0136 | N23: 0.006791069961 | O23: 27164.6028
A24: 21 | B24: Dinamarca | C24: 47372.1522 | D24: 0.00670366958 | F24: 21 | G24: China, República Popular da | H24: 45049.2054 | I24: 0.00441631307 | K24: 21 | L24: Suíça | M24: 94989.5902 | N24: 0.005501145952 | O24: 89015.4162
A25: 22 | B25: Luxemburgo | C25: 45467.1782 | D25: 0.006434095249 | F25: 22 | G25: Cuba | H25: 35800.4636 | I25: 0.003509630279 | K25: 22 | L25: Cabo Verde | M25: 85574.9204 | N25: 0.004955912811 | O25: 85321.444
A26: 23 | B26: Marrocos | C26: 40790.7978 | D26: 0.005772337073 | F26: 23 | G26: Grécia | H26: 30695.8376 | I26: 0.003009207989 | K26: 23 | L26: Argentina | M26: 73024.3208 | N26: 0.004229068111 | O26: -72549.664
A27: 24 | B27: Guiné-Bissau | C27: 30105.257 | D27: 0.004260218001 | F27: 24 | G27: Vietname | H27: 28842.503 | I27: 0.00282751986 | K27: 24 | L27: Costa Rica | M27: 71166.176 | N27: 0.004121457101 | O27: -68766.7296
A28: 25 | B28: Irlanda | C28: 26782.2878 | D28: 0.003789982082 | F28: 25 | G28: Colômbia | H28: 28226.344 | I28: 0.002767115886 | K28: 25 | L28: Japão | M28: 68521.65 | N28: 0.003968304282 | O28: 41338.5128
A29: 26 | B29: São Tomé e Príncipe | C29: 25260.8806 | D29: 0.003574686582 | F29: 26 | G29: Guiana | H29: 28025.2642 | I29: 0.002747403411 | K29: 26 | L29: Suécia | M29: 64561.625 | N29: 0.003738966778 | O29: 37133.7286
A30: 27 | B30: Arábia Saudita | C30: 25200.9646 | D30: 0.003566207823 | F30: 27 | G30: Chile | H30: 24582.6414 | I30: 0.00240991244 | K30: 27 | L30: Rússia, Federação da | M30: 60555.2322 | N30: 0.003506943969 | O30: 36237.8358
A31: 28 | B31: Moçambique | C31: 25040.048 | D31: 0.003543436392 | F31: 28 | G31: Áustria | H31: 23768.2002 | I31: 0.002330070248 | K31: 28 | L31: Luxemburgo | M31: 53710.6 | N31: 0.003110549789 | O31: 37223.7564
A32: 29 | B32: Grécia | C32: 22268.7026 | D32: 0.003151261179 | F32: 29 | G32: Uruguai | H32: 22544.114 | I32: 0.002210069288 | K32: 29 | L32: Bulgária | M32: 53424.102 | N32: 0.003093957789 | O32: -37111.42
A33: 30 | B33: África do Sul | C33: 21835.4322 | D33: 0.003089948753 | F33: 30 | G33: Checa, República | H33: 22169.9018 | I33: 0.002173384108 | K33: 30 | L33: Grécia | M33: 52964.5402 | N33: 0.003067343119 | O33: -8427.135
A34: 31 | B34: Finlândia | C34: 19885.3292 | D34: 0.002813988182 | F34: 31 | G34: Costa do Marfim | H34: 21706.6942 | I34: 0.002127974433 | K34: 31 | L34: Marrocos | M34: 50677.0038 | N34: 0.002934864691 | O34: 30904.5918
A35: 32 | B35: Checa, República | C35: 18233.8742 | D35: 0.002580289519 | F35: 32 | G35: Índia | H35: 20821.1078 | I35: 0.002041157656 | K35: 32 | L35: Checa, República | M35: 40403.776 | N35: 0.002339909756 | O35: -3936.0276
A36: 33 | B36: Jordânia | C36: 17519.4376 | D36: 0.002479189048 | F36: 33 | G36: Paraguai | H36: 18543.3936 | I36: 0.001817866282 | K36: 33 | L36: Cuba | M36: 38670.0018 | N36: 0.002239501438 | O36: -32930.9254
A37: 34 | B37: Noruega | C37: 16995.9884 | D37: 0.00240511535 | F37: 34 | G37: Turquia | H37: 17986.1158 | I37: 0.001763234614 | K37: 34 | L37: Áustria | M37: 38055.3092 | N37: 0.002203902656 | O37: -9481.0912
A38: 35 | B38: Roménia | C38: 15809.4764 | D38: 0.002237211127 | F38: 35 | G38: Hungria | H38: 16799.7058 | I38: 0.001646927169 | K38: 35 | L38: Moçambique | M38: 35153.372 | N38: 0.002035842345 | O38: 14926.724
A39: 36 | B39: Austrália | C39: 14444.1886 | D39: 0.002044008204 | F39: 36 | G39: Uganda | H39: 16711.9112 | I39: 0.001638320392 | K39: 36 | L39: Colômbia | M39: 34587.7746 | N39: 0.002003086821 | O39: -21864.9134
A40: 37 | B40: Áustria | C40: 14287.109 | D40: 0.002021779749 | F40: 37 | G40: Suécia | H40: 13713.9482 | I40: 0.001344420798 | K40: 37 | L40: Vietname | M40: 30876.7168 | N40: 0.001788167791 | O40: -26808.2892
A41: 38 | B41: Coreia, República da | C41: 13714.1396 | D41: 0.00194069841 | F41: 38 | G41: Japão | H41: 13591.5686 | I41: 0.001332423547 | K41: 38 | L41: Guiné-Bissau | M41: 30466.7032 | N41: 0.001764422613 | O41: 29743.8108
A42: 39 | B42: Iraque | C42: 12402.8826 | D42: 0.001755141426 | F42: 39 | G42: Suazilândia | H42: 13238.5734 | I42: 0.001297818335 | K42: 39 | L42: Chile | M42: 30212.416 | N42: 0.001749696042 | O42: -18952.8668
A43: 40 | B43: Emirados Árabes Unidos | C43: 11850.4352 | D43: 0.001676964171 | F43: 40 | G43: Indonésia | H43: 13223.1014 | I43: 0.001296301567 | K43: 40 | L43: Guiana | M43: 28043.5076 | N43: 0.001624087734 | O43: -28007.0208
A44: 41 | B44: Argélia | C44: 11256.5744 | D44: 0.001592926474 | F44: 41 | G44: México | H44: 13063.4442 | I44: 0.001280649877 | K44: 41 | L44: Hungria | M44: 27985.9222 | N44: 0.001620752782 | O44: -5613.4894
A45: 42 | B45: Macau | C45: 11226.3432 | D45: 0.001588648434 | F45: 42 | G45: Austrália | H45: 12929.8552 | I45: 0.001267553734 | K45: 42 | L45: Turquia | M45: 27952.4328 | N45: 0.001618813306 | O45: -8019.7988
A46: 43 | B46: Hungria | C46: 11186.2164 | D46: 0.00158297006 | F46: 43 | G46: Rússia, Federação da | H46: 12158.6982 | I46: 0.001191954826 | K46: 43 | L46: Austrália | M46: 27374.0438 | N46: 0.00158531698 | O46: 1514.3334
A47: 44 | B47: Nigéria | C47: 10950.0114 | D47: 0.001549544509 | F47: 44 | G47: Moldava, República de | H47: 11903.4008 | I47: 0.001166927231 | K47: 44 | L47: Finlândia | M47: 27340.3908 | N47: 0.001583368029 | O47: 12430.2676
A48: 45 | B48: Turquia | C48: 9966.317 | D48: 0.00141034116 | F48: 45 | G48: Peru | H48: 11309.1784 | I48: 0.00110867377 | K48: 45 | L48: Costa do Marfim | M48: 27312.2444 | N48: 0.001581737982 | O48: -16101.144
A49: 46 | B49: Território Palestiniano Ocupado | C49: 9369.3582 | D49: 0.001325865063 | F49: 46 | G49: Lituânia | H49: 10559.0186 | I49: 0.001035133282 | K49: 46 | L49: São Tomé e Príncipe | M49: 26314.3518 | N49: 0.001523946883 | O49: 24207.4094
A50: 47 | B50: Eslováquia | C50: 9086.8 | D50: 0.001285880035 | F50: 47 | G50: Paquistão | H50: 10304.0036 | I50: 0.001010133372 | K50: 47 | L50: Arábia Saudita | M50: 25224.07 | N50: 0.001460805234 | O50: 25177.8592
A51: 48 | B51: Senegal | C51: 8493.732 | D51: 0.001201954528 | F51: 48 | G51: Tailândia | H51: 10199.4412 | I51: 0.0009998827965 | K51: 48 | L51: Uruguai | M51: 24295.7548 | N51: 0.001407043581 | O51: -20792.4732
A52: 49 | B52: Bulgária | C52: 8156.341 | D52: 0.001154210069 | F52: 49 | G52: Moçambique | H52: 10113.324 | I52: 0.0009914404608 | K52: 49 | L52: Índia | M52: 23835.9726 | N52: 0.001380416148 | O52: -17806.243
A53: 50 | B53: Líbia, Jamahira Árabe da | C53: 7994.648 | D53: 0.001131328768 | F53: 50 | G53: Marrocos | H53: 9886.206 | I53: 0.0009691753801 | K53: 50 | L53: Paraguai | M53: 19188.0202 | N53: 0.001111238604 | O53: -17898.767
A54: 51 | B54: Gibraltar | C54: 7555.2434 | D54: 0.001069148286 | F54: 51 | G54: Egito | H54: 9790.4264 | I54: 0.0009597858094 | K54: 51 | L54: México | M54: 18719.0294 | N54: 0.001084077872 | O54: -7407.859
A55: 52 | B55: Kuwait | C55: 7349.7522 | D55: 0.001040069069 | F55: 52 | G55: Letónia | H55: 8947.386 | I55: 0.0008771399491 | K55: 52 | L55: Noruega | M55: 18005.9244 | N55: 0.001042779718 | O55: 15986.0524
A56: 53 | B56: Ucrânia | C56: 6755.1782 | D56: 0.0009559304465 | F56: 53 | G56: Sérvia | H56: 8809.7352 | I56: 0.000863645615 | K56: 53 | L56: Jordânia | M56: 17548.9282 | N56: 0.001016313631 | O56: 17489.947
A57: 54 | B57: Colômbia | C57: 6361.4306 | D57: 0.0009002109218 | F57: 54 | G57: Luxemburgo | H57: 8243.4218 | I57: 0.0008081281592 | K57: 54 | L57: Uganda | M57: 17197.4672 | N57: 0.0009959594191 | O57: -16226.3552
A58: 55 | B58: Letónia | C58: 5852.2048 | D58: 0.0008281499884 | F58: 55 | G58: Equador | H58: 8207.9326 | I58: 0.0008046490431 | K58: 55 | L58: Lituânia | M58: 15596.0102 | N58: 0.0009032140069 | O58: -5522.027
A59: 56 | B59: HongKong | C59: 5831.0346 | D59: 0.0008251541771 | F59: 56 | G59: Nova Zelânda | H59: 7880.6232 | I59: 0.0007725618893 | K59: 56 | L59: Suazilândia | M59: 15229.1516 | N59: 0.0008819680715 | O59: -11247.9952
A60: 57 | B60: Maurícias | C60: 5663.2906 | D60: 0.0008014165951 | F60: 57 | G60: Finlândia | H60: 7455.0616 | I60: 0.0007308427682 | K60: 57 | L60: Letónia | M60: 14799.5908 | N60: 0.0008570908544 | O60: -3095.1812
A61: 58 | B61: México | C61: 5655.5852 | D61: 0.000800326198 | F61: 58 | G61: Malásia | H61: 7402.4108 | I61: 0.0007256812473 | K61: 58 | L61: Coreia, República da | M61: 14651.7386 | N61: 0.0008485282684 | O61: 12776.5406
A62: 59 | B62: Chile | C62: 5629.7746 | D62: 0.0007966737202 | F62: 59 | G62: Angola | H62: 7121.3024 | I62: 0.0006981233206 | K62: 59 | L62: Indonésia | M62: 14360.499 | N62: 0.0008316616671 | O62: -12085.7038
A63: 60 | B63: Costa do Marfim | C63: 5605.5502 | D63: 0.0007932457068 | F63: 60 | G63: Camarões | H63: 6330.7516 | I63: 0.0006206231782 | K63: 60 | L63: Tailândia | M63: 13287.7642 | N63: 0.0007695362206 | O63: -7111.1182
A64: 61 | B64: Andorra | C64: 5268.3636 | D64: 0.0007455301725 | F64: 61 | G64: Honduras | H64: 6193.611 | I64: 0.0006071788607 | K64: 61 | L64: Peru | M64: 13096.3328 | N64: 0.0007584498261 | O64: -9522.024
A65: 62 | B65: Lituânia | C65: 5036.9916 | D65: 0.0007127885434 | F65: 62 | G65: Etiópia | H65: 5332.6708 | I65: 0.0005227782275 | K65: 62 | L65: Eslováquia | M65: 12662.696 | N65: 0.000733336555 | O65: 5510.904
A66: 63 | B66: Estónia | C66: 4881.8086 | D66: 0.0006908284781 | F66: 63 | G66: Israel | H66: 5165.6882 | I66: 0.0005064084063 | K66: 63 | L66: Iraque | M66: 12415.1466 | N66: 0.0007190001906 | O66: 12390.6186
A67: 64 | B67: Malta | C67: 4732.9478 | D67: 0.0006697630721 | F67: 64 | G67: Belize | H67: 5153.7922 | I67: 0.0005052422046 | K67: 64 | L67: Emirados Árabes Unidos | M67: 12305.7766 | N67: 0.0007126662299 | O67: 11395.0938
A68: 65 | B68: Síria, República Árabe da | C68: 4399.3294 | D68: 0.0006225524765 | F68: 65 | G68: Camboja | H68: 4964.372 | I68: 0.000486672756 | K68: 65 | L68: Moldava, República de | M68: 12104.7888 | N68: 0.0007010263942 | O68: -11702.0128
A69: 66 | B69: Chipre | C69: 4087.4456 | D69: 0.0005784175609 | F69: 66 | G69: Zimbabwe | H69: 4708.9854 | I69: 0.000461636417 | K69: 66 | L69: Argélia | M69: 11803.7068 | N69: 0.0006835897886 | O69: 10709.442
A70: 67 | B70: Omã | C70: 3805.6814 | D70: 0.0005385448929 | F70: 67 | G70: Guatemala | H70: 4634.8976 | I70: 0.0004543733606 | K70: 67 | L70: Sérvia | M70: 11344.2464 | N70: 0.0006569809916 | O70: -6275.224
A71: 68 | B71: Eslovénia | C71: 3324.2138 | D71: 0.0004704120436 | F71: 68 | G71: Suriname | H71: 4613.819 | I71: 0.0004523069601 | K71: 68 | L71: Egito | M71: 11328.9988 | N71: 0.0006560979551 | O71: -8251.854
A72: 69 | B72: Mali | C72: 3288.1148 | D72: 0.0004653036465 | F72: 69 | G72: Macedónia, Antiga República jugoslava da | H72: 4601.6794 | I72: 0.0004511168776 | K72: 69 | L72: Macau | M72: 11242.8404 | N72: 0.0006511082512 | O72: 11209.846
A73: 70 | B73: Tailândia | C73: 3088.323 | D73: 0.0004370309557 | F73: 70 | G73: Eslovénia | H73: 4575.887 | I73: 0.0004485883688 | K73: 70 | L73: Nigéria | M73: 11147.6308 | N73: 0.0006455943638 | O73: 10752.392
A74: 71 | B74: Índia | C74: 3014.8648 | D74: 0.0004266358295 | F74: 71 | G74: Tanzânia, República Unida da | H74: 4539.6584 | I74: 0.0004450367669 | K74: 71 | L74: Paquistão | M74: 10570.8542 | N74: 0.0006121914167 | O74: -10037.153
A75: 72 | B75: Singapura | C75: 2956.254 | D75: 0.0004183417702 | F75: 72 | G75: Filipinas | H75: 4493.245 | I75: 0.0004404867176 | K75: 72 | L75: Nova Zelânda | M75: 10271.0628 | N75: 0.0005948295537 | O75: -5490.1836
A76: 73 | B76: Cuba | C76: 2869.5382 | D76: 0.0004060705509 | F76: 73 | G76: Tunísia | H76: 4126.4674 | I76: 0.000404530374 | K76: 73 | L76: Território Palestiniano Ocupado | M76: 9369.8434 | N76: 0.0005426371035 | O76: 9368.873
A77: 74 | B77: Taiwan | C77: 2744.627 | D77: 0.0003883942712 | F77: 74 | G77: Estónia | H77: 4043.5748 | I77: 0.0003964041558 | K77: 74 | L77: Senegal | M77: 9057.0902 | N77: 0.000524524582 | O77: 7930.3738
A78: 75 | B78: Gana | C78: 2742.0304 | D78: 0.0003880268243 | F78: 75 | G78: Reino Unido (Irlanda do Norte) pós-2020 | H78: 4000.7948 | I78: 0.0003922103 | K78: 75 | L78: Equador | M78: 9035.3682 | N78: 0.0005232665926 | O78: -7380.497
A79: 76 | B79: Sérvia | C79: 2534.5112 | D79: 0.0003586606232 | F79: 76 | G79: Mali | H79: 3760.9918 | I79: 0.0003687016695 | K79: 76 | L79: Estónia | M79: 8925.3834 | N79: 0.0005168970269 | O79: 838.2338
A80: 77 | B80: Líbano | C80: 2519.7508 | D80: 0.0003565718677 | F80: 77 | G80: Eslováquia | H80: 3575.896 | I80: 0.0003505561552 | K80: 77 | L80: Malásia | M80: 8903.6532 | N80: 0.0005156385627 | O80: -5901.1684
A81: 78 | B81: Timor-Leste | C81: 2471.9198 | D81: 0.0003498032662 | F81: 78 | G81: Myanmar | H81: 3336.325 | I81: 0.0003270702684 | K81: 78 | L81: Camarões | M81: 8611.8814 | N81: 0.00049874114 | O81: -4049.6218
A82: 79 | B82: Belarus | C82: 2455.9286 | D82: 0.0003475403392 | F82: 79 | G82: Quénia | H82: 3256.0222 | I82: 0.0003191979363 | K82: 79 | L82: Kuwait | M82: 8533.2046 | N82: 0.000494184719 | O82: 6166.2998
A83: 80 | B83: Nova Zelânda | C83: 2390.4396 | D83: 0.0003382729406 | F83: 80 | G83: Malavi | H83: 3254.1762 | I83: 0.0003190169672 | K83: 80 | L83: Líbia, Jamahira Árabe da | M83: 8000.598 | N83: 0.0004633397955 | O83: 7988.698
A84: 81 | B84: Filipinas | C84: 2342.9576 | D84: 0.0003315537264 | F84: 81 | G84: Nicarágua | H84: 3164.5064 | I84: 0.0003102263591 | K84: 81 | L84: Eslovénia | M84: 7900.1008 | N84: 0.0004575196866 | O84: -1251.6732
A85: 82 | B85: Camarões | C85: 2281.1298 | D85: 0.000322804427 | F85: 82 | G85: Chipre | H85: 3134.9022 | I85: 0.0003073241678 | K85: 82 | L85: Gibraltar | M85: 7555.2434 | N85: 0.0004375479098 | O85: 7555.2434
A86: 83 | B86: Guiné | C86: 2270.2954 | D86: 0.0003212712428 | F86: 83 | G86: Sri Lanca | H86: 3073.8124 | I86: 0.0003013353456 | K86: 83 | L86: Chipre | M86: 7222.3478 | N86: 0.0004182688785 | O86: 952.5434
A87: 84 | B87: Irão, República Islâmica do | C87: 2234.7082 | D87: 0.0003162352708 | F87: 84 | G87: Suíça | H87: 2987.087 | I87: 0.0002928333861 | K87: 84 | L87: Maurícias | M87: 7215.0708 | N87: 0.0004178474446 | O87: 4111.5104
A88: 85 | B88: Congo | C88: 2184.5722 | D88: 0.000309140487 | F88: 85 | G88: Taiwan | H88: 2718.5488 | I88: 0.000266507755 | K88: 85 | L88: Mali | M88: 7049.1066 | N88: 0.0004082359357 | O88: -472.877
A89: 86 | B89: Seychelles | C89: 2103.9052 | D89: 0.000297725238 | F89: 86 | G89: Dominicana, República | H89: 2224.7352 | I89: 0.000218097679 | K89: 86 | L89: HongKong | M89: 7034.5032 | N89: 0.0004073902069 | O89: 4627.566
A90: 87 | B90: Gabão | C90: 2079.6516 | D90: 0.0002942930925 | F90: 87 | G90: Serra Leoa | H90: 1997.841 | I90: 0.0001958545382 | K90: 87 | L90: Honduras | M90: 7007.3132 | N90: 0.0004058155485 | O90: -5379.9088
A91: 88 | B91: Venezuela | C91: 2058.7692 | D91: 0.000291338008 | F91: 88 | G91: Benim | H91: 1817.538 | I91: 0.0001781788769 | K91: 88 | L91: Filipinas | M91: 6836.2026 | N91: 0.0003959059954 | O91: -2150.2874
A92: 89 | B92: Vietname | C92: 2034.2138 | D92: 0.0002878631545 | F92: 89 | G92: Croácia | H92: 1813.5626 | I92: 0.0001777891561 | K92: 89 | L92: Etiópia | M92: 6077.0796 | N92: 0.0003519427947 | O92: -4588.262
A93: 90 | B93: Suazilândia | C93: 1990.5782 | D93: 0.0002816882473 | F93: 90 | G93: Burquina Faso | H93: 1725.737 | I93: 0.0001691793407 | K93: 90 | L93: Malta | M93: 5803.922 | N93: 0.0003361233789 | O93: 3661.9736
A94: 91 | B94: Sudão | C94: 1865.0268 | D94: 0.0002639213725 | F94: 91 | G94: Gana | H94: 1658.4144 | I94: 0.0001625794978 | K94: 91 | L94: Taiwan | M94: 5463.1758 | N94: 0.0003163896946 | O94: 26.0782
A95: 92 | B95: Burquina Faso | C95: 1848.8938 | D95: 0.0002616383793 | F95: 92 | G95: Laos, República Democrática Popular do | H95: 1570.3752 | I95: 0.0001539487425 | K95: 92 | L95: Camboja | M95: 5365.8038 | N95: 0.0003107505758 | O95: -4562.9402
A96: 93 | B96: Guiné Equatorial | C96: 1818.2522 | D96: 0.0002573022629 | F96: 93 | G96: Maurícias | H96: 1551.7802 | I96: 0.000152125817 | K96: 93 | L96: Síria, República Árabe da | M96: 5349.1634 | N96: 0.0003097868779 | O96: 3449.4954
A97: 94 | B97: Peru | C97: 1787.1544 | D97: 0.0002529015894 | F97: 94 | G97: Madagáscar | H97: 1535.4896 | I97: 0.0001505287991 | K97: 94 | L97: Reino Unido (Irlanda do Norte) pós-2020 | M97: 5342.7154 | N97: 0.000309413454 | O97: -2658.8742
A98: 95 | B98: Croácia | C98: 1771.985 | D98: 0.000250754956 | F98: 95 | G98: Panamá | H98: 1513.6692 | I98: 0.0001483896777 | K98: 95 | L98: Andorra | M98: 5273.09 | N98: 0.0003053812281 | O98: 5263.6372
A99: 96 | B99: Uruguai | C99: 1751.6408 | D99: 0.0002478760327 | F99: 96 | G99: Congo, República Democrática do | H99: 1226.6902 | I99: 0.0001202562379 | K99: 96 | L99: Belize | M99: 5155.9728 | N99: 0.0002985986026 | O99: -5151.6116
A100: 97 | B100: Dominicana, República | C100: 1708.9932 | D100: 0.0002418409381 | F100: 97 | G100: HongKong | H100: 1203.4686 | I100: 0.0001179797526 | K100: 97 | L100: Guatemala | M100: 5126.7604 | N100: 0.0002969068207 | O100: -4143.0348
A101: 98 | B101: Benim | C101: 1572.4166 | D101: 0.0002225138787 | F101: 98 | G101: Kuwait | H101: 1183.4524 | I101: 0.0001160175025 | K101: 98 | L101: Tanzânia, República Unida da | M101: 4910.6254 | N101: 0.000284389763 | O101: -4168.6914
A102: 99 | B102: Bangladesh | C102: 1558.9346 | D102: 0.0002206060305 | F102: 99 | G102: Togo | H102: 1123.3014 | I102: 0.0001101207138 | K102: 99 | L102: Macedónia, Antiga República jugoslava da | M102: 4874.3908 | N102: 0.0002822913033 | O102: -4328.968
A103: 100 | B103: Egito | C103: 1538.5724 | D103: 0.00021772456 | F103: 100 | G103: Malta | H103: 1070.9742 | I103: 0.0001049909164 | K103: 100 | L103: Tunísia | M103: 4852.0784 | N103: 0.000280999122 | O103: -3400.8564
A104: 101 | B104: Catar | C104: 1515.2294 | D104: 0.0002144212742 | F104: 101 | G104: Singapura | H104: 1064.6932 | I104: 0.0001043751705 | K104: 101 | L104: Zimbabwe | M104: 4772.268 | N104: 0.0002763770507 | O104: -4645.7028
A105: 102 | B105: Malásia | C105: 1501.2424 | D105: 0.0002124419631 | F105: 102 | G105: São Tomé e Príncipe | H105: 1053.4712 | I105: 0.0001032750431 | K105: 102 | L105: Suriname | M105: 4769.9158 | N105: 0.0002762408274 | O105: -4457.7222
A106: 103 | B106: Geórgia | C106: 1344.215 | D106: 0.0001902208953 | F106: 103 | G106: Noruega | H106: 1009.936 | I106: 9.900715266e-05 | K106: 103 | L106: Gana | M106: 4400.4448 | N106: 0.0002548435997 | O106: 1083.616
A107: 104 | B107: Reino Unido (Irlanda do Norte) pós-2020 | C107: 1341.9206 | D107: 0.000189896213 | F107: 104 | G107: Síria, República Árabe da | H107: 949.834 | I107: 9.311516754e-05 | K107: 104 | L107: Omã | M107: 4285.638 | N107: 0.0002481947768 | O107: 3325.7248
A108: 105 | B108: Albânia | C108: 1266.1722 | D108: 0.0001791769988 | F108: 105 | G108: Coreia, República da | H108: 937.599 | I108: 9.191573261e-05 | K108: 105 | L108: Singapura | M108: 4020.9472 | N108: 0.0002328657 | O108: 1891.5608
A109: 106 | B109: Costa Rica | C109: 1199.7232 | D109: 0.0001697737499 | F109: 106 | G109: El Salvador | H109: 727.8254 | I109: 7.135097718e-05 | K109: 106 | L109: Dominicana, República | M109: 3933.7284 | N109: 0.0002278145849 | O109: -515.742
A110: 107 | B110: Indonésia | C110: 1137.3976 | D110: 0.0001609540065 | F110: 107 | G110: Turquemenistão | H110: 720.6558 | I110: 7.06481191e-05 | K110: 107 | L110: Myanmar | M110: 3786.5344 | N110: 0.0002192901174 | O110: -2886.1156
A111: 108 | B111: Islândia | C111: 1133.5366 | D111: 0.0001604076334 | F111: 108 | G111: Chade | H111: 675.9004 | I111: 6.626060868e-05 | K111: 108 | L111: Quénia | M111: 3706.4946 | N111: 0.0002146547608 | O111: -2805.5498
A112: 109 | B112: Congo, República Democrática do | C112: 1102.9464 | D112: 0.0001560787907 | F112: 109 | G112: Timor-Leste | H112: 614.232 | I112: 6.021506451e-05 | K112: 109 | L112: Croácia | M112: 3585.5476 | N112: 0.0002076503396 | O112: -41.5776
A113: 110 | B113: Togo | C113: 886.836 | D113: 0.0001254968423 | F113: 110 | G113: Senegal | H113: 563.3582 | I113: 5.52277484e-05 | K113: 110 | L113: Nicarágua | M113: 3581.558 | N113: 0.0002074192893 | O113: -2747.4548
A114: 111 | B114: Panamá | C114: 853.2114 | D114: 0.0001207385994 | F114: 111 | G114: Argélia | H114: 547.1324 | I114: 5.3637083e-05 | K114: 111 | L114: Burquina Faso | M114: 3574.6308 | N114: 0.0002070181134 | O114: 123.1568
A115: 112 | B115: Equador | C115: 827.4356 | D115: 0.0001170910462 | F115: 112 | G115: Líbano | H115: 532.1362 | I115: 5.216695909e-05 | K115: 112 | L115: Sri Lanca | M115: 3466.8512 | N115: 0.0002007762577 | O115: -2680.7736
A116: 113 | B116: Ruanda | C116: 825.9096 | D116: 0.0001168751008 | F116: 113 | G116: Omã | H116: 479.9566 | I116: 4.705163136e-05 | K116: 113 | L116: Benim | M116: 3389.9546 | N116: 0.0001963229338 | O116: -245.1214
A117: 114 | B117: Honduras | C117: 813.7022 | D117: 0.0001151476222 | F117: 114 | G117: Emirados Árabes Unidos | H117: 455.3414 | I117: 4.46385271e-05 | K117: 114 | L117: Malavi | M117: 3260.7796 | N117: 0.0001888420032 | O117: -3247.5728
A118: 115 | B118: Bermudas | C118: 793.1712 | D118: 0.0001122422647 | F118: 115 | G118: Belarus | H118: 370.9342 | I118: 3.636382797e-05 | K118: 115 | L118: Timor-Leste | M118: 3086.1518 | N118: 0.000178728758 | O118: 1857.6878
A119: 116 | B119: Etiópia | C119: 744.4088 | D119: 0.0001053418601 | F119: 116 | G119: Guiné-Bissau | H119: 361.4462 | I119: 3.543368996e-05 | K119: 116 | L119: Líbano | M119: 3051.887 | N119: 0.0001767443757 | O119: 1987.6146
A120: 117 | B120: Tunísia | C120: 725.611 | D120: 0.000102681769 | F120: 117 | G120: Usbequistão | H120: 308.2694 | I120: 3.022060363e-05 | K120: 117 | L120: Belarus | M120: 2826.8628 | N120: 0.0001637125165 | O120: 2084.9944
A121: 118 | B121: Burundi | C121: 677.0954 | D121: 9.581628921e-05 | F121: 118 | G121: Guiné | H121: 302.1342 | I121: 2.961915098e-05 | K121: 118 | L121: Guiné | M121: 2572.4296 | N121: 0.0001489774895 | O121: 1968.1612
A122: 119 | B122: Iémen | C122: 670.7886 | D122: 9.492380911e-05 | F122: 119 | G122: Geórgia | H122: 294.5626 | I122: 2.887688359e-05 | K122: 119 | L122: Serra Leoa | M122: 2499.2974 | N122: 0.0001447421738 | O122: -1496.3846
A123: 120 | B123: Paraguai | C123: 644.6266 | D123: 9.122160443e-05 | F123: 120 | G123: Bolívia | H123: 281.6492 | I123: 2.761094301e-05 | K123: 120 | L123: Irão, República Islâmica do | M123: 2440.1832 | N123: 0.0001413186845 | O123: 2029.2332
A124: 121 | B124: Namíbia | C124: 633.8792 | D124: 8.970073161e-05 | F124: 121 | G124: Bangladesh | H124: 280.7044 | I124: 2.751832134e-05 | K124: 121 | L124: Congo | M124: 2383.877 | N124: 0.0001380578154 | O124: 1985.2674
A125: 122 | B125: Azerbaijão | C125: 594.9756 | D125: 8.419545335e-05 | F125: 122 | G125: Irão, República Islâmica do | H125: 205.475 | I125: 2.014335036e-05 | K125: 122 | L125: Panamá | M125: 2366.8806 | N125: 0.0001370735004 | O125: -660.4578
A126: 123 | B126: Arménia | C126: 559.6906 | D126: 7.920224594e-05 | F126: 123 | G126: Congo | H126: 199.3048 | I126: 1.953846656e-05 | K126: 123 | L126: Congo, República Democrática do | M126: 2329.6366 | N126: 0.0001349165832 | O126: -123.7438
A127: 124 | B127: Cazaquistão | C127: 531.8816 | D127: 7.526697303e-05 | F127: 124 | G127: Zâmbia | H127: 199.3012 | I127: 1.953811364e-05 | K127: 124 | L127: Venezuela | M127: 2213.7304 | N127: 0.0001282040906 | O127: 1903.808
A128: 125 | B128: Aruba | C128: 522.985 | D128: 7.400800834e-05 | F128: 125 | G128: Nigéria | H128: 197.6194 | I128: 1.937324158e-05 | K128: 125 | L128: Seychelles | M128: 2103.9052 | N128: 0.0001218437678 | O128: 2103.9052
A129: 126 | B129: Serra Leoa | C129: 501.4564 | D129: 7.096147965e-05 | F129: 126 | G129: Islândia | H129: 194.2478 | I129: 1.904271319e-05 | K129: 126 | L129: Gabão | M129: 2079.9016 | N129: 0.0001204536439 | O129: 2079.4016
A130: 127 | B130: Guatemala | C130: 491.8628 | D130: 6.960388196e-05 | F130: 127 | G130: Venezuela | H130: 154.9612 | I130: 1.519132617e-05 | K130: 127 | L130: Togo | M130: 2010.1374 | N130: 0.0001164133796 | O130: -236.4654
A131: 128 | B131: Uganda | C131: 485.556 | D131: 6.871140185e-05 | F131: 128 | G131: Cabo Verde | H131: 126.7382 | I131: 1.242453811e-05 | K131: 128 | L131: Sudão | M131: 1881.5594 | N131: 0.0001089670232 | O131: 1848.4942
A132: 129 | B132: São Bartolomeu | C132: 472.0258 | D132: 6.679673288e-05 | F132: 129 | G132: Azerbaijão | H132: 124.8946 | I132: 1.224380429e-05 | K132: 129 | L132: Bangladesh | M132: 1839.639 | N132: 0.000106539281 | O132: 1278.2302
A133: 130 | B133: Mauritânia | C133: 470.2498 | D133: 6.654540976e-05 | F133: 130 | G133: Albânia | H133: 104.056 | I133: 1.020093182e-05 | K133: 130 | L133: Guiné Equatorial | M133: 1818.2522 | N133: 0.0001053007041 | O133: 1818.2522
A134: 131 | B134: Barém | C134: 469.46 | D134: 6.643364455e-05 | F134: 131 | G134: Namíbia | H134: 69.6464 | I134: 6.827652205e-06 | K134: 131 | L134: Madagáscar | M134: 1665.147 | N134: 9.643390038e-05 | O134: -1405.8322
A135: 132 | B135: Gâmbia | C135: 455.249 | D135: 6.442263505e-05 | F135: 132 | G135: Tajiquistão | H135: 59.4122 | I135: 5.824361896e-06 | K135: 132 | L135: Geórgia | M135: 1638.7776 | N135: 9.490676548e-05 | O135: 1049.6524
A136: 133 | B136: Quénia | C136: 450.4724 | D136: 6.374669472e-05 | F136: 133 | G136: Iémen | H136: 45.76 | I136: 4.485994465e-06 | K136: 133 | L136: Laos, República Democrática Popular do | M136: 1584.7624 | N136: 9.177857535e-05 | O136: -1555.988
A137: 134 | B137: Myanmar | C137: 450.2094 | D137: 6.370947739e-05 | F137: 134 | G137: Libéria | H137: 38.8276 | I137: 3.806389831e-06 | K137: 134 | L137: Catar | M137: 1531.2716 | N137: 8.868075487e-05 | O137: 1499.1872
A138: 135 | B138: Kosovo | C138: 418.4652 | D138: 5.921733131e-05 | F138: 135 | G138: Aruba | H138: 38.029 | I138: 3.728100601e-06 | K138: 135 | L138: Albânia | M138: 1370.2282 | N138: 7.935422503e-05 | O138: 1162.1162
A139: 136 | B139: Nicarágua | C139: 417.0516 | D139: 5.901729169e-05 | F139: 136 | G139: São Marino | H139: 32.7702 | I139: 3.212564157e-06 | K139: 136 | L139: Islândia | M139: 1327.7844 | N139: 7.689617106e-05 | O139: 939.2888
A140: 137 | B140: Camboja | C140: 401.4318 | D140: 5.680692181e-05 | F140: 137 | G140: Botswana | H140: 29.9908 | I140: 2.94009097e-06 | K140: 137 | L140: El Salvador | M140: 1020.3732 | N140: 5.909302153e-05 | O140: -435.2776
A141: 138 | B141: Sri Lanca | C141: 393.0388 | D141: 5.561922195e-05 | F141: 138 | G141: Jordânia | H141: 29.4906 | I141: 2.891054816e-06 | K141: 138 | L141: Ruanda | M141: 826.0866 | N141: 4.784127341e-05 | O141: 825.7326
A142: 139 | B142: Bolívia | C142: 391.1324 | D142: 5.534944582e-05 | F142: 139 | G142: Bósnia-Herzegovina | H142: 27.8982 | I142: 2.734946914e-06 | K142: 139 | L142: Bermudas | M142: 793.8604 | N142: 4.59749528e-05 | O142: 792.482
A143: 140 | B143: Tanzânia, República Unida da | C143: 370.967 | D143: 5.24958246e-05 | F143: 140 | G143: Papuásia-Nova Guiné | H143: 25.837 | I143: 2.532881097e-06 | K143: 140 | L143: Turquemenistão | M143: 732.4956 | N143: 4.242112421e-05 | O143: -708.816
A144: 141 | B144: São Martinho (parte holandesa) | C144: 349.244 | D144: 4.942178622e-05 | F144: 141 | G144: Arábia Saudita | H144: 23.1054 | I144: 2.265093892e-06 | K144: 141 | L144: Azerbaijão | M144: 719.8702 | N144: 4.168994759e-05 | O144: 470.081
A145: 142 | B145: Comores | C145: 311.607 | D145: 4.409574549e-05 | F145: 142 | G145: Quirguizistão | H145: 17.4752 | I145: 1.713147956e-06 | K145: 142 | L145: Iémen | M145: 716.5486 | N145: 4.149758328e-05 | O145: 625.0286
A146: 143 | B146: Libéria | C146: 294.774 | D146: 4.171369475e-05 | F146: 143 | G146: Sudão | H146: 16.5326 | I146: 1.62074196e-06 | K146: 143 | L146: Namíbia | M146: 703.5256 | N146: 4.074338039e-05 | O146: 564.2328
A147: 144 | B147: Somália | C147: 292.8146 | D147: 4.143641856e-05 | F147: 144 | G147: Macau | H147: 16.4972 | I147: 1.617271588e-06 | K147: 144 | L147: Burundi | M147: 677.2094 | N147: 3.921932647e-05 | O147: 676.9814
A148: 145 | B148: El Salvador | C148: 292.5478 | D148: 4.139866349e-05 | F148: 145 | G148: Catar | H148: 16.0422 | I148: 1.57266653e-06 | K148: 145 | L148: Chade | M148: 675.9044 | N148: 3.914374982e-05 | O148: -675.8964
A149: 146 | B149: Jamaica | C149: 276.7996 | D149: 3.917012363e-05 | F149: 146 | G149: Arménia | H149: 15.34 | I149: 1.50382769e-06 | K149: 146 | L149: Bolívia | M149: 672.7816 | N149: 3.896289865e-05 | O149: 109.4832
A150: 147 | B150: Macedónia, Antiga República jugoslava da | C150: 272.7114 | D150: 3.859159931e-05 | F150: 147 | G150: Curaçau | H150: 12.9632 | I150: 1.270822628e-06 | K150: 147 | L150: Arménia | M150: 575.0306 | N150: 3.330183077e-05 | O150: 544.3506
A151: 148 | B151: Paquistão | C151: 266.8506 | D151: 3.776223301e-05 | F151: 148 | G151: Iraque | H151: 12.264 | I151: 1.202277887e-06 | K151: 148 | L151: Aruba | M151: 561.014 | N151: 3.249008537e-05 | O151: 484.956
A152: 149 | B152: Antígua e Barbuda | C152: 264.4064 | D152: 3.741635239e-05 | F152: 149 | G152: Jamaica | H152: 11.1226 | I152: 1.090382912e-06 | K152: 149 | L152: Cazaquistão | M152: 537.7376 | N152: 3.114207583e-05 | O152: 526.0256
A153: 150 | B153: Argentina | C153: 237.3284 | D153: 3.358452385e-05 | F153: 150 | G153: Kosovo | H153: 8.3722 | I153: 8.207526849e-07 | K153: 150 | L153: Barém | M153: 473.8044 | N153: 2.743950312e-05 | O153: 465.1156
A154: 151 | B154: Curaçau | C154: 224.0074 | D154: 3.169945893e-05 | F154: 151 | G154: Líbia, Jamahira Árabe da | H154: 5.95 | I154: 5.832969202e-07 | K154: 151 | L154: São Bartolomeu | M154: 472.3088 | N154: 2.735288822e-05 | O154: 471.7428
A155: 152 | B155: Moldava, República de | C155: 201.388 | D155: 2.849857029e-05 | F155: 152 | G155: Cazaquistão | H155: 5.856 | I155: 5.740818091e-07 | K155: 152 | L155: Mauritânia | M155: 471.8238 | N155: 2.732480035e-05 | O155: 468.6758
A156: 153 | B156: Haiti | C156: 195.7344 | D156: 2.769852502e-05 | F156: 153 | G156: Andorra | H156: 4.7264 | I156: 4.633436241e-07 | K156: 153 | L156: Gâmbia | M156: 455.249 | N156: 2.636490155e-05 | O156: 455.249
A157: 154 | B157: Ceuta e Melilha | C157: 191.5534 | D157: 2.710686851e-05 | F157: 154 | G157: São Cristovão e Nevis | H157: 4.4378 | I157: 4.350512726e-07 | K157: 154 | L157: Kosovo | M157: 426.8374 | N157: 2.471949642e-05 | O157: 410.093
A158: 155 | B158: Suriname | C158: 156.0968 | D158: 2.208937785e-05 | F158: 155 | G158: Afeganistão | H158: 4.3662 | I158: 4.28032103e-07 | K158: 155 | L158: São Martinho (parte holandesa) | M158: 349.244 | N158: 2.022581856e-05 | O158: 349.244
A159: 156 | B159: Trindade e Tobago | C159: 142.2682 | D159: 2.013248206e-05 | F159: 156 | G159: Barém | H159: 4.3444 | I159: 4.258949815e-07 | K159: 156 | L159: Usbequistão | M159: 348.6042 | N159: 2.018876573e-05 | O159: -267.9346
A160: 157 | B160: Nova Caledónia | C160: 140.1192 | D160: 1.982837543e-05 | F160: 157 | G160: Nepal | H160: 2.4222 | I160: 2.374557647e-07 | K160: 157 | L160: Zâmbia | M160: 336.5272 | N160: 1.948934868e-05 | O160: -62.0752
A161: 158 | B161: Zâmbia | C161: 137.226 | D161: 1.941895648e-05 | F161: 158 | G161: Lesoto | H161: 1.7136 | I161: 1.67989513e-07 | K161: 158 | L161: Libéria | M161: 333.6016 | N161: 1.931991798e-05 | O161: 255.9464
A162: 159 | B162: Polinésia Francesa | C162: 133.1554 | D162: 1.884292275e-05 | F162: 159 | G162: Liechtenstein | H162: 1.6922 | I162: 1.658916048e-07 | K162: 159 | L162: Comores | M162: 311.607 | N162: 1.804614151e-05 | O162: 311.607
A163: 160 | B163: Madagáscar | C163: 129.6574 | D163: 1.834791809e-05 | F163: 160 | G163: Mauritânia | H163: 1.574 | I163: 1.543040928e-07 | K163: 160 | L163: Somália | M163: 292.8146 | N163: 1.695781452e-05 | O163: 292.8146
A164: 161 | B164: Maldivas | C164: 127.1794 | D164: 1.799725441e-05 | F164: 161 | G164: Fiji, Ilhas | H164: 1.3646 | I164: 1.337759626e-07 | K164: 161 | L164: Jamaica | M164: 287.9222 | N164: 1.667448024e-05 | O164: 265.677
A165: 162 | B165: Niger | C165: 113.05 | D165: 1.599779218e-05 | F165: 162 | G165: Bermudas | H165: 0.6892 | I165: 6.756440964e-08 | K165: 162 | L165: Antígua e Barbuda | M165: 264.426 | N165: 1.531374139e-05 | O165: 264.3868
A166: 163 | B166: Liechtenstein | C166: 106.2456 | D166: 1.503489632e-05 | F166: 163 | G166: Território Palestiniano Ocupado | H166: 0.4852 | I166: 4.756565809e-08 | K166: 163 | L166: Curaçau | M166: 236.9706 | N166: 1.372371282e-05 | O166: 211.0442
A167: 164 | B167: Centro-Africana, República | C167: 83.0308 | D167: 1.174975217e-05 | F167: 164 | G167: Montenegro | H167: 0.3086 | I167: 3.025301337e-08 | K167: 164 | L167: Haiti | M167: 195.7408 | N167: 1.133596542e-05 | O167: 195.728
A168: 165 | B168: Jibuti | C168: 77.3086 | D168: 1.093999926e-05 | F168: 165 | G168: São Bartolomeu | H168: 0.283 | I168: 2.774336612e-08 | K168: 165 | L168: Ceuta e Melilha | M168: 191.5534 | N168: 1.109345991e-05 | O168: 191.5534
A169: 166 | B169: Nepal | C169: 76.6542 | D169: 1.084739462e-05 | F169: 166 | G169: Gabão | H169: 0.25 | I169: 2.450827396e-08 | K169: 166 | L169: Trindade e Tobago | M169: 142.2786 | N169: 8.239801254e-06 | O169: 142.2578
A170: 167 | B170: Zimbabwe | C170: 63.2826 | D170: 8.955169247e-06 | F170: 167 | G170: Ruanda | H170: 0.177 | I170: 1.735185796e-08 | K170: 167 | L170: Nova Caledónia | M170: 140.1192 | N170: 8.114743608e-06 | O170: 140.1192
A171: 168 | B171: Caimão, Ilhas | C171: 51.4562 | D171: 7.281606315e-06 | F171: 168 | G171: Barbados | H171: 0.1378 | I171: 1.35089606e-08 | K171: 168 | L171: Polinésia Francesa | M171: 133.1554 | N171: 7.711448046e-06 | O171: 133.1554
A172: 169 | B172: Bósnia-Herzegovina | C172: 50.6168 | D172: 7.162822178e-06 | F172: 169 | G172: Niger | H172: 0.1252 | I172: 1.22737436e-08 | K172: 169 | L172: Maldivas | M172: 127.183 | N172: 7.365567576e-06 | O172: 127.1758
A173: 170 | B173: Montenegro | C173: 46.101 | D173: 6.523787857e-06 | F173: 170 | G173: Burundi | H173: 0.114 | I173: 1.117577292e-08 | K173: 170 | L173: Niger | M173: 113.1752 | N173: 6.554331817e-06 | O173: 112.9248
A174: 171 | B174: Bahamas | C174: 42.9652 | D174: 6.080038395e-06 | F174: 171 | G174: Oceano Indico, Território Britânico do | H174: 0.098 | I174: 9.607243391e-09 | K174: 171 | L174: Liechtenstein | M174: 107.9378 | N174: 6.251017509e-06 | O174: 104.5534
A175: 172 | B175: Usbequistão | C175: 40.3348 | D175: 5.707808474e-06 | F175: 172 | G175: São Vicente e Granadinas | H175: 0.0416 | I175: 4.078176786e-09 | K175: 172 | L175: Centro-Africana, República | M175: 83.0308 | N175: 4.808574796e-06 | O175: 83.0308
A176: 173 | B176: Mongólia | C176: 30.8452 | D176: 4.364927902e-06 | F176: 173 | G176: Antígua e Barbuda | H176: 0.0196 | I176: 1.921448678e-09 | K176: 173 | L176: Nepal | M176: 79.0764 | N176: 4.579563054e-06 | O176: 74.232
A177: 174 | B177: Afeganistão | C177: 18.9718 | D177: 2.684713964e-06 | F177: 174 | G177: Santa Sé (Cidade Estado do Vaticano) | H177: 0.018 | I177: 1.764595725e-09 | K177: 174 | L177: Bósnia-Herzegovina | M177: 78.515 | N177: 4.547050614e-06 | O177: 22.7186
A178: 175 | B178: Guiana | C178: 18.2434 | D178: 2.581637522e-06 | F178: 175 | G178: Mongólia | H178: 0.0112 | I178: 1.097970673e-09 | K178: 175 | L178: Jibuti | M178: 77.3086 | N178: 4.477184195e-06 | O178: 77.3086
A179: 176 | B179: Turcas e Caicos, Ilhas | C179: 18.0666 | D179: 2.556618418e-06 | F179: 176 | G179: Trindade e Tobago | H179: 0.0104 | I179: 1.019544197e-09 | K179: 176 | L179: Tajiquistão | M179: 59.4122 | N179: 3.440747379e-06 | O179: -59.4122
A180: 177 | B180: Laos, República Democrática Popular do | C180: 14.3872 | D180: 2.035943703e-06 | F180: 177 | G180: Haiti | H180: 0.0064 | I180: 6.274118133e-10 | K180: 177 | L180: Caimão, Ilhas | M180: 51.4562 | N180: 2.979990394e-06 | O180: 51.4562
A181: 178 | B181: Turquemenistão | C181: 11.8398 | D181: 1.675459176e-06 | F181: 178 | G181: Maldivas | H181: 0.0036 | I181: 3.52919145e-10 | K181: 178 | L181: Montenegro | M181: 46.4096 | N181: 2.687725914e-06 | O181: 45.7924
A182: 179 | B182: Barbados | C182: 11.7888 | D182: 1.668242127e-06 | F182: 179 | G182: Anguila | H182: 0 | I182: 0 | K182: 179 | L182: Bahamas | M182: 42.9652 | N182: 2.488249876e-06 | O182: 42.9652
A183: 180 | B183: Virgens Britânicas, Ilhas | C183: 9.9272 | D183: 1.404805684e-06 | F183: 180 | G183: Antárctica | H183: 0 | I183: 0 | K183: 180 | L183: São Marino | M183: 32.7902 | N183: 1.898983621e-06 | O183: -32.7502
A184: 181 | B184: Fiji, Ilhas | C184: 8.1268 | D184: 1.150029699e-06 | F184: 181 | G184: Antilhas Holandesas | H184: 0 | I184: 0 | K184: 181 | L184: Mongólia | M184: 30.8564 | N184: 1.786991181e-06 | O184: 30.834
A185: 182 | B185: Santa Lúcia | C185: 7.138 | D185: 1.010103853e-06 | F185: 182 | G185: Bahamas | H185: 0 | I185: 0 | K185: 182 | L185: Botswana | M185: 30.0852 | N185: 1.742328563e-06 | O185: -29.8964
A186: 183 | B186: Brunei Darussalam | C186: 6.98 | D186: 9.877451518e-07 | F186: 183 | G186: Bonaire, Santo Eustáquio e Saba | H186: 0 | I186: 0 | K186: 183 | L186: Papuásia-Nova Guiné | M186: 28.7226 | N186: 1.663416111e-06 | O186: -22.9514
A187: 184 | B187: Malavi | C187: 6.6034 | D187: 9.344521971e-07 | F187: 184 | G187: Bouvet, Ilha | H187: 0 | I187: 0 | K187: 184 | L187: Afeganistão | M187: 23.338 | N187: 1.351576988e-06 | O187: 14.6056
A188: 185 | B188: Guam | C188: 6.5774 | D188: 9.307729171e-07 | F188: 185 | G188: Brunei Darussalam | H188: 0 | I188: 0 | K188: 185 | L188: Quirguizistão | M188: 22.1318 | N188: 1.281722152e-06 | O188: -12.8186
A189: 186 | B189: São Vicente e Granadinas | C189: 5.6654 | D189: 8.017150979e-07 | F189: 186 | G189: Butão | H189: 0 | I189: 0 | K189: 186 | L189: Turcas e Caicos, Ilhas | M189: 18.0666 | N189: 1.046293633e-06 | O189: 18.0666
A190: 187 | B190: Quirguizistão | C190: 4.6566 | D190: 6.589590364e-07 | F190: 187 | G190: Caimão, Ilhas | H190: 0 | I190: 0 | K190: 187 | L190: Barbados | M190: 11.9266 | N190: 6.907069203e-07 | O190: 11.651
A191: 188 | B191: Menores distantes dos Estados Unidos, lhas | C191: 4.5542 | D191: 6.444683339e-07 | F191: 188 | G191: Centro-Africana, República | H191: 0 | I191: 0 | K191: 188 | L191: Virgens Britânicas, Ilhas | M191: 9.9272 | N191: 5.749153774e-07 | O191: 9.9272
A192: 189 | B192: Sudão do Sul | C192: 3.771 | D192: 5.336371014e-07 | F192: 189 | G192: Ceuta | H192: 0 | I192: 0 | K192: 189 | L192: Fiji, Ilhas | M192: 9.4914 | N192: 5.496768286e-07 | O192: 6.7622
A193: 190 | B193: Bonaire, Santo Eustáquio e Saba | C193: 3.1276 | D193: 4.425890741e-07 | F193: 190 | G193: Ceuta e Melilha | H193: 0 | I193: 0 | K193: 190 | L193: Santa Lúcia | M193: 7.138 | N193: 4.133840321e-07 | O193: 7.138
A194: 191 | B194: Marianas do Norte, Ilhas | C194: 2.9244 | D194: 4.138340863e-07 | F194: 191 | G194: Christmas, Ilha | H194: 0 | I194: 0 | K194: 191 | L194: Brunei Darussalam | M194: 6.98 | N194: 4.042337551e-07 | O194: 6.98
A195: 192 | B195: Papuásia-Nova Guiné | C195: 2.8856 | D195: 4.083434685e-07 | F195: 192 | G195: Cocos (Keeling), Ilhas | H195: 0 | I195: 0 | K195: 192 | L195: Guam | M195: 6.5774 | N195: 3.809179228e-07 | O195: 6.5774
A196: 193 | B196: Belize | C196: 2.1806 | D196: 3.08578378e-07 | F196: 193 | G196: Comores | H196: 0 | I196: 0 | K196: 193 | L196: São Vicente e Granadinas | M196: 5.707 | N196: 3.30510321e-07 | O196: 5.6238
A197: 194 | B197: Melilha | C197: 1.3464 | D197: 1.905300963e-07 | F197: 194 | G197: Cook, Ilhas | H197: 0 | I197: 0 | K197: 194 | L197: Menores distantes dos Estados Unidos, lhas | M197: 4.5542 | N197: 2.637480469e-07 | O197: 4.5542
A198: 195 | B198: Granada | C198: 0.6866 | D198: 9.716129244e-08 | F198: 195 | G198: Coreia, República Popular Democrática da | H198: 0 | I198: 0 | K198: 195 | L198: São Cristovão e Nevis | M198: 4.4378 | N198: 2.570069568e-07 | O198: -4.4378
A199: 196 | B199: Virgens dos Estados Unidos, Ilhas | C199: 0.295 | D199: 4.174567619e-08 | F199: 196 | G199: Domínica | H199: 0 | I199: 0 | K199: 196 | L199: Sudão do Sul | M199: 3.771 | N199: 2.183904714e-07 | O199: 3.771
A200: 197 | B200: Botswana | C200: 0.0944 | D200: 1.335861638e-08 | F200: 197 | G200: Eritreia | H200: 0 | I200: 0 | K200: 197 | L200: Bonaire, Santo Eustáquio e Saba | M200: 3.1276 | N200: 1.811291537e-07 | O200: 3.1276
... 58 more rows

Sheet 2A
A1: Parceiros comerciais de Portugal - União Europeia vs. Países Terceiros (média 2018-2022 em milhões de euros) produtos agrícolas e agroalimentares, do mar e da floresta
A2: Exportações | F2: Importações | K2: Trocas comerciais (total e saldo)
A3: P | B3: Grupo de Países | C3: média quinquénio | D3: % do Total | F3: P | G3: Grupo de Países | H3: média quinquénio | I3: % do Total | K3: P | L3: Grupo de Países | M3: média quinquénio | N3: % do Total | O3: Saldo (exp-imp)
A4: 1 | B4: União Europeia | C4: 8690.064715 | D4: 0.6705031383 | F4: 1 | G4: União Europeia | H4: 11673.13485 | I4: 0.7803993275 | K4: 1 | L4: União Europeia | M4: 20363.19956 | N4: 0.7293824229 | O4: -2983.070133
A5: 2 | B5: Países Terceiros | C5: 4271.031018 | D5: 0.3295418153 | F5: 2 | G5: Países Terceiros | H5: 3284.764829 | I5: 0.2196006725 | K5: 2 | L5: Países Terceiros | M5: 7555.795847 | N5: 0.2706384458 | O5: 986.2661894
B6: Outros | C6: 0 | D6: -4.495366773e-05 | G6: Outros | H6: 0 | I6: 0 | L6: Outros | M6: 0 | N6: -2.086875799e-05 | O6: 0
B7: Total | C7: 12960.51311 | D7: 1 | G7: Total | H7: 14957.89968 | I7: 1 | L7: Total | M7: 27918.41279 | N7: 1 | O7: -1997.386566
F27: valores em milhões de euros
A28: Nota: Outros = Países não determinados, abastecimentos de bordo, etc.
A29: Fonte: GPP a partir de dados INE/Comércio Internacional (2021 provisórios; 2022 preliminares) | M29: 2023-03-23

Sheet 3
A1: Principais produtos agrícolas e agroalimentares, do mar e da floresta transacionados entre Portugal e Irlanda em 2018-2022 (NC a 2 e 4 dígitos) em milhões de euros
AC4: P | AE4: Cód.NC | AF4: Descritivo | AG4: Média export quinquénio | AH4: % do total | AI4: % acumulada | AN4: P | AO4: NC | AP4: Exportações | AQ4: 2018 | AR4: 2019 | AS4: 2020 | AT4: 2021 | AU4: 2022 | AV4: média quinquénio
AC5: 1 | AD5: º | AE5: 44 | AF5: Madeira e suas obras | AG5: 18.1961086 | AH5: 0.2844161156 | AN5: 1º | AO5: 44 | AP5: Madeira e suas obras | AQ5: 7.488656 | AR5: 17.880163 | AS5: 17.004874 | AT5: 20.422398 | AU5: 28.184452 | AV5: 18.1961086
AC6: 2 | AD6: º | AE6: 48 | AF6: Papel e cartão | AG6: 10.7028386 | AH6: 0.1672918011 | AN6: 2º | AO6: 48 | AP6: Papel e cartão | AQ6: 7.72014 | AR6: 8.938461 | AS6: 9.82807 | AT6: 10.049839 | AU6: 16.977683 | AV6: 10.7028386
AC7: 3 | AD7: º | AE7: 20 | AF7: Preparações de produtos vegetais | AG7: 5.2732118 | AH7: 0.08242347031 | AI7: 0.534131387 | AN7: 3º | AO7: 20 | AP7: Preparações de produtos vegetais | AQ7: 5.240779 | AR7: 4.675842 | AS7: 5.433056 | AT7: 4.596076 | AU7: 6.420306 | AV7: 5.2732118
AC8: 4 | AD8: º | AE8: 22 | AF8: Bebidas, líquidos alcoólicos e vinagres | AG8: 5.2608122 | AH8: 0.08222965711 | AO8: - | AP8: Outros | AQ8: 26.135592 | AR8: 24.876755 | AS8: 27.206386 | AT8: 33.408933 | AU8: 37.396869 | AV8: 29.804907
AC9: 5 | AD9: º | AE9: 08 | AF9: Frutas | AG9: 3.8638252 | AH9: 0.06039391053 | AP9: Total | AQ9: 46.585167 | AR9: 56.371221 | AS9: 59.472386 | AT9: 68.477246 | AU9: 88.97931 | AV9: 63.977066
AC10: 6 | AD10: º | AE10: 19a | AF10: Preparações à base de cereais (exc. NC 19022010) (a) | AG10: 3.4299426 | AH10: 0.05361206467
AC11: 7 | AD11: º | AE11: 45 | AF11: Cortiça e suas obras | AG11: 3.2196104 | AH11: 0.05032444595
AC12: 8 | AD12: º | AE12: 38f | AF12: Tall oil, essências e colofónias (f) | AG12: 3.039251 | AH12: 0.04750532011
AC13: 9 | AD13: º | AE13: 21 | AF13: Preparações alimentícias diversas | AG13: 2.2260182 | AH13: 0.03479400259
AC14: 10 | AD14: º | AE14: 23a | AF14: Resíduos indústrias alimentares; alimentos p/ animais (exc. NC 230120) (a) | AG14: 1.8168706 | AH14: 0.02839877965 | AI14: 0.8913895676
AE15: - | AF15: Outros | AG15: 6.9485768 | AH15: 0.1086104324
AE16: Total | AG16: 63.977066 | AH16: 1
AC38: P | AE38: Cód.NC | AF38: Descritivo | AG38: Média import quinquénio | AH38: % do total | AI38: % acumulada | AN38: P | AO38: NC | AP38: Importações | AQ38: 2018 | AR38: 2019 | AS38: 2020 | AT38: 2021 | AU38: 2022 | AV38: média quinquénio
AC39: 1 | AD39: º | AE39: 33 | AF39: Óleos essenciais e resinóides (NC 3301) | AG39: 29.8541624 | AH39: 0.2523794649 | AN39: 1º | AO39: 33 | AP39: Óleos essenciais e resinóides (NC 3301) | AQ39: 31.457832 | AR39: 32.513626 | AS39: 25.317881 | AT39: 26.520641 | AU39: 33.460832 | AV39: 29.8541624
AC40: 2 | AD40: º | AE40: 20 | AF40: Preparações de produtos vegetais | AG40: 26.8689886 | AH40: 0.227143568 | AN40: 2º | AO40: 20 | AP40: Preparações de produtos vegetais | AQ40: 27.979543 | AR40: 32.59096 | AS40: 27.965282 | AT40: 31.89783 | AU40: 13.911328 | AV40: 26.8689886
AC41: 3 | AD41: º | AE41: 02 | AF41: Carnes e miudezas | AG41: 22.8539296 | AH41: 0.1932012845 | AI41: 0.6727243174 | AN41: 3º | AO41: 02 | AP41: Carnes e miudezas | AQ41: 19.977329 | AR41: 18.234883 | AS41: 19.185376 | AT41: 19.443042 | AU41: 37.429018 | AV41: 22.8539296
AC42: 4 | AD42: º | AE42: 21 | AF42: Preparações alimentícias diversas | AG42: 12.141246 | AH42: 0.1026389931 | AO42: - | AP42: Outros | AQ42: 33.536479 | AR42: 38.704551 | AS42: 31.484365 | AT42: 35.746014 | AU42: 54.097061 | AV42: 38.713694
AC43: 5 | AD43: º | AE43: 22 | AF43: Bebidas, líquidos alcoólicos e vinagres | AG43: 5.4128498 | AH43: 0.0457588499 | AP43: Total | AQ43: 112.951183 | AR43: 122.04402 | AS43: 103.952904 | AT43: 113.607527 | AU43: 138.898239 | AV43: 118.2907746
AC44: 6 | AD44: º | AE44: 03 | AF44: Peixes e crustáceos | AG44: 5.072498 | AH44: 0.0428816027
AC45: 7 | AD45: º | AE45: 19a | AF45: Preparações à base de cereais (exc. NC 19022010) (a) | AG45: 4.1876816 | AH45: 0.03540159082
AC46: 8 | AD46: º | AE46: 16a | AF46: Preparações de carnes (exc. NC 1604-05) (a) | AG46: 3.5663486 | AH46: 0.03014900031
AC47: 9 | AD47: º | AE47: 04 | AF47: Leite e laticínios; ovos; mel, etc. | AG47: 2.5671564 | AH47: 0.02170208462
AC48: 10 | AD48: º | AE48: 23a | AF48: Resíduos indústrias alimentares; alimentos p/ animais (exc. NC 230120) (a) | AG48: 1.4641532 | AH48: 0.01237757725 | AI48: 0.9636340161
AE49: - | AF49: Outros | AG49: 4.3017604 | AH49: 0.03636598386
AE50: Total | AG50: 118.2907746 | AH50: 1
AC62: DESAGREGAÇÃO A 4 DÍGITOS | AN62: DESAGREGAÇÃO A 4 DÍGITOS
AC64: P | AE64: Cód.NC | AF64: Descritivo | AG64: Média export quinquénio | AH64: % do total | AI64: % acumulada | AN64: P | AO64: NC | AP64: Exportações | AQ64: 2018 | AR64: 2019 | AS64: 2020 | AT64: 2021 | AU64: 2022 | AV64: média quinquénio
AC65: 1 | AD65: º | AE65: 4410 | AF65: Painéis de partículas de madeira, etc. | AG65: 10.1006576 | AH65: 0.1578793501 | AN65: 1º | AO65: 4410 | AP65: Painéis de partículas de madeira, etc. | AQ65: 2.416465 | AR65: 9.211932 | AS65: 9.685779 | AT65: 12.822277 | AU65: 16.366835 | AV65: 10.1006576
AC66: 2 | AD66: º | AE66: 4802 | AF66: Papel e cartão p/ escrita, etc. | AG66: 6.3592642 | AH66: 0.09939912218 | AN66: 2º | AO66: 4802 | AP66: Papel e cartão p/ escrita, etc. | AQ66: 5.426261 | AR66: 4.642567 | AS66: 4.971677 | AT66: 5.577539 | AU66: 11.178277 | AV66: 6.3592642
AC67: 3 | AD67: º | AE67: 2204 | AF67: Vinhos de uvas frescas | AG67: 4.866376 | AH67: 0.0760643822 | AI67: 0.3333428545 | AN67: 3º | AO67: 2204 | AP67: Vinhos de uvas frescas | AQ67: 3.937402 | AR67: 3.481152 | AS67: 4.517557 | AT67: 6.446853 | AU67: 5.948916 | AV67: 4.866376
AC68: 4 | AD68: º | AE68: 4411 | AF68: Outros painéis de fibras de madeira | AG68: 4.462185 | AH68: 0.0697466339 | AN68: - | AO68: - | AP68: Outros | AQ68: 34.805039 | AR68: 39.03557 | AS68: 40.297373 | AT68: 43.630577 | AU68: 55.485282 | AV68: 42.6507682
AC69: 5 | AD69: º | AE69: 1905 | AF69: Produtos de padaria, pastelaria, etc. | AG69: 3.288055 | AH69: 0.05139427619 | AP69: Total | AQ69: 46.585167 | AR69: 56.371221 | AS69: 59.472386 | AT69: 68.477246 | AU69: 88.97931 | AV69: 63.977066
AC70: 6 | AD70: º | AE70: 2009 | AF70: Sumos de frutas | AG70: 2.9576126 | AH70: 0.04622926284
AC71: 7 | AD71: º | AE71: 3806 | AF71: Colofónias e derivados | AG71: 2.9325228 | AH71: 0.04583709419
AC72: 8 | AD72: º | AE72: 0808 | AF72: Maçãs, peras e marmelos, frescos | AG72: 2.7061968 | AH72: 0.04229948276
AC73: 9 | AD73: º | AE73: 4503 | AF73: Obras de cortiça natural | AG73: 2.0649048 | AH73: 0.0322757033
AC74: 10 | AD74: º | AE74: 2306 | AF74: Bagaços e outros resíduos sólidos de gorduras ou óleos vegetais | AG74: 1.7915664 | AH74: 0.02800325979 | AI74: 0.6491285674
AE75: - | AF75: Outros | AG75: 22.4477248 | AH75: 0.3508714326
AE76: Total | AG76: 63.977066 | AH76: 1
AC89: DESAGREGAÇÃO A 4 DÍGITOS | AN89: DESAGREGAÇÃO A 4 DÍGITOS
G91: média 2018-2022 em milhões de euros | I91: Cód. NC | J91: Descritivo | K91: Export | L91: Import | M91: Saldo | AC91: P | AE91: Cód.NC | AF91: Descritivo | AG91: Média import quinquénio | AH91: % do total | AI91: % acumulada | AN91: P | AO91: NC | AP91: Importações | AQ91: 2018 | AR91: 2019 | AS91: 2020 | AT91: 2021 | AU91: 2022 | AV91: média quinquénio
I92: 4410 | J92: Painéis de partículas de madeira, etc. | K92: 10.1006576 | L92: 0.685697 | M92: 9.4149606 | AC92: 1 | AD92: º | AE92: 3302 | AF92: Misturas de substâncias odoríferas p/ alimentação e bebidas | AG92: 29.7637962 | AH92: 0.2516155322 | AN92: 1º | AO92: 3302 | AP92: Misturas de substâncias odoríferas p/ alimentação e bebidas | AQ92: 31.455807 | AR92: 32.513289 | AS92: 25.317881 | AT92: 26.491418 | AU92: 33.040586 | AV92: 29.7637962
I93: 4802 | J93: Papel e cartão p/ escrita, etc. | K93: 6.3592642 | L93: 0.0147486 | M93: 6.3445156 | AC93: 2 | AD93: º | AE93: 2009 | AF93: Sumos de frutas | AG93: 26.7585834 | AH93: 0.2262102306 | AN93: 2º | AO93: 2009 | AP93: Sumos de frutas | AQ93: 27.913205 | AR93: 32.557701 | AS93: 27.961317 | AT93: 31.662689 | AU93: 13.698005 | AV93: 26.7585834
I94: 2204 | J94: Vinhos de uvas frescas | K94: 4.866376 | L94: 0.0446356 | M94: 4.8217404 | AC94: 3 | AD94: º | AE94: 0201 | AF94: Carnes de bovino, frescas ou refrigeradas | AG94: 15.7690254 | AH94: 0.1333073137 | AI94: 0.6111330765 | AN94: 3º | AO94: 0201 | AP94: Carnes de bovino, frescas ou refrigeradas | AQ94: 16.193202 | AR94: 13.688197 | AS94: 12.771606 | AT94: 15.14817 | AU94: 21.043952 | AV94: 15.7690254
I95: 4411 | J95: Outros painéis de fibras de madeira | K95: 4.462185 | L95: 0.0018828 | M95: 4.4603022 | AC95: 4 | AD95: º | AE95: 2101 | AF95: Extratos e preparados de café, chá ou mate | AG95: 6.3805668 | AH95: 0.05393968229 | AN95: - | AO95: - | AP95: Outros | AQ95: 37.388969 | AR95: 43.284833 | AS95: 37.9021 | AT95: 40.30525 | AU95: 71.115696 | AV95: 45.9993696
I96: 1905 | J96: Produtos de padaria, pastelaria, etc. | K96: 3.288055 | L96: 0.5277588 | M96: 2.7602962 | AC96: 5 | AD96: º | AE96: 2106 | AF96: Outras preparações alimentícias | AG96: 5.5823886 | AH96: 0.04719208762 | AP96: Total | AQ96: 112.951183 | AR96: 122.04402 | AS96: 103.952904 | AT96: 113.607527 | AU96: 138.898239 | AV96: 118.2907746
I97: 0808 | J97: Maçãs, peras e marmelos, frescos | K97: 2.7061968 | L97: 0.0026284 | M97: 2.7035684 | AC97: 6 | AD97: º | AE97: 0202 | AF97: Carnes de bovino, congeladas | AG97: 5.4174602 | AH97: 0.04579782505
I98: 3806 | J98: Colofónias e derivados | K98: 2.9325228 | L98: 0.7790872 | M98: 2.1534356 | AC98: 7 | AD98: º | AE98: 0306 | AF98: Crustáceos | AG98: 4.4393618 | AH98: 0.03752923096
I99: 4503 | J99: Obras de cortiça natural | K99: 2.0649048 | L99: 0.075035 | M99: 1.9898698 | AC99: 8 | AD99: º | AE99: 2208 | AF99: Álcool etílico <80%; aguardentes, etc. | AG99: 4.015046 | AH99: 0.03394217354
I100: 2306 | J100: Bagaços e outros resíduos sólidos de gorduras ou óleos vegetais | K100: 1.7915664 | L100: 0 | M100: 1.7915664 | AC100: 9 | AD100: º | AE100: 1602 | AF100: Outras preparações e conservas de carnes, miudezas ou sangue | AG100: 3.5079438 | AH100: 0.02965526105
I101: 4401 | J101: Lenha, resíduos de madeira, etc. | K101: 1.7374124 | L101: 0.0939762 | M101: 1.6434362 | AC101: 10 | AD101: º | AE101: 1901 | AF101: Extratos de malte; preparações de farinhas, etc., sem cacau | AG101: 3.2682092 | AH101: 0.02762860596 | AI101: 0.8868179429
I102: - | J102: Outros | K102: 20.3258378 | L102: 11.1629436 | M102: 9.1628942 | AE102: - | AF102: Outros | AG102: 13.3883932 | AH102: 0.1131820571
I103: 1901 | J103: Extratos de malte; preparações de farinhas, etc., sem cacau | K103: 0.0977796 | L103: 3.2682092 | M103: -3.1704296 | AE103: Total | AG103: 118.2907746 | AH103: 1
I104: 1602 | J104: Outras preparações e conservas de carnes, miudezas ou sangue | K104: 0.0221836 | L104: 3.5079438 | M104: -3.4857602
I105: 2208 | J105: Álcool etílico <80%; aguardentes, etc. | K105: 0.0196724 | L105: 4.015046 | M105: -3.9953736
I106: 0306 | J106: Crustáceos | K106: 0.0081246 | L106: 4.4393618 | M106: -4.4312372
I107: 0202 | J107: Carnes de bovino, congeladas | K107: 0.00562 | L107: 5.4174602 | M107: -5.4118402
I108: 2106 | J108: Outras preparações alimentícias | K108: 0.1436554 | L108: 5.5823886 | M108: -5.4387332
I109: 2101 | J109: Extratos e preparados de café, chá ou mate | K109: 0.0048958 | L109: 6.3805668 | M109: -6.375671
I110: 0201 | J110: Carnes de bovino, frescas ou refrigeradas | K110: 0.0142136 | L110: 15.7690254 | M110: -15.7548118
I111: 2009 | J111: Sumos de frutas | K111: 2.9576126 | L111: 26.7585834 | M111: -23.8009708
I112: 3302 | J112: Misturas de substâncias odoríferas p/ alimentação e bebidas | K112: 0.0683296 | L112: 29.7637962 | M112: -29.6954666
I113: Total | K113: 63.977066 | L113: 118.2907746 | M113: -54.3137086
A116: Fonte: GPP a partir de dados INE/Comércio Internacional (2021 provisórios; 2022 preliminares) | Y116: 2023-04-27T17:41:12.820

Sheet 3A
A1: Principais produtos agrícolas e agroalimentares transacionados entre Portugal e Irlanda em 2018-2022 (NC a 2 e 4 dígitos) em milhões de euros
AC4: P | AE4: Cód.NC | AF4: Descritivo | AG4: Média export quinquénio | AH4: % do total | AI4: % acumulada | AN4: P | AO4: NC | AP4: Exportações | AQ4: 2018 | AR4: 2019 | AS4: 2020 | AT4: 2021 | AU4: 2022 | AV4: média quinquénio
AC5: 1 | AD5: º | AE5: 20 | AF5: Preparações de produtos vegetais | AG5: 5.2732118 | AH5: 0.1968917607 | AN5: 1º | AO5: 20 | AP5: Preparações de produtos vegetais | AQ5: 5.240779 | AR5: 4.675842 | AS5: 5.433056 | AT5: 4.596076 | AU5: 6.420306 | AV5: 5.2732118
AC6: 2 | AD6: º | AE6: 22 | AF6: Bebidas, líquidos alcoólicos e vinagres | AG6: 5.2608122 | AH6: 0.1964287831 | AN6: 2º | AO6: 22 | AP6: Bebidas, líquidos alcoólicos e vinagres | AQ6: 4.168327 | AR6: 3.833176 | AS6: 4.869572 | AT6: 6.830261 | AU6: 6.602725 | AV6: 5.2608122
AC7: 3 | AD7: º | AE7: 08 | AF7: Frutas | AG7: 3.8638252 | AH7: 0.1442679292 | AI7: 0.5375884729 | AN7: 3º | AO7: 08 | AP7: Frutas | AQ7: 3.189426 | AR7: 4.00566 | AS7: 5.618862 | AT7: 2.972268 | AU7: 3.53291 | AV7: 3.8638252
AC8: 4 | AD8: º | AE8: 19a | AF8: Preparações à base de cereais (exc. NC 19022010) (a) | AG8: 3.4299426 | AH8: 0.1280675731 | AO8: - | AP8: Outros | AQ8: 9.896383 | AR8: 10.870856 | AS8: 10.732895 | AT8: 14.004349 | AU8: 16.41771 | AV8: 12.3844386
AC9: 5 | AD9: º | AE9: 21 | AF9: Preparações alimentícias diversas | AG9: 2.2260182 | AH9: 0.08311531175 | AP9: Total | AQ9: 22.494915 | AR9: 23.385534 | AS9: 26.654385 | AT9: 28.402954 | AU9: 32.973651 | AV9: 26.7822878
AC10: 6 | AD10: º | AE10: 23a | AF10: Resíduos indústrias alimentares; alimentos p/ animais (exc. NC 230120) (a) | AG10: 1.8168706 | AH10: 0.06783851378
AC11: 7 | AD11: º | AE11: 07 | AF11: Produtos hortícolas | AG11: 1.6356134 | AH11: 0.06107071256
AC12: 8 | AD12: º | AE12: 12 | AF12: Sementes e frutos oleaginosos | AG12: 0.9217918 | AH12: 0.03441796335
AC13: 9 | AD13: º | AE13: 52 | AF13: Algodão (NC 5201-5203) | AG13: 0.4406814 | AH13: 0.01645421046
AC14: 10 | AD14: º | AE14: 04 | AF14: Leite e laticínios; ovos; mel, etc. | AG14: 0.3724114 | AH14: 0.01390513771 | AI14: 0.9424578956
AE15: - | AF15: Outros | AG15: 1.5411092 | AH15: 0.05754210438
AE16: Total | AG16: 26.7822878 | AH16: 1
AC38: P | AE38: Cód.NC | AF38: Descritivo | AG38: Média import quinquénio | AH38: % do total | AI38: % acumulada | AN38: P | AO38: NC | AP38: Importações | AQ38: 2018 | AR38: 2019 | AS38: 2020 | AT38: 2021 | AU38: 2022 | AV38: média quinquénio
AC39: 1 | AD39: º | AE39: 33 | AF39: Óleos essenciais e resinóides (NC 3301) | AG39: 29.8541624 | AH39: 0.2706849487 | AN39: 1º | AO39: 33 | AP39: Óleos essenciais e resinóides (NC 3301) | AQ39: 31.457832 | AR39: 32.513626 | AS39: 25.317881 | AT39: 26.520641 | AU39: 33.460832 | AV39: 29.8541624
AC40: 2 | AD40: º | AE40: 20 | AF40: Preparações de produtos vegetais | AG40: 26.8689886 | AH40: 0.243618652 | AN40: 2º | AO40: 20 | AP40: Preparações de produtos vegetais | AQ40: 27.979543 | AR40: 32.59096 | AS40: 27.965282 | AT40: 31.89783 | AU40: 13.911328 | AV40: 26.8689886
AC41: 3 | AD41: º | AE41: 02 | AF41: Carnes e miudezas | AG41: 22.8539296 | AH41: 0.2072144808 | AI41: 0.7215180815 | AN41: 3º | AO41: 02 | AP41: Carnes e miudezas | AQ41: 19.977329 | AR41: 18.234883 | AS41: 19.185376 | AT41: 19.443042 | AU41: 37.429018 | AV41: 22.8539296
AC42: 4 | AD42: º | AE42: 21 | AF42: Preparações alimentícias diversas | AG42: 12.141246 | AH42: 0.1100835624 | AO42: - | AP42: Outros | AQ42: 28.42496 | AR42: 31.275322 | AS42: 26.660004 | AT42: 27.36086 | AU42: 39.849351 | AV42: 30.7140994
AC43: 5 | AD43: º | AE43: 22 | AF43: Bebidas, líquidos alcoólicos e vinagres | AG43: 5.4128498 | AH43: 0.04907781202 | AP43: Total | AQ43: 107.839664 | AR43: 114.614791 | AS43: 99.128543 | AT43: 105.222373 | AU43: 124.650529 | AV43: 110.29118
AC44: 6 | AD44: º | AE44: 19a | AF44: Preparações à base de cereais (exc. NC 19022010) (a) | AG44: 4.1876816 | AH44: 0.03796932447
AC45: 7 | AD45: º | AE45: 16a | AF45: Preparações de carnes (exc. NC 1604-05) (a) | AG45: 3.5663486 | AH45: 0.03233575523
AC46: 8 | AD46: º | AE46: 04 | AF46: Leite e laticínios; ovos; mel, etc. | AG46: 2.5671564 | AH46: 0.02327617131
AC47: 9 | AD47: º | AE47: 23a | AF47: Resíduos indústrias alimentares; alimentos p/ animais (exc. NC 230120) (a) | AG47: 1.4641532 | AH47: 0.0132753426
AC48: 10 | AD48: º | AE48: 18 | AF48: Cacau e suas preparações | AG48: 0.310808 | AH48: 0.002818067592 | AI48: 0.9903541172
AE49: - | AF49: Outros | AG49: 1.0638558 | AH49: 0.009645882835
AE50: Total | AG50: 110.29118 | AH50: 1
AC62: DESAGREGAÇÃO A 4 DÍGITOS | AN62: DESAGREGAÇÃO A 4 DÍGITOS
AC64: P | AE64: Cód.NC | AF64: Descritivo | AG64: Média export quinquénio | AH64: % do total | AI64: % acumulada | AN64: P | AO64: NC | AP64: Exportações | AQ64: 2018 | AR64: 2019 | AS64: 2020 | AT64: 2021 | AU64: 2022 | AV64: média quinquénio
AC65: 1 | AD65: º | AE65: 2204 | AF65: Vinhos de uvas frescas | AG65: 4.866376 | AH65: 0.1817012809 | AN65: 1º | AO65: 2204 | AP65: Vinhos de uvas frescas | AQ65: 3.937402 | AR65: 3.481152 | AS65: 4.517557 | AT65: 6.446853 | AU65: 5.948916 | AV65: 4.866376
AC66: 2 | AD66: º | AE66: 1905 | AF66: Produtos de padaria, pastelaria, etc. | AG66: 3.288055 | AH66: 0.1227697583 | AN66: 2º | AO66: 1905 | AP66: Produtos de padaria, pastelaria, etc. | AQ66: 3.23755 | AR66: 2.807565 | AS66: 3.316875 | AT66: 3.086989 | AU66: 3.991296 | AV66: 3.288055
AC67: 3 | AD67: º | AE67: 2009 | AF67: Sumos de frutas | AG67: 2.9576126 | AH67: 0.1104316637 | AI67: 0.414902703 | AN67: 3º | AO67: 2009 | AP67: Sumos de frutas | AQ67: 3.658007 | AR67: 2.667666 | AS67: 3.886978 | AT67: 2.008581 | AU67: 2.566831 | AV67: 2.9576126
AC68: 4 | AD68: º | AE68: 0808 | AF68: Maçãs, peras e marmelos, frescos | AG68: 2.7061968 | AH68: 0.101044273 | AN68: - | AO68: - | AP68: Outros | AQ68: 11.661956 | AR68: 14.429151 | AS68: 14.932975 | AT68: 16.860531 | AU68: 20.466608 | AV68: 15.6702442
AC69: 5 | AD69: º | AE69: 2306 | AF69: Bagaços e outros resíduos sólidos de gorduras ou óleos vegetais | AG69: 1.7915664 | AH69: 0.06689370279 | AP69: Total | AQ69: 22.494915 | AR69: 23.385534 | AS69: 26.654385 | AT69: 28.402954 | AU69: 32.973651 | AV69: 26.7822878
AC70: 6 | AD70: º | AE70: 2002 | AF70: Tomates preparados | AG70: 1.2844208 | AH70: 0.04795784474
AC71: 7 | AD71: º | AE71: 2103 | AF71: Preparações para molhos e molhos preparados | AG71: 1.1184476 | AH71: 0.04176071919
AC72: 8 | AD72: º | AE72: 2004 | AF72: Produtos hortícolas preparados, congelados | AG72: 0.8408684 | AH72: 0.03139643657
AC73: 9 | AD73: º | AE73: 2105 | AF73: Sorvetes, mesmo contendo cacau | AG73: 0.6617264 | AH73: 0.02470761292
AC74: 10 | AD74: º | AE74: 0805 | AF74: Citrinos, frescos ou secos | AG74: 0.5979474 | AH74: 0.02232622562 | AI74: 0.7509895178
AE75: - | AF75: Outros | AG75: 6.6690704 | AH75: 0.2490104822
AE76: Total | AG76: 26.7822878 | AH76: 1
AC89: DESAGREGAÇÃO A 4 DÍGITOS | AN89: DESAGREGAÇÃO A 4 DÍGITOS
G91: média 2018-2022 em milhões de euros | I91: Cód. NC | J91: Descritivo | K91: Export | L91: Import | M91: Saldo | AC91: P | AE91: Cód.NC | AF91: Descritivo | AG91: Média import quinquénio | AH91: % do total | AI91: % acumulada | AN91: P | AO91: NC | AP91: Importações | AQ91: 2018 | AR91: 2019 | AS91: 2020 | AT91: 2021 | AU91: 2022 | AV91: média quinquénio
I92: 2204 | J92: Vinhos de uvas frescas | K92: 4.866376 | L92: 0.0446356 | M92: 4.8217404 | AC92: 1 | AD92: º | AE92: 3302 | AF92: Misturas de substâncias odoríferas p/ alimentação e bebidas | AG92: 29.7637962 | AH92: 0.2698656067 | AN92: 1º | AO92: 3302 | AP92: Misturas de substâncias odoríferas p/ alimentação e bebidas | AQ92: 31.455807 | AR92: 32.513289 | AS92: 25.317881 | AT92: 26.491418 | AU92: 33.040586 | AV92: 29.7637962
I93: 1905 | J93: Produtos de padaria, pastelaria, etc. | K93: 3.288055 | L93: 0.5277588 | M93: 2.7602962 | AC93: 2 | AD93: º | AE93: 2009 | AF93: Sumos de frutas | AG93: 26.7585834 | AH93: 0.2426176182 | AN93: 2º | AO93: 2009 | AP93: Sumos de frutas | AQ93: 27.913205 | AR93: 32.557701 | AS93: 27.961317 | AT93: 31.662689 | AU93: 13.698005 | AV93: 26.7585834
I94: 0808 | J94: Maçãs, peras e marmelos, frescos | K94: 2.7061968 | L94: 0.0026284 | M94: 2.7035684 | AC94: 3 | AD94: º | AE94: 0201 | AF94: Carnes de bovino, frescas ou refrigeradas | AG94: 15.7690254 | AH94: 0.1429763051 | AI94: 0.6554595299 | AN94: 3º | AO94: 0201 | AP94: Carnes de bovino, frescas ou refrigeradas | AQ94: 16.193202 | AR94: 13.688197 | AS94: 12.771606 | AT94: 15.14817 | AU94: 21.043952 | AV94: 15.7690254
I95: 2306 | J95: Bagaços e outros resíduos sólidos de gorduras ou óleos vegetais | K95: 1.7915664 | L95: 0 | M95: 1.7915664 | AC95: 4 | AD95: º | AE95: 2101 | AF95: Extratos e preparados de café, chá ou mate | AG95: 6.3805668 | AH95: 0.05785201319 | AN95: - | AO95: - | AP95: Outros | AQ95: 32.27745 | AR95: 35.855604 | AS95: 33.077739 | AT95: 31.920096 | AU95: 56.867986 | AV95: 37.999775
I96: 2002 | J96: Tomates preparados | K96: 1.2844208 | L96: 0.003147 | M96: 1.2812738 | AC96: 5 | AD96: º | AE96: 2106 | AF96: Outras preparações alimentícias | AG96: 5.5823886 | AH96: 0.05061500475 | AP96: Total | AQ96: 107.839664 | AR96: 114.614791 | AS96: 99.128543 | AT96: 105.222373 | AU96: 124.650529 | AV96: 110.29118
I97: 2103 | J97: Preparações para molhos e molhos preparados | K97: 1.1184476 | L97: 0.0953898 | M97: 1.0230578 | AC97: 6 | AD97: º | AE97: 0202 | AF97: Carnes de bovino, congeladas | AG97: 5.4174602 | AH97: 0.0491196141
I98: 2004 | J98: Produtos hortícolas preparados, congelados | K98: 0.8408684 | L98: 0.0082834 | M98: 0.832585 | AC98: 7 | AD98: º | AE98: 2208 | AF98: Álcool etílico <80%; aguardentes, etc. | AG98: 4.015046 | AH98: 0.03640405334
I99: 2105 | J99: Sorvetes, mesmo contendo cacau | K99: 0.6617264 | L99: 0.0047564 | M99: 0.65697 | AC99: 8 | AD99: º | AE99: 1602 | AF99: Outras preparações e conservas de carnes, miudezas ou sangue | AG99: 3.5079438 | AH99: 0.03180620427
I100: 0805 | J100: Citrinos, frescos ou secos | K100: 0.5979474 | L100: 0.000976 | M100: 0.5969714 | AC100: 9 | AD100: º | AE100: 1901 | AF100: Extratos de malte; preparações de farinhas, etc., sem cacau | AG100: 3.2682092 | AH100: 0.02963255267
I101: 0709 | J101: Outros produtos hortícolas, frescos ou refrigerados | K101: 0.5281168 | L101: 0 | M101: 0.5281168 | AC101: 10 | AD101: º | AE101: 2309 | AF101: Preparações p/ alimentação animal | AG101: 1.4641532 | AH101: 0.0132753426 | AI101: 0.9241643149
I102: - | J102: Outros | K102: 5.741527 | L102: 7.6764318 | M102: -1.9349048 | AE102: - | AF102: Outros | AG102: 8.3640072 | AH102: 0.07583568514
I103: 2309 | J103: Preparações p/ alimentação animal | K103: 0.0230766 | L103: 1.4641532 | M103: -1.4410766 | AE103: Total | AG103: 110.29118 | AH103: 1
I104: 1901 | J104: Extratos de malte; preparações de farinhas, etc., sem cacau | K104: 0.0977796 | L104: 3.2682092 | M104: -3.1704296
I105: 1602 | J105: Outras preparações e conservas de carnes, miudezas ou sangue | K105: 0.0221836 | L105: 3.5079438 | M105: -3.4857602
I106: 2208 | J106: Álcool etílico <80%; aguardentes, etc. | K106: 0.0196724 | L106: 4.015046 | M106: -3.9953736
I107: 0202 | J107: Carnes de bovino, congeladas | K107: 0.00562 | L107: 5.4174602 | M107: -5.4118402
I108: 2106 | J108: Outras preparações alimentícias | K108: 0.1436554 | L108: 5.5823886 | M108: -5.4387332
I109: 2101 | J109: Extratos e preparados de café, chá ou mate | K109: 0.0048958 | L109: 6.3805668 | M109: -6.375671
I110: 0201 | J110: Carnes de bovino, frescas ou refrigeradas | K110: 0.0142136 | L110: 15.7690254 | M110: -15.7548118
I111: 2009 | J111: Sumos de frutas | K111: 2.9576126 | L111: 26.7585834 | M111: -23.8009708
I112: 3302 | J112: Misturas de substâncias odoríferas p/ alimentação e bebidas | K112: 0.0683296 | L112: 29.7637962 | M112: -29.6954666
I113: Total | K113: 26.7822878 | L113: 110.29118 | M113: -83.5088922
A116: Fonte: GPP a partir de dados INE/Comércio Internacional (2021 provisórios; 2022 preliminares) | Y116: 2023-04-27T17:41:12.820

Sheet 4A
A1: Evolução da balança comercial Portugal-Irlanda 2018-2022 por produto em euros (NC 2 dígitos)
A3: =+aux!A31 -> Evolução da balança comercial Portugal-Irlanda para Preparações de produtos vegetais
A5: Selecione o produto:
Q7: Para obter uma maior desagregação deste produto, clique no botão respetivo:
A20: =+aux!A43 -> Evolução da balança comercial Portugal-Irlanda para Óleos essenciais e resinóides (NC 3301)
A22: Selecione o produto:
A38: Fonte: GPP a partir de dados INE/Comércio Internacional (2021 provisórios; 2022 preliminares) | N38: 2023-04-27T17:41:12.820

Sheet 5.2
A1: Trocas comerciais Portugal-Irlanda 2018-2022 em milhares de euros (NC 2 dígitos) | C1: Produtos agrícolas e agroalimentares, do mar e da floresta
A2: Cód. NC | B2: Descritivo | C2: Importações | K2: Exportações | S2: Saldo quinquénio (exp-imp) | T2: Evolução das importações | U2: =+"Variação das Importações " & INDEX(K3:N3,1,aux!AL1) & "-"& '5.2'!O3 &"" -> Variação das Importações 2018-2022 | Z2: Evolução das exportações | AA2: ="Variação das Exportações " & INDEX(K3:N3,1,aux!AL1) & "-"& '5.2'!O3 &"" -> Variação das Exportações 2018-2022
C3: 2018 | D3: 2019 | E3: 2020 | F3: 2021 | G3: 2022 | H3: média quinquénio | I3: % Subtot | J3: % Total | K3: 2018 | L3: 2019 | M3: 2020 | N3: 2021 | O3: 2022 | P3: média quinquénio | Q3: % Subtot | R3: % Total | U3: variação total em valor | V3: % no subtotal de variação | W3: % no total de variação | X3: taxa de variação média anual | Y3: taxa de variação total | AA3: variação total em valor | AB3: % no subtotal de variação | AC3: % no total de variação | AD3: taxa de variação média anual | AE3: taxa de variação total
A4: 01 | B4: Animais vivos | C4: 0 | D4: 0 | E4: 0 | F4: 245.366 | G4: 68.425 | H4: 62.7582 | I4: 0.0005690228357 | J4: 0.0005305417959 | K4: 0 | L4: 0 | M4: 310.938 | N4: 0 | O4: 0 | P4: 62.1876 | Q4: 0.002321967431 | R4: 0.0009720295707 | S4: -0.5706 | U4: =G4-INDEX($C4:$G4,1,aux!$AL$1) -> 68.425 | V4: =IF($U$37<>0,U4/$U$37, "n.d.") -> 0.004070284307 | W4: =IF($U$53<>0,U4/$U$53, "n.d.") -> 0.002637100718 | X4: =+IF(INDEX($C4:$G4,1,aux!$AL$1)>0,(G4/INDEX($C4:$G4,1,aux!$AL$1))^(1/($G$3-INDEX($C$3:$G$3,1,aux!$AL$1)))-1,"n.d.") -> n.d. | Y4: =IF(INDEX($C4:$G4,1,aux!$AL$1)>0,(G4-INDEX($C4:$G4,1,aux!$AL$1))/INDEX($C4:$G4,1,aux!$AL$1),"n.d.") -> n.d. | AA4: =O4-INDEX($K4:$O4,1,aux!$AL$1) -> 0 | AB4: =IF($AA$37<>0,AA4/$AA$37, "n.d.") -> 0 | AC4: =IF($AA$53<>0,AA4/$AA$53, "n.d.") -> 0 | AD4: =+IF(INDEX($K4:$O4,1,aux!$AL$1)>0,(O4/INDEX($K4:$O4,1,aux!$AL$1))^(1/($O$3-INDEX($K$3:$O$3,1,aux!$AL$1)))-1,"n.d.") -> n.d. | AE4: =IF(INDEX($K4:$O4,1,aux!$AL$1)>0,(O4-INDEX($K4:$O4,1,aux!$AL$1))/INDEX($K4:$O4,1,aux!$AL$1),"n.d.") -> n.d.
A5: 02 | B5: Carnes e miudezas | C5: 19977.329 | D5: 18234.883 | E5: 19185.376 | F5: 19443.042 | G5: 37429.018 | H5: 22853.9296 | I5: 0.2072144808 | J5: 0.1932012845 | K5: 86.512 | L5: 12.349 | M5: 743.806 | N5: 395.597 | O5: 266.766 | P5: 301.006 | Q5: 0.01123899505 | R5: 0.004704904723 | S5: -22552.9236 | U5: =G5-INDEX($C5:$G5,1,aux!$AL$1) -> 17451.689 | V5: 1.038119633 | W5: 0.6725884046 | X5: =+IF(INDEX($C5:$G5,1,aux!$AL$1)>0,(G5/INDEX($C5:$G5,1,aux!$AL$1))^(1/($G$3-INDEX($C$3:$G$3,1,aux!$AL$1)))-1,"n.d.") -> 0.169951215 | Y5: =IF(INDEX($C5:$G5,1,aux!$AL$1)>0,(G5-INDEX($C5:$G5,1,aux!$AL$1))/INDEX($C5:$G5,1,aux!$AL$1),"n.d.") -> 0.8735746906 | AA5: =O5-INDEX($K5:$O5,1,aux!$AL$1) -> 180.254 | AB5: 0.01720188389 | AC5: 0.004251860923 | AD5: =+IF(INDEX($K5:$O5,1,aux!$AL$1)>0,(O5/INDEX($K5:$O5,1,aux!$AL$1))^(1/($O$3-INDEX($K$3:$O$3,1,aux!$AL$1)))-1,"n.d.") -> 0.3251453934 | AE5: =IF(INDEX($K5:$O5,1,aux!$AL$1)>0,(O5-INDEX($K5:$O5,1,aux!$AL$1))/INDEX($K5:$O5,1,aux!$AL$1),"n.d.") -> 2.083572221
A6: 04 | B6: Leite e laticínios; ovos; mel, etc. | C6: 1684.149 | D6: 1585.971 | E6: 1326.691 | F6: 3147.672 | G6: 5091.299 | H6: 2567.1564 | I6: 0.02327617131 | J6: 0.02170208462 | K6: 91.954 | L6: 10.691 | M6: 18.477 | N6: 679.141 | O6: 1061.794 | P6: 372.4114 | Q6: 0.01390513771 | R6: 0.005821014049 | S6: -2194.745 | U6: =G6-INDEX($C6:$G6,1,aux!$AL$1) -> 3407.15 | V6: 0.2026754721 | W6: 0.1313116216 | X6: =+IF(INDEX($C6:$G6,1,aux!$AL$1)>0,(G6/INDEX($C6:$G6,1,aux!$AL$1))^(1/($G$3-INDEX($C$3:$G$3,1,aux!$AL$1)))-1,"n.d.") -> 0.3185968162 | Y6: =IF(INDEX($C6:$G6,1,aux!$AL$1)>0,(G6-INDEX($C6:$G6,1,aux!$AL$1))/INDEX($C6:$G6,1,aux!$AL$1),"n.d.") -> 2.023069218 | AA6: =O6-INDEX($K6:$O6,1,aux!$AL$1) -> 969.84 | AB6: 0.09255314763 | AC6: 0.02287674503 | AD6: =+IF(INDEX($K6:$O6,1,aux!$AL$1)>0,(O6/INDEX($K6:$O6,1,aux!$AL$1))^(1/($O$3-INDEX($K$3:$O$3,1,aux!$AL$1)))-1,"n.d.") -> 0.843390777 | AE6: =IF(INDEX($K6:$O6,1,aux!$AL$1)>0,(O6-INDEX($K6:$O6,1,aux!$AL$1))/INDEX($K6:$O6,1,aux!$AL$1),"n.d.") -> 10.54701264
A7: 05a | B7: Outros produtos de origem animal (exc. NC 0508, 051191) (a) | C7: 16.586 | D7: 18.966 | E7: 7.33 | F7: 10.79 | G7: 11.128 | H7: 12.96 | I7: 0.0001175071298 | J7: 0.0001095605303 | K7: 721.646 | L7: 519.832 | M7: 397.39 | N7: 84.272 | O7: 0.272 | P7: 344.6824 | Q7: 0.01286978926 | R7: 0.00538759311 | S7: 331.7224 | U7: =G7-INDEX($C7:$G7,1,aux!$AL$1) -> -5.458 | V7: -0.0003246709792 | W7: -0.0002103514171 | X7: =+IF(INDEX($C7:$G7,1,aux!$AL$1)>0,(G7/INDEX($C7:$G7,1,aux!$AL$1))^(1/($G$3-INDEX($C$3:$G$3,1,aux!$AL$1)))-1,"n.d.") -> -0.09495772879 | Y7: =IF(INDEX($C7:$G7,1,aux!$AL$1)>0,(G7-INDEX($C7:$G7,1,aux!$AL$1))/INDEX($C7:$G7,1,aux!$AL$1),"n.d.") -> -0.3290727119 | AA7: =O7-INDEX($K7:$O7,1,aux!$AL$1) -> -721.374 | AB7: -0.06884169999 | AC7: -0.01701588826 | AD7: =+IF(INDEX($K7:$O7,1,aux!$AL$1)>0,(O7/INDEX($K7:$O7,1,aux!$AL$1))^(1/($O$3-INDEX($K$3:$O$3,1,aux!$AL$1)))-1,"n.d.") -> -0.8606646946 | AE7: =IF(INDEX($K7:$O7,1,aux!$AL$1)>0,(O7-INDEX($K7:$O7,1,aux!$AL$1))/INDEX($K7:$O7,1,aux!$AL$1),"n.d.") -> -0.9996230839
A8: 06 | B8: Plantas vivas e produtos de floricultura | C8: 0 | D8: 0 | E8: 0 | F8: 11.861 | G8: 16.186 | H8: 5.6094 | I8: 5.085991464e-05 | J8: 4.74204351e-05 | K8: 163.693 | L8: 146.889 | M8: 259.582 | N8: 360.089 | O8: 62.473 | P8: 198.5452 | Q8: 0.007413302459 | R8: 0.003103380827 | S8: 192.9358 | U8: =G8-INDEX($C8:$G8,1,aux!$AL$1) -> 16.186 | V8: 0.0009628296938 | W8: 0.000623808728 | X8: =+IF(INDEX($C8:$G8,1,aux!$AL$1)>0,(G8/INDEX($C8:$G8,1,aux!$AL$1))^(1/($G$3-INDEX($C$3:$G$3,1,aux!$AL$1)))-1,"n.d.") -> n.d. | Y8: =IF(INDEX($C8:$G8,1,aux!$AL$1)>0,(G8-INDEX($C8:$G8,1,aux!$AL$1))/INDEX($C8:$G8,1,aux!$AL$1),"n.d.") -> n.d. | AA8: =O8-INDEX($K8:$O8,1,aux!$AL$1) -> -101.22 | AB8: -0.009659561993 | AC8: -0.002387593966 | AD8: =+IF(INDEX($K8:$O8,1,aux!$AL$1)>0,(O8/INDEX($K8:$O8,1,aux!$AL$1))^(1/($O$3-INDEX($K$3:$O$3,1,aux!$AL$1)))-1,"n.d.") -> -0.2140126373 | AE8: =IF(INDEX($K8:$O8,1,aux!$AL$1)>0,(O8-INDEX($K8:$O8,1,aux!$AL$1))/INDEX($K8:$O8,1,aux!$AL$1),"n.d.") -> -0.6183526479
A9: 07 | B9: Produtos hortícolas | C9: 18.016 | D9: 121.258 | E9: 71.248 | F9: 65.924 | G9: 20.229 | H9: 59.335 | I9: 0.0005379849957 | J9: 0.0005016029373 | K9: 1309.734 | L9: 1592.619 | M9: 1592.765 | N9: 1788.91 | O9: 1894.039 | P9: 1635.6134 | Q9: 0.06107071256 | R9: 0.02556562066 | S9: 1576.2784 | U9: =G9-INDEX($C9:$G9,1,aux!$AL$1) -> 2.213 | V9: 0.0001316410548 | W9: 8.528905938e-05 | X9: =+IF(INDEX($C9:$G9,1,aux!$AL$1)>0,(G9/INDEX($C9:$G9,1,aux!$AL$1))^(1/($G$3-INDEX($C$3:$G$3,1,aux!$AL$1)))-1,"n.d.") -> 0.02938778457 | Y9: =IF(INDEX($C9:$G9,1,aux!$AL$1)>0,(G9-INDEX($C9:$G9,1,aux!$AL$1))/INDEX($C9:$G9,1,aux!$AL$1),"n.d.") -> 0.1228352575 | AA9: =O9-INDEX($K9:$O9,1,aux!$AL$1) -> 584.305 | AB9: 0.05576101927 | AC9: 0.0137826822 | AD9: =+IF(INDEX($K9:$O9,1,aux!$AL$1)>0,(O9/INDEX($K9:$O9,1,aux!$AL$1))^(1/($O$3-INDEX($K$3:$O$3,1,aux!$AL$1)))-1,"n.d.") -> 0.09660811125 | AE9: =IF(INDEX($K9:$O9,1,aux!$AL$1)>0,(O9-INDEX($K9:$O9,1,aux!$AL$1))/INDEX($K9:$O9,1,aux!$AL$1),"n.d.") -> 0.4461249383
A10: 08 | B10: Frutas | C10: 13.142 | D10: 20.9 | E10: 0 | F10: 8.329 | G10: 2.442 | H10: 8.9626 | I10: 8.126307108e-05 | J10: 7.576753158e-05 | K10: 3189.426 | L10: 4005.66 | M10: 5618.862 | N10: 2972.268 | O10: 3532.91 | P10: 3863.8252 | Q10: 0.1442679292 | R10: 0.06039391053 | S10: 3854.8626 | U10: =G10-INDEX($C10:$G10,1,aux!$AL$1) -> -10.7 | V10: -0.0006364931251 | W10: -0.0004123781904 | X10: =+IF(INDEX($C10:$G10,1,aux!$AL$1)>0,(G10/INDEX($C10:$G10,1,aux!$AL$1))^(1/($G$3-INDEX($C$3:$G$3,1,aux!$AL$1)))-1,"n.d.") -> -0.3434450966 | Y10: =IF(INDEX($C10:$G10,1,aux!$AL$1)>0,(G10-INDEX($C10:$G10,1,aux!$AL$1))/INDEX($C10:$G10,1,aux!$AL$1),"n.d.") -> -0.8141835337 | AA10: =O10-INDEX($K10:$O10,1,aux!$AL$1) -> 343.484 | AB10: 0.03277914435 | AC10: 0.008102156942 | AD10: =+IF(INDEX($K10:$O10,1,aux!$AL$1)>0,(O10/INDEX($K10:$O10,1,aux!$AL$1))^(1/($O$3-INDEX($K$3:$O$3,1,aux!$AL$1)))-1,"n.d.") -> 0.02589995543 | AE10: =IF(INDEX($K10:$O10,1,aux!$AL$1)>0,(O10-INDEX($K10:$O10,1,aux!$AL$1))/INDEX($K10:$O10,1,aux!$AL$1),"n.d.") -> 0.1076946134
A11: 09 | B11: Café, chá, mate e especiarias | C11: 136.811 | D11: 140.25 | E11: 203.14 | F11: 107.745 | G11: 180.348 | H11: 153.6588 | I11: 0.001393210228 | J11: 0.001298992255 | K11: 102.67 | L11: 115.441 | M11: 188.181 | N11: 169.003 | O11: 264.768 | P11: 168.0126 | Q11: 0.00627327289 | R11: 0.002626137935 | S11: 14.3538 | U11: =G11-INDEX($C11:$G11,1,aux!$AL$1) -> 43.537 | V11: 0.002589813195 | W11: 0.001677916755 | X11: =+IF(INDEX($C11:$G11,1,aux!$AL$1)>0,(G11/INDEX($C11:$G11,1,aux!$AL$1))^(1/($G$3-INDEX($C$3:$G$3,1,aux!$AL$1)))-1,"n.d.") -> 0.07151333027 | Y11: =IF(INDEX($C11:$G11,1,aux!$AL$1)>0,(G11-INDEX($C11:$G11,1,aux!$AL$1))/INDEX($C11:$G11,1,aux!$AL$1),"n.d.") -> 0.3182273355 | AA11: =O11-INDEX($K11:$O11,1,aux!$AL$1) -> 162.098 | AB11: 0.01546923217 | AC11: 0.003823594217 | AD11: =+IF(INDEX($K11:$O11,1,aux!$AL$1)>0,(O11/INDEX($K11:$O11,1,aux!$AL$1))^(1/($O$3-INDEX($K$3:$O$3,1,aux!$AL$1)))-1,"n.d.") -> 0.2672301094 | AE11: =IF(INDEX($K11:$O11,1,aux!$AL$1)>0,(O11-INDEX($K11:$O11,1,aux!$AL$1))/INDEX($K11:$O11,1,aux!$AL$1),"n.d.") -> 1.578825363
A12: 10 | B12: Cereais | C12: 0 | D12: 0 | E12: 0 | F12: 19.662 | G12: 31.54 | H12: 10.2404 | I12: 9.284876633e-05 | J12: 8.656972646e-05 | K12: 1.669 | L12: 2.008 | M12: 4.154 | N12: 33.859 | O12: 186.423 | P12: 45.6226 | Q12: 0.001703461644 | R12: 0.000713108663 | S12: 35.3822 | U12: =G12-INDEX($C12:$G12,1,aux!$AL$1) -> 31.54 | V12: 0.001876167586 | W12: 0.001215552161 | X12: =+IF(INDEX($C12:$G12,1,aux!$AL$1)>0,(G12/INDEX($C12:$G12,1,aux!$AL$1))^(1/($G$3-INDEX($C$3:$G$3,1,aux!$AL$1)))-1,"n.d.") -> n.d. | Y12: =IF(INDEX($C12:$G12,1,aux!$AL$1)>0,(G12-INDEX($C12:$G12,1,aux!$AL$1))/INDEX($C12:$G12,1,aux!$AL$1),"n.d.") -> n.d. | AA12: =O12-INDEX($K12:$O12,1,aux!$AL$1) -> 184.754 | AB12: 0.017631325 | AC12: 0.004358007662 | AD12: =+IF(INDEX($K12:$O12,1,aux!$AL$1)>0,(O12/INDEX($K12:$O12,1,aux!$AL$1))^(1/($O$3-INDEX($K$3:$O$3,1,aux!$AL$1)))-1,"n.d.") -> 2.250953735 | AE12: =IF(INDEX($K12:$O12,1,aux!$AL$1)>0,(O12-INDEX($K12:$O12,1,aux!$AL$1))/INDEX($K12:$O12,1,aux!$AL$1),"n.d.") -> 110.6974236
A13: 11 | B13: Produtos da indústria de moagem e outros | C13: 0 | D13: 3.779 | E13: 17.612 | F13: 25.175 | G13: 86.338 | H13: 26.5808 | I13: 0.0002410056724 | J13: 0.0002247072951 | K13: 30.962 | L13: 104.402 | M13: 31.56 | N13: 70.013 | O13: 77.653 | P13: 62.918 | Q13: 0.002349239186 | R13: 0.0009834461618 | S13: 36.3372 | U13: =G13-INDEX($C13:$G13,1,aux!$AL$1) -> 86.338 | V13: 0.005135845181 | W13: 0.003327468056 | X13: =+IF(INDEX($C13:$G13,1,aux!$AL$1)>0,(G13/INDEX($C13:$G13,1,aux!$AL$1))^(1/($G$3-INDEX($C$3:$G$3,1,aux!$AL$1)))-1,"n.d.") -> n.d. | Y13: =IF(INDEX($C13:$G13,1,aux!$AL$1)>0,(G13-INDEX($C13:$G13,1,aux!$AL$1))/INDEX($C13:$G13,1,aux!$AL$1),"n.d.") -> n.d. | AA13: =O13-INDEX($K13:$O13,1,aux!$AL$1) -> 46.691 | AB13: 0.004455785507 | AC13: 0.001101354968 | AD13: =+IF(INDEX($K13:$O13,1,aux!$AL$1)>0,(O13/INDEX($K13:$O13,1,aux!$AL$1))^(1/($O$3-INDEX($K$3:$O$3,1,aux!$AL$1)))-1,"n.d.") -> 0.2584394032 | AE13: =IF(INDEX($K13:$O13,1,aux!$AL$1)>0,(O13-INDEX($K13:$O13,1,aux!$AL$1))/INDEX($K13:$O13,1,aux!$AL$1),"n.d.") -> 1.508009818
A14: 12 | B14: Sementes e frutos oleaginosos | C14: 59.111 | D14: 87.501 | E14: 18.842 | F14: 55.341 | G14: 200.524 | H14: 84.2638 | I14: 0.0007640121359 | J14: 0.0007123446464 | K14: 1898.262 | L14: 1714.323 | M14: 743.033 | N14: 26.81 | O14: 226.531 | P14: 921.7918 | Q14: 0.03441796335 | R14: 0.01440815995 | S14: 837.528 | U14: =G14-INDEX($C14:$G14,1,aux!$AL$1) -> 141.413 | V14: 0.008412000215 | W14: 0.005450059537 | X14: =+IF(INDEX($C14:$G14,1,aux!$AL$1)>0,(G14/INDEX($C14:$G14,1,aux!$AL$1))^(1/($G$3-INDEX($C$3:$G$3,1,aux!$AL$1)))-1,"n.d.") -> 0.3571395694 | Y14: =IF(INDEX($C14:$G14,1,aux!$AL$1)>0,(G14-INDEX($C14:$G14,1,aux!$AL$1))/INDEX($C14:$G14,1,aux!$AL$1),"n.d.") -> 2.392329685 | AA14: =O14-INDEX($K14:$O14,1,aux!$AL$1) -> -1671.731 | AB14: -0.1595355585 | AC14: -0.03943306508 | AD14: =+IF(INDEX($K14:$O14,1,aux!$AL$1)>0,(O14/INDEX($K14:$O14,1,aux!$AL$1))^(1/($O$3-INDEX($K$3:$O$3,1,aux!$AL$1)))-1,"n.d.") -> -0.412249683 | AE14: =IF(INDEX($K14:$O14,1,aux!$AL$1)>0,(O14-INDEX($K14:$O14,1,aux!$AL$1))/INDEX($K14:$O14,1,aux!$AL$1),"n.d.") -> -0.8806639969
A15: 13a | B15: Sucos e extratos vegetais (exc. NC 1301) (a) | C15: 104.879 | D15: 55.325 | E15: 209.918 | F15: 87.358 | G15: 232.412 | H15: 137.9784 | I15: 0.001251037481 | J15: 0.001166434157 | K15: 0.118 | L15: 0.038 | M15: 0 | N15: 0 | O15: 0 | P15: 0.0312 | Q15: 1.164949023e-06 | R15: 4.876747552e-07 | S15: -137.9472 | U15: =G15-INDEX($C15:$G15,1,aux!$AL$1) -> 127.533 | V15: 0.007586343713 | W15: 0.00491512409 | X15: =+IF(INDEX($C15:$G15,1,aux!$AL$1)>0,(G15/INDEX($C15:$G15,1,aux!$AL$1))^(1/($G$3-INDEX($C$3:$G$3,1,aux!$AL$1)))-1,"n.d.") -> 0.2200917838 | Y15: =IF(INDEX($C15:$G15,1,aux!$AL$1)>0,(G15-INDEX($C15:$G15,1,aux!$AL$1))/INDEX($C15:$G15,1,aux!$AL$1),"n.d.") -> 1.216001297 | AA15: =O15-INDEX($K15:$O15,1,aux!$AL$1) -> -0.118 | AB15: -1.126090017e-05 | AC15: -2.783403358e-06 | AD15: =+IF(INDEX($K15:$O15,1,aux!$AL$1)>0,(O15/INDEX($K15:$O15,1,aux!$AL$1))^(1/($O$3-INDEX($K$3:$O$3,1,aux!$AL$1)))-1,"n.d.") -> -1 | AE15: =IF(INDEX($K15:$O15,1,aux!$AL$1)>0,(O15-INDEX($K15:$O15,1,aux!$AL$1))/INDEX($K15:$O15,1,aux!$AL$1),"n.d.") -> -1
A16: 14 | B16: Matérias para entrançar e outros | C16: 0 | D16: 0 | E16: 0 | F16: 0 | G16: 0 | H16: 0 | I16: 0 | J16: 0 | K16: 0.003 | L16: 0 | M16: 0 | N16: 0 | O16: 3.783 | P16: 0.7572 | Q16: 2.827241667e-05 | R16: 1.183549117e-05 | S16: 0.7572 | U16: =G16-INDEX($C16:$G16,1,aux!$AL$1) -> 0 | V16: 0 | W16: 0 | X16: =+IF(INDEX($C16:$G16,1,aux!$AL$1)>0,(G16/INDEX($C16:$G16,1,aux!$AL$1))^(1/($G$3-INDEX($C$3:$G$3,1,aux!$AL$1)))-1,"n.d.") -> n.d. | Y16: =IF(INDEX($C16:$G16,1,aux!$AL$1)>0,(G16-INDEX($C16:$G16,1,aux!$AL$1))/INDEX($C16:$G16,1,aux!$AL$1),"n.d.") -> n.d. | AA16: =O16-INDEX($K16:$O16,1,aux!$AL$1) -> 3.78 | AB16: 0.0003607305309 | AC16: 8.916326012e-05 | AD16: =+IF(INDEX($K16:$O16,1,aux!$AL$1)>0,(O16/INDEX($K16:$O16,1,aux!$AL$1))^(1/($O$3-INDEX($K$3:$O$3,1,aux!$AL$1)))-1,"n.d.") -> 4.959073905 | AE16: =IF(INDEX($K16:$O16,1,aux!$AL$1)>0,(O16-INDEX($K16:$O16,1,aux!$AL$1))/INDEX($K16:$O16,1,aux!$AL$1),"n.d.") -> 1260
A17: 15 | B17: Gorduras e óleos animais ou vegetais | C17: 37.904 | D17: 82.007 | E17: 273.828 | F17: 383.459 | G17: 343.467 | H17: 224.133 | I17: 0.002032193327 | J17: 0.001894763144 | K17: 296.481 | L17: 104.46 | M17: 55.296 | N17: 144.603 | O17: 265.345 | P17: 173.237 | Q17: 0.006468342111 | R17: 0.002707798448 | S17: -50.896 | U17: =G17-INDEX($C17:$G17,1,aux!$AL$1) -> 305.563 | V17: 0.01817651858 | W17: 0.01177640346 | X17: =+IF(INDEX($C17:$G17,1,aux!$AL$1)>0,(G17/INDEX($C17:$G17,1,aux!$AL$1))^(1/($G$3-INDEX($C$3:$G$3,1,aux!$AL$1)))-1,"n.d.") -> 0.7350020543 | Y17: =IF(INDEX($C17:$G17,1,aux!$AL$1)>0,(G17-INDEX($C17:$G17,1,aux!$AL$1))/INDEX($C17:$G17,1,aux!$AL$1),"n.d.") -> 8.061497467 | AA17: =O17-INDEX($K17:$O17,1,aux!$AL$1) -> -31.136 | AB17: -0.002971350743 | AC17: -0.000734441076 | AD17: =+IF(INDEX($K17:$O17,1,aux!$AL$1)>0,(O17/INDEX($K17:$O17,1,aux!$AL$1))^(1/($O$3-INDEX($K$3:$O$3,1,aux!$AL$1)))-1,"n.d.") -> -0.02735689957 | AE17: =IF(INDEX($K17:$O17,1,aux!$AL$1)>0,(O17-INDEX($K17:$O17,1,aux!$AL$1))/INDEX($K17:$O17,1,aux!$AL$1),"n.d.") -> -0.1050185341
A18: 16a | B18: Preparações de carnes (exc. NC 1604-05) (a) | C18: 2566.354 | D18: 4283.479 | E18: 5157.901 | F18: 3475.471 | G18: 2348.538 | H18: 3566.3486 | I18: 0.03233575523 | J18: 0.03014900031 | K18: 1.88 | L18: 5.92 | M18: 28.207 | N18: 47.685 | O18: 80.696 | P18: 32.8776 | Q18: 0.001227587436 | R18: 0.0005138966517 | S18: -3533.471 | U18: =G18-INDEX($C18:$G18,1,aux!$AL$1) -> -217.816 | V18: -0.01295685856 | W18: -0.008394632516 | X18: =+IF(INDEX($C18:$G18,1,aux!$AL$1)>0,(G18/INDEX($C18:$G18,1,aux!$AL$1))^(1/($G$3-INDEX($C$3:$G$3,1,aux!$AL$1)))-1,"n.d.") -> -0.02192928117 | Y18: =IF(INDEX($C18:$G18,1,aux!$AL$1)>0,(G18-INDEX($C18:$G18,1,aux!$AL$1))/INDEX($C18:$G18,1,aux!$AL$1),"n.d.") -> -0.08487371579 | AA18: =O18-INDEX($K18:$O18,1,aux!$AL$1) -> 78.816 | AB18: 0.007521517862 | AC18: 0.001859124738 | AD18: =+IF(INDEX($K18:$O18,1,aux!$AL$1)>0,(O18/INDEX($K18:$O18,1,aux!$AL$1))^(1/($O$3-INDEX($K$3:$O$3,1,aux!$AL$1)))-1,"n.d.") -> 1.559608476 | AE18: =IF(INDEX($K18:$O18,1,aux!$AL$1)>0,(O18-INDEX($K18:$O18,1,aux!$AL$1))/INDEX($K18:$O18,1,aux!$AL$1),"n.d.") -> 41.92340426
A19: 17 | B19: Açúcares e produtos de confeitaria | C19: 34.612 | D19: 127.576 | E19: 107.495 | F19: 279.161 | G19: 341.862 | H19: 178.1412 | I19: 0.0016151899 | J19: 0.001505960212 | K19: 13.271 | L19: 3.516 | M19: 18.642 | N19: 16.587 | O19: 46.48 | P19: 19.6992 | Q19: 0.0007355308907 | R19: 0.0003079103377 | S19: -158.442 | U19: =G19-INDEX($C19:$G19,1,aux!$AL$1) -> 307.25 | V19: 0.01827687035 | W19: 0.01184142047 | X19: =+IF(INDEX($C19:$G19,1,aux!$AL$1)>0,(G19/INDEX($C19:$G19,1,aux!$AL$1))^(1/($G$3-INDEX($C$3:$G$3,1,aux!$AL$1)))-1,"n.d.") -> 0.7727848576 | Y19: =IF(INDEX($C19:$G19,1,aux!$AL$1)>0,(G19-INDEX($C19:$G19,1,aux!$AL$1))/INDEX($C19:$G19,1,aux!$AL$1),"n.d.") -> 8.876979082 | AA19: =O19-INDEX($K19:$O19,1,aux!$AL$1) -> 33.209 | AB19: 0.003169179947 | AC19: 0.0007833393401 | AD19: =+IF(INDEX($K19:$O19,1,aux!$AL$1)>0,(O19/INDEX($K19:$O19,1,aux!$AL$1))^(1/($O$3-INDEX($K$3:$O$3,1,aux!$AL$1)))-1,"n.d.") -> 0.3680142383 | AE19: =IF(INDEX($K19:$O19,1,aux!$AL$1)>0,(O19-INDEX($K19:$O19,1,aux!$AL$1))/INDEX($K19:$O19,1,aux!$AL$1),"n.d.") -> 2.502373597
A20: 18 | B20: Cacau e suas preparações | C20: 305.349 | D20: 327.421 | E20: 127.31 | F20: 294.806 | G20: 499.154 | H20: 310.808 | I20: 0.002818067592 | J20: 0.00262749146 | K20: 97.147 | L20: 21.057 | M20: 66.049 | N20: 60.87 | O20: 58.775 | P20: 60.7796 | Q20: 0.002269395373 | R20: 0.0009500216843 | S20: -250.0284 | U20: =G20-INDEX($C20:$G20,1,aux!$AL$1) -> 193.805 | V20: 0.01152855609 | W20: 0.007469248149 | X20: =+IF(INDEX($C20:$G20,1,aux!$AL$1)>0,(G20/INDEX($C20:$G20,1,aux!$AL$1))^(1/($G$3-INDEX($C$3:$G$3,1,aux!$AL$1)))-1,"n.d.") -> 0.1307315585 | Y20: =IF(INDEX($C20:$G20,1,aux!$AL$1)>0,(G20-INDEX($C20:$G20,1,aux!$AL$1))/INDEX($C20:$G20,1,aux!$AL$1),"n.d.") -> 0.6346999663 | AA20: =O20-INDEX($K20:$O20,1,aux!$AL$1) -> -38.372 | AB20: -0.003661892045 | AC20: -0.0009051250311 | AD20: =+IF(INDEX($K20:$O20,1,aux!$AL$1)>0,(O20/INDEX($K20:$O20,1,aux!$AL$1))^(1/($O$3-INDEX($K$3:$O$3,1,aux!$AL$1)))-1,"n.d.") -> -0.1180564041 | AE20: =IF(INDEX($K20:$O20,1,aux!$AL$1)>0,(O20-INDEX($K20:$O20,1,aux!$AL$1))/INDEX($K20:$O20,1,aux!$AL$1),"n.d.") -> -0.3949890372
A21: 19a | B21: Preparações à base de cereais (exc. NC 19022010) (a) | C21: 3520.213 | D21: 3968.478 | E21: 4576.035 | F21: 3620.576 | G21: 5253.106 | H21: 4187.6816 | I21: 0.03796932447 | J21: 0.03540159082 | K21: 3349.789 | L21: 2936.166 | M21: 3408.69 | N21: 3172.605 | O21: 4282.463 | P21: 3429.9426 | Q21: 0.1280675731 | R21: 0.05361206467 | S21: -757.739 | U21: =G21-INDEX($C21:$G21,1,aux!$AL$1) -> 1732.893 | V21: 0.1030817272 | W21: 0.06678572706 | X21: =+IF(INDEX($C21:$G21,1,aux!$AL$1)>0,(G21/INDEX($C21:$G21,1,aux!$AL$1))^(1/($G$3-INDEX($C$3:$G$3,1,aux!$AL$1)))-1,"n.d.") -> 0.1052532623 | Y21: =IF(INDEX($C21:$G21,1,aux!$AL$1)>0,(G21-INDEX($C21:$G21,1,aux!$AL$1))/INDEX($C21:$G21,1,aux!$AL$1),"n.d.") -> 0.4922693598 | AA21: =O21-INDEX($K21:$O21,1,aux!$AL$1) -> 932.674 | AB21: 0.0890063458 | AC21: 0.02200006732 | AD21: =+IF(INDEX($K21:$O21,1,aux!$AL$1)>0,(O21/INDEX($K21:$O21,1,aux!$AL$1))^(1/($O$3-INDEX($K$3:$O$3,1,aux!$AL$1)))-1,"n.d.") -> 0.06333238699 | AE21: =IF(INDEX($K21:$O21,1,aux!$AL$1)>0,(O21-INDEX($K21:$O21,1,aux!$AL$1))/INDEX($K21:$O21,1,aux!$AL$1),"n.d.") -> 0.278427686
A22: 20 | B22: Preparações de produtos vegetais | C22: 27979.543 | D22: 32590.96 | E22: 27965.282 | F22: 31897.83 | G22: 13911.328 | H22: 26868.9886 | I22: 0.243618652 | J22: 0.227143568 | K22: 5240.779 | L22: 4675.842 | M22: 5433.056 | N22: 4596.076 | O22: 6420.306 | P22: 5273.2118 | Q22: 0.1968917607 | R22: 0.08242347031 | S22: -21595.7768 | U22: =G22-INDEX($C22:$G22,1,aux!$AL$1) -> -14068.215 | V22: -0.8368525355 | W22: -0.5421892565 | X22: =+IF(INDEX($C22:$G22,1,aux!$AL$1)>0,(G22/INDEX($C22:$G22,1,aux!$AL$1))^(1/($G$3-INDEX($C$3:$G$3,1,aux!$AL$1)))-1,"n.d.") -> -0.1602848409 | Y22: =IF(INDEX($C22:$G22,1,aux!$AL$1)>0,(G22-INDEX($C22:$G22,1,aux!$AL$1))/INDEX($C22:$G22,1,aux!$AL$1),"n.d.") -> -0.5028036019 | AA22: =O22-INDEX($K22:$O22,1,aux!$AL$1) -> 1179.527 | AB22: 0.1125638627 | AC22: 0.02782287638 | AD22: =+IF(INDEX($K22:$O22,1,aux!$AL$1)>0,(O22/INDEX($K22:$O22,1,aux!$AL$1))^(1/($O$3-INDEX($K$3:$O$3,1,aux!$AL$1)))-1,"n.d.") -> 0.05205869573 | AE22: =IF(INDEX($K22:$O22,1,aux!$AL$1)>0,(O22-INDEX($K22:$O22,1,aux!$AL$1))/INDEX($K22:$O22,1,aux!$AL$1),"n.d.") -> 0.2250671131
A23: 21 | B23: Preparações alimentícias diversas | C23: 12880.211 | D23: 12120.385 | E23: 9908.008 | F23: 10495.278 | G23: 15302.348 | H23: 12141.246 | I23: 0.1100835624 | J23: 0.1026389931 | K23: 823.359 | L23: 1221.449 | M23: 1343.846 | N23: 3624.519 | O23: 4116.918 | P23: 2226.0182 | Q23: 0.08311531175 | R23: 0.03479400259 | S23: -9915.2278 | U23: =G23-INDEX($C23:$G23,1,aux!$AL$1) -> 2422.137 | V23: 0.1440816401 | W23: 0.09334920308 | X23: =+IF(INDEX($C23:$G23,1,aux!$AL$1)>0,(G23/INDEX($C23:$G23,1,aux!$AL$1))^(1/($G$3-INDEX($C$3:$G$3,1,aux!$AL$1)))-1,"n.d.") -> 0.04401989369 | Y23: =IF(INDEX($C23:$G23,1,aux!$AL$1)>0,(G23-INDEX($C23:$G23,1,aux!$AL$1))/INDEX($C23:$G23,1,aux!$AL$1),"n.d.") -> 0.1880510343 | AA23: =O23-INDEX($K23:$O23,1,aux!$AL$1) -> 3293.559 | AB23: 0.3143088059 | AC23: 0.07768901001 | AD23: =+IF(INDEX($K23:$O23,1,aux!$AL$1)>0,(O23/INDEX($K23:$O23,1,aux!$AL$1))^(1/($O$3-INDEX($K$3:$O$3,1,aux!$AL$1)))-1,"n.d.") -> 0.4953599505 | AE23: =IF(INDEX($K23:$O23,1,aux!$AL$1)>0,(O23-INDEX($K23:$O23,1,aux!$AL$1))/INDEX($K23:$O23,1,aux!$AL$1),"n.d.") -> 4.000149388
A24: 22 | B24: Bebidas, líquidos alcoólicos e vinagres | C24: 5201.169 | D24: 5918.756 | E24: 2900.804 | F24: 4187.812 | G24: 8855.708 | H24: 5412.8498 | I24: 0.04907781202 | J24: 0.0457588499 | K24: 4168.327 | L24: 3833.176 | M24: 4869.572 | N24: 6830.261 | O24: 6602.725 | P24: 5260.8122 | Q24: 0.1964287831 | R24: 0.08222965711 | S24: -152.0376 | U24: =G24-INDEX($C24:$G24,1,aux!$AL$1) -> 3654.539 | V24: 0.2173914906 | W24: 0.1408459981 | X24: =+IF(INDEX($C24:$G24,1,aux!$AL$1)>0,(G24/INDEX($C24:$G24,1,aux!$AL$1))^(1/($G$3-INDEX($C$3:$G$3,1,aux!$AL$1)))-1,"n.d.") -> 0.1423010623 | Y24: =IF(INDEX($C24:$G24,1,aux!$AL$1)>0,(G24-INDEX($C24:$G24,1,aux!$AL$1))/INDEX($C24:$G24,1,aux!$AL$1),"n.d.") -> 0.7026380031 | AA24: =O24-INDEX($K24:$O24,1,aux!$AL$1) -> 2434.398 | AB24: 0.2323179055 | AC24: 0.0574229794 | AD24: =+IF(INDEX($K24:$O24,1,aux!$AL$1)>0,(O24/INDEX($K24:$O24,1,aux!$AL$1))^(1/($O$3-INDEX($K$3:$O$3,1,aux!$AL$1)))-1,"n.d.") -> 0.1218643746 | AE24: =IF(INDEX($K24:$O24,1,aux!$AL$1)>0,(O24-INDEX($K24:$O24,1,aux!$AL$1))/INDEX($K24:$O24,1,aux!$AL$1),"n.d.") -> 0.5840227986
A25: 23a | B25: Resíduos indústrias alimentares; alimentos p/ animais (exc. NC 230120) (a) | C25: 1655.545 | D25: 2178.13 | E25: 1751.713 | F25: 828.048 | G25: 907.33 | H25: 1464.1532 | I25: 0.0132753426 | J25: 0.01237757725 | K25: 589.324 | L25: 1617.864 | M25: 1032.894 | N25: 2825.359 | O25: 3018.912 | P25: 1816.8706 | Q25: 0.06783851378 | R25: 0.02839877965 | S25: 352.7174 | U25: =G25-INDEX($C25:$G25,1,aux!$AL$1) -> -748.215 | V25: -0.04450782277 | W25: -0.02883621942 | X25: =+IF(INDEX($C25:$G25,1,aux!$AL$1)>0,(G25/INDEX($C25:$G25,1,aux!$AL$1))^(1/($G$3-INDEX($C$3:$G$3,1,aux!$AL$1)))-1,"n.d.") -> -0.1395887699 | Y25: =IF(INDEX($C25:$G25,1,aux!$AL$1)>0,(G25-INDEX($C25:$G25,1,aux!$AL$1))/INDEX($C25:$G25,1,aux!$AL$1),"n.d.") -> -0.4519448278 | AA25: =O25-INDEX($K25:$O25,1,aux!$AL$1) -> 2429.588 | AB25: 0.2318588807 | AC25: 0.05730952033 | AD25: =+IF(INDEX($K25:$O25,1,aux!$AL$1)>0,(O25/INDEX($K25:$O25,1,aux!$AL$1))^(1/($O$3-INDEX($K$3:$O$3,1,aux!$AL$1)))-1,"n.d.") -> 0.5044372617 | AE25: =IF(INDEX($K25:$O25,1,aux!$AL$1)>0,(O25-INDEX($K25:$O25,1,aux!$AL$1))/INDEX($K25:$O25,1,aux!$AL$1),"n.d.") -> 4.122669364
A26: 24 | B26: Tabaco | C26: 0 | D26: 0 | E26: 0 | F26: 0 | G26: 0 | H26: 0 | I26: 0 | J26: 0 | K26: 0 | L26: 0 | M26: 0 | N26: 1.878 | O26: 1.268 | P26: 0.6292 | Q26: 2.349313863e-05 | R26: 9.83477423e-06 | S26: 0.6292 | U26: =G26-INDEX($C26:$G26,1,aux!$AL$1) -> 0 | V26: 0 | W26: 0 | X26: =+IF(INDEX($C26:$G26,1,aux!$AL$1)>0,(G26/INDEX($C26:$G26,1,aux!$AL$1))^(1/($G$3-INDEX($C$3:$G$3,1,aux!$AL$1)))-1,"n.d.") -> n.d. | Y26: =IF(INDEX($C26:$G26,1,aux!$AL$1)>0,(G26-INDEX($C26:$G26,1,aux!$AL$1))/INDEX($C26:$G26,1,aux!$AL$1),"n.d.") -> n.d. | AA26: =O26-INDEX($K26:$O26,1,aux!$AL$1) -> 1.268 | AB26: 0.0001210069611 | AC26: 2.990979202e-05 | AD26: =+IF(INDEX($K26:$O26,1,aux!$AL$1)>0,(O26/INDEX($K26:$O26,1,aux!$AL$1))^(1/($O$3-INDEX($K$3:$O$3,1,aux!$AL$1)))-1,"n.d.") -> n.d. | AE26: =IF(INDEX($K26:$O26,1,aux!$AL$1)>0,(O26-INDEX($K26:$O26,1,aux!$AL$1))/INDEX($K26:$O26,1,aux!$AL$1),"n.d.") -> n.d.
A27: 29 | B27: Manitol e sorbitol (NC 290543; 290544) | C27: 0 | D27: 0 | E27: 0 | F27: 0 | G27: 0 | H27: 0 | I27: 0 | J27: 0 | K27: 0 | L27: 0 | M27: 0 | N27: 0 | O27: 0 | P27: 0 | Q27: 0 | R27: 0 | S27: 0 | U27: =G27-INDEX($C27:$G27,1,aux!$AL$1) -> 0 | V27: 0 | W27: 0 | X27: =+IF(INDEX($C27:$G27,1,aux!$AL$1)>0,(G27/INDEX($C27:$G27,1,aux!$AL$1))^(1/($G$3-INDEX($C$3:$G$3,1,aux!$AL$1)))-1,"n.d.") -> n.d. | Y27: =IF(INDEX($C27:$G27,1,aux!$AL$1)>0,(G27-INDEX($C27:$G27,1,aux!$AL$1))/INDEX($C27:$G27,1,aux!$AL$1),"n.d.") -> n.d. | AA27: =O27-INDEX($K27:$O27,1,aux!$AL$1) -> 0 | AB27: 0 | AC27: 0 | AD27: =+IF(INDEX($K27:$O27,1,aux!$AL$1)>0,(O27/INDEX($K27:$O27,1,aux!$AL$1))^(1/($O$3-INDEX($K$3:$O$3,1,aux!$AL$1)))-1,"n.d.") -> n.d. | AE27: =IF(INDEX($K27:$O27,1,aux!$AL$1)>0,(O27-INDEX($K27:$O27,1,aux!$AL$1))/INDEX($K27:$O27,1,aux!$AL$1),"n.d.") -> n.d.
A28: 33 | B28: Óleos essenciais e resinóides (NC 3301) | C28: 31457.832 | D28: 32513.626 | E28: 25317.881 | F28: 26520.641 | G28: 33460.832 | H28: 29854.1624 | I28: 0.2706849487 | J28: 0.2523794649 | K28: 316.857 | L28: 24.791 | M28: 0 | N28: 0 | O28: 0 | P28: 68.3296 | Q28: 0.002551298101 | R28: 0.001068032723 | S28: -29785.8328 | U28: =G28-INDEX($C28:$G28,1,aux!$AL$1) -> 2003 | V28: 0.1191491336 | W28: 0.07719565565 | X28: =+IF(INDEX($C28:$G28,1,aux!$AL$1)>0,(G28/INDEX($C28:$G28,1,aux!$AL$1))^(1/($G$3-INDEX($C$3:$G$3,1,aux!$AL$1)))-1,"n.d.") -> 0.01555158116 | Y28: =IF(INDEX($C28:$G28,1,aux!$AL$1)>0,(G28-INDEX($C28:$G28,1,aux!$AL$1))/INDEX($C28:$G28,1,aux!$AL$1),"n.d.") -> 0.06367253789 | AA28: =O28-INDEX($K28:$O28,1,aux!$AL$1) -> -316.857 | AB28: -0.0302380936 | AC28: -0.007474074898 | AD28: =+IF(INDEX($K28:$O28,1,aux!$AL$1)>0,(O28/INDEX($K28:$O28,1,aux!$AL$1))^(1/($O$3-INDEX($K$3:$O$3,1,aux!$AL$1)))-1,"n.d.") -> -1 | AE28: =IF(INDEX($K28:$O28,1,aux!$AL$1)>0,(O28-INDEX($K28:$O28,1,aux!$AL$1))/INDEX($K28:$O28,1,aux!$AL$1),"n.d.") -> -1
A29: 35 | B29: Caseínas, albuminas, gelatinas, peptonas, dextrinas (NC 3501 a 3505) | C29: 1.858 | D29: 2.789 | E29: 0 | F29: 11.026 | G29: 56.967 | H29: 14.528 | I29: 0.0001317240418 | J29: 0.0001228160019 | K29: 1.052 | L29: 1.781 | M29: 3.539 | N29: 1.522 | O29: 1.077 | P29: 1.7942 | Q29: 6.699203643e-05 | R29: 2.804442454e-05 | S29: -12.7338 | U29: =G29-INDEX($C29:$G29,1,aux!$AL$1) -> 55.109 | V29: 0.003278177536 | W29: 0.002123901841 | X29: =+IF(INDEX($C29:$G29,1,aux!$AL$1)>0,(G29/INDEX($C29:$G29,1,aux!$AL$1))^(1/($G$3-INDEX($C$3:$G$3,1,aux!$AL$1)))-1,"n.d.") -> 1.353121814 | Y29: =IF(INDEX($C29:$G29,1,aux!$AL$1)>0,(G29-INDEX($C29:$G29,1,aux!$AL$1))/INDEX($C29:$G29,1,aux!$AL$1),"n.d.") -> 29.66038751 | AA29: =O29-INDEX($K29:$O29,1,aux!$AL$1) -> 0.025 | AB29: 2.385783934e-06 | AC29: 5.897041013e-07 | AD29: =+IF(INDEX($K29:$O29,1,aux!$AL$1)>0,(O29/INDEX($K29:$O29,1,aux!$AL$1))^(1/($O$3-INDEX($K$3:$O$3,1,aux!$AL$1)))-1,"n.d.") -> 0.005888842424 | AE29: =IF(INDEX($K29:$O29,1,aux!$AL$1)>0,(O29-INDEX($K29:$O29,1,aux!$AL$1))/INDEX($K29:$O29,1,aux!$AL$1),"n.d.") -> 0.02376425856
A30: 38a | B30: Agentes de acabamento, ácidos gordos, sorbitol (NC 380910, 382311-12-13-19-70, 382460) (a) | C30: 0 | D30: 0 | E30: 0 | F30: 0 | G30: 0 | H30: 0 | I30: 0 | J30: 0 | K30: 0 | L30: 0 | M30: 0 | N30: 0 | O30: 0 | P30: 0 | Q30: 0 | R30: 0 | S30: 0 | U30: =G30-INDEX($C30:$G30,1,aux!$AL$1) -> 0 | V30: 0 | W30: 0 | X30: =+IF(INDEX($C30:$G30,1,aux!$AL$1)>0,(G30/INDEX($C30:$G30,1,aux!$AL$1))^(1/($G$3-INDEX($C$3:$G$3,1,aux!$AL$1)))-1,"n.d.") -> n.d. | Y30: =IF(INDEX($C30:$G30,1,aux!$AL$1)>0,(G30-INDEX($C30:$G30,1,aux!$AL$1))/INDEX($C30:$G30,1,aux!$AL$1),"n.d.") -> n.d. | AA30: =O30-INDEX($K30:$O30,1,aux!$AL$1) -> 0 | AB30: 0 | AC30: 0 | AD30: =+IF(INDEX($K30:$O30,1,aux!$AL$1)>0,(O30/INDEX($K30:$O30,1,aux!$AL$1))^(1/($O$3-INDEX($K$3:$O$3,1,aux!$AL$1)))-1,"n.d.") -> n.d. | AE30: =IF(INDEX($K30:$O30,1,aux!$AL$1)>0,(O30-INDEX($K30:$O30,1,aux!$AL$1))/INDEX($K30:$O30,1,aux!$AL$1),"n.d.") -> n.d.
A31: 41 | B31: Couro e peles em bruto (NC 4101 a 4103) | C31: 189.051 | D31: 232.351 | E31: 0 | F31: 0 | G31: 0 | H31: 84.2804 | I31: 0.0007641626466 | J31: 0.0007124849785 | K31: 0 | L31: 0 | M31: 0 | N31: 0 | O31: 0 | P31: 0 | Q31: 0 | R31: 0 | S31: -84.2804 | U31: =G31-INDEX($C31:$G31,1,aux!$AL$1) -> -189.051 | V31: -0.01124576278 | W31: -0.007286028904 | X31: =+IF(INDEX($C31:$G31,1,aux!$AL$1)>0,(G31/INDEX($C31:$G31,1,aux!$AL$1))^(1/($G$3-INDEX($C$3:$G$3,1,aux!$AL$1)))-1,"n.d.") -> -1 | Y31: =IF(INDEX($C31:$G31,1,aux!$AL$1)>0,(G31-INDEX($C31:$G31,1,aux!$AL$1))/INDEX($C31:$G31,1,aux!$AL$1),"n.d.") -> -1 | AA31: =O31-INDEX($K31:$O31,1,aux!$AL$1) -> 0 | AB31: 0 | AC31: 0 | AD31: =+IF(INDEX($K31:$O31,1,aux!$AL$1)>0,(O31/INDEX($K31:$O31,1,aux!$AL$1))^(1/($O$3-INDEX($K$3:$O$3,1,aux!$AL$1)))-1,"n.d.") -> n.d. | AE31: =IF(INDEX($K31:$O31,1,aux!$AL$1)>0,(O31-INDEX($K31:$O31,1,aux!$AL$1))/INDEX($K31:$O31,1,aux!$AL$1),"n.d.") -> n.d.
A32: 43 | B32: Peles com pelo em bruto (NC 4301) | C32: 0 | D32: 0 | E32: 0 | F32: 0 | G32: 0 | H32: 0 | I32: 0 | J32: 0 | K32: 0 | L32: 0 | M32: 0 | N32: 0 | O32: 0 | P32: 0 | Q32: 0 | R32: 0 | S32: 0 | U32: =G32-INDEX($C32:$G32,1,aux!$AL$1) -> 0 | V32: 0 | W32: 0 | X32: =+IF(INDEX($C32:$G32,1,aux!$AL$1)>0,(G32/INDEX($C32:$G32,1,aux!$AL$1))^(1/($G$3-INDEX($C$3:$G$3,1,aux!$AL$1)))-1,"n.d.") -> n.d. | Y32: =IF(INDEX($C32:$G32,1,aux!$AL$1)>0,(G32-INDEX($C32:$G32,1,aux!$AL$1))/INDEX($C32:$G32,1,aux!$AL$1),"n.d.") -> n.d. | AA32: =O32-INDEX($K32:$O32,1,aux!$AL$1) -> 0 | AB32: 0 | AC32: 0 | AD32: =+IF(INDEX($K32:$O32,1,aux!$AL$1)>0,(O32/INDEX($K32:$O32,1,aux!$AL$1))^(1/($O$3-INDEX($K$3:$O$3,1,aux!$AL$1)))-1,"n.d.") -> n.d. | AE32: =IF(INDEX($K32:$O32,1,aux!$AL$1)>0,(O32-INDEX($K32:$O32,1,aux!$AL$1))/INDEX($K32:$O32,1,aux!$AL$1),"n.d.") -> n.d.
A33: 50 | B33: Seda crua (NC 5001-5003) | C33: 0 | D33: 0 | E33: 0 | F33: 0 | G33: 0 | H33: 0 | I33: 0 | J33: 0 | K33: 0 | L33: 0 | M33: 0 | N33: 0 | O33: 0 | P33: 0 | Q33: 0 | R33: 0 | S33: 0 | U33: =G33-INDEX($C33:$G33,1,aux!$AL$1) -> 0 | V33: 0 | W33: 0 | X33: =+IF(INDEX($C33:$G33,1,aux!$AL$1)>0,(G33/INDEX($C33:$G33,1,aux!$AL$1))^(1/($G$3-INDEX($C$3:$G$3,1,aux!$AL$1)))-1,"n.d.") -> n.d. | Y33: =IF(INDEX($C33:$G33,1,aux!$AL$1)>0,(G33-INDEX($C33:$G33,1,aux!$AL$1))/INDEX($C33:$G33,1,aux!$AL$1),"n.d.") -> n.d. | AA33: =O33-INDEX($K33:$O33,1,aux!$AL$1) -> 0 | AB33: 0 | AC33: 0 | AD33: =+IF(INDEX($K33:$O33,1,aux!$AL$1)>0,(O33/INDEX($K33:$O33,1,aux!$AL$1))^(1/($O$3-INDEX($K$3:$O$3,1,aux!$AL$1)))-1,"n.d.") -> n.d. | AE33: =IF(INDEX($K33:$O33,1,aux!$AL$1)>0,(O33-INDEX($K33:$O33,1,aux!$AL$1))/INDEX($K33:$O33,1,aux!$AL$1),"n.d.") -> n.d.
A34: 51 | B34: Lã não cardada (NC 5101-5103) | C34: 0 | D34: 0 | E34: 0 | F34: 0 | G34: 0 | H34: 0 | I34: 0 | J34: 0 | K34: 0 | L34: 0 | M34: 0 | N34: 0 | O34: 0 | P34: 0 | Q34: 0 | R34: 0 | S34: 0 | U34: =G34-INDEX($C34:$G34,1,aux!$AL$1) -> 0 | V34: 0 | W34: 0 | X34: =+IF(INDEX($C34:$G34,1,aux!$AL$1)>0,(G34/INDEX($C34:$G34,1,aux!$AL$1))^(1/($G$3-INDEX($C$3:$G$3,1,aux!$AL$1)))-1,"n.d.") -> n.d. | Y34: =IF(INDEX($C34:$G34,1,aux!$AL$1)>0,(G34-INDEX($C34:$G34,1,aux!$AL$1))/INDEX($C34:$G34,1,aux!$AL$1),"n.d.") -> n.d. | AA34: =O34-INDEX($K34:$O34,1,aux!$AL$1) -> 0 | AB34: 0 | AC34: 0 | AD34: =+IF(INDEX($K34:$O34,1,aux!$AL$1)>0,(O34/INDEX($K34:$O34,1,aux!$AL$1))^(1/($O$3-INDEX($K$3:$O$3,1,aux!$AL$1)))-1,"n.d.") -> n.d. | AE34: =IF(INDEX($K34:$O34,1,aux!$AL$1)>0,(O34-INDEX($K34:$O34,1,aux!$AL$1))/INDEX($K34:$O34,1,aux!$AL$1),"n.d.") -> n.d.
A35: 52 | B35: Algodão (NC 5201-5203) | C35: 0 | D35: 0 | E35: 2.129 | F35: 0 | G35: 0 | H35: 0.4258 | I35: 3.860689495e-06 | J35: 3.599604461e-06 | K35: 0 | L35: 715.26 | M35: 485.846 | N35: 501.027 | O35: 501.274 | P35: 440.6814 | Q35: 0.01645421046 | R35: 0.006888115188 | S35: 440.2556 | U35: =G35-INDEX($C35:$G35,1,aux!$AL$1) -> 0 | V35: 0 | W35: 0 | X35: =+IF(INDEX($C35:$G35,1,aux!$AL$1)>0,(G35/INDEX($C35:$G35,1,aux!$AL$1))^(1/($G$3-INDEX($C$3:$G$3,1,aux!$AL$1)))-1,"n.d.") -> n.d. | Y35: =IF(INDEX($C35:$G35,1,aux!$AL$1)>0,(G35-INDEX($C35:$G35,1,aux!$AL$1))/INDEX($C35:$G35,1,aux!$AL$1),"n.d.") -> n.d. | AA35: =O35-INDEX($K35:$O35,1,aux!$AL$1) -> 501.274 | AB35: 0.04783725823 | AC35: 0.01182413335 | AD35: =+IF(INDEX($K35:$O35,1,aux!$AL$1)>0,(O35/INDEX($K35:$O35,1,aux!$AL$1))^(1/($O$3-INDEX($K$3:$O$3,1,aux!$AL$1)))-1,"n.d.") -> n.d. | AE35: =IF(INDEX($K35:$O35,1,aux!$AL$1)>0,(O35-INDEX($K35:$O35,1,aux!$AL$1))/INDEX($K35:$O35,1,aux!$AL$1),"n.d.") -> n.d.
A36: 53 | B36: Linho e cânhamo em bruto (NC 5301-5302) | C36: 0 | D36: 0 | E36: 0 | F36: 0 | G36: 0 | H36: 0 | I36: 0 | J36: 0 | K36: 0 | L36: 0 | M36: 0 | N36: 0 | O36: 0 | P36: 0 | Q36: 0 | R36: 0 | S36: 0 | U36: =G36-INDEX($C36:$G36,1,aux!$AL$1) -> 0 | V36: 0 | W36: =IF($U$53<>0,U36/$U$53, "n.d.") -> 0 | X36: =+IF(INDEX($C36:$G36,1,aux!$AL$1)>0,(G36/INDEX($C36:$G36,1,aux!$AL$1))^(1/($G$3-INDEX($C$3:$G$3,1,aux!$AL$1)))-1,"n.d.") -> n.d. | Y36: =IF(INDEX($C36:$G36,1,aux!$AL$1)>0,(G36-INDEX($C36:$G36,1,aux!$AL$1))/INDEX($C36:$G36,1,aux!$AL$1),"n.d.") -> n.d. | AA36: =O36-INDEX($K36:$O36,1,aux!$AL$1) -> 0 | AB36: 0 | AC36: =IF($AA$53<>0,AA36/$AA$53, "n.d.") -> 0 | AD36: =+IF(INDEX($K36:$O36,1,aux!$AL$1)>0,(O36/INDEX($K36:$O36,1,aux!$AL$1))^(1/($O$3-INDEX($K$3:$O$3,1,aux!$AL$1)))-1,"n.d.") -> n.d. | AE36: =IF(INDEX($K36:$O36,1,aux!$AL$1)>0,(O36-INDEX($K36:$O36,1,aux!$AL$1))/INDEX($K36:$O36,1,aux!$AL$1),"n.d.") -> n.d.
A37: Subtotal Agrícola e Agroalimentar | C37: 107839.664 | D37: 114614.791 | E37: 99128.543 | F37: 105222.373 | G37: 124650.529 | H37: 110291.18 | I37: 1 | J37: 0.9323734701 | K37: 22494.915 | L37: 23385.534 | M37: 26654.385 | N37: 28402.954 | O37: 32973.651 | P37: 26782.2878 | Q37: 1 | R37: 0.4186232579 | S37: -83508.8922 | U37: =G37-INDEX($C37:$G37,1,aux!$AL$1) -> 16810.865 | V37: 1 | W37: 0.6478910363 | X37: =+IF(INDEX($C37:$G37,1,aux!$AL$1)>0,(G37/INDEX($C37:$G37,1,aux!$AL$1))^(1/($G$3-INDEX($C$3:$G$3,1,aux!$AL$1)))-1,"n.d.") -> 0.03688096064 | Y37: =IF(INDEX($C37:$G37,1,aux!$AL$1)>0,(G37-INDEX($C37:$G37,1,aux!$AL$1))/INDEX($C37:$G37,1,aux!$AL$1),"n.d.") -> 0.155887587 | AA37: =O37-INDEX($K37:$O37,1,aux!$AL$1) -> 10478.736 | AB37: 1 | AC37: 0.2471741438 | AD37: =+IF(INDEX($K37:$O37,1,aux!$AL$1)>0,(O37/INDEX($K37:$O37,1,aux!$AL$1))^(1/($O$3-INDEX($K$3:$O$3,1,aux!$AL$1)))-1,"n.d.") -> 0.1003242137 | AE37: =IF(INDEX($K37:$O37,1,aux!$AL$1)>0,(O37-INDEX($K37:$O37,1,aux!$AL$1))/INDEX($K37:$O37,1,aux!$AL$1),"n.d.") -> 0.4658268769
A38: 03 | B38: Peixes e crustáceos | C38: 3596.118 | D38: 3966.499 | E38: 2986.753 | F38: 6232.145 | G38: 8580.975 | H38: 5072.498 | I38: 0.9599325782 | J38: 0.0428816027 | K38: 642.238 | L38: 351.107 | M38: 529.948 | N38: 580.669 | O38: 569.157 | P38: 534.6238 | Q38: 0.267242604 | R38: 0.008356491371 | S38: -4537.8742 | U38: =G38-INDEX($C38:$G38,1,aux!$AL$1) -> 4984.857 | V38: =IF($U$44<>0,U38/$U$44, "n.d.") -> 0.9872489721 | W38: 0.1921164775 | X38: =+IF(INDEX($C38:$G38,1,aux!$AL$1)>0,(G38/INDEX($C38:$G38,1,aux!$AL$1))^(1/($G$3-INDEX($C$3:$G$3,1,aux!$AL$1)))-1,"n.d.") -> 0.2428699154 | Y38: =IF(INDEX($C38:$G38,1,aux!$AL$1)>0,(G38-INDEX($C38:$G38,1,aux!$AL$1))/INDEX($C38:$G38,1,aux!$AL$1),"n.d.") -> 1.386177261 | AA38: =O38-INDEX($K38:$O38,1,aux!$AL$1) -> -73.081 | AB38: =IF($AA$44<>0,AA38/$AA$44, "n.d.") -> 0.03120972322 | AC38: -0.001723846617 | AD38: =+IF(INDEX($K38:$O38,1,aux!$AL$1)>0,(O38/INDEX($K38:$O38,1,aux!$AL$1))^(1/($O$3-INDEX($K$3:$O$3,1,aux!$AL$1)))-1,"n.d.") -> -0.02974917476 | AE38: =IF(INDEX($K38:$O38,1,aux!$AL$1)>0,(O38-INDEX($K38:$O38,1,aux!$AL$1))/INDEX($K38:$O38,1,aux!$AL$1),"n.d.") -> -0.1137911491
A39: 05p | B39: Outros produtos de pescado (NC 0508, 051191) (p) | C39: 21.52 | D39: 11.743 | E39: 4.739 | F39: 54.6 | G39: 12.162 | H39: 20.9528 | I39: 0.003965161805 | J39: 0.0001771296204 | K39: 0 | L39: 0 | M39: 0 | N39: 0.85 | O39: 1.949 | P39: 0.5598 | Q39: 0.0002798274407 | R39: 8.750010512e-06 | S39: -20.393 | U39: =G39-INDEX($C39:$G39,1,aux!$AL$1) -> -9.358 | V39: -0.001853348227 | W39: -0.0003606574865 | X39: =+IF(INDEX($C39:$G39,1,aux!$AL$1)>0,(G39/INDEX($C39:$G39,1,aux!$AL$1))^(1/($G$3-INDEX($C$3:$G$3,1,aux!$AL$1)))-1,"n.d.") -> -0.1329569068 | Y39: =IF(INDEX($C39:$G39,1,aux!$AL$1)>0,(G39-INDEX($C39:$G39,1,aux!$AL$1))/INDEX($C39:$G39,1,aux!$AL$1),"n.d.") -> -0.4348513011 | AA39: =O39-INDEX($K39:$O39,1,aux!$AL$1) -> 1.949 | AB39: -0.0008323333091 | AC39: 4.597333174e-05 | AD39: =+IF(INDEX($K39:$O39,1,aux!$AL$1)>0,(O39/INDEX($K39:$O39,1,aux!$AL$1))^(1/($O$3-INDEX($K$3:$O$3,1,aux!$AL$1)))-1,"n.d.") -> n.d. | AE39: =IF(INDEX($K39:$O39,1,aux!$AL$1)>0,(O39-INDEX($K39:$O39,1,aux!$AL$1))/INDEX($K39:$O39,1,aux!$AL$1),"n.d.") -> n.d.
A40: 16p | B40: Preparações e conservas de peixes ou crustáceos (NC 1604-05) (p) | C40: 139.205 | D40: 107.951 | E40: 80.943 | F40: 158.134 | G40: 204.047 | H40: 138.056 | I40: 0.0261260728 | J40: 0.001167090168 | K40: 3134.667 | L40: 80.668 | M40: 558.587 | N40: 2456.504 | O40: 965.827 | P40: 1439.2506 | Q40: 0.7194387495 | R40: 0.02249635205 | S40: 1301.1946 | U40: =G40-INDEX($C40:$G40,1,aux!$AL$1) -> 64.842 | V40: 0.01284193265 | W40: 0.002499011834 | X40: =+IF(INDEX($C40:$G40,1,aux!$AL$1)>0,(G40/INDEX($C40:$G40,1,aux!$AL$1))^(1/($G$3-INDEX($C$3:$G$3,1,aux!$AL$1)))-1,"n.d.") -> 0.1003195891 | Y40: =IF(INDEX($C40:$G40,1,aux!$AL$1)>0,(G40-INDEX($C40:$G40,1,aux!$AL$1))/INDEX($C40:$G40,1,aux!$AL$1),"n.d.") -> 0.4658022341 | AA40: =O40-INDEX($K40:$O40,1,aux!$AL$1) -> -2168.84 | AB40: 0.9262174316 | AC40: -0.05115895373 | AD40: =+IF(INDEX($K40:$O40,1,aux!$AL$1)>0,(O40/INDEX($K40:$O40,1,aux!$AL$1))^(1/($O$3-INDEX($K$3:$O$3,1,aux!$AL$1)))-1,"n.d.") -> -0.254964473 | AE40: =IF(INDEX($K40:$O40,1,aux!$AL$1)>0,(O40-INDEX($K40:$O40,1,aux!$AL$1))/INDEX($K40:$O40,1,aux!$AL$1),"n.d.") -> -0.6918884845
A41: 19p | B41: Massas recheadas com pescado (NC 19022010) (p) | C41: 0 | D41: 0 | E41: 0 | F41: 0 | G41: 0 | H41: 0 | I41: 0 | J41: 0 | K41: 7.767 | L41: 0.36 | M41: 0 | N41: 0.28 | O41: 0.267 | P41: 1.7348 | Q41: 0.0008671751415 | R41: 2.711596684e-05 | S41: 1.7348 | U41: =G41-INDEX($C41:$G41,1,aux!$AL$1) -> 0 | V41: 0 | W41: 0 | X41: =+IF(INDEX($C41:$G41,1,aux!$AL$1)>0,(G41/INDEX($C41:$G41,1,aux!$AL$1))^(1/($G$3-INDEX($C$3:$G$3,1,aux!$AL$1)))-1,"n.d.") -> n.d. | Y41: =IF(INDEX($C41:$G41,1,aux!$AL$1)>0,(G41-INDEX($C41:$G41,1,aux!$AL$1))/INDEX($C41:$G41,1,aux!$AL$1),"n.d.") -> n.d. | AA41: =O41-INDEX($K41:$O41,1,aux!$AL$1) -> -7.5 | AB41: 0.003202924484 | AC41: -0.0001769112304 | AD41: =+IF(INDEX($K41:$O41,1,aux!$AL$1)>0,(O41/INDEX($K41:$O41,1,aux!$AL$1))^(1/($O$3-INDEX($K$3:$O$3,1,aux!$AL$1)))-1,"n.d.") -> -0.5694094552 | AE41: =IF(INDEX($K41:$O41,1,aux!$AL$1)>0,(O41-INDEX($K41:$O41,1,aux!$AL$1))/INDEX($K41:$O41,1,aux!$AL$1),"n.d.") -> -0.965623793
A42: 23p | B42: Farinhas de pescado (NC 230120) (p) | C42: 0 | D42: 0 | E42: 0 | F42: 0 | G42: 0 | H42: 0 | I42: 0 | J42: 0 | K42: 97.359 | L42: 0 | M42: 0 | N42: 0 | O42: 0 | P42: 19.4718 | Q42: 0.009733376136 | R42: 0.000304355939 | S42: 19.4718 | U42: =G42-INDEX($C42:$G42,1,aux!$AL$1) -> 0 | V42: 0 | W42: 0 | X42: =+IF(INDEX($C42:$G42,1,aux!$AL$1)>0,(G42/INDEX($C42:$G42,1,aux!$AL$1))^(1/($G$3-INDEX($C$3:$G$3,1,aux!$AL$1)))-1,"n.d.") -> n.d. | Y42: =IF(INDEX($C42:$G42,1,aux!$AL$1)>0,(G42-INDEX($C42:$G42,1,aux!$AL$1))/INDEX($C42:$G42,1,aux!$AL$1),"n.d.") -> n.d. | AA42: =O42-INDEX($K42:$O42,1,aux!$AL$1) -> -97.359 | AB42: 0.04157780331 | AC42: -0.002296520064 | AD42: =+IF(INDEX($K42:$O42,1,aux!$AL$1)>0,(O42/INDEX($K42:$O42,1,aux!$AL$1))^(1/($O$3-INDEX($K$3:$O$3,1,aux!$AL$1)))-1,"n.d.") -> -1 | AE42: =IF(INDEX($K42:$O42,1,aux!$AL$1)>0,(O42-INDEX($K42:$O42,1,aux!$AL$1))/INDEX($K42:$O42,1,aux!$AL$1),"n.d.") -> -1
A43: 25 | B43: Sal e cloreto de sódio puro; água do mar (NC 2501) | C43: 41.659 | D43: 70.692 | E43: 98.073 | F43: 2.6 | G43: 50.558 | H43: 52.7164 | I43: 0.009976187228 | J43: 0.0004456509832 | K43: 0.215 | L43: 0.12 | M43: 18.645 | N43: 1.973 | O43: 3.436 | P43: 4.8778 | Q43: 0.002438267757 | R43: 7.624294618e-05 | S43: -47.8386 | U43: =G43-INDEX($C43:$G43,1,aux!$AL$1) -> 8.899 | V43: 0.001762443457 | W43: 0.0003429676184 | X43: =+IF(INDEX($C43:$G43,1,aux!$AL$1)>0,(G43/INDEX($C43:$G43,1,aux!$AL$1))^(1/($G$3-INDEX($C$3:$G$3,1,aux!$AL$1)))-1,"n.d.") -> 0.04959139425 | Y43: =IF(INDEX($C43:$G43,1,aux!$AL$1)>0,(G43-INDEX($C43:$G43,1,aux!$AL$1))/INDEX($C43:$G43,1,aux!$AL$1),"n.d.") -> 0.2136153052 | AA43: =O43-INDEX($K43:$O43,1,aux!$AL$1) -> 3.221 | AB43: -0.001375549302 | AC43: 7.597747642e-05 | AD43: =+IF(INDEX($K43:$O43,1,aux!$AL$1)>0,(O43/INDEX($K43:$O43,1,aux!$AL$1))^(1/($O$3-INDEX($K$3:$O$3,1,aux!$AL$1)))-1,"n.d.") -> 0.999418351 | AE43: =IF(INDEX($K43:$O43,1,aux!$AL$1)>0,(O43-INDEX($K43:$O43,1,aux!$AL$1))/INDEX($K43:$O43,1,aux!$AL$1),"n.d.") -> 14.98139535
A44: Subtotal Mar | C44: 3798.502 | D44: 4156.885 | E44: 3170.508 | F44: 6447.479 | G44: 8847.742 | H44: 5284.2232 | I44: 1 | J44: 0.04467147348 | K44: 3882.246 | L44: 432.255 | M44: 1107.18 | N44: 3040.276 | O44: 1540.636 | P44: 2000.5186 | Q44: 1 | R44: 0.03126930829 | S44: -3283.7046 | U44: =G44-INDEX($C44:$G44,1,aux!$AL$1) -> 5049.24 | V44: 1 | W44: 0.1945977995 | X44: =+IF(INDEX($C44:$G44,1,aux!$AL$1)>0,(G44/INDEX($C44:$G44,1,aux!$AL$1))^(1/($G$3-INDEX($C$3:$G$3,1,aux!$AL$1)))-1,"n.d.") -> 0.2353926771 | Y44: =IF(INDEX($C44:$G44,1,aux!$AL$1)>0,(G44-INDEX($C44:$G44,1,aux!$AL$1))/INDEX($C44:$G44,1,aux!$AL$1),"n.d.") -> 1.329271381 | AA44: =O44-INDEX($K44:$O44,1,aux!$AL$1) -> -2341.61 | AB44: 1 | AC44: -0.05523428083 | AD44: =+IF(INDEX($K44:$O44,1,aux!$AL$1)>0,(O44/INDEX($K44:$O44,1,aux!$AL$1))^(1/($O$3-INDEX($K$3:$O$3,1,aux!$AL$1)))-1,"n.d.") -> -0.2063038975 | AE44: =IF(INDEX($K44:$O44,1,aux!$AL$1)>0,(O44-INDEX($K44:$O44,1,aux!$AL$1))/INDEX($K44:$O44,1,aux!$AL$1),"n.d.") -> -0.603158584
A45: 13f | B45: Gomas e resinas (NC 1301) (f) | C45: 0 | D45: 0 | E45: 0 | F45: 0 | G45: 2.359 | H45: 0.4718 | I45: 0.0001737515538 | J45: 3.988476714e-06 | K45: 5.372 | L45: 0 | M45: 0 | N45: 0 | O45: 0.062 | P45: 1.0868 | Q45: 3.08800359e-05 | R45: 1.698733731e-05 | S45: 0.615 | U45: =G45-INDEX($C45:$G45,1,aux!$AL$1) -> 2.359 | V45: =IF($U$52<>0,U45/$U$52, "n.d.") -> 0.0005772029075 | W45: 9.091590198e-05 | X45: =+IF(INDEX($C45:$G45,1,aux!$AL$1)>0,(G45/INDEX($C45:$G45,1,aux!$AL$1))^(1/($G$3-INDEX($C$3:$G$3,1,aux!$AL$1)))-1,"n.d.") -> n.d. | Y45: =IF(INDEX($C45:$G45,1,aux!$AL$1)>0,(G45-INDEX($C45:$G45,1,aux!$AL$1))/INDEX($C45:$G45,1,aux!$AL$1),"n.d.") -> n.d. | AA45: =O45-INDEX($K45:$O45,1,aux!$AL$1) -> -5.31 | AB45: =IF($AA$52<>0,AA45/$AA$52, "n.d.") -> -0.0001550047396 | AC45: -0.0001252531511 | AD45: =+IF(INDEX($K45:$O45,1,aux!$AL$1)>0,(O45/INDEX($K45:$O45,1,aux!$AL$1))^(1/($O$3-INDEX($K$3:$O$3,1,aux!$AL$1)))-1,"n.d.") -> -0.6722339847 | AE45: =IF(INDEX($K45:$O45,1,aux!$AL$1)>0,(O45-INDEX($K45:$O45,1,aux!$AL$1))/INDEX($K45:$O45,1,aux!$AL$1),"n.d.") -> -0.9884586746
A46: 38f | B46: Tall oil, essências e colofónias (NC 3803,3805,3806) (f) | C46: 460.17 | D46: 575.067 | E46: 0 | F46: 260.786 | G46: 2599.413 | H46: 779.0872 | I46: 0.2869173624 | J46: 0.00658620423 | K46: 2176.908 | L46: 2553.216 | M46: 2226.188 | N46: 3241.787 | O46: 4998.156 | P46: 3039.251 | Q46: 0.08635644092 | R46: 0.04750532011 | S46: 2260.1638 | U46: =G46-INDEX($C46:$G46,1,aux!$AL$1) -> 2139.243 | V46: 0.5234325051 | W46: 0.08244646329 | X46: =+IF(INDEX($C46:$G46,1,aux!$AL$1)>0,(G46/INDEX($C46:$G46,1,aux!$AL$1))^(1/($G$3-INDEX($C$3:$G$3,1,aux!$AL$1)))-1,"n.d.") -> 0.5416622782 | Y46: =IF(INDEX($C46:$G46,1,aux!$AL$1)>0,(G46-INDEX($C46:$G46,1,aux!$AL$1))/INDEX($C46:$G46,1,aux!$AL$1),"n.d.") -> 4.648810222 | AA46: =O46-INDEX($K46:$O46,1,aux!$AL$1) -> 2821.248 | AB46: 0.08235533176 | AC46: 0.06654806066 | AD46: =+IF(INDEX($K46:$O46,1,aux!$AL$1)>0,(O46/INDEX($K46:$O46,1,aux!$AL$1))^(1/($O$3-INDEX($K$3:$O$3,1,aux!$AL$1)))-1,"n.d.") -> 0.2309557261 | AE46: =IF(INDEX($K46:$O46,1,aux!$AL$1)>0,(O46-INDEX($K46:$O46,1,aux!$AL$1))/INDEX($K46:$O46,1,aux!$AL$1),"n.d.") -> 1.295988622
A47: 44 | B47: Madeira e suas obras | C47: 197.133 | D47: 1010.221 | E47: 1036.942 | F47: 883.318 | G47: 1449.589 | H47: 915.4406 | I47: 0.3371327399 | J47: 0.007738901052 | K47: 7488.656 | L47: 17880.163 | M47: 17004.874 | N47: 20422.398 | O47: 28184.452 | P47: 18196.1086 | Q47: 0.5170192187 | R47: 0.2844161156 | S47: 17280.668 | U47: =G47-INDEX($C47:$G47,1,aux!$AL$1) -> 1252.456 | V47: 0.306452414 | W47: 0.04826967653 | X47: =+IF(INDEX($C47:$G47,1,aux!$AL$1)>0,(G47/INDEX($C47:$G47,1,aux!$AL$1))^(1/($G$3-INDEX($C$3:$G$3,1,aux!$AL$1)))-1,"n.d.") -> 0.6467261737 | Y47: =IF(INDEX($C47:$G47,1,aux!$AL$1)>0,(G47-INDEX($C47:$G47,1,aux!$AL$1))/INDEX($C47:$G47,1,aux!$AL$1),"n.d.") -> 6.353355349 | AA47: =O47-INDEX($K47:$O47,1,aux!$AL$1) -> 20695.796 | AB47: 0.6041330452 | AC47: 0.4881758313 | AD47: =+IF(INDEX($K47:$O47,1,aux!$AL$1)>0,(O47/INDEX($K47:$O47,1,aux!$AL$1))^(1/($O$3-INDEX($K$3:$O$3,1,aux!$AL$1)))-1,"n.d.") -> 0.3928406349 | AE47: =IF(INDEX($K47:$O47,1,aux!$AL$1)>0,(O47-INDEX($K47:$O47,1,aux!$AL$1))/INDEX($K47:$O47,1,aux!$AL$1),"n.d.") -> 2.763619533
A48: 45 | B48: Cortiça e suas obras | C48: 113.563 | D48: 0 | E48: 89.375 | F48: 258.281 | G48: 0.64 | H48: 92.3718 | I48: 0.0340181089 | J48: 0.0007808876078 | K48: 2649.1 | L48: 3177.314 | M48: 2647.506 | N48: 3319.711 | O48: 4304.421 | P48: 3219.6104 | Q48: 0.09148112325 | R48: 0.05032444595 | S48: 3127.2386 | U48: =G48-INDEX($C48:$G48,1,aux!$AL$1) -> -112.923 | V48: -0.02763013307 | W48: -0.00435205443 | X48: =+IF(INDEX($C48:$G48,1,aux!$AL$1)>0,(G48/INDEX($C48:$G48,1,aux!$AL$1))^(1/($G$3-INDEX($C$3:$G$3,1,aux!$AL$1)))-1,"n.d.") -> -0.7260093269 | Y48: =IF(INDEX($C48:$G48,1,aux!$AL$1)>0,(G48-INDEX($C48:$G48,1,aux!$AL$1))/INDEX($C48:$G48,1,aux!$AL$1),"n.d.") -> -0.9943643616 | AA48: =O48-INDEX($K48:$O48,1,aux!$AL$1) -> 1655.321 | AB48: 0.04832064041 | AC48: 0.03904598331 | AD48: =+IF(INDEX($K48:$O48,1,aux!$AL$1)>0,(O48/INDEX($K48:$O48,1,aux!$AL$1))^(1/($O$3-INDEX($K$3:$O$3,1,aux!$AL$1)))-1,"n.d.") -> 0.1290264002 | AE48: =IF(INDEX($K48:$O48,1,aux!$AL$1)>0,(O48-INDEX($K48:$O48,1,aux!$AL$1))/INDEX($K48:$O48,1,aux!$AL$1),"n.d.") -> 0.6248616511
A49: 46 | B49: Obras de espartaria ou de cestaria | C49: 0 | D49: 0.748 | E49: 2.543 | F49: 2.779 | G49: 0.475 | H49: 1.309 | I49: 0.0004820703348 | J49: 1.106595171e-05 | K49: 0 | L49: 0.005 | M49: 0 | N49: 0 | O49: 0 | P49: 0.001 | Q49: 2.841372461e-08 | R49: 1.563060113e-08 | S49: -1.308 | U49: =G49-INDEX($C49:$G49,1,aux!$AL$1) -> 0.475 | V49: 0.0001162235613 | W49: 1.830650845e-05 | X49: =+IF(INDEX($C49:$G49,1,aux!$AL$1)>0,(G49/INDEX($C49:$G49,1,aux!$AL$1))^(1/($G$3-INDEX($C$3:$G$3,1,aux!$AL$1)))-1,"n.d.") -> n.d. | Y49: =IF(INDEX($C49:$G49,1,aux!$AL$1)>0,(G49-INDEX($C49:$G49,1,aux!$AL$1))/INDEX($C49:$G49,1,aux!$AL$1),"n.d.") -> n.d. | AA49: =O49-INDEX($K49:$O49,1,aux!$AL$1) -> 0 | AB49: 0 | AC49: 0 | AD49: =+IF(INDEX($K49:$O49,1,aux!$AL$1)>0,(O49/INDEX($K49:$O49,1,aux!$AL$1))^(1/($O$3-INDEX($K$3:$O$3,1,aux!$AL$1)))-1,"n.d.") -> n.d. | AE49: =IF(INDEX($K49:$O49,1,aux!$AL$1)>0,(O49-INDEX($K49:$O49,1,aux!$AL$1))/INDEX($K49:$O49,1,aux!$AL$1),"n.d.") -> n.d.
A50: 47 | B50: Pastas de madeira | C50: 0 | D50: 0 | E50: 0 | F50: 0 | G50: 0 | H50: 0 | I50: 0 | J50: 0 | K50: 167.83 | L50: 4.273 | M50: 4.183 | N50: 0.281 | O50: 0.249 | P50: 35.3632 | Q50: 0.001004800226 | R50: 0.0005527480738 | S50: 35.3632 | U50: =G50-INDEX($C50:$G50,1,aux!$AL$1) -> 0 | V50: 0 | W50: 0 | X50: =+IF(INDEX($C50:$G50,1,aux!$AL$1)>0,(G50/INDEX($C50:$G50,1,aux!$AL$1))^(1/($G$3-INDEX($C$3:$G$3,1,aux!$AL$1)))-1,"n.d.") -> n.d. | Y50: =IF(INDEX($C50:$G50,1,aux!$AL$1)>0,(G50-INDEX($C50:$G50,1,aux!$AL$1))/INDEX($C50:$G50,1,aux!$AL$1),"n.d.") -> n.d. | AA50: =O50-INDEX($K50:$O50,1,aux!$AL$1) -> -167.581 | AB50: -0.004891873685 | AC50: -0.00395292812 | AD50: =+IF(INDEX($K50:$O50,1,aux!$AL$1)>0,(O50/INDEX($K50:$O50,1,aux!$AL$1))^(1/($O$3-INDEX($K$3:$O$3,1,aux!$AL$1)))-1,"n.d.") -> -0.8037397091 | AE50: =IF(INDEX($K50:$O50,1,aux!$AL$1)>0,(O50-INDEX($K50:$O50,1,aux!$AL$1))/INDEX($K50:$O50,1,aux!$AL$1),"n.d.") -> -0.9985163558
A51: 48 | B51: Papel e cartão | C51: 542.151 | D51: 1686.308 | E51: 524.993 | F51: 532.511 | G51: 1347.492 | H51: 926.691 | I51: 0.3412759669 | J51: 0.007834009061 | K51: 7720.14 | L51: 8938.461 | M51: 9828.07 | N51: 10049.839 | O51: 16977.683 | P51: 10702.8386 | Q51: 0.3041075085 | R51: 0.1672918011 | S51: 9776.1476 | U51: =G51-INDEX($C51:$G51,1,aux!$AL$1) -> 805.341 | V51: 0.1970517875 | W51: 0.03103785647 | X51: =+IF(INDEX($C51:$G51,1,aux!$AL$1)>0,(G51/INDEX($C51:$G51,1,aux!$AL$1))^(1/($G$3-INDEX($C$3:$G$3,1,aux!$AL$1)))-1,"n.d.") -> 0.255600509 | Y51: =IF(INDEX($C51:$G51,1,aux!$AL$1)>0,(G51-INDEX($C51:$G51,1,aux!$AL$1))/INDEX($C51:$G51,1,aux!$AL$1),"n.d.") -> 1.485455159 | AA51: =O51-INDEX($K51:$O51,1,aux!$AL$1) -> 9257.543 | AB51: 0.270237861 | AC51: 0.218368443 | AD51: =+IF(INDEX($K51:$O51,1,aux!$AL$1)>0,(O51/INDEX($K51:$O51,1,aux!$AL$1))^(1/($O$3-INDEX($K$3:$O$3,1,aux!$AL$1)))-1,"n.d.") -> 0.2177645046 | AE51: =IF(INDEX($K51:$O51,1,aux!$AL$1)>0,(O51-INDEX($K51:$O51,1,aux!$AL$1))/INDEX($K51:$O51,1,aux!$AL$1),"n.d.") -> 1.199141855
A52: Subtotal Florestas | C52: 1313.017 | D52: 3272.344 | E52: 1653.853 | F52: 1937.675 | G52: 5399.968 | H52: 2715.3714 | I52: 1 | J52: 0.02295505638 | K52: 20208.006 | L52: 32553.432 | M52: 31710.821 | N52: 37034.016 | O52: 54465.023 | P52: 35194.2596 | Q52: 1 | R52: 0.5501074338 | S52: 32478.8882 | U52: =G52-INDEX($C52:$G52,1,aux!$AL$1) -> 4086.951 | V52: 1 | W52: 0.1575111643 | X52: =+IF(INDEX($C52:$G52,1,aux!$AL$1)>0,(G52/INDEX($C52:$G52,1,aux!$AL$1))^(1/($G$3-INDEX($C$3:$G$3,1,aux!$AL$1)))-1,"n.d.") -> 0.4240663005 | Y52: =IF(INDEX($C52:$G52,1,aux!$AL$1)>0,(G52-INDEX($C52:$G52,1,aux!$AL$1))/INDEX($C52:$G52,1,aux!$AL$1),"n.d.") -> 3.112641344 | AA52: =O52-INDEX($K52:$O52,1,aux!$AL$1) -> 34257.017 | AB52: 1 | AC52: 0.808060137 | AD52: =+IF(INDEX($K52:$O52,1,aux!$AL$1)>0,(O52/INDEX($K52:$O52,1,aux!$AL$1))^(1/($O$3-INDEX($K$3:$O$3,1,aux!$AL$1)))-1,"n.d.") -> 0.2812933062 | AE52: =IF(INDEX($K52:$O52,1,aux!$AL$1)>0,(O52-INDEX($K52:$O52,1,aux!$AL$1))/INDEX($K52:$O52,1,aux!$AL$1),"n.d.") -> 1.695220053
B53: TOTAL | C53: 112951.183 | D53: 122044.02 | E53: 103952.904 | F53: 113607.527 | G53: 138898.239 | H53: 118290.7746 | J53: 1 | K53: 46585.167 | L53: 56371.221 | M53: 59472.386 | N53: 68477.246 | O53: 88979.31 | P53: 63977.066 | R53: 1 | S53: -54313.7086 | U53: =G53-INDEX($C53:$G53,1,aux!$AL$1) -> 25947.056 | W53: 1 | X53: =+IF(INDEX($C53:$G53,1,aux!$AL$1)>0,(G53/INDEX($C53:$G53,1,aux!$AL$1))^(1/($G$3-INDEX($C$3:$G$3,1,aux!$AL$1)))-1,"n.d.") -> 0.0530560533 | Y53: =IF(INDEX($C53:$G53,1,aux!$AL$1)>0,(G53-INDEX($C53:$G53,1,aux!$AL$1))/INDEX($C53:$G53,1,aux!$AL$1),"n.d.") -> 0.2297192053 | AA53: =O53-INDEX($K53:$O53,1,aux!$AL$1) -> 42394.143 | AC53: 1 | AD53: =+IF(INDEX($K53:$O53,1,aux!$AL$1)>0,(O53/INDEX($K53:$O53,1,aux!$AL$1))^(1/($O$3-INDEX($K$3:$O$3,1,aux!$AL$1)))-1,"n.d.") -> 0.1756020758 | AE53: =IF(INDEX($K53:$O53,1,aux!$AL$1)>0,(O53-INDEX($K53:$O53,1,aux!$AL$1))/INDEX($K53:$O53,1,aux!$AL$1),"n.d.") -> 0.9100352264
B54: a - agrícola e agroalimentar; p - pescas; f - florestas
A55: Fonte: GPP a partir de dados INE/Comércio Internacional (2021 provisórios; 2022 preliminares) | S55: 2023-04-27T17:41:12.820

Sheet 5.2_var
A1: ="Principais contributos por produto para a variação das trocas comerciais PT-Irlanda_x000D_ no período " & INDEX('5.2'!K3:N3,1,aux!AL1) & "-2022 (NC 2 dígitos - milhares de euros) Produtos agrícolas e agroalimentares, do mar e da floresta" -> Principais contributos por produto para a variação das trocas comerciais PT-Irlanda no período 2018-2022 (NC 2 dígitos - milhares de euros) Produtos agrícolas e agroalimentares, do mar e da floresta
E5: aumento das importações | J5: aumento das exportações
E17: redução das importações | J17: redução das exportações
A28: Fonte: GPP a partir de dados INE/Comércio Internacional (2021 provisórios; 2022 preliminares) | F28: a - agrícola e agroalimentar; p - mar; f - florestas | H28: =#REF! -> 
A29: Cód. NC | B29: Descritivo | C29: ="Variação das Importações " & INDEX('5.2'!K3:N3,1,aux!AL1) & "-"& '5.2'!O3 &"" -> Variação das Importações 2018-2022 | F29: Cód. NC | G29: Descritivo | H29: ="Variação das Exportações " & INDEX('5.2'!K3:N3,1,aux!AL1) & "-"& '5.2'!O3 &"" -> Variação das Exportações 2018-2022
C30: variação total em valor | D30: % do aumento/ redução total | H30: variação total em valor | I30: % do aumento/ redução total
A31: =IF(C31>0,aux!AU6,"") -> 02 | B31: =IF(C31>0,aux!AV6,"") -> Carnes e miudezas | C31: =IF(aux!AW6>0,aux!AW6,0) -> 17451.689 | D31: =IF(SUM($C$31:$C$41)<>0,C31/SUM($C$31:$C$41),0) -> 0.4224691199 | F31: =IF(H31>0,aux!AZ6,"") -> 44 | G31: =IF(H31>0,aux!BA6,"") -> Madeira e suas obras | H31: =IF(aux!BB6>0,aux!BB6,0) -> 20695.796 | I31: =IF(SUM($H$31:$H$41)<>0,H31/SUM($H$31:$H$41),0) -> 0.4330151622
A32: =IF(C32>0,aux!AU7,"") -> 03 | B32: =IF(C32>0,aux!AV7,"") -> Peixes e crustáceos | C32: =IF(aux!AW7>0,aux!AW7,0) -> 4984.857 | D32: =IF(SUM($C$31:$C$41)<>0,C32/SUM($C$31:$C$41),0) -> 0.1206730277 | F32: =IF(H32>0,aux!AZ7,"") -> 48 | G32: =IF(H32>0,aux!BA7,"") -> Papel e cartão | H32: =IF(aux!BB7>0,aux!BB7,0) -> 9257.543 | I32: =IF(SUM($H$31:$H$41)<>0,H32/SUM($H$31:$H$41),0) -> 0.1936942403
A33: =IF(C33>0,aux!AU8,"") -> 22 | B33: =IF(C33>0,aux!AV8,"") -> Bebidas, líquidos alcoólicos e vinagres | C33: =IF(aux!AW8>0,aux!AW8,0) -> 3654.539 | D33: 0.08846879376 | F33: =IF(H33>0,aux!AZ8,"") -> 21 | G33: =IF(H33>0,aux!BA8,"") -> Preparações alimentícias diversas | H33: =IF(aux!BB8>0,aux!BB8,0) -> 3293.559 | I33: 0.06891066112
A34: =IF(C34>0,aux!AU9,"") -> 04 | B34: =IF(C34>0,aux!AV9,"") -> Leite e laticínios; ovos; mel, etc. | C34: =IF(aux!AW9>0,aux!AW9,0) -> 3407.15 | D34: 0.08248002023 | F34: =IF(H34>0,aux!AZ9,"") -> 38f | G34: =IF(H34>0,aux!BA9,"") -> Tall oil, essências e colofónias (NC 3803,3805,3806) (f) | H34: =IF(aux!BB9>0,aux!BB9,0) -> 2821.248 | I34: 0.05902856602
A35: =IF(C35>0,aux!AU10,"") -> 21 | B35: =IF(C35>0,aux!AV10,"") -> Preparações alimentícias diversas | C35: =IF(aux!AW10>0,aux!AW10,0) -> 2422.137 | D35: 0.05863490271 | F35: =IF(H35>0,aux!AZ10,"") -> 22 | G35: =IF(H35>0,aux!BA10,"") -> Bebidas, líquidos alcoólicos e vinagres | H35: =IF(aux!BB10>0,aux!BB10,0) -> 2434.398 | I35: 0.05093455912
A36: =IF(C36>0,aux!AU11,"") -> 38f | B36: =IF(C36>0,aux!AV11,"") -> Tall oil, essências e colofónias (NC 3803,3805,3806) (f) | C36: =IF(aux!AW11>0,aux!AW11,0) -> 2139.243 | D36: 0.05178662692 | F36: =IF(H36>0,aux!AZ11,"") -> 23a | G36: =IF(H36>0,aux!BA11,"") -> Resíduos indústrias alimentares; alimentos p/ animais (exc. NC 230120) (a) | H36: =IF(aux!BB11>0,aux!BB11,0) -> 2429.588 | I36: 0.05083392018
A37: =IF(C37>0,aux!AU12,"") -> 33 | B37: =IF(C37>0,aux!AV12,"") -> Óleos essenciais e resinóides (NC 3301) | C37: =IF(aux!AW12>0,aux!AW12,0) -> 2003 | D37: 0.04848846706 | F37: =IF(H37>0,aux!AZ12,"") -> 45 | G37: =IF(H37>0,aux!BA12,"") -> Cortiça e suas obras | H37: =IF(aux!BB12>0,aux!BB12,0) -> 1655.321 | I37: 0.03463404314
A38: =IF(C38>0,aux!AU13,"") -> 19a | B38: =IF(C38>0,aux!AV13,"") -> Preparações à base de cereais (exc. NC 19022010) (a) | C38: =IF(aux!AW13>0,aux!AW13,0) -> 1732.893 | D38: 0.04194973796 | F38: =IF(H38>0,aux!AZ13,"") -> 20 | G38: =IF(H38>0,aux!BA13,"") -> Preparações de produtos vegetais | H38: =IF(aux!BB13>0,aux!BB13,0) -> 1179.527 | I38: 0.02467907373
A39: =IF(C39>0,aux!AU14,"") -> 44 | B39: =IF(C39>0,aux!AV14,"") -> Madeira e suas obras | C39: =IF(aux!AW14>0,aux!AW14,0) -> 1252.456 | D39: 0.03031935671 | F39: =IF(H39>0,aux!AZ14,"") -> 04 | G39: =IF(H39>0,aux!BA14,"") -> Leite e laticínios; ovos; mel, etc. | H39: =IF(aux!BB14>0,aux!BB14,0) -> 969.84 | I39: 0.02029182279
A40: =IF(C40>0,aux!AU15,"") -> 48 | B40: =IF(C40>0,aux!AV15,"") -> Papel e cartão | C40: =IF(aux!AW15>0,aux!AW15,0) -> 805.341 | D40: 0.01949563183 | F40: =IF(H40>0,aux!AZ15,"") -> 19a | G40: =IF(H40>0,aux!BA15,"") -> Preparações à base de cereais (exc. NC 19022010) (a) | H40: =IF(aux!BB15>0,aux!BB15,0) -> 932.674 | I40: 0.01951420392
B41: Outros contributos para o aumento das importações | C41: =SUMIF(aux!AW16:AW51,">0") -> 1455.487 | D41: 0.03523431525 | G41: Outros contributos para o aumento das exportações | H41: =SUMIF(aux!BB16:BB51,">0") -> 2125.128 | I41: 0.04446374741
B42: Outros contributos para a redução das importações | C42: =SUMIF(aux!AW6:AW41,"<0") -> 0 | D42: =IF(SUM($C$42:$C$52)<>0,C42/SUM($C$42:$C$52),0) -> 0 | G42: Outros contributos para a redução das exportações | H42: =SUMIF(aux!BB6:BB41,"<0") -> -12.928 | I42: =IF(SUM($H$42:$H$52)<>0,H42/SUM($H$42:$H$52),0) -> 0.00239386173
A43: =IF(C43<>0,aux!AU42,"") ->  | B43: =IF(C43<0,aux!AV42,"") ->  | C43: =IF(aux!AW42<0,aux!AW42,0) -> 0 | D43: =IF(SUM($C$42:$C$52)<>0,C43/SUM($C$42:$C$52),0) -> 0 | F43: =IF(H43<>0,aux!AZ42,"") -> 15 | G43: =IF(H43<>0,aux!BA42,"") -> Gorduras e óleos animais ou vegetais | H43: =IF(aux!BB42<0,aux!BB42,0) -> -31.136 | I43: =IF(SUM($H$42:$H$52)<>0,H43/SUM($H$42:$H$52),0) -> 0.005765414512
A44: =IF(C44<>0,aux!AU43,"") ->  | B44: =IF(C44<0,aux!AV43,"") ->  | C44: =IF(aux!AW43<0,aux!AW43,0) -> 0 | D44: 0 | F44: =IF(H44<>0,aux!AZ43,"") -> 18 | G44: =IF(H44<>0,aux!BA43,"") -> Cacau e suas preparações | H44: =IF(aux!BB43<0,aux!BB43,0) -> -38.372 | I44: 0.00710529566
A45: =IF(C45<>0,aux!AU44,"") -> 05a | B45: =IF(C45<0,aux!AV44,"") -> Outros produtos de origem animal (exc. NC 0508, 051191) (a) | C45: =IF(aux!AW44<0,aux!AW44,0) -> -5.458 | D45: 0.0003552983855 | F45: =IF(H45<>0,aux!AZ44,"") -> 03 | G45: =IF(H45<>0,aux!BA44,"") -> Peixes e crustáceos | H45: =IF(aux!BB44<0,aux!BB44,0) -> -73.081 | I45: 0.01353231815
A46: =IF(C46<>0,aux!AU45,"") -> 05p | B46: =IF(C46<0,aux!AV45,"") -> Outros produtos de pescado (NC 0508, 051191) (p) | C46: =IF(aux!AW45<0,aux!AW45,0) -> -9.358 | D46: 0.0006091759421 | F46: =IF(H46<>0,aux!AZ45,"") -> 23p | G46: =IF(H46<>0,aux!BA45,"") -> Farinhas de pescado (NC 230120) (p) | H46: =IF(aux!BB45<0,aux!BB45,0) -> -97.359 | I46: 0.01802784531
A47: =IF(C47<>0,aux!AU46,"") -> 08 | B47: =IF(C47<0,aux!AV46,"") -> Frutas | C47: =IF(aux!AW46<0,aux!AW46,0) -> -10.7 | D47: 0.0006965358603 | F47: =IF(H47<>0,aux!AZ46,"") -> 06 | G47: =IF(H47<>0,aux!BA46,"") -> Plantas vivas e produtos de floricultura | H47: =IF(aux!BB46<0,aux!BB46,0) -> -101.22 | I47: 0.01874278189
A48: =IF(C48<>0,aux!AU47,"") -> 45 | B48: =IF(C48<0,aux!AV47,"") -> Cortiça e suas obras | C48: =IF(aux!AW47<0,aux!AW47,0) -> -112.923 | D48: 0.007350927005 | F48: =IF(H48<>0,aux!AZ47,"") -> 47 | G48: =IF(H48<>0,aux!BA47,"") -> Pastas de madeira | H48: =IF(aux!BB47<0,aux!BB47,0) -> -167.581 | I48: 0.03103076597
A49: =IF(C49<>0,aux!AU48,"") -> 41 | B49: =IF(C49<0,aux!AV48,"") -> Couro e peles em bruto (NC 4101 a 4103) | C49: =IF(aux!AW48<0,aux!AW48,0) -> -189.051 | D49: 0.01230661691 | F49: =IF(H49<>0,aux!AZ48,"") -> 33 | G49: =IF(H49<>0,aux!BA48,"") -> Óleos essenciais e resinóides (NC 3301) | H49: =IF(aux!BB48<0,aux!BB48,0) -> -316.857 | I49: 0.0586720178
A50: =IF(C50<>0,aux!AU49,"") -> 16a | B50: =IF(C50<0,aux!AV49,"") -> Preparações de carnes (exc. NC 1604-05) (a) | C50: =IF(aux!AW49<0,aux!AW49,0) -> -217.816 | D50: 0.01417912663 | F50: =IF(H50<>0,aux!AZ49,"") -> 05a | G50: =IF(H50<>0,aux!BA49,"") -> Outros produtos de origem animal (exc. NC 0508, 051191) (a) | H50: =IF(aux!BB49<0,aux!BB49,0) -> -721.374 | I50: 0.1335759291
A51: =IF(C51<>0,aux!AU50,"") -> 23a | B51: =IF(C51<0,aux!AV50,"") -> Resíduos indústrias alimentares; alimentos p/ animais (exc. NC 230120) (a) | C51: =IF(aux!AW50<0,aux!AW50,0) -> -748.215 | D51: 0.04870640922 | F51: =IF(H51<>0,aux!AZ50,"") -> 12 | G51: =IF(H51<>0,aux!BA50,"") -> Sementes e frutos oleaginosos | H51: =IF(aux!BB50<0,aux!BB50,0) -> -1671.731 | I51: 0.3095523564
A52: =IF(C52<>0,aux!AU51,"") -> 20 | B52: =IF(C52<0,aux!AV51,"") -> Preparações de produtos vegetais | C52: =IF(aux!AW51<0,aux!AW51,0) -> -14068.215 | D52: 0.91579591 | F52: =IF(H52<>0,aux!AZ51,"") -> 16p | G52: =IF(H52<>0,aux!BA51,"") -> Preparações e conservas de peixes ou crustáceos (NC 1604-05) (p) | H52: =IF(aux!BB51<0,aux!BB51,0) -> -2168.84 | I52: 0.4016014135
A53: TOTAL | C53: =SUM(C31:C52) -> 25947.056 | F53: TOTAL | H53: =SUM(H31:H52) -> 42394.143

Sheet 5.2A
A1: Trocas comerciais Portugal-Irlanda 2018-2022 em milhares de euros (NC 4 dígitos) | G1: Produtos agrícolas e agroalimentares, do mar e da floresta
A2: Cód. NC | B2: Descritivo | C2: Importações | K2: Exportações | S2: Saldo quinquénio (exp-imp) | T2: Evolução das importações | U2: =+"Variação das Importações " & INDEX(K3:N3,1,aux!AL1) & "-"& '5.2'!O3 &"" -> Variação das Importações 2018-2022 | Z2: Evolução das exportações | AA2: ="Variação das Exportações " & INDEX(K3:N3,1,aux!AL1) & "-"& '5.2'!O3 &"" -> Variação das Exportações 2018-2022
C3: 2018 | D3: 2019 | E3: 2020 | F3: 2021 | G3: 2022 | H3: média quinquénio | I3: % Subtot | J3: % Total | K3: 2018 | L3: 2019 | M3: 2020 | N3: 2021 | O3: 2022 | P3: média quinquénio | Q3: % Subtot | R3: % Total | U3: variação total em valor | V3: % no subtotal de variação | W3: % no total de variação | X3: taxa de variação média anual | Y3: taxa de variação total | AA3: variação total em valor | AB3: % no subtotal de variação | AC3: % no total de variação | AD3: taxa de variação média anual | AE3: taxa de variação total | AX3: filtro
A4: 0101 | B4: Equídeos vivos | C4: 0 | D4: 0 | E4: 0 | F4: 0 | G4: 0 | H4: 0 | I4: 0 | J4: 0 | K4: 0 | L4: 0 | M4: 310.938 | N4: 0 | O4: 0 | P4: 62.1876 | Q4: 0.002321967431 | R4: 0.0009720295707 | S4: 62.1876 | U4: =G4-INDEX($C4:$G4,1,aux!$AL$1) -> 0 | V4: =IF($U$237<>0,U4/$U$237, "n.d.") -> 0 | W4: =IF($U$322<>0,U4/$U$322, "n.d.") -> 0 | X4: =+IF(INDEX($C4:$G4,1,aux!$AL$1)>0,(G4/INDEX($C4:$G4,1,aux!$AL$1))^(1/($G$3-INDEX($C$3:$G$3,1,aux!$AL$1)))-1,"n.d.") -> n.d. | Y4: =IF(INDEX($C4:$G4,1,aux!$AL$1)>0,(G4-INDEX($C4:$G4,1,aux!$AL$1))/INDEX($C4:$G4,1,aux!$AL$1),"n.d.") -> n.d. | AA4: =O4-INDEX($K4:$O4,1,aux!$AL$1) -> 0 | AB4: =IF($AA$237<>0,AA4/$AA$237, "n.d.") -> 0 | AC4: =IF($AA$322<>0,AA4/$AA$322, "n.d.") -> 0 | AD4: =+IF(INDEX($K4:$O4,1,aux!$AL$1)>0,(O4/INDEX($K4:$O4,1,aux!$AL$1))^(1/($O$3-INDEX($K$3:$O$3,1,aux!$AL$1)))-1,"n.d.") -> n.d. | AE4: =IF(INDEX($K4:$O4,1,aux!$AL$1)>0,(O4-INDEX($K4:$O4,1,aux!$AL$1))/INDEX($K4:$O4,1,aux!$AL$1),"n.d.") -> n.d. | AX4: =+LEFT(A4,2) -> 01
A5: 0102 | B5: Bovinos vivos | C5: 0 | D5: 0 | E5: 0 | F5: 241.158 | G5: 68.425 | H5: 61.9166 | I5: 0.0005613921258 | J5: 0.0005234271245 | K5: 0 | L5: 0 | M5: 0 | N5: 0 | O5: 0 | P5: 0 | Q5: 0 | R5: 0 | S5: -61.9166 | U5: =G5-INDEX($C5:$G5,1,aux!$AL$1) -> 68.425 | V5: 0.004070284307 | W5: 0.002637100718 | X5: =+IF(INDEX($C5:$G5,1,aux!$AL$1)>0,(G5/INDEX($C5:$G5,1,aux!$AL$1))^(1/($G$3-INDEX($C$3:$G$3,1,aux!$AL$1)))-1,"n.d.") -> n.d. | Y5: =IF(INDEX($C5:$G5,1,aux!$AL$1)>0,(G5-INDEX($C5:$G5,1,aux!$AL$1))/INDEX($C5:$G5,1,aux!$AL$1),"n.d.") -> n.d. | AA5: =O5-INDEX($K5:$O5,1,aux!$AL$1) -> 0 | AB5: 0 | AC5: 0 | AD5: =+IF(INDEX($K5:$O5,1,aux!$AL$1)>0,(O5/INDEX($K5:$O5,1,aux!$AL$1))^(1/($O$3-INDEX($K$3:$O$3,1,aux!$AL$1)))-1,"n.d.") -> n.d. | AE5: =IF(INDEX($K5:$O5,1,aux!$AL$1)>0,(O5-INDEX($K5:$O5,1,aux!$AL$1))/INDEX($K5:$O5,1,aux!$AL$1),"n.d.") -> n.d. | AX5: 01
A6: 0103 | B6: Suínos vivos | C6: 0 | D6: 0 | E6: 0 | F6: 0 | G6: 0 | H6: 0 | I6: 0 | J6: 0 | K6: 0 | L6: 0 | M6: 0 | N6: 0 | O6: 0 | P6: 0 | Q6: 0 | R6: 0 | S6: 0 | U6: =G6-INDEX($C6:$G6,1,aux!$AL$1) -> 0 | V6: 0 | W6: 0 | X6: =+IF(INDEX($C6:$G6,1,aux!$AL$1)>0,(G6/INDEX($C6:$G6,1,aux!$AL$1))^(1/($G$3-INDEX($C$3:$G$3,1,aux!$AL$1)))-1,"n.d.") -> n.d. | Y6: =IF(INDEX($C6:$G6,1,aux!$AL$1)>0,(G6-INDEX($C6:$G6,1,aux!$AL$1))/INDEX($C6:$G6,1,aux!$AL$1),"n.d.") -> n.d. | AA6: =O6-INDEX($K6:$O6,1,aux!$AL$1) -> 0 | AB6: 0 | AC6: 0 | AD6: =+IF(INDEX($K6:$O6,1,aux!$AL$1)>0,(O6/INDEX($K6:$O6,1,aux!$AL$1))^(1/($O$3-INDEX($K$3:$O$3,1,aux!$AL$1)))-1,"n.d.") -> n.d. | AE6: =IF(INDEX($K6:$O6,1,aux!$AL$1)>0,(O6-INDEX($K6:$O6,1,aux!$AL$1))/INDEX($K6:$O6,1,aux!$AL$1),"n.d.") -> n.d. | AX6: 01
A7: 0104 | B7: Ovinos ou caprinos vivos | C7: 0 | D7: 0 | E7: 0 | F7: 0 | G7: 0 | H7: 0 | I7: 0 | J7: 0 | K7: 0 | L7: 0 | M7: 0 | N7: 0 | O7: 0 | P7: 0 | Q7: 0 | R7: 0 | S7: 0 | U7: =G7-INDEX($C7:$G7,1,aux!$AL$1) -> 0 | V7: 0 | W7: 0 | X7: =+IF(INDEX($C7:$G7,1,aux!$AL$1)>0,(G7/INDEX($C7:$G7,1,aux!$AL$1))^(1/($G$3-INDEX($C$3:$G$3,1,aux!$AL$1)))-1,"n.d.") -> n.d. | Y7: =IF(INDEX($C7:$G7,1,aux!$AL$1)>0,(G7-INDEX($C7:$G7,1,aux!$AL$1))/INDEX($C7:$G7,1,aux!$AL$1),"n.d.") -> n.d. | AA7: =O7-INDEX($K7:$O7,1,aux!$AL$1) -> 0 | AB7: 0 | AC7: 0 | AD7: =+IF(INDEX($K7:$O7,1,aux!$AL$1)>0,(O7/INDEX($K7:$O7,1,aux!$AL$1))^(1/($O$3-INDEX($K$3:$O$3,1,aux!$AL$1)))-1,"n.d.") -> n.d. | AE7: =IF(INDEX($K7:$O7,1,aux!$AL$1)>0,(O7-INDEX($K7:$O7,1,aux!$AL$1))/INDEX($K7:$O7,1,aux!$AL$1),"n.d.") -> n.d. | AX7: 01
A8: 0105 | B8: Aves de capoeira vivas | C8: 0 | D8: 0 | E8: 0 | F8: 0 | G8: 0 | H8: 0 | I8: 0 | J8: 0 | K8: 0 | L8: 0 | M8: 0 | N8: 0 | O8: 0 | P8: 0 | Q8: 0 | R8: 0 | S8: 0 | U8: =G8-INDEX($C8:$G8,1,aux!$AL$1) -> 0 | V8: 0 | W8: 0 | X8: =+IF(INDEX($C8:$G8,1,aux!$AL$1)>0,(G8/INDEX($C8:$G8,1,aux!$AL$1))^(1/($G$3-INDEX($C$3:$G$3,1,aux!$AL$1)))-1,"n.d.") -> n.d. | Y8: =IF(INDEX($C8:$G8,1,aux!$AL$1)>0,(G8-INDEX($C8:$G8,1,aux!$AL$1))/INDEX($C8:$G8,1,aux!$AL$1),"n.d.") -> n.d. | AA8: =O8-INDEX($K8:$O8,1,aux!$AL$1) -> 0 | AB8: 0 | AC8: 0 | AD8: =+IF(INDEX($K8:$O8,1,aux!$AL$1)>0,(O8/INDEX($K8:$O8,1,aux!$AL$1))^(1/($O$3-INDEX($K$3:$O$3,1,aux!$AL$1)))-1,"n.d.") -> n.d. | AE8: =IF(INDEX($K8:$O8,1,aux!$AL$1)>0,(O8-INDEX($K8:$O8,1,aux!$AL$1))/INDEX($K8:$O8,1,aux!$AL$1),"n.d.") -> n.d. | AX8: 01
A9: 0106 | B9: Outros animais vivos | C9: 0 | D9: 0 | E9: 0 | F9: 4.208 | G9: 0 | H9: 0.8416 | I9: 7.630709908e-06 | J9: 7.114671477e-06 | K9: 0 | L9: 0 | M9: 0 | N9: 0 | O9: 0 | P9: 0 | Q9: 0 | R9: 0 | S9: -0.8416 | U9: =G9-INDEX($C9:$G9,1,aux!$AL$1) -> 0 | V9: 0 | W9: 0 | X9: =+IF(INDEX($C9:$G9,1,aux!$AL$1)>0,(G9/INDEX($C9:$G9,1,aux!$AL$1))^(1/($G$3-INDEX($C$3:$G$3,1,aux!$AL$1)))-1,"n.d.") -> n.d. | Y9: =IF(INDEX($C9:$G9,1,aux!$AL$1)>0,(G9-INDEX($C9:$G9,1,aux!$AL$1))/INDEX($C9:$G9,1,aux!$AL$1),"n.d.") -> n.d. | AA9: =O9-INDEX($K9:$O9,1,aux!$AL$1) -> 0 | AB9: 0 | AC9: 0 | AD9: =+IF(INDEX($K9:$O9,1,aux!$AL$1)>0,(O9/INDEX($K9:$O9,1,aux!$AL$1))^(1/($O$3-INDEX($K$3:$O$3,1,aux!$AL$1)))-1,"n.d.") -> n.d. | AE9: =IF(INDEX($K9:$O9,1,aux!$AL$1)>0,(O9-INDEX($K9:$O9,1,aux!$AL$1))/INDEX($K9:$O9,1,aux!$AL$1),"n.d.") -> n.d. | AX9: 01
A10: 01SS | B10: Animais vivos | C10: 0 | D10: 0 | E10: 0 | F10: 0 | G10: 0 | H10: 0 | I10: 0 | J10: 0 | K10: 0 | L10: 0 | M10: 0 | N10: 0 | O10: 0 | P10: 0 | Q10: 0 | R10: 0 | S10: 0 | U10: =G10-INDEX($C10:$G10,1,aux!$AL$1) -> 0 | V10: 0 | W10: 0 | X10: =+IF(INDEX($C10:$G10,1,aux!$AL$1)>0,(G10/INDEX($C10:$G10,1,aux!$AL$1))^(1/($G$3-INDEX($C$3:$G$3,1,aux!$AL$1)))-1,"n.d.") -> n.d. | Y10: =IF(INDEX($C10:$G10,1,aux!$AL$1)>0,(G10-INDEX($C10:$G10,1,aux!$AL$1))/INDEX($C10:$G10,1,aux!$AL$1),"n.d.") -> n.d. | AA10: =O10-INDEX($K10:$O10,1,aux!$AL$1) -> 0 | AB10: 0 | AC10: 0 | AD10: =+IF(INDEX($K10:$O10,1,aux!$AL$1)>0,(O10/INDEX($K10:$O10,1,aux!$AL$1))^(1/($O$3-INDEX($K$3:$O$3,1,aux!$AL$1)))-1,"n.d.") -> n.d. | AE10: =IF(INDEX($K10:$O10,1,aux!$AL$1)>0,(O10-INDEX($K10:$O10,1,aux!$AL$1))/INDEX($K10:$O10,1,aux!$AL$1),"n.d.") -> n.d. | AX10: 01
A11: 0201 | B11: Carnes de bovino, frescas ou refrigeradas | C11: 16193.202 | D11: 13688.197 | E11: 12771.606 | F11: 15148.17 | G11: 21043.952 | H11: 15769.0254 | I11: 0.1429763051 | J11: 0.1333073137 | K11: 0 | L11: 2.379 | M11: 3.118 | N11: 59.166 | O11: 6.405 | P11: 14.2136 | Q11: 0.0005307089561 | R11: 0.0002221671122 | S11: -15754.8118 | U11: =G11-INDEX($C11:$G11,1,aux!$AL$1) -> 4850.75 | V11: 0.2885485072 | W11: 0.1869479913 | X11: =+IF(INDEX($C11:$G11,1,aux!$AL$1)>0,(G11/INDEX($C11:$G11,1,aux!$AL$1))^(1/($G$3-INDEX($C$3:$G$3,1,aux!$AL$1)))-1,"n.d.") -> 0.06769852379 | Y11: =IF(INDEX($C11:$G11,1,aux!$AL$1)>0,(G11-INDEX($C11:$G11,1,aux!$AL$1))/INDEX($C11:$G11,1,aux!$AL$1),"n.d.") -> 0.2995547144 | AA11: =O11-INDEX($K11:$O11,1,aux!$AL$1) -> 6.405 | AB11: 0.000611237844 | AC11: 0.0001510821908 | AD11: =+IF(INDEX($K11:$O11,1,aux!$AL$1)>0,(O11/INDEX($K11:$O11,1,aux!$AL$1))^(1/($O$3-INDEX($K$3:$O$3,1,aux!$AL$1)))-1,"n.d.") -> n.d. | AE11: =IF(INDEX($K11:$O11,1,aux!$AL$1)>0,(O11-INDEX($K11:$O11,1,aux!$AL$1))/INDEX($K11:$O11,1,aux!$AL$1),"n.d.") -> n.d. | AX11: 02
A12: 0202 | B12: Carnes de bovino, congeladas | C12: 2809.231 | D12: 2746.532 | E12: 3749.459 | F12: 3318.475 | G12: 14463.604 | H12: 5417.4602 | I12: 0.0491196141 | J12: 0.04579782505 | K12: 0.056 | L12: 0 | M12: 0.296 | N12: 2.375 | O12: 25.373 | P12: 5.62 | Q12: 0.0002098401765 | R12: 8.784397834e-05 | S12: -5411.8402 | U12: =G12-INDEX($C12:$G12,1,aux!$AL$1) -> 11654.373 | V12: 0.6932643264 | W12: 0.4491597428 | X12: =+IF(INDEX($C12:$G12,1,aux!$AL$1)>0,(G12/INDEX($C12:$G12,1,aux!$AL$1))^(1/($G$3-INDEX($C$3:$G$3,1,aux!$AL$1)))-1,"n.d.") -> 0.5063374296 | Y12: =IF(INDEX($C12:$G12,1,aux!$AL$1)>0,(G12-INDEX($C12:$G12,1,aux!$AL$1))/INDEX($C12:$G12,1,aux!$AL$1),"n.d.") -> 4.148599029 | AA12: =O12-INDEX($K12:$O12,1,aux!$AL$1) -> 25.317 | AB12: 0.002416035675 | AC12: 0.0005971815493 | AD12: =+IF(INDEX($K12:$O12,1,aux!$AL$1)>0,(O12/INDEX($K12:$O12,1,aux!$AL$1))^(1/($O$3-INDEX($K$3:$O$3,1,aux!$AL$1)))-1,"n.d.") -> 3.613663843 | AE12: =IF(INDEX($K12:$O12,1,aux!$AL$1)>0,(O12-INDEX($K12:$O12,1,aux!$AL$1))/INDEX($K12:$O12,1,aux!$AL$1),"n.d.") -> 452.0892857 | AX12: 02
A13: 0203 | B13: Carnes de suíno | C13: 56.202 | D13: 26.932 | E13: 198.942 | F13: 162.356 | G13: 285.348 | H13: 145.956 | I13: 0.001323369648 | J13: 0.001233874751 | K13: 40.201 | L13: 8.91 | M13: 723.813 | N13: 208.586 | O13: 56.44 | P13: 207.59 | Q13: 0.007751018193 | R13: 0.003244756488 | S13: 61.634 | U13: =G13-INDEX($C13:$G13,1,aux!$AL$1) -> 229.146 | V13: 0.01363082744 | W13: 0.008831290918 | X13: =+IF(INDEX($C13:$G13,1,aux!$AL$1)>0,(G13/INDEX($C13:$G13,1,aux!$AL$1))^(1/($G$3-INDEX($C$3:$G$3,1,aux!$AL$1)))-1,"n.d.") -> 0.5010866605 | Y13: =IF(INDEX($C13:$G13,1,aux!$AL$1)>0,(G13-INDEX($C13:$G13,1,aux!$AL$1))/INDEX($C13:$G13,1,aux!$AL$1),"n.d.") -> 4.077185865 | AA13: =O13-INDEX($K13:$O13,1,aux!$AL$1) -> 16.239 | AB13: 0.001549709812 | AC13: 0.0003830481961 | AD13: =+IF(INDEX($K13:$O13,1,aux!$AL$1)>0,(O13/INDEX($K13:$O13,1,aux!$AL$1))^(1/($O$3-INDEX($K$3:$O$3,1,aux!$AL$1)))-1,"n.d.") -> 0.08852281772 | AE13: =IF(INDEX($K13:$O13,1,aux!$AL$1)>0,(O13-INDEX($K13:$O13,1,aux!$AL$1))/INDEX($K13:$O13,1,aux!$AL$1),"n.d.") -> 0.4039451755 | AX13: 02
A14: 0204 | B14: Carnes de ovino ou caprino | C14: 435.979 | D14: 1275.25 | E14: 2094.441 | F14: 626.285 | G14: 959.252 | H14: 1078.2414 | I14: 0.009776315749 | J14: 0.00911517744 | K14: 1.108 | L14: 0.072 | M14: 0.66 | N14: 0.675 | O14: 0.324 | P14: 0.5678 | Q14: 2.120057869e-05 | R14: 8.875055321e-06 | S14: -1077.6736 | U14: =G14-INDEX($C14:$G14,1,aux!$AL$1) -> 523.273 | V14: 0.03112707169 | W14: 0.02016695073 | X14: =+IF(INDEX($C14:$G14,1,aux!$AL$1)>0,(G14/INDEX($C14:$G14,1,aux!$AL$1))^(1/($G$3-INDEX($C$3:$G$3,1,aux!$AL$1)))-1,"n.d.") -> 0.2179144567 | Y14: =IF(INDEX($C14:$G14,1,aux!$AL$1)>0,(G14-INDEX($C14:$G14,1,aux!$AL$1))/INDEX($C14:$G14,1,aux!$AL$1),"n.d.") -> 1.20022524 | AA14: =O14-INDEX($K14:$O14,1,aux!$AL$1) -> -0.784 | AB14: -7.481818418e-05 | AC14: -1.849312062e-05 | AD14: =+IF(INDEX($K14:$O14,1,aux!$AL$1)>0,(O14/INDEX($K14:$O14,1,aux!$AL$1))^(1/($O$3-INDEX($K$3:$O$3,1,aux!$AL$1)))-1,"n.d.") -> -0.2646377822 | AE14: =IF(INDEX($K14:$O14,1,aux!$AL$1)>0,(O14-INDEX($K14:$O14,1,aux!$AL$1))/INDEX($K14:$O14,1,aux!$AL$1),"n.d.") -> -0.7075812274 | AX14: 02
A15: 0205 | B15: Carnes de equídeo | C15: 0 | D15: 0 | E15: 0 | F15: 0 | G15: 0 | H15: 0 | I15: 0 | J15: 0 | K15: 0 | L15: 0 | M15: 0 | N15: 0 | O15: 0 | P15: 0 | Q15: 0 | R15: 0 | S15: 0 | U15: =G15-INDEX($C15:$G15,1,aux!$AL$1) -> 0 | V15: 0 | W15: 0 | X15: =+IF(INDEX($C15:$G15,1,aux!$AL$1)>0,(G15/INDEX($C15:$G15,1,aux!$AL$1))^(1/($G$3-INDEX($C$3:$G$3,1,aux!$AL$1)))-1,"n.d.") -> n.d. | Y15: =IF(INDEX($C15:$G15,1,aux!$AL$1)>0,(G15-INDEX($C15:$G15,1,aux!$AL$1))/INDEX($C15:$G15,1,aux!$AL$1),"n.d.") -> n.d. | AA15: =O15-INDEX($K15:$O15,1,aux!$AL$1) -> 0 | AB15: 0 | AC15: 0 | AD15: =+IF(INDEX($K15:$O15,1,aux!$AL$1)>0,(O15/INDEX($K15:$O15,1,aux!$AL$1))^(1/($O$3-INDEX($K$3:$O$3,1,aux!$AL$1)))-1,"n.d.") -> n.d. | AE15: =IF(INDEX($K15:$O15,1,aux!$AL$1)>0,(O15-INDEX($K15:$O15,1,aux!$AL$1))/INDEX($K15:$O15,1,aux!$AL$1),"n.d.") -> n.d. | AX15: 02
A16: 0206 | B16: Miudezas de bovino, suíno, ovino, caprino,equídeo | C16: 3.254 | D16: 0.497 | E16: 0 | F16: 1.532 | G16: 0 | H16: 1.0566 | I16: 9.580095163e-06 | J16: 8.932226571e-06 | K16: 17.245 | L16: 0 | M16: 12.812 | N16: 0.579 | O16: 0.342 | P16: 6.1956 | Q16: 0.0002313319925 | R16: 9.684095235e-05 | S16: 5.139 | U16: =G16-INDEX($C16:$G16,1,aux!$AL$1) -> -3.254 | V16: -0.0001935652924 | W16: -0.0001254092179 | X16: =+IF(INDEX($C16:$G16,1,aux!$AL$1)>0,(G16/INDEX($C16:$G16,1,aux!$AL$1))^(1/($G$3-INDEX($C$3:$G$3,1,aux!$AL$1)))-1,"n.d.") -> -1 | Y16: =IF(INDEX($C16:$G16,1,aux!$AL$1)>0,(G16-INDEX($C16:$G16,1,aux!$AL$1))/INDEX($C16:$G16,1,aux!$AL$1),"n.d.") -> -1 | AA16: =O16-INDEX($K16:$O16,1,aux!$AL$1) -> -16.903 | AB16: -0.001613076234 | AC16: -0.000398710737 | AD16: =+IF(INDEX($K16:$O16,1,aux!$AL$1)>0,(O16/INDEX($K16:$O16,1,aux!$AL$1))^(1/($O$3-INDEX($K$3:$O$3,1,aux!$AL$1)))-1,"n.d.") -> -0.6247326963 | AE16: =IF(INDEX($K16:$O16,1,aux!$AL$1)>0,(O16-INDEX($K16:$O16,1,aux!$AL$1))/INDEX($K16:$O16,1,aux!$AL$1),"n.d.") -> -0.9801681647 | AX16: 02
A17: 0207 | B17: Carnes e miudezas de aves de capoeira | C17: 53.209 | D17: 0 | E17: 3.629 | F17: 0.295 | G17: 331.098 | H17: 77.6462 | I17: 0.0007040109644 | J17: 0.0006564011459 | K17: 14.579 | L17: 0.088 | M17: 0.682 | N17: 100.159 | O17: 77.725 | P17: 38.6466 | Q17: 0.00144299099 | R17: 0.0006040695896 | S17: -38.9996 | U17: =G17-INDEX($C17:$G17,1,aux!$AL$1) -> 277.889 | V17: 0.01653032131 | W17: 0.01070984701 | X17: =+IF(INDEX($C17:$G17,1,aux!$AL$1)>0,(G17/INDEX($C17:$G17,1,aux!$AL$1))^(1/($G$3-INDEX($C$3:$G$3,1,aux!$AL$1)))-1,"n.d.") -> 0.57940266 | Y17: =IF(INDEX($C17:$G17,1,aux!$AL$1)>0,(G17-INDEX($C17:$G17,1,aux!$AL$1))/INDEX($C17:$G17,1,aux!$AL$1),"n.d.") -> 5.222593922 | AA17: =O17-INDEX($K17:$O17,1,aux!$AL$1) -> 63.146 | AB17: 0.006026108492 | AC17: 0.001489498207 | AD17: =+IF(INDEX($K17:$O17,1,aux!$AL$1)>0,(O17/INDEX($K17:$O17,1,aux!$AL$1))^(1/($O$3-INDEX($K$3:$O$3,1,aux!$AL$1)))-1,"n.d.") -> 0.519526396 | AE17: =IF(INDEX($K17:$O17,1,aux!$AL$1)>0,(O17-INDEX($K17:$O17,1,aux!$AL$1))/INDEX($K17:$O17,1,aux!$AL$1),"n.d.") -> 4.331298443 | AX17: 02
A18: 0208 | B18: Outras carnes e miudezas | C18: 0 | D18: 0 | E18: 0 | F18: 0 | G18: 0 | H18: 0 | I18: 0 | J18: 0 | K18: 0.301 | L18: 0.38 | M18: 0.499 | N18: 0.293 | O18: 0.471 | P18: 0.3888 | Q18: 1.451705705e-05 | R18: 6.077177719e-06 | S18: 0.3888 | U18: =G18-INDEX($C18:$G18,1,aux!$AL$1) -> 0 | V18: 0 | W18: 0 | X18: =+IF(INDEX($C18:$G18,1,aux!$AL$1)>0,(G18/INDEX($C18:$G18,1,aux!$AL$1))^(1/($G$3-INDEX($C$3:$G$3,1,aux!$AL$1)))-1,"n.d.") -> n.d. | Y18: =IF(INDEX($C18:$G18,1,aux!$AL$1)>0,(G18-INDEX($C18:$G18,1,aux!$AL$1))/INDEX($C18:$G18,1,aux!$AL$1),"n.d.") -> n.d. | AA18: =O18-INDEX($K18:$O18,1,aux!$AL$1) -> 0.17 | AB18: 1.622333075e-05 | AC18: 4.009987889e-06 | AD18: =+IF(INDEX($K18:$O18,1,aux!$AL$1)>0,(O18/INDEX($K18:$O18,1,aux!$AL$1))^(1/($O$3-INDEX($K$3:$O$3,1,aux!$AL$1)))-1,"n.d.") -> 0.1184423488 | AE18: =IF(INDEX($K18:$O18,1,aux!$AL$1)>0,(O18-INDEX($K18:$O18,1,aux!$AL$1))/INDEX($K18:$O18,1,aux!$AL$1),"n.d.") -> 0.5647840532 | AX18: 02
A19: 0209 | B19: Toucinho, gorduras de porco e de aves | C19: 0 | D19: 0 | E19: 0 | F19: 0 | G19: 0 | H19: 0 | I19: 0 | J19: 0 | K19: 0 | L19: 0 | M19: 0 | N19: 0 | O19: 0 | P19: 0 | Q19: 0 | R19: 0 | S19: 0 | U19: =G19-INDEX($C19:$G19,1,aux!$AL$1) -> 0 | V19: 0 | W19: 0 | X19: =+IF(INDEX($C19:$G19,1,aux!$AL$1)>0,(G19/INDEX($C19:$G19,1,aux!$AL$1))^(1/($G$3-INDEX($C$3:$G$3,1,aux!$AL$1)))-1,"n.d.") -> n.d. | Y19: =IF(INDEX($C19:$G19,1,aux!$AL$1)>0,(G19-INDEX($C19:$G19,1,aux!$AL$1))/INDEX($C19:$G19,1,aux!$AL$1),"n.d.") -> n.d. | AA19: =O19-INDEX($K19:$O19,1,aux!$AL$1) -> 0 | AB19: 0 | AC19: 0 | AD19: =+IF(INDEX($K19:$O19,1,aux!$AL$1)>0,(O19/INDEX($K19:$O19,1,aux!$AL$1))^(1/($O$3-INDEX($K$3:$O$3,1,aux!$AL$1)))-1,"n.d.") -> n.d. | AE19: =IF(INDEX($K19:$O19,1,aux!$AL$1)>0,(O19-INDEX($K19:$O19,1,aux!$AL$1))/INDEX($K19:$O19,1,aux!$AL$1),"n.d.") -> n.d. | AX19: 02
A20: 0210 | B20: Carnes e miudezas processadas; farinhas de carnes | C20: 426.252 | D20: 497.475 | E20: 367.299 | F20: 185.929 | G20: 345.764 | H20: 364.5438 | I20: 0.003305285155 | J20: 0.00308176019 | K20: 13.022 | L20: 0.52 | M20: 1.926 | N20: 23.764 | O20: 99.686 | P20: 27.7836 | Q20: 0.001037387105 | R20: 0.0004342743695 | S20: -336.7602 | U20: =G20-INDEX($C20:$G20,1,aux!$AL$1) -> -80.488 | V20: -0.004787855949 | W20: -0.003102008952 | X20: =+IF(INDEX($C20:$G20,1,aux!$AL$1)>0,(G20/INDEX($C20:$G20,1,aux!$AL$1))^(1/($G$3-INDEX($C$3:$G$3,1,aux!$AL$1)))-1,"n.d.") -> -0.05097350777 | Y20: =IF(INDEX($C20:$G20,1,aux!$AL$1)>0,(G20-INDEX($C20:$G20,1,aux!$AL$1))/INDEX($C20:$G20,1,aux!$AL$1),"n.d.") -> -0.1888272665 | AA20: =O20-INDEX($K20:$O20,1,aux!$AL$1) -> 86.664 | AB20: 0.008270463155 | AC20: 0.00204424465 | AD20: =+IF(INDEX($K20:$O20,1,aux!$AL$1)>0,(O20/INDEX($K20:$O20,1,aux!$AL$1))^(1/($O$3-INDEX($K$3:$O$3,1,aux!$AL$1)))-1,"n.d.") -> 0.6633709778 | AE20: =IF(INDEX($K20:$O20,1,aux!$AL$1)>0,(O20-INDEX($K20:$O20,1,aux!$AL$1))/INDEX($K20:$O20,1,aux!$AL$1),"n.d.") -> 6.655198894 | AX20: 02
A21: 02SS | B21: Carnes e miudezas, comestíveis | C21: 0 | D21: 0 | E21: 0 | F21: 0 | G21: 0 | H21: 0 | I21: 0 | J21: 0 | K21: 0 | L21: 0 | M21: 0 | N21: 0 | O21: 0 | P21: 0 | Q21: 0 | R21: 0 | S21: 0 | U21: =G21-INDEX($C21:$G21,1,aux!$AL$1) -> 0 | V21: 0 | W21: 0 | X21: =+IF(INDEX($C21:$G21,1,aux!$AL$1)>0,(G21/INDEX($C21:$G21,1,aux!$AL$1))^(1/($G$3-INDEX($C$3:$G$3,1,aux!$AL$1)))-1,"n.d.") -> n.d. | Y21: =IF(INDEX($C21:$G21,1,aux!$AL$1)>0,(G21-INDEX($C21:$G21,1,aux!$AL$1))/INDEX($C21:$G21,1,aux!$AL$1),"n.d.") -> n.d. | AA21: =O21-INDEX($K21:$O21,1,aux!$AL$1) -> 0 | AB21: 0 | AC21: 0 | AD21: =+IF(INDEX($K21:$O21,1,aux!$AL$1)>0,(O21/INDEX($K21:$O21,1,aux!$AL$1))^(1/($O$3-INDEX($K$3:$O$3,1,aux!$AL$1)))-1,"n.d.") -> n.d. | AE21: =IF(INDEX($K21:$O21,1,aux!$AL$1)>0,(O21-INDEX($K21:$O21,1,aux!$AL$1))/INDEX($K21:$O21,1,aux!$AL$1),"n.d.") -> n.d. | AX21: 02
A22: 0401 | B22: Leite e nata, não concentrados | C22: 0 | D22: 0 | E22: 0 | F22: 3.039 | G22: 0 | H22: 0.6078 | I22: 5.51086678e-06 | J22: 5.138185983e-06 | K22: 0.034 | L22: 0.354 | M22: 0.479 | N22: 576.066 | O22: 915.845 | P22: 298.5556 | Q22: 0.01114750175 | R22: 0.004666603498 | S22: 297.9478 | U22: =G22-INDEX($C22:$G22,1,aux!$AL$1) -> 0 | V22: 0 | W22: 0 | X22: =+IF(INDEX($C22:$G22,1,aux!$AL$1)>0,(G22/INDEX($C22:$G22,1,aux!$AL$1))^(1/($G$3-INDEX($C$3:$G$3,1,aux!$AL$1)))-1,"n.d.") -> n.d. | Y22: =IF(INDEX($C22:$G22,1,aux!$AL$1)>0,(G22-INDEX($C22:$G22,1,aux!$AL$1))/INDEX($C22:$G22,1,aux!$AL$1),"n.d.") -> n.d. | AA22: =O22-INDEX($K22:$O22,1,aux!$AL$1) -> 915.811 | AB22: 0.08739708682 | AC22: 0.02160230011 | AD22: =+IF(INDEX($K22:$O22,1,aux!$AL$1)>0,(O22/INDEX($K22:$O22,1,aux!$AL$1))^(1/($O$3-INDEX($K$3:$O$3,1,aux!$AL$1)))-1,"n.d.") -> 11.81108066 | AE22: =IF(INDEX($K22:$O22,1,aux!$AL$1)>0,(O22-INDEX($K22:$O22,1,aux!$AL$1))/INDEX($K22:$O22,1,aux!$AL$1),"n.d.") -> 26935.61765 | AX22: 04
A23: 0402 | B23: Leite e nata, concentrados | C23: 72.953 | D23: 157.692 | E23: 387.165 | F23: 2481.097 | G23: 2889.111 | H23: 1197.6036 | I23: 0.01085856185 | J23: 0.010124235 | K23: 2.36 | L23: 7.75 | M23: 8.77 | N23: 3.982 | O23: 2.907 | P23: 5.1538 | Q23: 0.0001924331498 | R23: 8.055699209e-05 | S23: -1192.4498 | U23: =G23-INDEX($C23:$G23,1,aux!$AL$1) -> 2816.158 | V23: 0.1675201127 | W23: 0.1085347794 | X23: =+IF(INDEX($C23:$G23,1,aux!$AL$1)>0,(G23/INDEX($C23:$G23,1,aux!$AL$1))^(1/($G$3-INDEX($C$3:$G$3,1,aux!$AL$1)))-1,"n.d.") -> 1.508593358 | Y23: =IF(INDEX($C23:$G23,1,aux!$AL$1)>0,(G23-INDEX($C23:$G23,1,aux!$AL$1))/INDEX($C23:$G23,1,aux!$AL$1),"n.d.") -> 38.60236042 | AA23: =O23-INDEX($K23:$O23,1,aux!$AL$1) -> 0.547 | AB23: 5.220095248e-05 | AC23: 1.290272574e-05 | AD23: =+IF(INDEX($K23:$O23,1,aux!$AL$1)>0,(O23/INDEX($K23:$O23,1,aux!$AL$1))^(1/($O$3-INDEX($K$3:$O$3,1,aux!$AL$1)))-1,"n.d.") -> 0.05349688836 | AE23: =IF(INDEX($K23:$O23,1,aux!$AL$1)>0,(O23-INDEX($K23:$O23,1,aux!$AL$1))/INDEX($K23:$O23,1,aux!$AL$1),"n.d.") -> 0.231779661 | AX23: 04
A24: 0403 | B24: Leitelho, leite coalhado, iogurte, etc. | C24: 0 | D24: 0 | E24: 0 | F24: 112.889 | G24: 223.766 | H24: 67.331 | I24: 0.0006104839934 | J24: 0.0005691990794 | K24: 0.781 | L24: 0.556 | M24: 1.431 | N24: 0.833 | O24: 2.077 | P24: 1.1356 | Q24: 4.240115738e-05 | R24: 1.775011064e-05 | S24: -66.1954 | U24: =G24-INDEX($C24:$G24,1,aux!$AL$1) -> 223.766 | V24: 0.01331079632 | W24: 0.008623945622 | X24: =+IF(INDEX($C24:$G24,1,aux!$AL$1)>0,(G24/INDEX($C24:$G24,1,aux!$AL$1))^(1/($G$3-INDEX($C$3:$G$3,1,aux!$AL$1)))-1,"n.d.") -> n.d. | Y24: =IF(INDEX($C24:$G24,1,aux!$AL$1)>0,(G24-INDEX($C24:$G24,1,aux!$AL$1))/INDEX($C24:$G24,1,aux!$AL$1),"n.d.") -> n.d. | AA24: =O24-INDEX($K24:$O24,1,aux!$AL$1) -> 1.296 | AB24: 0.0001236790392 | AC24: 3.057026061e-05 | AD24: =+IF(INDEX($K24:$O24,1,aux!$AL$1)>0,(O24/INDEX($K24:$O24,1,aux!$AL$1))^(1/($O$3-INDEX($K$3:$O$3,1,aux!$AL$1)))-1,"n.d.") -> 0.2770160794 | AE24: =IF(INDEX($K24:$O24,1,aux!$AL$1)>0,(O24-INDEX($K24:$O24,1,aux!$AL$1))/INDEX($K24:$O24,1,aux!$AL$1),"n.d.") -> 1.659411012 | AX24: 04
A25: 0404 | B25: Soro de leite e outros produtos do leite | C25: 594.064 | D25: 394.669 | E25: 77.962 | F25: 163.926 | G25: 471.924 | H25: 340.509 | I25: 0.003087363831 | J25: 0.002878576129 | K25: 15.174 | L25: 0.253 | M25: 1.068 | N25: 0 | O25: 0.96 | P25: 3.491 | Q25: 0.000130347341 | R25: 5.456642854e-05 | S25: -337.018 | U25: =G25-INDEX($C25:$G25,1,aux!$AL$1) -> -122.14 | V25: -0.007265539281 | W25: -0.004707277774 | X25: =+IF(INDEX($C25:$G25,1,aux!$AL$1)>0,(G25/INDEX($C25:$G25,1,aux!$AL$1))^(1/($G$3-INDEX($C$3:$G$3,1,aux!$AL$1)))-1,"n.d.") -> -0.05591802199 | Y25: =IF(INDEX($C25:$G25,1,aux!$AL$1)>0,(G25-INDEX($C25:$G25,1,aux!$AL$1))/INDEX($C25:$G25,1,aux!$AL$1),"n.d.") -> -0.2056007434 | AA25: =O25-INDEX($K25:$O25,1,aux!$AL$1) -> -14.214 | AB25: -0.001356461314 | AC25: -0.0003352821639 | AD25: =+IF(INDEX($K25:$O25,1,aux!$AL$1)>0,(O25/INDEX($K25:$O25,1,aux!$AL$1))^(1/($O$3-INDEX($K$3:$O$3,1,aux!$AL$1)))-1,"n.d.") -> -0.498474767 | AE25: =IF(INDEX($K25:$O25,1,aux!$AL$1)>0,(O25-INDEX($K25:$O25,1,aux!$AL$1))/INDEX($K25:$O25,1,aux!$AL$1),"n.d.") -> -0.9367338869 | AX25: 04
A26: 0405 | B26: Manteiga | C26: 159.486 | D26: 157.253 | E26: 124.088 | F26: 1.156 | G26: 93.954 | H26: 107.1874 | I26: 0.0009718583118 | J26: 0.0009061349067 | K26: 0 | L26: 0.176 | M26: 0.499 | N26: 0.934 | O26: 0.858 | P26: 0.4934 | Q26: 1.842262333e-05 | R26: 7.712138597e-06 | S26: -106.694 | U26: =G26-INDEX($C26:$G26,1,aux!$AL$1) -> -65.532 | V26: -0.003898193222 | W26: -0.002525604446 | X26: =+IF(INDEX($C26:$G26,1,aux!$AL$1)>0,(G26/INDEX($C26:$G26,1,aux!$AL$1))^(1/($G$3-INDEX($C$3:$G$3,1,aux!$AL$1)))-1,"n.d.") -> -0.1239111014 | Y26: =IF(INDEX($C26:$G26,1,aux!$AL$1)>0,(G26-INDEX($C26:$G26,1,aux!$AL$1))/INDEX($C26:$G26,1,aux!$AL$1),"n.d.") -> -0.4108950002 | AA26: =O26-INDEX($K26:$O26,1,aux!$AL$1) -> 0.858 | AB26: 8.188010462e-05 | AC26: 2.023864476e-05 | AD26: =+IF(INDEX($K26:$O26,1,aux!$AL$1)>0,(O26/INDEX($K26:$O26,1,aux!$AL$1))^(1/($O$3-INDEX($K$3:$O$3,1,aux!$AL$1)))-1,"n.d.") -> n.d. | AE26: =IF(INDEX($K26:$O26,1,aux!$AL$1)>0,(O26-INDEX($K26:$O26,1,aux!$AL$1))/INDEX($K26:$O26,1,aux!$AL$1),"n.d.") -> n.d. | AX26: 04
A27: 0406 | B27: Queijos e requeijão | C27: 857.646 | D27: 876.357 | E27: 737.476 | F27: 383.715 | G27: 1407.924 | H27: 852.6236 | I27: 0.007730659877 | J27: 0.007207862176 | K27: 35.738 | L27: 1.196 | M27: 6.058 | N27: 34.237 | O27: 73.128 | P27: 30.0714 | Q27: 0.001122809232 | R27: 0.0004700340588 | S27: -822.5522 | U27: =G27-INDEX($C27:$G27,1,aux!$AL$1) -> 550.278 | V27: 0.03273347326 | W27: 0.02120772391 | X27: =+IF(INDEX($C27:$G27,1,aux!$AL$1)>0,(G27/INDEX($C27:$G27,1,aux!$AL$1))^(1/($G$3-INDEX($C$3:$G$3,1,aux!$AL$1)))-1,"n.d.") -> 0.1319253504 | Y27: =IF(INDEX($C27:$G27,1,aux!$AL$1)>0,(G27-INDEX($C27:$G27,1,aux!$AL$1))/INDEX($C27:$G27,1,aux!$AL$1),"n.d.") -> 0.6416143724 | AA27: =O27-INDEX($K27:$O27,1,aux!$AL$1) -> 37.39 | AB27: 0.003568178452 | AC27: 0.000881961454 | AD27: =+IF(INDEX($K27:$O27,1,aux!$AL$1)>0,(O27/INDEX($K27:$O27,1,aux!$AL$1))^(1/($O$3-INDEX($K$3:$O$3,1,aux!$AL$1)))-1,"n.d.") -> 0.1960197819 | AE27: =IF(INDEX($K27:$O27,1,aux!$AL$1)>0,(O27-INDEX($K27:$O27,1,aux!$AL$1))/INDEX($K27:$O27,1,aux!$AL$1),"n.d.") -> 1.046225306 | AX27: 04
A28: 0407 | B28: Ovos de aves, com cascas | C28: 0 | D28: 0 | E28: 0 | F28: 0 | G28: 0 | H28: 0 | I28: 0 | J28: 0 | K28: 0 | L28: 0 | M28: 0 | N28: 1.065 | O28: 0.993 | P28: 0.4116 | Q28: 1.536836595e-05 | R28: 6.433555424e-06 | S28: 0.4116 | U28: =G28-INDEX($C28:$G28,1,aux!$AL$1) -> 0 | V28: 0 | W28: 0 | X28: =+IF(INDEX($C28:$G28,1,aux!$AL$1)>0,(G28/INDEX($C28:$G28,1,aux!$AL$1))^(1/($G$3-INDEX($C$3:$G$3,1,aux!$AL$1)))-1,"n.d.") -> n.d. | Y28: =IF(INDEX($C28:$G28,1,aux!$AL$1)>0,(G28-INDEX($C28:$G28,1,aux!$AL$1))/INDEX($C28:$G28,1,aux!$AL$1),"n.d.") -> n.d. | AA28: =O28-INDEX($K28:$O28,1,aux!$AL$1) -> 0.993 | AB28: 9.476333787e-05 | AC28: 2.342304691e-05 | AD28: =+IF(INDEX($K28:$O28,1,aux!$AL$1)>0,(O28/INDEX($K28:$O28,1,aux!$AL$1))^(1/($O$3-INDEX($K$3:$O$3,1,aux!$AL$1)))-1,"n.d.") -> n.d. | AE28: =IF(INDEX($K28:$O28,1,aux!$AL$1)>0,(O28-INDEX($K28:$O28,1,aux!$AL$1))/INDEX($K28:$O28,1,aux!$AL$1),"n.d.") -> n.d. | AX28: 04
A29: 0408 | B29: Ovos de aves, sem casca | C29: 0 | D29: 0 | E29: 0 | F29: 0 | G29: 0 | H29: 0 | I29: 0 | J29: 0 | K29: 0 | L29: 0 | M29: 0 | N29: 0 | O29: 0 | P29: 0 | Q29: 0 | R29: 0 | S29: 0 | U29: =G29-INDEX($C29:$G29,1,aux!$AL$1) -> 0 | V29: 0 | W29: 0 | X29: =+IF(INDEX($C29:$G29,1,aux!$AL$1)>0,(G29/INDEX($C29:$G29,1,aux!$AL$1))^(1/($G$3-INDEX($C$3:$G$3,1,aux!$AL$1)))-1,"n.d.") -> n.d. | Y29: =IF(INDEX($C29:$G29,1,aux!$AL$1)>0,(G29-INDEX($C29:$G29,1,aux!$AL$1))/INDEX($C29:$G29,1,aux!$AL$1),"n.d.") -> n.d. | AA29: =O29-INDEX($K29:$O29,1,aux!$AL$1) -> 0 | AB29: 0 | AC29: 0 | AD29: =+IF(INDEX($K29:$O29,1,aux!$AL$1)>0,(O29/INDEX($K29:$O29,1,aux!$AL$1))^(1/($O$3-INDEX($K$3:$O$3,1,aux!$AL$1)))-1,"n.d.") -> n.d. | AE29: =IF(INDEX($K29:$O29,1,aux!$AL$1)>0,(O29-INDEX($K29:$O29,1,aux!$AL$1))/INDEX($K29:$O29,1,aux!$AL$1),"n.d.") -> n.d. | AX29: 04
A30: 0409 | B30: Mel natural | C30: 0 | D30: 0 | E30: 0 | F30: 1.85 | G30: 4.62 | H30: 1.294 | I30: 1.173257916e-05 | J30: 1.093914555e-05 | K30: 37.867 | L30: 0.406 | M30: 0.172 | N30: 62.024 | O30: 65.026 | P30: 33.099 | Q30: 0.001235854093 | R30: 0.0005173572667 | S30: 31.805 | U30: =G30-INDEX($C30:$G30,1,aux!$AL$1) -> 4.62 | V30: 0.0002748222652 | W30: 0.0001780548822 | X30: =+IF(INDEX($C30:$G30,1,aux!$AL$1)>0,(G30/INDEX($C30:$G30,1,aux!$AL$1))^(1/($G$3-INDEX($C$3:$G$3,1,aux!$AL$1)))-1,"n.d.") -> n.d. | Y30: =IF(INDEX($C30:$G30,1,aux!$AL$1)>0,(G30-INDEX($C30:$G30,1,aux!$AL$1))/INDEX($C30:$G30,1,aux!$AL$1),"n.d.") -> n.d. | AA30: =O30-INDEX($K30:$O30,1,aux!$AL$1) -> 27.159 | AB30: 0.002591820235 | AC30: 0.0006406309475 | AD30: =+IF(INDEX($K30:$O30,1,aux!$AL$1)>0,(O30/INDEX($K30:$O30,1,aux!$AL$1))^(1/($O$3-INDEX($K$3:$O$3,1,aux!$AL$1)))-1,"n.d.") -> 0.1447391476 | AE30: =IF(INDEX($K30:$O30,1,aux!$AL$1)>0,(O30-INDEX($K30:$O30,1,aux!$AL$1))/INDEX($K30:$O30,1,aux!$AL$1),"n.d.") -> 0.7172207991 | AX30: 04
A31: 0410 | B31: Outros produtos comestíveis de origem animal | C31: 0 | D31: 0 | E31: 0 | F31: 0 | G31: 0 | H31: 0 | I31: 0 | J31: 0 | K31: 0 | L31: 0 | M31: 0 | N31: 0 | O31: 0 | P31: 0 | Q31: 0 | R31: 0 | S31: 0 | U31: =G31-INDEX($C31:$G31,1,aux!$AL$1) -> 0 | V31: 0 | W31: 0 | X31: =+IF(INDEX($C31:$G31,1,aux!$AL$1)>0,(G31/INDEX($C31:$G31,1,aux!$AL$1))^(1/($G$3-INDEX($C$3:$G$3,1,aux!$AL$1)))-1,"n.d.") -> n.d. | Y31: =IF(INDEX($C31:$G31,1,aux!$AL$1)>0,(G31-INDEX($C31:$G31,1,aux!$AL$1))/INDEX($C31:$G31,1,aux!$AL$1),"n.d.") -> n.d. | AA31: =O31-INDEX($K31:$O31,1,aux!$AL$1) -> 0 | AB31: 0 | AC31: 0 | AD31: =+IF(INDEX($K31:$O31,1,aux!$AL$1)>0,(O31/INDEX($K31:$O31,1,aux!$AL$1))^(1/($O$3-INDEX($K$3:$O$3,1,aux!$AL$1)))-1,"n.d.") -> n.d. | AE31: =IF(INDEX($K31:$O31,1,aux!$AL$1)>0,(O31-INDEX($K31:$O31,1,aux!$AL$1))/INDEX($K31:$O31,1,aux!$AL$1),"n.d.") -> n.d. | AX31: 04
A32: 04SS | B32: Leite e lacticínios; ovos de aves; mel natural; etc. | C32: 0 | D32: 0 | E32: 0 | F32: 0 | G32: 0 | H32: 0 | I32: 0 | J32: 0 | K32: 0 | L32: 0 | M32: 0 | N32: 0 | O32: 0 | P32: 0 | Q32: 0 | R32: 0 | S32: 0 | U32: =G32-INDEX($C32:$G32,1,aux!$AL$1) -> 0 | V32: 0 | W32: 0 | X32: =+IF(INDEX($C32:$G32,1,aux!$AL$1)>0,(G32/INDEX($C32:$G32,1,aux!$AL$1))^(1/($G$3-INDEX($C$3:$G$3,1,aux!$AL$1)))-1,"n.d.") -> n.d. | Y32: =IF(INDEX($C32:$G32,1,aux!$AL$1)>0,(G32-INDEX($C32:$G32,1,aux!$AL$1))/INDEX($C32:$G32,1,aux!$AL$1),"n.d.") -> n.d. | AA32: =O32-INDEX($K32:$O32,1,aux!$AL$1) -> 0 | AB32: 0 | AC32: 0 | AD32: =+IF(INDEX($K32:$O32,1,aux!$AL$1)>0,(O32/INDEX($K32:$O32,1,aux!$AL$1))^(1/($O$3-INDEX($K$3:$O$3,1,aux!$AL$1)))-1,"n.d.") -> n.d. | AE32: =IF(INDEX($K32:$O32,1,aux!$AL$1)>0,(O32-INDEX($K32:$O32,1,aux!$AL$1))/INDEX($K32:$O32,1,aux!$AL$1),"n.d.") -> n.d. | AX32: 04
A33: 0501 | B33: Cabelos em bruto | C33: 0 | D33: 0 | E33: 0 | F33: 0 | G33: 0 | H33: 0 | I33: 0 | J33: 0 | K33: 0 | L33: 0 | M33: 0 | N33: 0 | O33: 0 | P33: 0 | Q33: 0 | R33: 0 | S33: 0 | U33: =G33-INDEX($C33:$G33,1,aux!$AL$1) -> 0 | V33: 0 | W33: 0 | X33: =+IF(INDEX($C33:$G33,1,aux!$AL$1)>0,(G33/INDEX($C33:$G33,1,aux!$AL$1))^(1/($G$3-INDEX($C$3:$G$3,1,aux!$AL$1)))-1,"n.d.") -> n.d. | Y33: =IF(INDEX($C33:$G33,1,aux!$AL$1)>0,(G33-INDEX($C33:$G33,1,aux!$AL$1))/INDEX($C33:$G33,1,aux!$AL$1),"n.d.") -> n.d. | AA33: =O33-INDEX($K33:$O33,1,aux!$AL$1) -> 0 | AB33: 0 | AC33: 0 | AD33: =+IF(INDEX($K33:$O33,1,aux!$AL$1)>0,(O33/INDEX($K33:$O33,1,aux!$AL$1))^(1/($O$3-INDEX($K$3:$O$3,1,aux!$AL$1)))-1,"n.d.") -> n.d. | AE33: =IF(INDEX($K33:$O33,1,aux!$AL$1)>0,(O33-INDEX($K33:$O33,1,aux!$AL$1))/INDEX($K33:$O33,1,aux!$AL$1),"n.d.") -> n.d. | AX33: 05
A34: 0502 | B34: Cerdas de porco ou de javali, etc. | C34: 0 | D34: 0 | E34: 0 | F34: 0 | G34: 0 | H34: 0 | I34: 0 | J34: 0 | K34: 0 | L34: 0 | M34: 0 | N34: 0 | O34: 0 | P34: 0 | Q34: 0 | R34: 0 | S34: 0 | U34: =G34-INDEX($C34:$G34,1,aux!$AL$1) -> 0 | V34: 0 | W34: 0 | X34: =+IF(INDEX($C34:$G34,1,aux!$AL$1)>0,(G34/INDEX($C34:$G34,1,aux!$AL$1))^(1/($G$3-INDEX($C$3:$G$3,1,aux!$AL$1)))-1,"n.d.") -> n.d. | Y34: =IF(INDEX($C34:$G34,1,aux!$AL$1)>0,(G34-INDEX($C34:$G34,1,aux!$AL$1))/INDEX($C34:$G34,1,aux!$AL$1),"n.d.") -> n.d. | AA34: =O34-INDEX($K34:$O34,1,aux!$AL$1) -> 0 | AB34: 0 | AC34: 0 | AD34: =+IF(INDEX($K34:$O34,1,aux!$AL$1)>0,(O34/INDEX($K34:$O34,1,aux!$AL$1))^(1/($O$3-INDEX($K$3:$O$3,1,aux!$AL$1)))-1,"n.d.") -> n.d. | AE34: =IF(INDEX($K34:$O34,1,aux!$AL$1)>0,(O34-INDEX($K34:$O34,1,aux!$AL$1))/INDEX($K34:$O34,1,aux!$AL$1),"n.d.") -> n.d. | AX34: 05
A35: 0504 | B35: Tripas de animais (excepto peixes) | C35: 0 | D35: 0 | E35: 0 | F35: 0 | G35: 0 | H35: 0 | I35: 0 | J35: 0 | K35: 721.646 | L35: 519.832 | M35: 312.746 | N35: 0.481 | O35: 0.272 | P35: 310.9954 | Q35: 0.01161198036 | R35: 0.00486104505 | S35: 310.9954 | U35: =G35-INDEX($C35:$G35,1,aux!$AL$1) -> 0 | V35: 0 | W35: 0 | X35: =+IF(INDEX($C35:$G35,1,aux!$AL$1)>0,(G35/INDEX($C35:$G35,1,aux!$AL$1))^(1/($G$3-INDEX($C$3:$G$3,1,aux!$AL$1)))-1,"n.d.") -> n.d. | Y35: =IF(INDEX($C35:$G35,1,aux!$AL$1)>0,(G35-INDEX($C35:$G35,1,aux!$AL$1))/INDEX($C35:$G35,1,aux!$AL$1),"n.d.") -> n.d. | AA35: =O35-INDEX($K35:$O35,1,aux!$AL$1) -> -721.374 | AB35: -0.06884169999 | AC35: -0.01701588826 | AD35: =+IF(INDEX($K35:$O35,1,aux!$AL$1)>0,(O35/INDEX($K35:$O35,1,aux!$AL$1))^(1/($O$3-INDEX($K$3:$O$3,1,aux!$AL$1)))-1,"n.d.") -> -0.8606646946 | AE35: =IF(INDEX($K35:$O35,1,aux!$AL$1)>0,(O35-INDEX($K35:$O35,1,aux!$AL$1))/INDEX($K35:$O35,1,aux!$AL$1),"n.d.") -> -0.9996230839 | AX35: 05
A36: 0505 | B36: Peles e outras partes de aves | C36: 0 | D36: 0 | E36: 0 | F36: 0 | G36: 0 | H36: 0 | I36: 0 | J36: 0 | K36: 0 | L36: 0 | M36: 0 | N36: 0 | O36: 0 | P36: 0 | Q36: 0 | R36: 0 | S36: 0 | U36: =G36-INDEX($C36:$G36,1,aux!$AL$1) -> 0 | V36: 0 | W36: 0 | X36: =+IF(INDEX($C36:$G36,1,aux!$AL$1)>0,(G36/INDEX($C36:$G36,1,aux!$AL$1))^(1/($G$3-INDEX($C$3:$G$3,1,aux!$AL$1)))-1,"n.d.") -> n.d. | Y36: =IF(INDEX($C36:$G36,1,aux!$AL$1)>0,(G36-INDEX($C36:$G36,1,aux!$AL$1))/INDEX($C36:$G36,1,aux!$AL$1),"n.d.") -> n.d. | AA36: =O36-INDEX($K36:$O36,1,aux!$AL$1) -> 0 | AB36: 0 | AC36: 0 | AD36: =+IF(INDEX($K36:$O36,1,aux!$AL$1)>0,(O36/INDEX($K36:$O36,1,aux!$AL$1))^(1/($O$3-INDEX($K$3:$O$3,1,aux!$AL$1)))-1,"n.d.") -> n.d. | AE36: =IF(INDEX($K36:$O36,1,aux!$AL$1)>0,(O36-INDEX($K36:$O36,1,aux!$AL$1))/INDEX($K36:$O36,1,aux!$AL$1),"n.d.") -> n.d. | AX36: 05
A37: 0506 | B37: Ossos e núcleos córneos, em bruto | C37: 0 | D37: 0 | E37: 0 | F37: 4.082 | G37: 0 | H37: 0.8164 | I37: 7.402223822e-06 | J37: 6.901637112e-06 | K37: 0 | L37: 0 | M37: 84.636 | N37: 83.791 | O37: 0 | P37: 33.6854 | Q37: 0.001257749161 | R37: 0.0005265230512 | S37: 32.869 | U37: =G37-INDEX($C37:$G37,1,aux!$AL$1) -> 0 | V37: 0 | W37: 0 | X37: =+IF(INDEX($C37:$G37,1,aux!$AL$1)>0,(G37/INDEX($C37:$G37,1,aux!$AL$1))^(1/($G$3-INDEX($C$3:$G$3,1,aux!$AL$1)))-1,"n.d.") -> n.d. | Y37: =IF(INDEX($C37:$G37,1,aux!$AL$1)>0,(G37-INDEX($C37:$G37,1,aux!$AL$1))/INDEX($C37:$G37,1,aux!$AL$1),"n.d.") -> n.d. | AA37: =O37-INDEX($K37:$O37,1,aux!$AL$1) -> 0 | AB37: 0 | AC37: 0 | AD37: =+IF(INDEX($K37:$O37,1,aux!$AL$1)>0,(O37/INDEX($K37:$O37,1,aux!$AL$1))^(1/($O$3-INDEX($K$3:$O$3,1,aux!$AL$1)))-1,"n.d.") -> n.d. | AE37: =IF(INDEX($K37:$O37,1,aux!$AL$1)>0,(O37-INDEX($K37:$O37,1,aux!$AL$1))/INDEX($K37:$O37,1,aux!$AL$1),"n.d.") -> n.d. | AX37: 05
A38: 0507 | B38: Marfim, carapaças de tartaruga, etc. | C38: 0 | D38: 0 | E38: 0 | F38: 0 | G38: 0 | H38: 0 | I38: 0 | J38: 0 | K38: 0 | L38: 0 | M38: 0 | N38: 0 | O38: 0 | P38: 0 | Q38: 0 | R38: 0 | S38: 0 | U38: =G38-INDEX($C38:$G38,1,aux!$AL$1) -> 0 | V38: 0 | W38: 0 | X38: =+IF(INDEX($C38:$G38,1,aux!$AL$1)>0,(G38/INDEX($C38:$G38,1,aux!$AL$1))^(1/($G$3-INDEX($C$3:$G$3,1,aux!$AL$1)))-1,"n.d.") -> n.d. | Y38: =IF(INDEX($C38:$G38,1,aux!$AL$1)>0,(G38-INDEX($C38:$G38,1,aux!$AL$1))/INDEX($C38:$G38,1,aux!$AL$1),"n.d.") -> n.d. | AA38: =O38-INDEX($K38:$O38,1,aux!$AL$1) -> 0 | AB38: 0 | AC38: 0 | AD38: =+IF(INDEX($K38:$O38,1,aux!$AL$1)>0,(O38/INDEX($K38:$O38,1,aux!$AL$1))^(1/($O$3-INDEX($K$3:$O$3,1,aux!$AL$1)))-1,"n.d.") -> n.d. | AE38: =IF(INDEX($K38:$O38,1,aux!$AL$1)>0,(O38-INDEX($K38:$O38,1,aux!$AL$1))/INDEX($K38:$O38,1,aux!$AL$1),"n.d.") -> n.d. | AX38: 05
A39: 0510 | B39: Âmbar-cinzento, castóreo, algália e almíscar, etc. | C39: 0 | D39: 0 | E39: 0 | F39: 0 | G39: 0 | H39: 0 | I39: 0 | J39: 0 | K39: 0 | L39: 0 | M39: 0 | N39: 0 | O39: 0 | P39: 0 | Q39: 0 | R39: 0 | S39: 0 | U39: =G39-INDEX($C39:$G39,1,aux!$AL$1) -> 0 | V39: 0 | W39: 0 | X39: =+IF(INDEX($C39:$G39,1,aux!$AL$1)>0,(G39/INDEX($C39:$G39,1,aux!$AL$1))^(1/($G$3-INDEX($C$3:$G$3,1,aux!$AL$1)))-1,"n.d.") -> n.d. | Y39: =IF(INDEX($C39:$G39,1,aux!$AL$1)>0,(G39-INDEX($C39:$G39,1,aux!$AL$1))/INDEX($C39:$G39,1,aux!$AL$1),"n.d.") -> n.d. | AA39: =O39-INDEX($K39:$O39,1,aux!$AL$1) -> 0 | AB39: 0 | AC39: 0 | AD39: =+IF(INDEX($K39:$O39,1,aux!$AL$1)>0,(O39/INDEX($K39:$O39,1,aux!$AL$1))^(1/($O$3-INDEX($K$3:$O$3,1,aux!$AL$1)))-1,"n.d.") -> n.d. | AE39: =IF(INDEX($K39:$O39,1,aux!$AL$1)>0,(O39-INDEX($K39:$O39,1,aux!$AL$1))/INDEX($K39:$O39,1,aux!$AL$1),"n.d.") -> n.d. | AX39: 05
A40: 0511 | B40: Outros produtos de origem animal (exc. NC 0511 91) (a) | C40: 16.586 | D40: 18.966 | E40: 7.33 | F40: 6.708 | G40: 11.128 | H40: 12.1436 | I40: 0.0001101049059 | J40: 0.0001026588932 | K40: 0 | L40: 0 | M40: 0.008 | N40: 0 | O40: 0 | P40: 0.0016 | Q40: 5.974097553e-08 | R40: 2.500896181e-08 | S40: -12.142 | U40: =G40-INDEX($C40:$G40,1,aux!$AL$1) -> -5.458 | V40: -0.0003246709792 | W40: -0.0002103514171 | X40: =+IF(INDEX($C40:$G40,1,aux!$AL$1)>0,(G40/INDEX($C40:$G40,1,aux!$AL$1))^(1/($G$3-INDEX($C$3:$G$3,1,aux!$AL$1)))-1,"n.d.") -> -0.09495772879 | Y40: =IF(INDEX($C40:$G40,1,aux!$AL$1)>0,(G40-INDEX($C40:$G40,1,aux!$AL$1))/INDEX($C40:$G40,1,aux!$AL$1),"n.d.") -> -0.3290727119 | AA40: =O40-INDEX($K40:$O40,1,aux!$AL$1) -> 0 | AB40: 0 | AC40: 0 | AD40: =+IF(INDEX($K40:$O40,1,aux!$AL$1)>0,(O40/INDEX($K40:$O40,1,aux!$AL$1))^(1/($O$3-INDEX($K$3:$O$3,1,aux!$AL$1)))-1,"n.d.") -> n.d. | AE40: =IF(INDEX($K40:$O40,1,aux!$AL$1)>0,(O40-INDEX($K40:$O40,1,aux!$AL$1))/INDEX($K40:$O40,1,aux!$AL$1),"n.d.") -> n.d. | AX40: 05
A41: 05SS | B41: Outros produtos de origem animal | C41: 0 | D41: 0 | E41: 0 | F41: 0 | G41: 0 | H41: 0 | I41: 0 | J41: 0 | K41: 0 | L41: 0 | M41: 0 | N41: 0 | O41: 0 | P41: 0 | Q41: 0 | R41: 0 | S41: 0 | U41: =G41-INDEX($C41:$G41,1,aux!$AL$1) -> 0 | V41: 0 | W41: 0 | X41: =+IF(INDEX($C41:$G41,1,aux!$AL$1)>0,(G41/INDEX($C41:$G41,1,aux!$AL$1))^(1/($G$3-INDEX($C$3:$G$3,1,aux!$AL$1)))-1,"n.d.") -> n.d. | Y41: =IF(INDEX($C41:$G41,1,aux!$AL$1)>0,(G41-INDEX($C41:$G41,1,aux!$AL$1))/INDEX($C41:$G41,1,aux!$AL$1),"n.d.") -> n.d. | AA41: =O41-INDEX($K41:$O41,1,aux!$AL$1) -> 0 | AB41: 0 | AC41: 0 | AD41: =+IF(INDEX($K41:$O41,1,aux!$AL$1)>0,(O41/INDEX($K41:$O41,1,aux!$AL$1))^(1/($O$3-INDEX($K$3:$O$3,1,aux!$AL$1)))-1,"n.d.") -> n.d. | AE41: =IF(INDEX($K41:$O41,1,aux!$AL$1)>0,(O41-INDEX($K41:$O41,1,aux!$AL$1))/INDEX($K41:$O41,1,aux!$AL$1),"n.d.") -> n.d. | AX41: 05
A42: 0601 | B42: Bolbos, tubérculos, raízes, etc. | C42: 0 | D42: 0 | E42: 0 | F42: 0 | G42: 0 | H42: 0 | I42: 0 | J42: 0 | K42: 3.766 | L42: 0 | M42: 0 | N42: 35.957 | O42: 0 | P42: 7.9446 | Q42: 0.0002966363464 | R42: 0.0001241788737 | S42: 7.9446 | U42: =G42-INDEX($C42:$G42,1,aux!$AL$1) -> 0 | V42: 0 | W42: 0 | X42: =+IF(INDEX($C42:$G42,1,aux!$AL$1)>0,(G42/INDEX($C42:$G42,1,aux!$AL$1))^(1/($G$3-INDEX($C$3:$G$3,1,aux!$AL$1)))-1,"n.d.") -> n.d. | Y42: =IF(INDEX($C42:$G42,1,aux!$AL$1)>0,(G42-INDEX($C42:$G42,1,aux!$AL$1))/INDEX($C42:$G42,1,aux!$AL$1),"n.d.") -> n.d. | AA42: =O42-INDEX($K42:$O42,1,aux!$AL$1) -> -3.766 | AB42: -0.0003593944919 | AC42: -8.883302583e-05 | AD42: =+IF(INDEX($K42:$O42,1,aux!$AL$1)>0,(O42/INDEX($K42:$O42,1,aux!$AL$1))^(1/($O$3-INDEX($K$3:$O$3,1,aux!$AL$1)))-1,"n.d.") -> -1 | AE42: =IF(INDEX($K42:$O42,1,aux!$AL$1)>0,(O42-INDEX($K42:$O42,1,aux!$AL$1))/INDEX($K42:$O42,1,aux!$AL$1),"n.d.") -> -1 | AX42: 06
A43: 0602 | B43: Plantas vivas | C43: 0 | D43: 0 | E43: 0 | F43: 11.84 | G43: 16.186 | H43: 5.6052 | I43: 5.082183362e-05 | J43: 4.738492937e-05 | K43: 6.132 | L43: 3.307 | M43: 0 | N43: 0.191 | O43: 0.085 | P43: 1.943 | Q43: 7.254794715e-05 | R43: 3.037025799e-05 | S43: -3.6622 | U43: =G43-INDEX($C43:$G43,1,aux!$AL$1) -> 16.186 | V43: 0.0009628296938 | W43: 0.000623808728 | X43: =+IF(INDEX($C43:$G43,1,aux!$AL$1)>0,(G43/INDEX($C43:$G43,1,aux!$AL$1))^(1/($G$3-INDEX($C$3:$G$3,1,aux!$AL$1)))-1,"n.d.") -> n.d. | Y43: =IF(INDEX($C43:$G43,1,aux!$AL$1)>0,(G43-INDEX($C43:$G43,1,aux!$AL$1))/INDEX($C43:$G43,1,aux!$AL$1),"n.d.") -> n.d. | AA43: =O43-INDEX($K43:$O43,1,aux!$AL$1) -> -6.047 | AB43: -0.000577073418 | AC43: -0.000142637628 | AD43: =+IF(INDEX($K43:$O43,1,aux!$AL$1)>0,(O43/INDEX($K43:$O43,1,aux!$AL$1))^(1/($O$3-INDEX($K$3:$O$3,1,aux!$AL$1)))-1,"n.d.") -> -0.6568735517 | AE43: =IF(INDEX($K43:$O43,1,aux!$AL$1)>0,(O43-INDEX($K43:$O43,1,aux!$AL$1))/INDEX($K43:$O43,1,aux!$AL$1),"n.d.") -> -0.9861382909 | AX43: 06
A44: 0603 | B44: Flores e seus botões | C44: 0 | D44: 0 | E44: 0 | F44: 0.021 | G44: 0 | H44: 0.0042 | I44: 3.808101428e-08 | J44: 3.550572743e-08 | K44: 0 | L44: 0 | M44: 0 | N44: 0 | O44: 0 | P44: 0 | Q44: 0 | R44: 0 | S44: -0.0042 | U44: =G44-INDEX($C44:$G44,1,aux!$AL$1) -> 0 | V44: 0 | W44: 0 | X44: =+IF(INDEX($C44:$G44,1,aux!$AL$1)>0,(G44/INDEX($C44:$G44,1,aux!$AL$1))^(1/($G$3-INDEX($C$3:$G$3,1,aux!$AL$1)))-1,"n.d.") -> n.d. | Y44: =IF(INDEX($C44:$G44,1,aux!$AL$1)>0,(G44-INDEX($C44:$G44,1,aux!$AL$1))/INDEX($C44:$G44,1,aux!$AL$1),"n.d.") -> n.d. | AA44: =O44-INDEX($K44:$O44,1,aux!$AL$1) -> 0 | AB44: 0 | AC44: 0 | AD44: =+IF(INDEX($K44:$O44,1,aux!$AL$1)>0,(O44/INDEX($K44:$O44,1,aux!$AL$1))^(1/($O$3-INDEX($K$3:$O$3,1,aux!$AL$1)))-1,"n.d.") -> n.d. | AE44: =IF(INDEX($K44:$O44,1,aux!$AL$1)>0,(O44-INDEX($K44:$O44,1,aux!$AL$1))/INDEX($K44:$O44,1,aux!$AL$1),"n.d.") -> n.d. | AX44: 06
A45: 0604 | B45: Folhagem, folhas, ramos e outras partes de plantas | C45: 0 | D45: 0 | E45: 0 | F45: 0 | G45: 0 | H45: 0 | I45: 0 | J45: 0 | K45: 153.795 | L45: 143.582 | M45: 259.582 | N45: 323.941 | O45: 62.388 | P45: 188.6576 | Q45: 0.007044118165 | R45: 0.002948831695 | S45: 188.6576 | U45: =G45-INDEX($C45:$G45,1,aux!$AL$1) -> 0 | V45: 0 | W45: 0 | X45: =+IF(INDEX($C45:$G45,1,aux!$AL$1)>0,(G45/INDEX($C45:$G45,1,aux!$AL$1))^(1/($G$3-INDEX($C$3:$G$3,1,aux!$AL$1)))-1,"n.d.") -> n.d. | Y45: =IF(INDEX($C45:$G45,1,aux!$AL$1)>0,(G45-INDEX($C45:$G45,1,aux!$AL$1))/INDEX($C45:$G45,1,aux!$AL$1),"n.d.") -> n.d. | AA45: =O45-INDEX($K45:$O45,1,aux!$AL$1) -> -91.407 | AB45: -0.008723094083 | AC45: -0.002156123312 | AD45: =+IF(INDEX($K45:$O45,1,aux!$AL$1)>0,(O45/INDEX($K45:$O45,1,aux!$AL$1))^(1/($O$3-INDEX($K$3:$O$3,1,aux!$AL$1)))-1,"n.d.") -> -0.201932341 | AE45: =IF(INDEX($K45:$O45,1,aux!$AL$1)>0,(O45-INDEX($K45:$O45,1,aux!$AL$1))/INDEX($K45:$O45,1,aux!$AL$1),"n.d.") -> -0.5943431191 | AX45: 06
A46: 06SS | B46: Plantas vivas e produtos de floricultura | C46: 0 | D46: 0 | E46: 0 | F46: 0 | G46: 0 | H46: 0 | I46: 0 | J46: 0 | K46: 0 | L46: 0 | M46: 0 | N46: 0 | O46: 0 | P46: 0 | Q46: 0 | R46: 0 | S46: 0 | U46: =G46-INDEX($C46:$G46,1,aux!$AL$1) -> 0 | V46: 0 | W46: 0 | X46: =+IF(INDEX($C46:$G46,1,aux!$AL$1)>0,(G46/INDEX($C46:$G46,1,aux!$AL$1))^(1/($G$3-INDEX($C$3:$G$3,1,aux!$AL$1)))-1,"n.d.") -> n.d. | Y46: =IF(INDEX($C46:$G46,1,aux!$AL$1)>0,(G46-INDEX($C46:$G46,1,aux!$AL$1))/INDEX($C46:$G46,1,aux!$AL$1),"n.d.") -> n.d. | AA46: =O46-INDEX($K46:$O46,1,aux!$AL$1) -> 0 | AB46: 0 | AC46: 0 | AD46: =+IF(INDEX($K46:$O46,1,aux!$AL$1)>0,(O46/INDEX($K46:$O46,1,aux!$AL$1))^(1/($O$3-INDEX($K$3:$O$3,1,aux!$AL$1)))-1,"n.d.") -> n.d. | AE46: =IF(INDEX($K46:$O46,1,aux!$AL$1)>0,(O46-INDEX($K46:$O46,1,aux!$AL$1))/INDEX($K46:$O46,1,aux!$AL$1),"n.d.") -> n.d. | AX46: 06
A47: 0701 | B47: Batatas, frescas ou refrigeradas | C47: 13.001 | D47: 118.72 | E47: 71.248 | F47: 59.506 | G47: 17.199 | H47: 55.9348 | I47: 0.0005071556946 | J47: 0.0004728585149 | K47: 2.877 | L47: 0 | M47: 0.036 | N47: 4.891 | O47: 2.365 | P47: 2.0338 | Q47: 7.593824752e-05 | R47: 3.178951657e-05 | S47: -53.901 | U47: =G47-INDEX($C47:$G47,1,aux!$AL$1) -> 4.198 | V47: 0.0002497194523 | W47: 0.0001617909947 | X47: =+IF(INDEX($C47:$G47,1,aux!$AL$1)>0,(G47/INDEX($C47:$G47,1,aux!$AL$1))^(1/($G$3-INDEX($C$3:$G$3,1,aux!$AL$1)))-1,"n.d.") -> 0.07246125067 | Y47: =IF(INDEX($C47:$G47,1,aux!$AL$1)>0,(G47-INDEX($C47:$G47,1,aux!$AL$1))/INDEX($C47:$G47,1,aux!$AL$1),"n.d.") -> 0.3228982386 | AA47: =O47-INDEX($K47:$O47,1,aux!$AL$1) -> -0.512 | AB47: -4.886085497e-05 | AC47: -1.207714e-05 | AD47: =+IF(INDEX($K47:$O47,1,aux!$AL$1)>0,(O47/INDEX($K47:$O47,1,aux!$AL$1))^(1/($O$3-INDEX($K$3:$O$3,1,aux!$AL$1)))-1,"n.d.") -> -0.04781174382 | AE47: =IF(INDEX($K47:$O47,1,aux!$AL$1)>0,(O47-INDEX($K47:$O47,1,aux!$AL$1))/INDEX($K47:$O47,1,aux!$AL$1),"n.d.") -> -0.1779631561 | AX47: 07
A48: 0702 | B48: Tomates, frescos ou refrigerados | C48: 0 | D48: 0 | E48: 0 | F48: 0 | G48: 0 | H48: 0 | I48: 0 | J48: 0 | K48: 0 | L48: 0 | M48: 0 | N48: 0.055 | O48: 0.045 | P48: 0.02 | Q48: 7.467621941e-07 | R48: 3.126120226e-07 | S48: 0.02 | U48: =G48-INDEX($C48:$G48,1,aux!$AL$1) -> 0 | V48: 0 | W48: 0 | X48: =+IF(INDEX($C48:$G48,1,aux!$AL$1)>0,(G48/INDEX($C48:$G48,1,aux!$AL$1))^(1/($G$3-INDEX($C$3:$G$3,1,aux!$AL$1)))-1,"n.d.") -> n.d. | Y48: =IF(INDEX($C48:$G48,1,aux!$AL$1)>0,(G48-INDEX($C48:$G48,1,aux!$AL$1))/INDEX($C48:$G48,1,aux!$AL$1),"n.d.") -> n.d. | AA48: =O48-INDEX($K48:$O48,1,aux!$AL$1) -> 0.045 | AB48: 4.294411082e-06 | AC48: 1.061467382e-06 | AD48: =+IF(INDEX($K48:$O48,1,aux!$AL$1)>0,(O48/INDEX($K48:$O48,1,aux!$AL$1))^(1/($O$3-INDEX($K$3:$O$3,1,aux!$AL$1)))-1,"n.d.") -> n.d. | AE48: =IF(INDEX($K48:$O48,1,aux!$AL$1)>0,(O48-INDEX($K48:$O48,1,aux!$AL$1))/INDEX($K48:$O48,1,aux!$AL$1),"n.d.") -> n.d. | AX48: 07
A49: 0703 | B49: Cebolas, alhos, etc., frescos ou refrigerados | C49: 0 | D49: 0 | E49: 0 | F49: 0 | G49: 0 | H49: 0 | I49: 0 | J49: 0 | K49: 0 | L49: 0 | M49: 0 | N49: 0.195 | O49: 0.079 | P49: 0.0548 | Q49: 2.046128412e-06 | R49: 8.565569418e-07 | S49: 0.0548 | U49: =G49-INDEX($C49:$G49,1,aux!$AL$1) -> 0 | V49: 0 | W49: 0 | X49: =+IF(INDEX($C49:$G49,1,aux!$AL$1)>0,(G49/INDEX($C49:$G49,1,aux!$AL$1))^(1/($G$3-INDEX($C$3:$G$3,1,aux!$AL$1)))-1,"n.d.") -> n.d. | Y49: =IF(INDEX($C49:$G49,1,aux!$AL$1)>0,(G49-INDEX($C49:$G49,1,aux!$AL$1))/INDEX($C49:$G49,1,aux!$AL$1),"n.d.") -> n.d. | AA49: =O49-INDEX($K49:$O49,1,aux!$AL$1) -> 0.079 | AB49: 7.539077232e-06 | AC49: 1.86346496e-06 | AD49: =+IF(INDEX($K49:$O49,1,aux!$AL$1)>0,(O49/INDEX($K49:$O49,1,aux!$AL$1))^(1/($O$3-INDEX($K$3:$O$3,1,aux!$AL$1)))-1,"n.d.") -> n.d. | AE49: =IF(INDEX($K49:$O49,1,aux!$AL$1)>0,(O49-INDEX($K49:$O49,1,aux!$AL$1))/INDEX($K49:$O49,1,aux!$AL$1),"n.d.") -> n.d. | AX49: 07
A50: 0704 | B50: Couves, frescas ou refrigeradas | C50: 5.015 | D50: 0 | E50: 0 | F50: 0 | G50: 0 | H50: 1.003 | I50: 9.094108885e-06 | J50: 8.479105859e-06 | K50: 0 | L50: 2.03 | M50: 81.798 | N50: 448.385 | O50: 560.315 | P50: 218.5056 | Q50: 0.008158586064 | R50: 0.003415373878 | S50: 217.5026 | U50: =G50-INDEX($C50:$G50,1,aux!$AL$1) -> -5.015 | V50: -0.0002983189741 | W50: -0.0001932781892 | X50: =+IF(INDEX($C50:$G50,1,aux!$AL$1)>0,(G50/INDEX($C50:$G50,1,aux!$AL$1))^(1/($G$3-INDEX($C$3:$G$3,1,aux!$AL$1)))-1,"n.d.") -> -1 | Y50: =IF(INDEX($C50:$G50,1,aux!$AL$1)>0,(G50-INDEX($C50:$G50,1,aux!$AL$1))/INDEX($C50:$G50,1,aux!$AL$1),"n.d.") -> -1 | AA50: =O50-INDEX($K50:$O50,1,aux!$AL$1) -> 560.315 | AB50: 0.053471621 | AC50: 0.01321680214 | AD50: =+IF(INDEX($K50:$O50,1,aux!$AL$1)>0,(O50/INDEX($K50:$O50,1,aux!$AL$1))^(1/($O$3-INDEX($K$3:$O$3,1,aux!$AL$1)))-1,"n.d.") -> n.d. | AE50: =IF(INDEX($K50:$O50,1,aux!$AL$1)>0,(O50-INDEX($K50:$O50,1,aux!$AL$1))/INDEX($K50:$O50,1,aux!$AL$1),"n.d.") -> n.d. | AX50: 07
A51: 0705 | B51: Alfaces, frescas ou refrigeradas | C51: 0 | D51: 0 | E51: 0 | F51: 0 | G51: 0 | H51: 0 | I51: 0 | J51: 0 | K51: 0 | L51: 0 | M51: 0 | N51: 0.058 | O51: 0.052 | P51: 0.022 | Q51: 8.214384135e-07 | R51: 3.438732248e-07 | S51: 0.022 | U51: =G51-INDEX($C51:$G51,1,aux!$AL$1) -> 0 | V51: 0 | W51: 0 | X51: =+IF(INDEX($C51:$G51,1,aux!$AL$1)>0,(G51/INDEX($C51:$G51,1,aux!$AL$1))^(1/($G$3-INDEX($C$3:$G$3,1,aux!$AL$1)))-1,"n.d.") -> n.d. | Y51: =IF(INDEX($C51:$G51,1,aux!$AL$1)>0,(G51-INDEX($C51:$G51,1,aux!$AL$1))/INDEX($C51:$G51,1,aux!$AL$1),"n.d.") -> n.d. | AA51: =O51-INDEX($K51:$O51,1,aux!$AL$1) -> 0.052 | AB51: 4.962430583e-06 | AC51: 1.226584531e-06 | AD51: =+IF(INDEX($K51:$O51,1,aux!$AL$1)>0,(O51/INDEX($K51:$O51,1,aux!$AL$1))^(1/($O$3-INDEX($K$3:$O$3,1,aux!$AL$1)))-1,"n.d.") -> n.d. | AE51: =IF(INDEX($K51:$O51,1,aux!$AL$1)>0,(O51-INDEX($K51:$O51,1,aux!$AL$1))/INDEX($K51:$O51,1,aux!$AL$1),"n.d.") -> n.d. | AX51: 07
A52: 0706 | B52: Cenouras, nabos, beterrabas, etc., frescos ou refrigerados | C52: 0 | D52: 0 | E52: 0 | F52: 0.009 | G52: 0 | H52: 0.0018 | I52: 1.632043469e-08 | J52: 1.521674033e-08 | K52: 0 | L52: 0 | M52: 0 | N52: 4.9 | O52: 0.098 | P52: 0.9996 | Q52: 3.732317446e-05 | R52: 1.562434889e-05 | S52: 0.9978 | U52: =G52-INDEX($C52:$G52,1,aux!$AL$1) -> 0 | V52: 0 | W52: 0 | X52: =+IF(INDEX($C52:$G52,1,aux!$AL$1)>0,(G52/INDEX($C52:$G52,1,aux!$AL$1))^(1/($G$3-INDEX($C$3:$G$3,1,aux!$AL$1)))-1,"n.d.") -> n.d. | Y52: =IF(INDEX($C52:$G52,1,aux!$AL$1)>0,(G52-INDEX($C52:$G52,1,aux!$AL$1))/INDEX($C52:$G52,1,aux!$AL$1),"n.d.") -> n.d. | AA52: =O52-INDEX($K52:$O52,1,aux!$AL$1) -> 0.098 | AB52: 9.352273022e-06 | AC52: 2.311640077e-06 | AD52: =+IF(INDEX($K52:$O52,1,aux!$AL$1)>0,(O52/INDEX($K52:$O52,1,aux!$AL$1))^(1/($O$3-INDEX($K$3:$O$3,1,aux!$AL$1)))-1,"n.d.") -> n.d. | AE52: =IF(INDEX($K52:$O52,1,aux!$AL$1)>0,(O52-INDEX($K52:$O52,1,aux!$AL$1))/INDEX($K52:$O52,1,aux!$AL$1),"n.d.") -> n.d. | AX52: 07
A53: 0707 | B53: Pepinos e pepininhos, frescos ou refrigerados | C53: 0 | D53: 0 | E53: 0 | F53: 0 | G53: 0 | H53: 0 | I53: 0 | J53: 0 | K53: 0 | L53: 0 | M53: 0 | N53: 0.375 | O53: 0.454 | P53: 0.1658 | Q53: 6.190658589e-06 | R53: 2.591553667e-06 | S53: 0.1658 | U53: =G53-INDEX($C53:$G53,1,aux!$AL$1) -> 0 | V53: 0 | W53: 0 | X53: =+IF(INDEX($C53:$G53,1,aux!$AL$1)>0,(G53/INDEX($C53:$G53,1,aux!$AL$1))^(1/($G$3-INDEX($C$3:$G$3,1,aux!$AL$1)))-1,"n.d.") -> n.d. | Y53: =IF(INDEX($C53:$G53,1,aux!$AL$1)>0,(G53-INDEX($C53:$G53,1,aux!$AL$1))/INDEX($C53:$G53,1,aux!$AL$1),"n.d.") -> n.d. | AA53: =O53-INDEX($K53:$O53,1,aux!$AL$1) -> 0.454 | AB53: 4.332583625e-05 | AC53: 1.070902648e-05 | AD53: =+IF(INDEX($K53:$O53,1,aux!$AL$1)>0,(O53/INDEX($K53:$O53,1,aux!$AL$1))^(1/($O$3-INDEX($K$3:$O$3,1,aux!$AL$1)))-1,"n.d.") -> n.d. | AE53: =IF(INDEX($K53:$O53,1,aux!$AL$1)>0,(O53-INDEX($K53:$O53,1,aux!$AL$1))/INDEX($K53:$O53,1,aux!$AL$1),"n.d.") -> n.d. | AX53: 07
A54: 0708 | B54: Tomates preparados ou conservados | C54: 0 | D54: 0 | E54: 0 | F54: 0 | G54: 0 | H54: 0 | I54: 0 | J54: 0 | K54: 0 | L54: 0 | M54: 0.142 | N54: 0.018 | O54: 0 | P54: 0.032 | Q54: 1.194819511e-06 | R54: 5.001792361e-07 | S54: 0.032 | U54: =G54-INDEX($C54:$G54,1,aux!$AL$1) -> 0 | V54: 0 | W54: 0 | X54: =+IF(INDEX($C54:$G54,1,aux!$AL$1)>0,(G54/INDEX($C54:$G54,1,aux!$AL$1))^(1/($G$3-INDEX($C$3:$G$3,1,aux!$AL$1)))-1,"n.d.") -> n.d. | Y54: =IF(INDEX($C54:$G54,1,aux!$AL$1)>0,(G54-INDEX($C54:$G54,1,aux!$AL$1))/INDEX($C54:$G54,1,aux!$AL$1),"n.d.") -> n.d. | AA54: =O54-INDEX($K54:$O54,1,aux!$AL$1) -> 0 | AB54: 0 | AC54: 0 | AD54: =+IF(INDEX($K54:$O54,1,aux!$AL$1)>0,(O54/INDEX($K54:$O54,1,aux!$AL$1))^(1/($O$3-INDEX($K$3:$O$3,1,aux!$AL$1)))-1,"n.d.") -> n.d. | AE54: =IF(INDEX($K54:$O54,1,aux!$AL$1)>0,(O54-INDEX($K54:$O54,1,aux!$AL$1))/INDEX($K54:$O54,1,aux!$AL$1),"n.d.") -> n.d. | AX54: 07
A55: 0709 | B55: Outros produtos hortícolas, frescos ou refrigerados | C55: 0 | D55: 0 | E55: 0 | F55: 0 | G55: 0 | H55: 0 | I55: 0 | J55: 0 | K55: 452.999 | L55: 510.693 | M55: 504.53 | N55: 584.317 | O55: 588.045 | P55: 528.1168 | Q55: 0.01971888301 | R55: 0.00825478305 | S55: 528.1168 | U55: =G55-INDEX($C55:$G55,1,aux!$AL$1) -> 0 | V55: 0 | W55: 0 | X55: =+IF(INDEX($C55:$G55,1,aux!$AL$1)>0,(G55/INDEX($C55:$G55,1,aux!$AL$1))^(1/($G$3-INDEX($C$3:$G$3,1,aux!$AL$1)))-1,"n.d.") -> n.d. | Y55: =IF(INDEX($C55:$G55,1,aux!$AL$1)>0,(G55-INDEX($C55:$G55,1,aux!$AL$1))/INDEX($C55:$G55,1,aux!$AL$1),"n.d.") -> n.d. | AA55: =O55-INDEX($K55:$O55,1,aux!$AL$1) -> 135.046 | AB55: 0.01288762309 | AC55: 0.003185487203 | AD55: =+IF(INDEX($K55:$O55,1,aux!$AL$1)>0,(O55/INDEX($K55:$O55,1,aux!$AL$1))^(1/($O$3-INDEX($K$3:$O$3,1,aux!$AL$1)))-1,"n.d.") -> 0.06740278003 | AE55: =IF(INDEX($K55:$O55,1,aux!$AL$1)>0,(O55-INDEX($K55:$O55,1,aux!$AL$1))/INDEX($K55:$O55,1,aux!$AL$1),"n.d.") -> 0.2981154484 | AX55: 07
A56: 0710 | B56: Produtos hortícolas congelados | C56: 0 | D56: 2.538 | E56: 0 | F56: 5.088 | G56: 1.884 | H56: 1.902 | I56: 1.724525932e-05 | J56: 1.607902228e-05 | K56: 268.182 | L56: 304.229 | M56: 374.602 | N56: 357.406 | O56: 399.354 | P56: 340.7546 | Q56: 0.01272313264 | R56: 0.005326199235 | S56: 338.8526 | U56: =G56-INDEX($C56:$G56,1,aux!$AL$1) -> 1.884 | V56: 0.0001120703783 | W56: 7.260939353e-05 | X56: =+IF(INDEX($C56:$G56,1,aux!$AL$1)>0,(G56/INDEX($C56:$G56,1,aux!$AL$1))^(1/($G$3-INDEX($C$3:$G$3,1,aux!$AL$1)))-1,"n.d.") -> n.d. | Y56: =IF(INDEX($C56:$G56,1,aux!$AL$1)>0,(G56-INDEX($C56:$G56,1,aux!$AL$1))/INDEX($C56:$G56,1,aux!$AL$1),"n.d.") -> n.d. | AA56: =O56-INDEX($K56:$O56,1,aux!$AL$1) -> 131.172 | AB56: 0.01251792201 | AC56: 0.003094106655 | AD56: =+IF(INDEX($K56:$O56,1,aux!$AL$1)>0,(O56/INDEX($K56:$O56,1,aux!$AL$1))^(1/($O$3-INDEX($K$3:$O$3,1,aux!$AL$1)))-1,"n.d.") -> 0.1046688389 | AE56: =IF(INDEX($K56:$O56,1,aux!$AL$1)>0,(O56-INDEX($K56:$O56,1,aux!$AL$1))/INDEX($K56:$O56,1,aux!$AL$1),"n.d.") -> 0.4891156006 | AX56: 07
A57: 0711 | B57: Produtos hortícolas conservados transitoriamente | C57: 0 | D57: 0 | E57: 0 | F57: 0 | G57: 0 | H57: 0 | I57: 0 | J57: 0 | K57: 0 | L57: 0.086 | M57: 0.043 | N57: 0.587 | O57: 0.223 | P57: 0.1878 | Q57: 7.012097002e-06 | R57: 2.935426892e-06 | S57: 0.1878 | U57: =G57-INDEX($C57:$G57,1,aux!$AL$1) -> 0 | V57: 0 | W57: 0 | X57: =+IF(INDEX($C57:$G57,1,aux!$AL$1)>0,(G57/INDEX($C57:$G57,1,aux!$AL$1))^(1/($G$3-INDEX($C$3:$G$3,1,aux!$AL$1)))-1,"n.d.") -> n.d. | Y57: =IF(INDEX($C57:$G57,1,aux!$AL$1)>0,(G57-INDEX($C57:$G57,1,aux!$AL$1))/INDEX($C57:$G57,1,aux!$AL$1),"n.d.") -> n.d. | AA57: =O57-INDEX($K57:$O57,1,aux!$AL$1) -> 0.223 | AB57: 2.128119269e-05 | AC57: 5.260160584e-06 | AD57: =+IF(INDEX($K57:$O57,1,aux!$AL$1)>0,(O57/INDEX($K57:$O57,1,aux!$AL$1))^(1/($O$3-INDEX($K$3:$O$3,1,aux!$AL$1)))-1,"n.d.") -> n.d. | AE57: =IF(INDEX($K57:$O57,1,aux!$AL$1)>0,(O57-INDEX($K57:$O57,1,aux!$AL$1))/INDEX($K57:$O57,1,aux!$AL$1),"n.d.") -> n.d. | AX57: 07
A58: 0712 | B58: Produtos hortícolas secos | C58: 0 | D58: 0 | E58: 0 | F58: 1.291 | G58: 1.131 | H58: 0.4844 | I58: 4.392010313e-06 | J58: 4.094993897e-06 | K58: 559.618 | L58: 674.905 | M58: 605.659 | N58: 361.603 | O58: 273.866 | P58: 495.1302 | Q58: 0.01848722573 | R58: 0.007739182663 | S58: 494.6458 | U58: =G58-INDEX($C58:$G58,1,aux!$AL$1) -> 1.131 | V58: 6.727791818e-05 | W58: 4.358876013e-05 | X58: =+IF(INDEX($C58:$G58,1,aux!$AL$1)>0,(G58/INDEX($C58:$G58,1,aux!$AL$1))^(1/($G$3-INDEX($C$3:$G$3,1,aux!$AL$1)))-1,"n.d.") -> n.d. | Y58: =IF(INDEX($C58:$G58,1,aux!$AL$1)>0,(G58-INDEX($C58:$G58,1,aux!$AL$1))/INDEX($C58:$G58,1,aux!$AL$1),"n.d.") -> n.d. | AA58: =O58-INDEX($K58:$O58,1,aux!$AL$1) -> -285.752 | AB58: -0.02726970123 | AC58: -0.006740365055 | AD58: =+IF(INDEX($K58:$O58,1,aux!$AL$1)>0,(O58/INDEX($K58:$O58,1,aux!$AL$1))^(1/($O$3-INDEX($K$3:$O$3,1,aux!$AL$1)))-1,"n.d.") -> -0.1636046476 | AE58: =IF(INDEX($K58:$O58,1,aux!$AL$1)>0,(O58-INDEX($K58:$O58,1,aux!$AL$1))/INDEX($K58:$O58,1,aux!$AL$1),"n.d.") -> -0.5106197442 | AX58: 07
A59: 0713 | B59: Legumes de vagem, secos, em grão | C59: 0 | D59: 0 | E59: 0 | F59: 0.03 | G59: 0.015 | H59: 0.009 | I59: 8.160217345e-08 | J59: 7.608370163e-08 | K59: 25.771 | L59: 97.623 | M59: 22.597 | N59: 24.82 | O59: 33.876 | P59: 40.9374 | Q59: 0.001528525132 | R59: 0.0006398761706 | S59: 40.9284 | U59: =G59-INDEX($C59:$G59,1,aux!$AL$1) -> 0.015 | V59: 8.92280082e-07 | W59: 5.781002669e-07 | X59: =+IF(INDEX($C59:$G59,1,aux!$AL$1)>0,(G59/INDEX($C59:$G59,1,aux!$AL$1))^(1/($G$3-INDEX($C$3:$G$3,1,aux!$AL$1)))-1,"n.d.") -> n.d. | Y59: =IF(INDEX($C59:$G59,1,aux!$AL$1)>0,(G59-INDEX($C59:$G59,1,aux!$AL$1))/INDEX($C59:$G59,1,aux!$AL$1),"n.d.") -> n.d. | AA59: =O59-INDEX($K59:$O59,1,aux!$AL$1) -> 8.105 | AB59: 0.0007734711515 | AC59: 0.0001911820697 | AD59: =+IF(INDEX($K59:$O59,1,aux!$AL$1)>0,(O59/INDEX($K59:$O59,1,aux!$AL$1))^(1/($O$3-INDEX($K$3:$O$3,1,aux!$AL$1)))-1,"n.d.") -> 0.07075525212 | AE59: =IF(INDEX($K59:$O59,1,aux!$AL$1)>0,(O59-INDEX($K59:$O59,1,aux!$AL$1))/INDEX($K59:$O59,1,aux!$AL$1),"n.d.") -> 0.3145007955 | AX59: 07
A60: 0714 | B60: Raízes de mandioca, de araruta, batata-doce, etc. | C60: 0 | D60: 0 | E60: 0 | F60: 0 | G60: 0 | H60: 0 | I60: 0 | J60: 0 | K60: 0.287 | L60: 3.053 | M60: 3.358 | N60: 1.3 | O60: 35.267 | P60: 8.653 | Q60: 0.0003230866633 | R60: 0.0001352515916 | S60: 8.653 | U60: =G60-INDEX($C60:$G60,1,aux!$AL$1) -> 0 | V60: 0 | W60: 0 | X60: =+IF(INDEX($C60:$G60,1,aux!$AL$1)>0,(G60/INDEX($C60:$G60,1,aux!$AL$1))^(1/($G$3-INDEX($C$3:$G$3,1,aux!$AL$1)))-1,"n.d.") -> n.d. | Y60: =IF(INDEX($C60:$G60,1,aux!$AL$1)>0,(G60-INDEX($C60:$G60,1,aux!$AL$1))/INDEX($C60:$G60,1,aux!$AL$1),"n.d.") -> n.d. | AA60: =O60-INDEX($K60:$O60,1,aux!$AL$1) -> 34.98 | AB60: 0.003338188881 | AC60: 0.0008251139786 | AD60: =+IF(INDEX($K60:$O60,1,aux!$AL$1)>0,(O60/INDEX($K60:$O60,1,aux!$AL$1))^(1/($O$3-INDEX($K$3:$O$3,1,aux!$AL$1)))-1,"n.d.") -> 2.329443545 | AE60: =IF(INDEX($K60:$O60,1,aux!$AL$1)>0,(O60-INDEX($K60:$O60,1,aux!$AL$1))/INDEX($K60:$O60,1,aux!$AL$1),"n.d.") -> 121.8815331 | AX60: 07
A61: 07SS | B61: Produtos hortícolas, plantas, raízes e tubérculos, comestíveis | C61: 0 | D61: 0 | E61: 0 | F61: 0 | G61: 0 | H61: 0 | I61: 0 | J61: 0 | K61: 0 | L61: 0 | M61: 0 | N61: 0 | O61: 0 | P61: 0 | Q61: 0 | R61: 0 | S61: 0 | U61: =G61-INDEX($C61:$G61,1,aux!$AL$1) -> 0 | V61: 0 | W61: 0 | X61: =+IF(INDEX($C61:$G61,1,aux!$AL$1)>0,(G61/INDEX($C61:$G61,1,aux!$AL$1))^(1/($G$3-INDEX($C$3:$G$3,1,aux!$AL$1)))-1,"n.d.") -> n.d. | Y61: =IF(INDEX($C61:$G61,1,aux!$AL$1)>0,(G61-INDEX($C61:$G61,1,aux!$AL$1))/INDEX($C61:$G61,1,aux!$AL$1),"n.d.") -> n.d. | AA61: =O61-INDEX($K61:$O61,1,aux!$AL$1) -> 0 | AB61: 0 | AC61: 0 | AD61: =+IF(INDEX($K61:$O61,1,aux!$AL$1)>0,(O61/INDEX($K61:$O61,1,aux!$AL$1))^(1/($O$3-INDEX($K$3:$O$3,1,aux!$AL$1)))-1,"n.d.") -> n.d. | AE61: =IF(INDEX($K61:$O61,1,aux!$AL$1)>0,(O61-INDEX($K61:$O61,1,aux!$AL$1))/INDEX($K61:$O61,1,aux!$AL$1),"n.d.") -> n.d. | AX61: 07
A62: 0801 | B62: Cocos, castanhas do brasil e castanha de cajú | C62: 0 | D62: 0 | E62: 0 | F62: 4.843 | G62: 0 | H62: 0.9686 | I62: 8.782207244e-06 | J62: 8.188297044e-06 | K62: 0 | L62: 12.278 | M62: 1.056 | N62: 1.103 | O62: 2.129 | P62: 3.3132 | Q62: 0.0001237086251 | R62: 5.178730766e-05 | S62: 2.3446 | U62: =G62-INDEX($C62:$G62,1,aux!$AL$1) -> 0 | V62: 0 | W62: 0 | X62: =+IF(INDEX($C62:$G62,1,aux!$AL$1)>0,(G62/INDEX($C62:$G62,1,aux!$AL$1))^(1/($G$3-INDEX($C$3:$G$3,1,aux!$AL$1)))-1,"n.d.") -> n.d. | Y62: =IF(INDEX($C62:$G62,1,aux!$AL$1)>0,(G62-INDEX($C62:$G62,1,aux!$AL$1))/INDEX($C62:$G62,1,aux!$AL$1),"n.d.") -> n.d. | AA62: =O62-INDEX($K62:$O62,1,aux!$AL$1) -> 2.129 | AB62: 0.0002031733598 | AC62: 5.021920127e-05 | AD62: =+IF(INDEX($K62:$O62,1,aux!$AL$1)>0,(O62/INDEX($K62:$O62,1,aux!$AL$1))^(1/($O$3-INDEX($K$3:$O$3,1,aux!$AL$1)))-1,"n.d.") -> n.d. | AE62: =IF(INDEX($K62:$O62,1,aux!$AL$1)>0,(O62-INDEX($K62:$O62,1,aux!$AL$1))/INDEX($K62:$O62,1,aux!$AL$1),"n.d.") -> n.d. | AX62: 08
A63: 0802 | B63: Frutas de casca rija | C63: 0 | D63: 0 | E63: 0 | F63: 0.07 | G63: 0.062 | H63: 0.0264 | I63: 2.393663754e-07 | J63: 2.231788581e-07 | K63: 1.136 | L63: 1.908 | M63: 0.848 | N63: 2.66 | O63: 14.433 | P63: 4.197 | Q63: 0.0001567080464 | R63: 6.560163294e-05 | S63: 4.1706 | U63: =G63-INDEX($C63:$G63,1,aux!$AL$1) -> 0.062 | V63: 3.688091005e-06 | W63: 2.389481103e-06 | X63: =+IF(INDEX($C63:$G63,1,aux!$AL$1)>0,(G63/INDEX($C63:$G63,1,aux!$AL$1))^(1/($G$3-INDEX($C$3:$G$3,1,aux!$AL$1)))-1,"n.d.") -> n.d. | Y63: =IF(INDEX($C63:$G63,1,aux!$AL$1)>0,(G63-INDEX($C63:$G63,1,aux!$AL$1))/INDEX($C63:$G63,1,aux!$AL$1),"n.d.") -> n.d. | AA63: =O63-INDEX($K63:$O63,1,aux!$AL$1) -> 13.297 | AB63: 0.001268950759 | AC63: 0.0003136518174 | AD63: =+IF(INDEX($K63:$O63,1,aux!$AL$1)>0,(O63/INDEX($K63:$O63,1,aux!$AL$1))^(1/($O$3-INDEX($K$3:$O$3,1,aux!$AL$1)))-1,"n.d.") -> 0.8879677439 | AE63: =IF(INDEX($K63:$O63,1,aux!$AL$1)>0,(O63-INDEX($K63:$O63,1,aux!$AL$1))/INDEX($K63:$O63,1,aux!$AL$1),"n.d.") -> 11.70510563 | AX63: 08
A64: 0803 | B64: Bananas, frescas ou secas | C64: 0 | D64: 0 | E64: 0 | F64: 0 | G64: 0 | H64: 0 | I64: 0 | J64: 0 | K64: 0 | L64: 0 | M64: 0 | N64: 0.183 | O64: 0.207 | P64: 0.078 | Q64: 2.912372557e-06 | R64: 1.219186888e-06 | S64: 0.078 | U64: =G64-INDEX($C64:$G64,1,aux!$AL$1) -> 0 | V64: 0 | W64: 0 | X64: =+IF(INDEX($C64:$G64,1,aux!$AL$1)>0,(G64/INDEX($C64:$G64,1,aux!$AL$1))^(1/($G$3-INDEX($C$3:$G$3,1,aux!$AL$1)))-1,"n.d.") -> n.d. | Y64: =IF(INDEX($C64:$G64,1,aux!$AL$1)>0,(G64-INDEX($C64:$G64,1,aux!$AL$1))/INDEX($C64:$G64,1,aux!$AL$1),"n.d.") -> n.d. | AA64: =O64-INDEX($K64:$O64,1,aux!$AL$1) -> 0.207 | AB64: 1.975429098e-05 | AC64: 4.882749959e-06 | AD64: =+IF(INDEX($K64:$O64,1,aux!$AL$1)>0,(O64/INDEX($K64:$O64,1,aux!$AL$1))^(1/($O$3-INDEX($K$3:$O$3,1,aux!$AL$1)))-1,"n.d.") -> n.d. | AE64: =IF(INDEX($K64:$O64,1,aux!$AL$1)>0,(O64-INDEX($K64:$O64,1,aux!$AL$1))/INDEX($K64:$O64,1,aux!$AL$1),"n.d.") -> n.d. | AX64: 08
A65: 0804 | B65: Tâmaras, figos, ananases, abacates, goiabas, mangas | C65: 0 | D65: 0 | E65: 0 | F65: 0 | G65: 0 | H65: 0 | I65: 0 | J65: 0 | K65: 9.559 | L65: 0.064 | M65: 0.033 | N65: 0.173 | O65: 77.984 | P65: 17.5626 | Q65: 0.0006557542855 | R65: 0.0002745139954 | S65: 17.5626 | U65: =G65-INDEX($C65:$G65,1,aux!$AL$1) -> 0 | V65: 0 | W65: 0 | X65: =+IF(INDEX($C65:$G65,1,aux!$AL$1)>0,(G65/INDEX($C65:$G65,1,aux!$AL$1))^(1/($G$3-INDEX($C$3:$G$3,1,aux!$AL$1)))-1,"n.d.") -> n.d. | Y65: =IF(INDEX($C65:$G65,1,aux!$AL$1)>0,(G65-INDEX($C65:$G65,1,aux!$AL$1))/INDEX($C65:$G65,1,aux!$AL$1),"n.d.") -> n.d. | AA65: =O65-INDEX($K65:$O65,1,aux!$AL$1) -> 68.425 | AB65: 0.006529890628 | AC65: 0.001614020125 | AD65: =+IF(INDEX($K65:$O65,1,aux!$AL$1)>0,(O65/INDEX($K65:$O65,1,aux!$AL$1))^(1/($O$3-INDEX($K$3:$O$3,1,aux!$AL$1)))-1,"n.d.") -> 0.6900449726 | AE65: =IF(INDEX($K65:$O65,1,aux!$AL$1)>0,(O65-INDEX($K65:$O65,1,aux!$AL$1))/INDEX($K65:$O65,1,aux!$AL$1),"n.d.") -> 7.158175541 | AX65: 08
A66: 0805 | B66: Citrinos, frescos ou secos | C66: 0 | D66: 0 | E66: 0 | F66: 3.022 | G66: 1.858 | H66: 0.976 | I66: 8.849302365e-06 | J66: 8.250854754e-06 | K66: 0 | L66: 521.351 | M66: 2435.938 | N66: 32.007 | O66: 0.441 | P66: 597.9474 | Q66: 0.02232622562 | R66: 0.009346277305 | S66: 596.9714 | U66: =G66-INDEX($C66:$G66,1,aux!$AL$1) -> 1.858 | V66: 0.0001105237595 | W66: 7.160735307e-05 | X66: =+IF(INDEX($C66:$G66,1,aux!$AL$1)>0,(G66/INDEX($C66:$G66,1,aux!$AL$1))^(1/($G$3-INDEX($C$3:$G$3,1,aux!$AL$1)))-1,"n.d.") -> n.d. | Y66: =IF(INDEX($C66:$G66,1,aux!$AL$1)>0,(G66-INDEX($C66:$G66,1,aux!$AL$1))/INDEX($C66:$G66,1,aux!$AL$1),"n.d.") -> n.d. | AA66: =O66-INDEX($K66:$O66,1,aux!$AL$1) -> 0.441 | AB66: 4.20852286e-05 | AC66: 1.040238035e-05 | AD66: =+IF(INDEX($K66:$O66,1,aux!$AL$1)>0,(O66/INDEX($K66:$O66,1,aux!$AL$1))^(1/($O$3-INDEX($K$3:$O$3,1,aux!$AL$1)))-1,"n.d.") -> n.d. | AE66: =IF(INDEX($K66:$O66,1,aux!$AL$1)>0,(O66-INDEX($K66:$O66,1,aux!$AL$1))/INDEX($K66:$O66,1,aux!$AL$1),"n.d.") -> n.d. | AX66: 08
A67: 0806 | B67: Uvas, frescas ou secas | C67: 0 | D67: 0 | E67: 0 | F67: 0.347 | G67: 0.431 | H67: 0.1556 | I67: 1.41081091e-06 | J67: 1.315402664e-06 | K67: 0 | L67: 0 | M67: 100.857 | N67: 0.353 | O67: 0.352 | P67: 20.3124 | Q67: 0.0007584266196 | R67: 0.0003174950224 | S67: 20.1568 | U67: =G67-INDEX($C67:$G67,1,aux!$AL$1) -> 0.431 | V67: 2.563818102e-05 | W67: 1.661074767e-05 | X67: =+IF(INDEX($C67:$G67,1,aux!$AL$1)>0,(G67/INDEX($C67:$G67,1,aux!$AL$1))^(1/($G$3-INDEX($C$3:$G$3,1,aux!$AL$1)))-1,"n.d.") -> n.d. | Y67: =IF(INDEX($C67:$G67,1,aux!$AL$1)>0,(G67-INDEX($C67:$G67,1,aux!$AL$1))/INDEX($C67:$G67,1,aux!$AL$1),"n.d.") -> n.d. | AA67: =O67-INDEX($K67:$O67,1,aux!$AL$1) -> 0.352 | AB67: 3.359183779e-05 | AC67: 8.303033747e-06 | AD67: =+IF(INDEX($K67:$O67,1,aux!$AL$1)>0,(O67/INDEX($K67:$O67,1,aux!$AL$1))^(1/($O$3-INDEX($K$3:$O$3,1,aux!$AL$1)))-1,"n.d.") -> n.d. | AE67: =IF(INDEX($K67:$O67,1,aux!$AL$1)>0,(O67-INDEX($K67:$O67,1,aux!$AL$1))/INDEX($K67:$O67,1,aux!$AL$1),"n.d.") -> n.d. | AX67: 08
A68: 0807 | B68: Melões, melancias e papaia, frescos | C68: 0 | D68: 0 | E68: 0 | F68: 0 | G68: 0 | H68: 0 | I68: 0 | J68: 0 | K68: 3.897 | L68: 0 | M68: 0 | N68: 0.303 | O68: 0.336 | P68: 0.9072 | Q68: 3.387313312e-05 | R68: 1.418008134e-05 | S68: 0.9072 | U68: =G68-INDEX($C68:$G68,1,aux!$AL$1) -> 0 | V68: =IF($U$237<>0,U68/$U$237, "n.d.") -> 0 | W68: =IF($U$322<>0,U68/$U$322, "n.d.") -> 0 | X68: =+IF(INDEX($C68:$G68,1,aux!$AL$1)>0,(G68/INDEX($C68:$G68,1,aux!$AL$1))^(1/($G$3-INDEX($C$3:$G$3,1,aux!$AL$1)))-1,"n.d.") -> n.d. | Y68: =IF(INDEX($C68:$G68,1,aux!$AL$1)>0,(G68-INDEX($C68:$G68,1,aux!$AL$1))/INDEX($C68:$G68,1,aux!$AL$1),"n.d.") -> n.d. | AA68: =O68-INDEX($K68:$O68,1,aux!$AL$1) -> -3.561 | AB68: =IF($AA$237<>0,AA68/$AA$237, "n.d.") -> -0.0003398310636 | AC68: =IF($AA$322<>0,AA68/$AA$322, "n.d.") -> -8.39974522e-05 | AD68: =+IF(INDEX($K68:$O68,1,aux!$AL$1)>0,(O68/INDEX($K68:$O68,1,aux!$AL$1))^(1/($O$3-INDEX($K$3:$O$3,1,aux!$AL$1)))-1,"n.d.") -> -0.4581211282 | AE68: =IF(INDEX($K68:$O68,1,aux!$AL$1)>0,(O68-INDEX($K68:$O68,1,aux!$AL$1))/INDEX($K68:$O68,1,aux!$AL$1),"n.d.") -> -0.9137798306 | AX68: 08
A69: 0808 | B69: Maçãs, peras e marmelos, frescos | C69: 13.142 | D69: 0 | E69: 0 | F69: 0 | G69: 0 | H69: 2.6284 | I69: 2.383146141e-05 | J69: 2.221982237e-05 | K69: 2747.223 | L69: 2633.956 | M69: 2612.436 | N69: 2414.028 | O69: 3123.341 | P69: 2706.1968 | Q69: 0.101044273 | R69: 0.04229948276 | S69: 2703.5684 | U69: =G69-INDEX($C69:$G69,1,aux!$AL$1) -> -13.142 | V69: -0.0007817563225 | W69: -0.0005064929139 | X69: =+IF(INDEX($C69:$G69,1,aux!$AL$1)>0,(G69/INDEX($C69:$G69,1,aux!$AL$1))^(1/($G$3-INDEX($C$3:$G$3,1,aux!$AL$1)))-1,"n.d.") -> -1 | Y69: =IF(INDEX($C69:$G69,1,aux!$AL$1)>0,(G69-INDEX($C69:$G69,1,aux!$AL$1))/INDEX($C69:$G69,1,aux!$AL$1),"n.d.") -> -1 | AA69: =O69-INDEX($K69:$O69,1,aux!$AL$1) -> 376.118 | AB69: 0.03589345127 | AC69: 0.008871933088 | AD69: =+IF(INDEX($K69:$O69,1,aux!$AL$1)>0,(O69/INDEX($K69:$O69,1,aux!$AL$1))^(1/($O$3-INDEX($K$3:$O$3,1,aux!$AL$1)))-1,"n.d.") -> 0.03259822008 | AE69: =IF(INDEX($K69:$O69,1,aux!$AL$1)>0,(O69-INDEX($K69:$O69,1,aux!$AL$1))/INDEX($K69:$O69,1,aux!$AL$1),"n.d.") -> 0.1369084344 | AX69: 08
A70: 0809 | B70: Damascos, cerejas, pêssegos, etc., frescos | C70: 0 | D70: 0 | E70: 0 | F70: 0 | G70: 0 | H70: 0 | I70: 0 | J70: 0 | K70: 4.537 | L70: 29.62 | M70: 76.233 | N70: 139.501 | O70: 0.049 | P70: 49.988 | Q70: 0.001866457428 | R70: 0.0007813424892 | S70: 49.988 | U70: =G70-INDEX($C70:$G70,1,aux!$AL$1) -> 0 | V70: 0 | W70: 0 | X70: =+IF(INDEX($C70:$G70,1,aux!$AL$1)>0,(G70/INDEX($C70:$G70,1,aux!$AL$1))^(1/($G$3-INDEX($C$3:$G$3,1,aux!$AL$1)))-1,"n.d.") -> n.d. | Y70: =IF(INDEX($C70:$G70,1,aux!$AL$1)>0,(G70-INDEX($C70:$G70,1,aux!$AL$1))/INDEX($C70:$G70,1,aux!$AL$1),"n.d.") -> n.d. | AA70: =O70-INDEX($K70:$O70,1,aux!$AL$1) -> -4.488 | AB70: -0.0004282959319 | AC70: -0.0001058636803 | AD70: =+IF(INDEX($K70:$O70,1,aux!$AL$1)>0,(O70/INDEX($K70:$O70,1,aux!$AL$1))^(1/($O$3-INDEX($K$3:$O$3,1,aux!$AL$1)))-1,"n.d.") -> -0.6776283625 | AE70: =IF(INDEX($K70:$O70,1,aux!$AL$1)>0,(O70-INDEX($K70:$O70,1,aux!$AL$1))/INDEX($K70:$O70,1,aux!$AL$1),"n.d.") -> -0.9891999118 | AX70: 08
A71: 0810 | B71: Outras frutas frescas | C71: 0 | D71: 20.9 | E71: 0 | F71: 0 | G71: 0 | H71: 4.18 | I71: 3.789967611e-05 | J71: 3.533665253e-05 | K71: 344.988 | L71: 782.346 | M71: 333.05 | N71: 314.097 | O71: 247.296 | P71: 404.3554 | Q71: 0.01509786628 | R71: 0.006320317971 | S71: 400.1754 | U71: =G71-INDEX($C71:$G71,1,aux!$AL$1) -> 0 | V71: 0 | W71: 0 | X71: =+IF(INDEX($C71:$G71,1,aux!$AL$1)>0,(G71/INDEX($C71:$G71,1,aux!$AL$1))^(1/($G$3-INDEX($C$3:$G$3,1,aux!$AL$1)))-1,"n.d.") -> n.d. | Y71: =IF(INDEX($C71:$G71,1,aux!$AL$1)>0,(G71-INDEX($C71:$G71,1,aux!$AL$1))/INDEX($C71:$G71,1,aux!$AL$1),"n.d.") -> n.d. | AA71: =O71-INDEX($K71:$O71,1,aux!$AL$1) -> -97.692 | AB71: -0.009322880164 | AC71: -0.002304374923 | AD71: =+IF(INDEX($K71:$O71,1,aux!$AL$1)>0,(O71/INDEX($K71:$O71,1,aux!$AL$1))^(1/($O$3-INDEX($K$3:$O$3,1,aux!$AL$1)))-1,"n.d.") -> -0.07986134517 | AE71: =IF(INDEX($K71:$O71,1,aux!$AL$1)>0,(O71-INDEX($K71:$O71,1,aux!$AL$1))/INDEX($K71:$O71,1,aux!$AL$1),"n.d.") -> -0.283175067 | AX71: 08
A72: 0811 | B72: Frutas não cozidas ou cozidas em água ou vapor, congeladas | C72: 0 | D72: 0 | E72: 0 | F72: 0 | G72: 0 | H72: 0 | I72: 0 | J72: 0 | K72: 29.933 | L72: 24.021 | M72: 45.593 | N72: 43.679 | O72: 39.128 | P72: 36.4708 | Q72: 0.001361750731 | R72: 0.0005700605276 | S72: 36.4708 | U72: =G72-INDEX($C72:$G72,1,aux!$AL$1) -> 0 | V72: 0 | W72: 0 | X72: =+IF(INDEX($C72:$G72,1,aux!$AL$1)>0,(G72/INDEX($C72:$G72,1,aux!$AL$1))^(1/($G$3-INDEX($C$3:$G$3,1,aux!$AL$1)))-1,"n.d.") -> n.d. | Y72: =IF(INDEX($C72:$G72,1,aux!$AL$1)>0,(G72-INDEX($C72:$G72,1,aux!$AL$1))/INDEX($C72:$G72,1,aux!$AL$1),"n.d.") -> n.d. | AA72: =O72-INDEX($K72:$O72,1,aux!$AL$1) -> 9.195 | AB72: 0.000877491331 | AC72: 0.0002168931685 | AD72: =+IF(INDEX($K72:$O72,1,aux!$AL$1)>0,(O72/INDEX($K72:$O72,1,aux!$AL$1))^(1/($O$3-INDEX($K$3:$O$3,1,aux!$AL$1)))-1,"n.d.") -> 0.06926253703 | AE72: =IF(INDEX($K72:$O72,1,aux!$AL$1)>0,(O72-INDEX($K72:$O72,1,aux!$AL$1))/INDEX($K72:$O72,1,aux!$AL$1),"n.d.") -> 0.3071860488 | AX72: 08
A73: 0812 | B73: Frutas conservadas transitoriamente | C73: 0 | D73: 0 | E73: 0 | F73: 0 | G73: 0 | H73: 0 | I73: 0 | J73: 0 | K73: 0 | L73: 0 | M73: 0 | N73: 1.307 | O73: 0 | P73: 0.2614 | Q73: 9.760181877e-06 | R73: 4.085839135e-06 | S73: 0.2614 | U73: =G73-INDEX($C73:$G73,1,aux!$AL$1) -> 0 | V73: 0 | W73: 0 | X73: =+IF(INDEX($C73:$G73,1,aux!$AL$1)>0,(G73/INDEX($C73:$G73,1,aux!$AL$1))^(1/($G$3-INDEX($C$3:$G$3,1,aux!$AL$1)))-1,"n.d.") -> n.d. | Y73: =IF(INDEX($C73:$G73,1,aux!$AL$1)>0,(G73-INDEX($C73:$G73,1,aux!$AL$1))/INDEX($C73:$G73,1,aux!$AL$1),"n.d.") -> n.d. | AA73: =O73-INDEX($K73:$O73,1,aux!$AL$1) -> 0 | AB73: 0 | AC73: 0 | AD73: =+IF(INDEX($K73:$O73,1,aux!$AL$1)>0,(O73/INDEX($K73:$O73,1,aux!$AL$1))^(1/($O$3-INDEX($K$3:$O$3,1,aux!$AL$1)))-1,"n.d.") -> n.d. | AE73: =IF(INDEX($K73:$O73,1,aux!$AL$1)>0,(O73-INDEX($K73:$O73,1,aux!$AL$1))/INDEX($K73:$O73,1,aux!$AL$1),"n.d.") -> n.d. | AX73: 08
A74: 0813 | B74: Outras frutas secas | C74: 0 | D74: 0 | E74: 0 | F74: 0.047 | G74: 0.091 | H74: 0.0276 | I74: 2.502466652e-07 | J74: 2.333233517e-07 | K74: 48.153 | L74: 0.116 | M74: 12.818 | N74: 22.874 | O74: 27.214 | P74: 22.235 | Q74: 0.0008302128693 | R74: 0.0003475464161 | S74: 22.2074 | U74: =G74-INDEX($C74:$G74,1,aux!$AL$1) -> 0.091 | V74: 5.413165831e-06 | W74: 3.507141619e-06 | X74: =+IF(INDEX($C74:$G74,1,aux!$AL$1)>0,(G74/INDEX($C74:$G74,1,aux!$AL$1))^(1/($G$3-INDEX($C$3:$G$3,1,aux!$AL$1)))-1,"n.d.") -> n.d. | Y74: =IF(INDEX($C74:$G74,1,aux!$AL$1)>0,(G74-INDEX($C74:$G74,1,aux!$AL$1))/INDEX($C74:$G74,1,aux!$AL$1),"n.d.") -> n.d. | AA74: =O74-INDEX($K74:$O74,1,aux!$AL$1) -> -20.939 | AB74: -0.001998237192 | AC74: -0.0004939125671 | AD74: =+IF(INDEX($K74:$O74,1,aux!$AL$1)>0,(O74/INDEX($K74:$O74,1,aux!$AL$1))^(1/($O$3-INDEX($K$3:$O$3,1,aux!$AL$1)))-1,"n.d.") -> -0.132953763 | AE74: =IF(INDEX($K74:$O74,1,aux!$AL$1)>0,(O74-INDEX($K74:$O74,1,aux!$AL$1))/INDEX($K74:$O74,1,aux!$AL$1),"n.d.") -> -0.4348431043 | AX74: 08
A75: 0814 | B75: Cascas de citrinos, melões ou melancias | C75: 0 | D75: 0 | E75: 0 | F75: 0 | G75: 0 | H75: 0 | I75: 0 | J75: 0 | K75: 0 | L75: 0 | M75: 0 | N75: 0 | O75: 0 | P75: 0 | Q75: 0 | R75: 0 | S75: 0 | U75: =G75-INDEX($C75:$G75,1,aux!$AL$1) -> 0 | V75: 0 | W75: 0 | X75: =+IF(INDEX($C75:$G75,1,aux!$AL$1)>0,(G75/INDEX($C75:$G75,1,aux!$AL$1))^(1/($G$3-INDEX($C$3:$G$3,1,aux!$AL$1)))-1,"n.d.") -> n.d. | Y75: =IF(INDEX($C75:$G75,1,aux!$AL$1)>0,(G75-INDEX($C75:$G75,1,aux!$AL$1))/INDEX($C75:$G75,1,aux!$AL$1),"n.d.") -> n.d. | AA75: =O75-INDEX($K75:$O75,1,aux!$AL$1) -> 0 | AB75: 0 | AC75: 0 | AD75: =+IF(INDEX($K75:$O75,1,aux!$AL$1)>0,(O75/INDEX($K75:$O75,1,aux!$AL$1))^(1/($O$3-INDEX($K$3:$O$3,1,aux!$AL$1)))-1,"n.d.") -> n.d. | AE75: =IF(INDEX($K75:$O75,1,aux!$AL$1)>0,(O75-INDEX($K75:$O75,1,aux!$AL$1))/INDEX($K75:$O75,1,aux!$AL$1),"n.d.") -> n.d. | AX75: =+LEFT(A75,2) -> 08
A76: 08SS | B76: Frutas; cascas de citrinos e de melões | C76: 0 | D76: 0 | E76: 0 | F76: 0 | G76: 0 | H76: 0 | I76: 0 | J76: 0 | K76: 0 | L76: 0 | M76: 0 | N76: 0 | O76: 0 | P76: 0 | Q76: 0 | R76: 0 | S76: 0 | U76: =G76-INDEX($C76:$G76,1,aux!$AL$1) -> 0 | V76: 0 | W76: 0 | X76: =+IF(INDEX($C76:$G76,1,aux!$AL$1)>0,(G76/INDEX($C76:$G76,1,aux!$AL$1))^(1/($G$3-INDEX($C$3:$G$3,1,aux!$AL$1)))-1,"n.d.") -> n.d. | Y76: =IF(INDEX($C76:$G76,1,aux!$AL$1)>0,(G76-INDEX($C76:$G76,1,aux!$AL$1))/INDEX($C76:$G76,1,aux!$AL$1),"n.d.") -> n.d. | AA76: =O76-INDEX($K76:$O76,1,aux!$AL$1) -> 0 | AB76: 0 | AC76: 0 | AD76: =+IF(INDEX($K76:$O76,1,aux!$AL$1)>0,(O76/INDEX($K76:$O76,1,aux!$AL$1))^(1/($O$3-INDEX($K$3:$O$3,1,aux!$AL$1)))-1,"n.d.") -> n.d. | AE76: =IF(INDEX($K76:$O76,1,aux!$AL$1)>0,(O76-INDEX($K76:$O76,1,aux!$AL$1))/INDEX($K76:$O76,1,aux!$AL$1),"n.d.") -> n.d. | AX76: 08
A77: 0901 | B77: Café | C77: 132.244 | D77: 136.715 | E77: 191.069 | F77: 60.597 | G77: 132.049 | H77: 130.5348 | I77: 0.001183547043 | J77: 0.001103507864 | K77: 82.397 | L77: 107.235 | M77: 159.657 | N77: 105.054 | O77: 180.315 | P77: 126.9316 | Q77: 0.004739386006 | R77: 0.00198401721 | S77: -3.6032 | U77: =G77-INDEX($C77:$G77,1,aux!$AL$1) -> -0.195 | V77: -1.159964107e-05 | W77: -7.51530347e-06 | X77: =+IF(INDEX($C77:$G77,1,aux!$AL$1)>0,(G77/INDEX($C77:$G77,1,aux!$AL$1))^(1/($G$3-INDEX($C$3:$G$3,1,aux!$AL$1)))-1,"n.d.") -> -0.0003688407775 | Y77: =IF(INDEX($C77:$G77,1,aux!$AL$1)>0,(G77-INDEX($C77:$G77,1,aux!$AL$1))/INDEX($C77:$G77,1,aux!$AL$1),"n.d.") -> -0.001474547049 | AA77: =O77-INDEX($K77:$O77,1,aux!$AL$1) -> 97.918 | AB77: 0.009344447651 | AC77: 0.002309705848 | AD77: =+IF(INDEX($K77:$O77,1,aux!$AL$1)>0,(O77/INDEX($K77:$O77,1,aux!$AL$1))^(1/($O$3-INDEX($K$3:$O$3,1,aux!$AL$1)))-1,"n.d.") -> 0.2162703343 | AE77: =IF(INDEX($K77:$O77,1,aux!$AL$1)>0,(O77-INDEX($K77:$O77,1,aux!$AL$1))/INDEX($K77:$O77,1,aux!$AL$1),"n.d.") -> 1.188368509 | AX77: 09
A78: 0902 | B78: Chá | C78: 0.305 | D78: 0 | E78: 0 | F78: 45.008 | G78: 44.017 | H78: 17.866 | I78: 0.0001619893812 | J78: 0.0001510346015 | K78: 15.441 | L78: 0.021 | M78: 20.445 | N78: 38.468 | O78: 61.587 | P78: 27.1924 | Q78: 0.001015312814 | R78: 0.0004250335581 | S78: 9.3264 | U78: =G78-INDEX($C78:$G78,1,aux!$AL$1) -> 43.712 | V78: 0.00260022313 | W78: 0.001684661258 | X78: =+IF(INDEX($C78:$G78,1,aux!$AL$1)>0,(G78/INDEX($C78:$G78,1,aux!$AL$1))^(1/($G$3-INDEX($C$3:$G$3,1,aux!$AL$1)))-1,"n.d.") -> 2.466012703 | Y78: =IF(INDEX($C78:$G78,1,aux!$AL$1)>0,(G78-INDEX($C78:$G78,1,aux!$AL$1))/INDEX($C78:$G78,1,aux!$AL$1),"n.d.") -> 143.3180328 | AA78: =O78-INDEX($K78:$O78,1,aux!$AL$1) -> 46.146 | AB78: 0.004403775417 | AC78: 0.001088499418 | AD78: =+IF(INDEX($K78:$O78,1,aux!$AL$1)>0,(O78/INDEX($K78:$O78,1,aux!$AL$1))^(1/($O$3-INDEX($K$3:$O$3,1,aux!$AL$1)))-1,"n.d.") -> 0.4131992771 | AE78: =IF(INDEX($K78:$O78,1,aux!$AL$1)>0,(O78-INDEX($K78:$O78,1,aux!$AL$1))/INDEX($K78:$O78,1,aux!$AL$1),"n.d.") -> 2.988537012 | AX78: 09
A79: 0903 | B79: Mate | C79: 4.218 | D79: 2.86 | E79: 12.071 | F79: 2.097 | G79: 3.921 | H79: 5.0334 | I79: 4.563737554e-05 | J79: 4.25510782e-05 | K79: 4.242 | L79: 7.691 | M79: 4.716 | N79: 14.715 | O79: 20.958 | P79: 10.4644 | Q79: 0.0003907209152 | R79: 0.0001635648624 | S79: 5.431 | U79: =G79-INDEX($C79:$G79,1,aux!$AL$1) -> -0.297 | V79: -1.766714562e-05 | W79: -1.144638529e-05 | X79: =+IF(INDEX($C79:$G79,1,aux!$AL$1)>0,(G79/INDEX($C79:$G79,1,aux!$AL$1))^(1/($G$3-INDEX($C$3:$G$3,1,aux!$AL$1)))-1,"n.d.") -> -0.01808800197 | Y79: =IF(INDEX($C79:$G79,1,aux!$AL$1)>0,(G79-INDEX($C79:$G79,1,aux!$AL$1))/INDEX($C79:$G79,1,aux!$AL$1),"n.d.") -> -0.07041251778 | AA79: =O79-INDEX($K79:$O79,1,aux!$AL$1) -> 16.716 | AB79: 0.00159523057 | AC79: 0.0003942997503 | AD79: =+IF(INDEX($K79:$O79,1,aux!$AL$1)>0,(O79/INDEX($K79:$O79,1,aux!$AL$1))^(1/($O$3-INDEX($K$3:$O$3,1,aux!$AL$1)))-1,"n.d.") -> 0.4908872235 | AE79: =IF(INDEX($K79:$O79,1,aux!$AL$1)>0,(O79-INDEX($K79:$O79,1,aux!$AL$1))/INDEX($K79:$O79,1,aux!$AL$1),"n.d.") -> 3.940594059 | AX79: 09
A80: 0904 | B80: Pimenta | C80: 0 | D80: 0 | E80: 0 | F80: 0 | G80: 0.114 | H80: 0.0228 | I80: 2.067255061e-07 | J80: 1.927453775e-07 | K80: 0.012 | L80: 0.038 | M80: 0.498 | N80: 5.039 | O80: 0.624 | P80: 1.2422 | Q80: 4.638139987e-05 | R80: 1.941633272e-05 | S80: 1.2194 | U80: =G80-INDEX($C80:$G80,1,aux!$AL$1) -> 0.114 | V80: 6.781328623e-06 | W80: 4.393562029e-06 | X80: =+IF(INDEX($C80:$G80,1,aux!$AL$1)>0,(G80/INDEX($C80:$G80,1,aux!$AL$1))^(1/($G$3-INDEX($C$3:$G$3,1,aux!$AL$1)))-1,"n.d.") -> n.d. | Y80: =IF(INDEX($C80:$G80,1,aux!$AL$1)>0,(G80-INDEX($C80:$G80,1,aux!$AL$1))/INDEX($C80:$G80,1,aux!$AL$1),"n.d.") -> n.d. | AA80: =O80-INDEX($K80:$O80,1,aux!$AL$1) -> 0.612 | AB80: 5.840399071e-05 | AC80: 1.44359564e-05 | AD80: =+IF(INDEX($K80:$O80,1,aux!$AL$1)>0,(O80/INDEX($K80:$O80,1,aux!$AL$1))^(1/($O$3-INDEX($K$3:$O$3,1,aux!$AL$1)))-1,"n.d.") -> 1.685349614 | AE80: =IF(INDEX($K80:$O80,1,aux!$AL$1)>0,(O80-INDEX($K80:$O80,1,aux!$AL$1))/INDEX($K80:$O80,1,aux!$AL$1),"n.d.") -> 51 | AX80: 09
A81: 0905 | B81: Baunilha | C81: 0 | D81: 0 | E81: 0 | F81: 0 | G81: 0 | H81: 0 | I81: 0 | J81: 0 | K81: 0 | L81: 0 | M81: 0 | N81: 0.006 | O81: 0.007 | P81: 0.0026 | Q81: 9.707908523e-08 | R81: 4.063956293e-08 | S81: 0.0026 | U81: =G81-INDEX($C81:$G81,1,aux!$AL$1) -> 0 | V81: 0 | W81: 0 | X81: =+IF(INDEX($C81:$G81,1,aux!$AL$1)>0,(G81/INDEX($C81:$G81,1,aux!$AL$1))^(1/($G$3-INDEX($C$3:$G$3,1,aux!$AL$1)))-1,"n.d.") -> n.d. | Y81: =IF(INDEX($C81:$G81,1,aux!$AL$1)>0,(G81-INDEX($C81:$G81,1,aux!$AL$1))/INDEX($C81:$G81,1,aux!$AL$1),"n.d.") -> n.d. | AA81: =O81-INDEX($K81:$O81,1,aux!$AL$1) -> 0.007 | AB81: 6.680195016e-07 | AC81: 1.651171484e-07 | AD81: =+IF(INDEX($K81:$O81,1,aux!$AL$1)>0,(O81/INDEX($K81:$O81,1,aux!$AL$1))^(1/($O$3-INDEX($K$3:$O$3,1,aux!$AL$1)))-1,"n.d.") -> n.d. | AE81: =IF(INDEX($K81:$O81,1,aux!$AL$1)>0,(O81-INDEX($K81:$O81,1,aux!$AL$1))/INDEX($K81:$O81,1,aux!$AL$1),"n.d.") -> n.d. | AX81: 09
A82: 0906 | B82: Canela | C82: 0 | D82: 0 | E82: 0 | F82: 0 | G82: 0 | H82: 0 | I82: 0 | J82: 0 | K82: 0 | L82: 0.063 | M82: 0.33 | N82: 0.025 | O82: 0.066 | P82: 0.0968 | Q82: 3.614329019e-06 | R82: 1.513042189e-06 | S82: 0.0968 | U82: =G82-INDEX($C82:$G82,1,aux!$AL$1) -> 0 | V82: 0 | W82: 0 | X82: =+IF(INDEX($C82:$G82,1,aux!$AL$1)>0,(G82/INDEX($C82:$G82,1,aux!$AL$1))^(1/($G$3-INDEX($C$3:$G$3,1,aux!$AL$1)))-1,"n.d.") -> n.d. | Y82: =IF(INDEX($C82:$G82,1,aux!$AL$1)>0,(G82-INDEX($C82:$G82,1,aux!$AL$1))/INDEX($C82:$G82,1,aux!$AL$1),"n.d.") -> n.d. | AA82: =O82-INDEX($K82:$O82,1,aux!$AL$1) -> 0.066 | AB82: 6.298469586e-06 | AC82: 1.556818828e-06 | AD82: =+IF(INDEX($K82:$O82,1,aux!$AL$1)>0,(O82/INDEX($K82:$O82,1,aux!$AL$1))^(1/($O$3-INDEX($K$3:$O$3,1,aux!$AL$1)))-1,"n.d.") -> n.d. | AE82: =IF(INDEX($K82:$O82,1,aux!$AL$1)>0,(O82-INDEX($K82:$O82,1,aux!$AL$1))/INDEX($K82:$O82,1,aux!$AL$1),"n.d.") -> n.d. | AX82: 09
A83: 0907 | B83: Cravo-da-índia | C83: 0 | D83: 0 | E83: 0 | F83: 0 | G83: 0.009 | H83: 0.0018 | I83: 1.632043469e-08 | J83: 1.521674033e-08 | K83: 0 | L83: 0 | M83: 0.024 | N83: 0 | O83: 0 | P83: 0.0048 | Q83: 1.792229266e-07 | R83: 7.502688542e-08 | S83: 0.003 | U83: =G83-INDEX($C83:$G83,1,aux!$AL$1) -> 0.009 | V83: 5.353680492e-07 | W83: 3.468601602e-07 | X83: =+IF(INDEX($C83:$G83,1,aux!$AL$1)>0,(G83/INDEX($C83:$G83,1,aux!$AL$1))^(1/($G$3-INDEX($C$3:$G$3,1,aux!$AL$1)))-1,"n.d.") -> n.d. | Y83: =IF(INDEX($C83:$G83,1,aux!$AL$1)>0,(G83-INDEX($C83:$G83,1,aux!$AL$1))/INDEX($C83:$G83,1,aux!$AL$1),"n.d.") -> n.d. | AA83: =O83-INDEX($K83:$O83,1,aux!$AL$1) -> 0 | AB83: 0 | AC83: 0 | AD83: =+IF(INDEX($K83:$O83,1,aux!$AL$1)>0,(O83/INDEX($K83:$O83,1,aux!$AL$1))^(1/($O$3-INDEX($K$3:$O$3,1,aux!$AL$1)))-1,"n.d.") -> n.d. | AE83: =IF(INDEX($K83:$O83,1,aux!$AL$1)>0,(O83-INDEX($K83:$O83,1,aux!$AL$1))/INDEX($K83:$O83,1,aux!$AL$1),"n.d.") -> n.d. | AX83: 09
A84: 0908 | B84: Noz-moscada, etc. | C84: 0 | D84: 0 | E84: 0 | F84: 0 | G84: 0 | H84: 0 | I84: 0 | J84: 0 | K84: 0 | L84: 0 | M84: 0.187 | N84: 0 | O84: 0 | P84: 0.0374 | Q84: 1.396445303e-06 | R84: 5.845844822e-07 | S84: 0.0374 | U84: =G84-INDEX($C84:$G84,1,aux!$AL$1) -> 0 | V84: 0 | W84: 0 | X84: =+IF(INDEX($C84:$G84,1,aux!$AL$1)>0,(G84/INDEX($C84:$G84,1,aux!$AL$1))^(1/($G$3-INDEX($C$3:$G$3,1,aux!$AL$1)))-1,"n.d.") -> n.d. | Y84: =IF(INDEX($C84:$G84,1,aux!$AL$1)>0,(G84-INDEX($C84:$G84,1,aux!$AL$1))/INDEX($C84:$G84,1,aux!$AL$1),"n.d.") -> n.d. | AA84: =O84-INDEX($K84:$O84,1,aux!$AL$1) -> 0 | AB84: 0 | AC84: 0 | AD84: =+IF(INDEX($K84:$O84,1,aux!$AL$1)>0,(O84/INDEX($K84:$O84,1,aux!$AL$1))^(1/($O$3-INDEX($K$3:$O$3,1,aux!$AL$1)))-1,"n.d.") -> n.d. | AE84: =IF(INDEX($K84:$O84,1,aux!$AL$1)>0,(O84-INDEX($K84:$O84,1,aux!$AL$1))/INDEX($K84:$O84,1,aux!$AL$1),"n.d.") -> n.d. | AX84: 09
A85: 0909 | B85: Sementes de anis, funcho, etc. | C85: 0 | D85: 0 | E85: 0 | F85: 0 | G85: 0 | H85: 0 | I85: 0 | J85: 0 | K85: 0 | L85: 0.028 | M85: 0.03 | N85: 0.041 | O85: 0.055 | P85: 0.0308 | Q85: 1.150013779e-06 | R85: 4.814225147e-07 | S85: 0.0308 | U85: =G85-INDEX($C85:$G85,1,aux!$AL$1) -> 0 | V85: 0 | W85: 0 | X85: =+IF(INDEX($C85:$G85,1,aux!$AL$1)>0,(G85/INDEX($C85:$G85,1,aux!$AL$1))^(1/($G$3-INDEX($C$3:$G$3,1,aux!$AL$1)))-1,"n.d.") -> n.d. | Y85: =IF(INDEX($C85:$G85,1,aux!$AL$1)>0,(G85-INDEX($C85:$G85,1,aux!$AL$1))/INDEX($C85:$G85,1,aux!$AL$1),"n.d.") -> n.d. | AA85: =O85-INDEX($K85:$O85,1,aux!$AL$1) -> 0.055 | AB85: 5.248724655e-06 | AC85: 1.297349023e-06 | AD85: =+IF(INDEX($K85:$O85,1,aux!$AL$1)>0,(O85/INDEX($K85:$O85,1,aux!$AL$1))^(1/($O$3-INDEX($K$3:$O$3,1,aux!$AL$1)))-1,"n.d.") -> n.d. | AE85: =IF(INDEX($K85:$O85,1,aux!$AL$1)>0,(O85-INDEX($K85:$O85,1,aux!$AL$1))/INDEX($K85:$O85,1,aux!$AL$1),"n.d.") -> n.d. | AX85: 09
A86: 0910 | B86: Gengibre, açafrão, tomilho, louro, etc. | C86: 0.044 | D86: 0.675 | E86: 0 | F86: 0.043 | G86: 0.238 | H86: 0.2 | I86: 1.813381632e-06 | J86: 1.690748925e-06 | K86: 0.578 | L86: 0.365 | M86: 2.294 | N86: 5.655 | O86: 1.156 | P86: 2.0096 | Q86: 7.503466526e-05 | R86: 3.141125603e-05 | S86: 1.8096 | U86: =G86-INDEX($C86:$G86,1,aux!$AL$1) -> 0.194 | V86: 1.154015573e-05 | W86: 7.476763452e-06 | X86: =+IF(INDEX($C86:$G86,1,aux!$AL$1)>0,(G86/INDEX($C86:$G86,1,aux!$AL$1))^(1/($G$3-INDEX($C$3:$G$3,1,aux!$AL$1)))-1,"n.d.") -> 0.5250394216 | Y86: =IF(INDEX($C86:$G86,1,aux!$AL$1)>0,(G86-INDEX($C86:$G86,1,aux!$AL$1))/INDEX($C86:$G86,1,aux!$AL$1),"n.d.") -> 4.409090909 | AA86: =O86-INDEX($K86:$O86,1,aux!$AL$1) -> 0.578 | AB86: 5.515932456e-05 | AC86: 1.363395882e-05 | AD86: =+IF(INDEX($K86:$O86,1,aux!$AL$1)>0,(O86/INDEX($K86:$O86,1,aux!$AL$1))^(1/($O$3-INDEX($K$3:$O$3,1,aux!$AL$1)))-1,"n.d.") -> 0.189207115 | AE86: =IF(INDEX($K86:$O86,1,aux!$AL$1)>0,(O86-INDEX($K86:$O86,1,aux!$AL$1))/INDEX($K86:$O86,1,aux!$AL$1),"n.d.") -> 1 | AX86: 09
A87: 09SS | B87: Café, chá, mate e especiarias | C87: 0 | D87: 0 | E87: 0 | F87: 0 | G87: 0 | H87: 0 | I87: 0 | J87: 0 | K87: 0 | L87: 0 | M87: 0 | N87: 0 | O87: 0 | P87: 0 | Q87: 0 | R87: 0 | S87: 0 | U87: =G87-INDEX($C87:$G87,1,aux!$AL$1) -> 0 | V87: 0 | W87: 0 | X87: =+IF(INDEX($C87:$G87,1,aux!$AL$1)>0,(G87/INDEX($C87:$G87,1,aux!$AL$1))^(1/($G$3-INDEX($C$3:$G$3,1,aux!$AL$1)))-1,"n.d.") -> n.d. | Y87: =IF(INDEX($C87:$G87,1,aux!$AL$1)>0,(G87-INDEX($C87:$G87,1,aux!$AL$1))/INDEX($C87:$G87,1,aux!$AL$1),"n.d.") -> n.d. | AA87: =O87-INDEX($K87:$O87,1,aux!$AL$1) -> 0 | AB87: 0 | AC87: 0 | AD87: =+IF(INDEX($K87:$O87,1,aux!$AL$1)>0,(O87/INDEX($K87:$O87,1,aux!$AL$1))^(1/($O$3-INDEX($K$3:$O$3,1,aux!$AL$1)))-1,"n.d.") -> n.d. | AE87: =IF(INDEX($K87:$O87,1,aux!$AL$1)>0,(O87-INDEX($K87:$O87,1,aux!$AL$1))/INDEX($K87:$O87,1,aux!$AL$1),"n.d.") -> n.d. | AX87: 09
A88: 1001 | B88: Trigo e mistura trigo/centeio | C88: 0 | D88: 0 | E88: 0 | F88: 0 | G88: 0 | H88: 0 | I88: 0 | J88: 0 | K88: 0 | L88: 0.039 | M88: 0 | N88: 0.017 | O88: 0 | P88: 0.0112 | Q88: 4.181868287e-07 | R88: 1.750627326e-07 | S88: 0.0112 | U88: =G88-INDEX($C88:$G88,1,aux!$AL$1) -> 0 | V88: 0 | W88: 0 | X88: =+IF(INDEX($C88:$G88,1,aux!$AL$1)>0,(G88/INDEX($C88:$G88,1,aux!$AL$1))^(1/($G$3-INDEX($C$3:$G$3,1,aux!$AL$1)))-1,"n.d.") -> n.d. | Y88: =IF(INDEX($C88:$G88,1,aux!$AL$1)>0,(G88-INDEX($C88:$G88,1,aux!$AL$1))/INDEX($C88:$G88,1,aux!$AL$1),"n.d.") -> n.d. | AA88: =O88-INDEX($K88:$O88,1,aux!$AL$1) -> 0 | AB88: 0 | AC88: 0 | AD88: =+IF(INDEX($K88:$O88,1,aux!$AL$1)>0,(O88/INDEX($K88:$O88,1,aux!$AL$1))^(1/($O$3-INDEX($K$3:$O$3,1,aux!$AL$1)))-1,"n.d.") -> n.d. | AE88: =IF(INDEX($K88:$O88,1,aux!$AL$1)>0,(O88-INDEX($K88:$O88,1,aux!$AL$1))/INDEX($K88:$O88,1,aux!$AL$1),"n.d.") -> n.d. | AX88: 10
A89: 1002 | B89: Centeio | C89: 0 | D89: 0 | E89: 0 | F89: 0 | G89: 0 | H89: 0 | I89: 0 | J89: 0 | K89: 0 | L89: 0 | M89: 0 | N89: 0 | O89: 0 | P89: 0 | Q89: 0 | R89: 0 | S89: 0 | U89: =G89-INDEX($C89:$G89,1,aux!$AL$1) -> 0 | V89: 0 | W89: 0 | X89: =+IF(INDEX($C89:$G89,1,aux!$AL$1)>0,(G89/INDEX($C89:$G89,1,aux!$AL$1))^(1/($G$3-INDEX($C$3:$G$3,1,aux!$AL$1)))-1,"n.d.") -> n.d. | Y89: =IF(INDEX($C89:$G89,1,aux!$AL$1)>0,(G89-INDEX($C89:$G89,1,aux!$AL$1))/INDEX($C89:$G89,1,aux!$AL$1),"n.d.") -> n.d. | AA89: =O89-INDEX($K89:$O89,1,aux!$AL$1) -> 0 | AB89: 0 | AC89: 0 | AD89: =+IF(INDEX($K89:$O89,1,aux!$AL$1)>0,(O89/INDEX($K89:$O89,1,aux!$AL$1))^(1/($O$3-INDEX($K$3:$O$3,1,aux!$AL$1)))-1,"n.d.") -> n.d. | AE89: =IF(INDEX($K89:$O89,1,aux!$AL$1)>0,(O89-INDEX($K89:$O89,1,aux!$AL$1))/INDEX($K89:$O89,1,aux!$AL$1),"n.d.") -> n.d. | AX89: 10
A90: 1003 | B90: Cevada | C90: 0 | D90: 0 | E90: 0 | F90: 0 | G90: 0 | H90: 0 | I90: 0 | J90: 0 | K90: 0 | L90: 0 | M90: 0.015 | N90: 0 | O90: 0 | P90: 0.003 | Q90: 1.120143291e-07 | R90: 4.689180338e-08 | S90: 0.003 | U90: =G90-INDEX($C90:$G90,1,aux!$AL$1) -> 0 | V90: 0 | W90: 0 | X90: =+IF(INDEX($C90:$G90,1,aux!$AL$1)>0,(G90/INDEX($C90:$G90,1,aux!$AL$1))^(1/($G$3-INDEX($C$3:$G$3,1,aux!$AL$1)))-1,"n.d.") -> n.d. | Y90: =IF(INDEX($C90:$G90,1,aux!$AL$1)>0,(G90-INDEX($C90:$G90,1,aux!$AL$1))/INDEX($C90:$G90,1,aux!$AL$1),"n.d.") -> n.d. | AA90: =O90-INDEX($K90:$O90,1,aux!$AL$1) -> 0 | AB90: 0 | AC90: 0 | AD90: =+IF(INDEX($K90:$O90,1,aux!$AL$1)>0,(O90/INDEX($K90:$O90,1,aux!$AL$1))^(1/($O$3-INDEX($K$3:$O$3,1,aux!$AL$1)))-1,"n.d.") -> n.d. | AE90: =IF(INDEX($K90:$O90,1,aux!$AL$1)>0,(O90-INDEX($K90:$O90,1,aux!$AL$1))/INDEX($K90:$O90,1,aux!$AL$1),"n.d.") -> n.d. | AX90: 10
A91: 1004 | B91: Aveia | C91: 0 | D91: 0 | E91: 0 | F91: 0.126 | G91: 0.026 | H91: 0.0304 | I91: 2.756340081e-07 | J91: 2.569938366e-07 | K91: 0 | L91: 0 | M91: 0 | N91: 0 | O91: 0 | P91: 0 | Q91: 0 | R91: 0 | S91: -0.0304 | U91: =G91-INDEX($C91:$G91,1,aux!$AL$1) -> 0.026 | V91: 1.546618809e-06 | W91: 1.002040463e-06 | X91: =+IF(INDEX($C91:$G91,1,aux!$AL$1)>0,(G91/INDEX($C91:$G91,1,aux!$AL$1))^(1/($G$3-INDEX($C$3:$G$3,1,aux!$AL$1)))-1,"n.d.") -> n.d. | Y91: =IF(INDEX($C91:$G91,1,aux!$AL$1)>0,(G91-INDEX($C91:$G91,1,aux!$AL$1))/INDEX($C91:$G91,1,aux!$AL$1),"n.d.") -> n.d. | AA91: =O91-INDEX($K91:$O91,1,aux!$AL$1) -> 0 | AB91: 0 | AC91: 0 | AD91: =+IF(INDEX($K91:$O91,1,aux!$AL$1)>0,(O91/INDEX($K91:$O91,1,aux!$AL$1))^(1/($O$3-INDEX($K$3:$O$3,1,aux!$AL$1)))-1,"n.d.") -> n.d. | AE91: =IF(INDEX($K91:$O91,1,aux!$AL$1)>0,(O91-INDEX($K91:$O91,1,aux!$AL$1))/INDEX($K91:$O91,1,aux!$AL$1),"n.d.") -> n.d. | AX91: 10
A92: 1005 | B92: Milho | C92: 0 | D92: 0 | E92: 0 | F92: 0 | G92: 0 | H92: 0 | I92: 0 | J92: 0 | K92: 0 | L92: 0.032 | M92: 0 | N92: 0.403 | O92: 0.25 | P92: 0.137 | Q92: 5.115321029e-06 | R92: 2.141392355e-06 | S92: 0.137 | U92: =G92-INDEX($C92:$G92,1,aux!$AL$1) -> 0 | V92: 0 | W92: 0 | X92: =+IF(INDEX($C92:$G92,1,aux!$AL$1)>0,(G92/INDEX($C92:$G92,1,aux!$AL$1))^(1/($G$3-INDEX($C$3:$G$3,1,aux!$AL$1)))-1,"n.d.") -> n.d. | Y92: =IF(INDEX($C92:$G92,1,aux!$AL$1)>0,(G92-INDEX($C92:$G92,1,aux!$AL$1))/INDEX($C92:$G92,1,aux!$AL$1),"n.d.") -> n.d. | AA92: =O92-INDEX($K92:$O92,1,aux!$AL$1) -> 0.25 | AB92: 2.385783934e-05 | AC92: 5.897041013e-06 | AD92: =+IF(INDEX($K92:$O92,1,aux!$AL$1)>0,(O92/INDEX($K92:$O92,1,aux!$AL$1))^(1/($O$3-INDEX($K$3:$O$3,1,aux!$AL$1)))-1,"n.d.") -> n.d. | AE92: =IF(INDEX($K92:$O92,1,aux!$AL$1)>0,(O92-INDEX($K92:$O92,1,aux!$AL$1))/INDEX($K92:$O92,1,aux!$AL$1),"n.d.") -> n.d. | AX92: 10
A93: 1006 | B93: Arroz | C93: 0 | D93: 0 | E93: 0 | F93: 19.536 | G93: 31.514 | H93: 10.21 | I93: 9.257313232e-05 | J93: 8.631273262e-05 | K93: 1.669 | L93: 1.937 | M93: 4.139 | N93: 33.439 | O93: 186.173 | P93: 45.4714 | Q93: 0.001697816122 | R93: 0.0007107453161 | S93: 35.2614 | U93: =G93-INDEX($C93:$G93,1,aux!$AL$1) -> 31.514 | V93: 0.001874620967 | W93: 0.001214550121 | X93: =+IF(INDEX($C93:$G93,1,aux!$AL$1)>0,(G93/INDEX($C93:$G93,1,aux!$AL$1))^(1/($G$3-INDEX($C$3:$G$3,1,aux!$AL$1)))-1,"n.d.") -> n.d. | Y93: =IF(INDEX($C93:$G93,1,aux!$AL$1)>0,(G93-INDEX($C93:$G93,1,aux!$AL$1))/INDEX($C93:$G93,1,aux!$AL$1),"n.d.") -> n.d. | AA93: =O93-INDEX($K93:$O93,1,aux!$AL$1) -> 184.504 | AB93: 0.01760746716 | AC93: 0.004352110621 | AD93: =+IF(INDEX($K93:$O93,1,aux!$AL$1)>0,(O93/INDEX($K93:$O93,1,aux!$AL$1))^(1/($O$3-INDEX($K$3:$O$3,1,aux!$AL$1)))-1,"n.d.") -> 2.249863274 | AE93: =IF(INDEX($K93:$O93,1,aux!$AL$1)>0,(O93-INDEX($K93:$O93,1,aux!$AL$1))/INDEX($K93:$O93,1,aux!$AL$1),"n.d.") -> 110.5476333 | AX93: 10
A94: 1007 | B94: Sorgo de grão | C94: 0 | D94: 0 | E94: 0 | F94: 0 | G94: 0 | H94: 0 | I94: 0 | J94: 0 | K94: 0 | L94: 0 | M94: 0 | N94: 0 | O94: 0 | P94: 0 | Q94: 0 | R94: 0 | S94: 0 | U94: =G94-INDEX($C94:$G94,1,aux!$AL$1) -> 0 | V94: 0 | W94: 0 | X94: =+IF(INDEX($C94:$G94,1,aux!$AL$1)>0,(G94/INDEX($C94:$G94,1,aux!$AL$1))^(1/($G$3-INDEX($C$3:$G$3,1,aux!$AL$1)))-1,"n.d.") -> n.d. | Y94: =IF(INDEX($C94:$G94,1,aux!$AL$1)>0,(G94-INDEX($C94:$G94,1,aux!$AL$1))/INDEX($C94:$G94,1,aux!$AL$1),"n.d.") -> n.d. | AA94: =O94-INDEX($K94:$O94,1,aux!$AL$1) -> 0 | AB94: 0 | AC94: 0 | AD94: =+IF(INDEX($K94:$O94,1,aux!$AL$1)>0,(O94/INDEX($K94:$O94,1,aux!$AL$1))^(1/($O$3-INDEX($K$3:$O$3,1,aux!$AL$1)))-1,"n.d.") -> n.d. | AE94: =IF(INDEX($K94:$O94,1,aux!$AL$1)>0,(O94-INDEX($K94:$O94,1,aux!$AL$1))/INDEX($K94:$O94,1,aux!$AL$1),"n.d.") -> n.d. | AX94: 10
A95: 1008 | B95: Trigo mourisco, painço e outros cereais | C95: 0 | D95: 0 | E95: 0 | F95: 0 | G95: 0 | H95: 0 | I95: 0 | J95: 0 | K95: 0 | L95: 0 | M95: 0 | N95: 0 | O95: 0 | P95: 0 | Q95: 0 | R95: 0 | S95: 0 | U95: =G95-INDEX($C95:$G95,1,aux!$AL$1) -> 0 | V95: 0 | W95: 0 | X95: =+IF(INDEX($C95:$G95,1,aux!$AL$1)>0,(G95/INDEX($C95:$G95,1,aux!$AL$1))^(1/($G$3-INDEX($C$3:$G$3,1,aux!$AL$1)))-1,"n.d.") -> n.d. | Y95: =IF(INDEX($C95:$G95,1,aux!$AL$1)>0,(G95-INDEX($C95:$G95,1,aux!$AL$1))/INDEX($C95:$G95,1,aux!$AL$1),"n.d.") -> n.d. | AA95: =O95-INDEX($K95:$O95,1,aux!$AL$1) -> 0 | AB95: 0 | AC95: 0 | AD95: =+IF(INDEX($K95:$O95,1,aux!$AL$1)>0,(O95/INDEX($K95:$O95,1,aux!$AL$1))^(1/($O$3-INDEX($K$3:$O$3,1,aux!$AL$1)))-1,"n.d.") -> n.d. | AE95: =IF(INDEX($K95:$O95,1,aux!$AL$1)>0,(O95-INDEX($K95:$O95,1,aux!$AL$1))/INDEX($K95:$O95,1,aux!$AL$1),"n.d.") -> n.d. | AX95: 10
A96: 10SS | B96: Cereais | C96: 0 | D96: 0 | E96: 0 | F96: 0 | G96: 0 | H96: 0 | I96: 0 | J96: 0 | K96: 0 | L96: 0 | M96: 0 | N96: 0 | O96: 0 | P96: 0 | Q96: 0 | R96: 0 | S96: 0 | U96: =G96-INDEX($C96:$G96,1,aux!$AL$1) -> 0 | V96: 0 | W96: 0 | X96: =+IF(INDEX($C96:$G96,1,aux!$AL$1)>0,(G96/INDEX($C96:$G96,1,aux!$AL$1))^(1/($G$3-INDEX($C$3:$G$3,1,aux!$AL$1)))-1,"n.d.") -> n.d. | Y96: =IF(INDEX($C96:$G96,1,aux!$AL$1)>0,(G96-INDEX($C96:$G96,1,aux!$AL$1))/INDEX($C96:$G96,1,aux!$AL$1),"n.d.") -> n.d. | AA96: =O96-INDEX($K96:$O96,1,aux!$AL$1) -> 0 | AB96: 0 | AC96: 0 | AD96: =+IF(INDEX($K96:$O96,1,aux!$AL$1)>0,(O96/INDEX($K96:$O96,1,aux!$AL$1))^(1/($O$3-INDEX($K$3:$O$3,1,aux!$AL$1)))-1,"n.d.") -> n.d. | AE96: =IF(INDEX($K96:$O96,1,aux!$AL$1)>0,(O96-INDEX($K96:$O96,1,aux!$AL$1))/INDEX($K96:$O96,1,aux!$AL$1),"n.d.") -> n.d. | AX96: 10
A97: 1101 | B97: Farinhas de trigo ou trigo/centeio | C97: 0 | D97: 3.128 | E97: 0 | F97: 0 | G97: 0 | H97: 0.6256 | I97: 5.672257745e-06 | J97: 5.288662638e-06 | K97: 7.961 | L97: 0.358 | M97: 1.837 | N97: 1.444 | O97: 0.785 | P97: 2.477 | Q97: 9.248649774e-05 | R97: 3.871699899e-05 | S97: 1.8514 | U97: =G97-INDEX($C97:$G97,1,aux!$AL$1) -> 0 | V97: 0 | W97: 0 | X97: =+IF(INDEX($C97:$G97,1,aux!$AL$1)>0,(G97/INDEX($C97:$G97,1,aux!$AL$1))^(1/($G$3-INDEX($C$3:$G$3,1,aux!$AL$1)))-1,"n.d.") -> n.d. | Y97: =IF(INDEX($C97:$G97,1,aux!$AL$1)>0,(G97-INDEX($C97:$G97,1,aux!$AL$1))/INDEX($C97:$G97,1,aux!$AL$1),"n.d.") -> n.d. | AA97: =O97-INDEX($K97:$O97,1,aux!$AL$1) -> -7.176 | AB97: -0.0006848154205 | AC97: -0.0001692686652 | AD97: =+IF(INDEX($K97:$O97,1,aux!$AL$1)>0,(O97/INDEX($K97:$O97,1,aux!$AL$1))^(1/($O$3-INDEX($K$3:$O$3,1,aux!$AL$1)))-1,"n.d.") -> -0.4396291853 | AE97: =IF(INDEX($K97:$O97,1,aux!$AL$1)>0,(O97-INDEX($K97:$O97,1,aux!$AL$1))/INDEX($K97:$O97,1,aux!$AL$1),"n.d.") -> -0.9013942972 | AX97: 11
A98: 1102 | B98: Outras farinhas de cereais | C98: 0 | D98: 0.234 | E98: 0 | F98: 0.019 | G98: 78.652 | H98: 15.781 | I98: 0.0001430848777 | J98: 0.0001334085439 | K98: 1.99 | L98: 9.203 | M98: 9.624 | N98: 7.857 | O98: 12.158 | P98: 8.1664 | Q98: 0.0003049179391 | R98: 0.0001276457411 | S98: -7.6146 | U98: =G98-INDEX($C98:$G98,1,aux!$AL$1) -> 78.652 | V98: 0.004678640867 | W98: 0.00303124948 | X98: =+IF(INDEX($C98:$G98,1,aux!$AL$1)>0,(G98/INDEX($C98:$G98,1,aux!$AL$1))^(1/($G$3-INDEX($C$3:$G$3,1,aux!$AL$1)))-1,"n.d.") -> n.d. | Y98: =IF(INDEX($C98:$G98,1,aux!$AL$1)>0,(G98-INDEX($C98:$G98,1,aux!$AL$1))/INDEX($C98:$G98,1,aux!$AL$1),"n.d.") -> n.d. | AA98: =O98-INDEX($K98:$O98,1,aux!$AL$1) -> 10.168 | AB98: 0.0009703460417 | AC98: 0.0002398444521 | AD98: =+IF(INDEX($K98:$O98,1,aux!$AL$1)>0,(O98/INDEX($K98:$O98,1,aux!$AL$1))^(1/($O$3-INDEX($K$3:$O$3,1,aux!$AL$1)))-1,"n.d.") -> 0.5721799943 | AE98: =IF(INDEX($K98:$O98,1,aux!$AL$1)>0,(O98-INDEX($K98:$O98,1,aux!$AL$1))/INDEX($K98:$O98,1,aux!$AL$1),"n.d.") -> 5.109547739 | AX98: 11
A99: 1103 | B99: Grumos, sêmolas, etc. de cereais | C99: 0 | D99: 0 | E99: 0 | F99: 0 | G99: 0 | H99: 0 | I99: 0 | J99: 0 | K99: 0.094 | L99: 0.856 | M99: 0 | N99: 0.095 | O99: 1.043 | P99: 0.4176 | Q99: 1.559239461e-05 | R99: 6.527339031e-06 | S99: 0.4176 | U99: =G99-INDEX($C99:$G99,1,aux!$AL$1) -> 0 | V99: 0 | W99: 0 | X99: =+IF(INDEX($C99:$G99,1,aux!$AL$1)>0,(G99/INDEX($C99:$G99,1,aux!$AL$1))^(1/($G$3-INDEX($C$3:$G$3,1,aux!$AL$1)))-1,"n.d.") -> n.d. | Y99: =IF(INDEX($C99:$G99,1,aux!$AL$1)>0,(G99-INDEX($C99:$G99,1,aux!$AL$1))/INDEX($C99:$G99,1,aux!$AL$1),"n.d.") -> n.d. | AA99: =O99-INDEX($K99:$O99,1,aux!$AL$1) -> 0.949 | AB99: 9.056435814e-05 | AC99: 2.238516769e-05 | AD99: =+IF(INDEX($K99:$O99,1,aux!$AL$1)>0,(O99/INDEX($K99:$O99,1,aux!$AL$1))^(1/($O$3-INDEX($K$3:$O$3,1,aux!$AL$1)))-1,"n.d.") -> 0.8251102902 | AE99: =IF(INDEX($K99:$O99,1,aux!$AL$1)>0,(O99-INDEX($K99:$O99,1,aux!$AL$1))/INDEX($K99:$O99,1,aux!$AL$1),"n.d.") -> 10.09574468 | AX99: 11
A100: 1104 | B100: Grãos de cereais processados | C100: 0 | D100: 0 | E100: 0 | F100: 0.57 | G100: 0.641 | H100: 0.2422 | I100: 2.196005157e-06 | J100: 2.047496948e-06 | K100: 4.458 | L100: 47.743 | M100: 4.327 | N100: 4.083 | O100: 14.738 | P100: 15.0698 | Q100: 0.0005626778456 | R100: 0.0002355500329 | S100: 14.8276 | U100: =G100-INDEX($C100:$G100,1,aux!$AL$1) -> 0.641 | V100: 3.813010217e-05 | W100: 2.470415141e-05 | X100: =+IF(INDEX($C100:$G100,1,aux!$AL$1)>0,(G100/INDEX($C100:$G100,1,aux!$AL$1))^(1/($G$3-INDEX($C$3:$G$3,1,aux!$AL$1)))-1,"n.d.") -> n.d. | Y100: =IF(INDEX($C100:$G100,1,aux!$AL$1)>0,(G100-INDEX($C100:$G100,1,aux!$AL$1))/INDEX($C100:$G100,1,aux!$AL$1),"n.d.") -> n.d. | AA100: =O100-INDEX($K100:$O100,1,aux!$AL$1) -> 10.28 | AB100: 0.0009810343538 | AC100: 0.0002424863265 | AD100: =+IF(INDEX($K100:$O100,1,aux!$AL$1)>0,(O100/INDEX($K100:$O100,1,aux!$AL$1))^(1/($O$3-INDEX($K$3:$O$3,1,aux!$AL$1)))-1,"n.d.") -> 0.3484182507 | AE100: =IF(INDEX($K100:$O100,1,aux!$AL$1)>0,(O100-INDEX($K100:$O100,1,aux!$AL$1))/INDEX($K100:$O100,1,aux!$AL$1),"n.d.") -> 2.305966801 | AX100: 11
A101: 1105 | B101: Farinha, sêmola, etc. de batata | C101: 0 | D101: 0 | E101: 0 | F101: 0.078 | G101: 0 | H101: 0.0156 | I101: 1.414437673e-07 | J101: 1.318784162e-07 | K101: 0 | L101: 0 | M101: 0.018 | N101: 0 | O101: 0 | P101: 0.0036 | Q101: 1.344171949e-07 | R101: 5.627016406e-08 | S101: -0.012 | U101: =G101-INDEX($C101:$G101,1,aux!$AL$1) -> 0 | V101: 0 | W101: 0 | X101: =+IF(INDEX($C101:$G101,1,aux!$AL$1)>0,(G101/INDEX($C101:$G101,1,aux!$AL$1))^(1/($G$3-INDEX($C$3:$G$3,1,aux!$AL$1)))-1,"n.d.") -> n.d. | Y101: =IF(INDEX($C101:$G101,1,aux!$AL$1)>0,(G101-INDEX($C101:$G101,1,aux!$AL$1))/INDEX($C101:$G101,1,aux!$AL$1),"n.d.") -> n.d. | AA101: =O101-INDEX($K101:$O101,1,aux!$AL$1) -> 0 | AB101: 0 | AC101: 0 | AD101: =+IF(INDEX($K101:$O101,1,aux!$AL$1)>0,(O101/INDEX($K101:$O101,1,aux!$AL$1))^(1/($O$3-INDEX($K$3:$O$3,1,aux!$AL$1)))-1,"n.d.") -> n.d. | AE101: =IF(INDEX($K101:$O101,1,aux!$AL$1)>0,(O101-INDEX($K101:$O101,1,aux!$AL$1))/INDEX($K101:$O101,1,aux!$AL$1),"n.d.") -> n.d. | AX101: 11
A102: 1106 | B102: Farinhas, etc. de leguminosas e outros tubérculos | C102: 0 | D102: 0.417 | E102: 17.612 | F102: 24.508 | G102: 7.045 | H102: 9.9164 | I102: 8.991108809e-05 | J102: 8.38307132e-05 | K102: 8.78 | L102: 27.196 | M102: 7.716 | N102: 33.68 | O102: 35.16 | P102: 22.5064 | Q102: 0.0008403464322 | R102: 0.0003517885612 | S102: 12.59 | U102: =G102-INDEX($C102:$G102,1,aux!$AL$1) -> 7.045 | V102: 0.0004190742118 | W102: 0.0002715144254 | X102: =+IF(INDEX($C102:$G102,1,aux!$AL$1)>0,(G102/INDEX($C102:$G102,1,aux!$AL$1))^(1/($G$3-INDEX($C$3:$G$3,1,aux!$AL$1)))-1,"n.d.") -> n.d. | Y102: =IF(INDEX($C102:$G102,1,aux!$AL$1)>0,(G102-INDEX($C102:$G102,1,aux!$AL$1))/INDEX($C102:$G102,1,aux!$AL$1),"n.d.") -> n.d. | AA102: =O102-INDEX($K102:$O102,1,aux!$AL$1) -> 26.38 | AB102: 0.002517479207 | AC102: 0.0006222557677 | AD102: =+IF(INDEX($K102:$O102,1,aux!$AL$1)>0,(O102/INDEX($K102:$O102,1,aux!$AL$1))^(1/($O$3-INDEX($K$3:$O$3,1,aux!$AL$1)))-1,"n.d.") -> 0.4146160709 | AE102: =IF(INDEX($K102:$O102,1,aux!$AL$1)>0,(O102-INDEX($K102:$O102,1,aux!$AL$1))/INDEX($K102:$O102,1,aux!$AL$1),"n.d.") -> 3.004555809 | AX102: 11
A103: 1107 | B103: Malte, mesmo torrado | C103: 0 | D103: 0 | E103: 0 | F103: 0 | G103: 0 | H103: 0 | I103: 0 | J103: 0 | K103: 0 | L103: 0 | M103: 0 | N103: 0 | O103: 0 | P103: 0 | Q103: 0 | R103: 0 | S103: 0 | U103: =G103-INDEX($C103:$G103,1,aux!$AL$1) -> 0 | V103: 0 | W103: 0 | X103: =+IF(INDEX($C103:$G103,1,aux!$AL$1)>0,(G103/INDEX($C103:$G103,1,aux!$AL$1))^(1/($G$3-INDEX($C$3:$G$3,1,aux!$AL$1)))-1,"n.d.") -> n.d. | Y103: =IF(INDEX($C103:$G103,1,aux!$AL$1)>0,(G103-INDEX($C103:$G103,1,aux!$AL$1))/INDEX($C103:$G103,1,aux!$AL$1),"n.d.") -> n.d. | AA103: =O103-INDEX($K103:$O103,1,aux!$AL$1) -> 0 | AB103: 0 | AC103: 0 | AD103: =+IF(INDEX($K103:$O103,1,aux!$AL$1)>0,(O103/INDEX($K103:$O103,1,aux!$AL$1))^(1/($O$3-INDEX($K$3:$O$3,1,aux!$AL$1)))-1,"n.d.") -> n.d. | AE103: =IF(INDEX($K103:$O103,1,aux!$AL$1)>0,(O103-INDEX($K103:$O103,1,aux!$AL$1))/INDEX($K103:$O103,1,aux!$AL$1),"n.d.") -> n.d. | AX103: 11
A104: 1108 | B104: Amidos e féculas; inulina | C104: 0 | D104: 0 | E104: 0 | F104: 0 | G104: 0 | H104: 0 | I104: 0 | J104: 0 | K104: 7.679 | L104: 19.046 | M104: 8.038 | N104: 22.854 | O104: 13.769 | P104: 14.2772 | Q104: 0.0005330836599 | R104: 0.0002231612184 | S104: 14.2772 | U104: =G104-INDEX($C104:$G104,1,aux!$AL$1) -> 0 | V104: 0 | W104: 0 | X104: =+IF(INDEX($C104:$G104,1,aux!$AL$1)>0,(G104/INDEX($C104:$G104,1,aux!$AL$1))^(1/($G$3-INDEX($C$3:$G$3,1,aux!$AL$1)))-1,"n.d.") -> n.d. | Y104: =IF(INDEX($C104:$G104,1,aux!$AL$1)>0,(G104-INDEX($C104:$G104,1,aux!$AL$1))/INDEX($C104:$G104,1,aux!$AL$1),"n.d.") -> n.d. | AA104: =O104-INDEX($K104:$O104,1,aux!$AL$1) -> 6.09 | AB104: 0.0005811769664 | AC104: 0.0001436519191 | AD104: =+IF(INDEX($K104:$O104,1,aux!$AL$1)>0,(O104/INDEX($K104:$O104,1,aux!$AL$1))^(1/($O$3-INDEX($K$3:$O$3,1,aux!$AL$1)))-1,"n.d.") -> 0.1571760409 | AE104: =IF(INDEX($K104:$O104,1,aux!$AL$1)>0,(O104-INDEX($K104:$O104,1,aux!$AL$1))/INDEX($K104:$O104,1,aux!$AL$1),"n.d.") -> 0.7930720146 | AX104: 11
A105: 1109 | B105: Glúten de trigo, mesmo seco | C105: 0 | D105: 0 | E105: 0 | F105: 0 | G105: 0 | H105: 0 | I105: 0 | J105: 0 | K105: 0 | L105: 0 | M105: 0 | N105: 0 | O105: 0 | P105: 0 | Q105: 0 | R105: 0 | S105: 0 | U105: =G105-INDEX($C105:$G105,1,aux!$AL$1) -> 0 | V105: 0 | W105: 0 | X105: =+IF(INDEX($C105:$G105,1,aux!$AL$1)>0,(G105/INDEX($C105:$G105,1,aux!$AL$1))^(1/($G$3-INDEX($C$3:$G$3,1,aux!$AL$1)))-1,"n.d.") -> n.d. | Y105: =IF(INDEX($C105:$G105,1,aux!$AL$1)>0,(G105-INDEX($C105:$G105,1,aux!$AL$1))/INDEX($C105:$G105,1,aux!$AL$1),"n.d.") -> n.d. | AA105: =O105-INDEX($K105:$O105,1,aux!$AL$1) -> 0 | AB105: 0 | AC105: 0 | AD105: =+IF(INDEX($K105:$O105,1,aux!$AL$1)>0,(O105/INDEX($K105:$O105,1,aux!$AL$1))^(1/($O$3-INDEX($K$3:$O$3,1,aux!$AL$1)))-1,"n.d.") -> n.d. | AE105: =IF(INDEX($K105:$O105,1,aux!$AL$1)>0,(O105-INDEX($K105:$O105,1,aux!$AL$1))/INDEX($K105:$O105,1,aux!$AL$1),"n.d.") -> n.d. | AX105: 11
A106: 11SS | B106: Produtos da indústria de moagem e outros | C106: 0 | D106: 0 | E106: 0 | F106: 0 | G106: 0 | H106: 0 | I106: 0 | J106: 0 | K106: 0 | L106: 0 | M106: 0 | N106: 0 | O106: 0 | P106: 0 | Q106: 0 | R106: 0 | S106: 0 | U106: =G106-INDEX($C106:$G106,1,aux!$AL$1) -> 0 | V106: 0 | W106: 0 | X106: =+IF(INDEX($C106:$G106,1,aux!$AL$1)>0,(G106/INDEX($C106:$G106,1,aux!$AL$1))^(1/($G$3-INDEX($C$3:$G$3,1,aux!$AL$1)))-1,"n.d.") -> n.d. | Y106: =IF(INDEX($C106:$G106,1,aux!$AL$1)>0,(G106-INDEX($C106:$G106,1,aux!$AL$1))/INDEX($C106:$G106,1,aux!$AL$1),"n.d.") -> n.d. | AA106: =O106-INDEX($K106:$O106,1,aux!$AL$1) -> 0 | AB106: 0 | AC106: 0 | AD106: =+IF(INDEX($K106:$O106,1,aux!$AL$1)>0,(O106/INDEX($K106:$O106,1,aux!$AL$1))^(1/($O$3-INDEX($K$3:$O$3,1,aux!$AL$1)))-1,"n.d.") -> n.d. | AE106: =IF(INDEX($K106:$O106,1,aux!$AL$1)>0,(O106-INDEX($K106:$O106,1,aux!$AL$1))/INDEX($K106:$O106,1,aux!$AL$1),"n.d.") -> n.d. | AX106: 11
A107: 1201 | B107: Soja, mesmo triturada | C107: 0 | D107: 0 | E107: 0 | F107: 0 | G107: 0 | H107: 0 | I107: 0 | J107: 0 | K107: 0 | L107: 0 | M107: 0 | N107: 0 | O107: 0 | P107: 0 | Q107: 0 | R107: 0 | S107: 0 | U107: =G107-INDEX($C107:$G107,1,aux!$AL$1) -> 0 | V107: 0 | W107: 0 | X107: =+IF(INDEX($C107:$G107,1,aux!$AL$1)>0,(G107/INDEX($C107:$G107,1,aux!$AL$1))^(1/($G$3-INDEX($C$3:$G$3,1,aux!$AL$1)))-1,"n.d.") -> n.d. | Y107: =IF(INDEX($C107:$G107,1,aux!$AL$1)>0,(G107-INDEX($C107:$G107,1,aux!$AL$1))/INDEX($C107:$G107,1,aux!$AL$1),"n.d.") -> n.d. | AA107: =O107-INDEX($K107:$O107,1,aux!$AL$1) -> 0 | AB107: 0 | AC107: 0 | AD107: =+IF(INDEX($K107:$O107,1,aux!$AL$1)>0,(O107/INDEX($K107:$O107,1,aux!$AL$1))^(1/($O$3-INDEX($K$3:$O$3,1,aux!$AL$1)))-1,"n.d.") -> n.d. | AE107: =IF(INDEX($K107:$O107,1,aux!$AL$1)>0,(O107-INDEX($K107:$O107,1,aux!$AL$1))/INDEX($K107:$O107,1,aux!$AL$1),"n.d.") -> n.d. | AX107: 12
A108: 1202 | B108: Amendoins não torrados | C108: 0 | D108: 0 | E108: 0 | F108: 0 | G108: 0 | H108: 0 | I108: 0 | J108: 0 | K108: 0 | L108: 0.22 | M108: 0 | N108: 0.343 | O108: 0.019 | P108: 0.1164 | Q108: 4.34615597e-06 | R108: 1.819401971e-06 | S108: 0.1164 | U108: =G108-INDEX($C108:$G108,1,aux!$AL$1) -> 0 | V108: 0 | W108: 0 | X108: =+IF(INDEX($C108:$G108,1,aux!$AL$1)>0,(G108/INDEX($C108:$G108,1,aux!$AL$1))^(1/($G$3-INDEX($C$3:$G$3,1,aux!$AL$1)))-1,"n.d.") -> n.d. | Y108: =IF(INDEX($C108:$G108,1,aux!$AL$1)>0,(G108-INDEX($C108:$G108,1,aux!$AL$1))/INDEX($C108:$G108,1,aux!$AL$1),"n.d.") -> n.d. | AA108: =O108-INDEX($K108:$O108,1,aux!$AL$1) -> 0.019 | AB108: 1.81319579e-06 | AC108: 4.48175117e-07 | AD108: =+IF(INDEX($K108:$O108,1,aux!$AL$1)>0,(O108/INDEX($K108:$O108,1,aux!$AL$1))^(1/($O$3-INDEX($K$3:$O$3,1,aux!$AL$1)))-1,"n.d.") -> n.d. | AE108: =IF(INDEX($K108:$O108,1,aux!$AL$1)>0,(O108-INDEX($K108:$O108,1,aux!$AL$1))/INDEX($K108:$O108,1,aux!$AL$1),"n.d.") -> n.d. | AX108: 12
A109: 1203 | B109: Copra | C109: 0 | D109: 0 | E109: 0 | F109: 0 | G109: 0 | H109: 0 | I109: 0 | J109: 0 | K109: 0 | L109: 0 | M109: 0 | N109: 0 | O109: 0 | P109: 0 | Q109: 0 | R109: 0 | S109: 0 | U109: =G109-INDEX($C109:$G109,1,aux!$AL$1) -> 0 | V109: 0 | W109: 0 | X109: =+IF(INDEX($C109:$G109,1,aux!$AL$1)>0,(G109/INDEX($C109:$G109,1,aux!$AL$1))^(1/($G$3-INDEX($C$3:$G$3,1,aux!$AL$1)))-1,"n.d.") -> n.d. | Y109: =IF(INDEX($C109:$G109,1,aux!$AL$1)>0,(G109-INDEX($C109:$G109,1,aux!$AL$1))/INDEX($C109:$G109,1,aux!$AL$1),"n.d.") -> n.d. | AA109: =O109-INDEX($K109:$O109,1,aux!$AL$1) -> 0 | AB109: 0 | AC109: 0 | AD109: =+IF(INDEX($K109:$O109,1,aux!$AL$1)>0,(O109/INDEX($K109:$O109,1,aux!$AL$1))^(1/($O$3-INDEX($K$3:$O$3,1,aux!$AL$1)))-1,"n.d.") -> n.d. | AE109: =IF(INDEX($K109:$O109,1,aux!$AL$1)>0,(O109-INDEX($K109:$O109,1,aux!$AL$1))/INDEX($K109:$O109,1,aux!$AL$1),"n.d.") -> n.d. | AX109: 12
A110: 1204 | B110: Sementes de linho (linhaça) | C110: 8.748 | D110: 20.273 | E110: 6.448 | F110: 0 | G110: 0 | H110: 7.0938 | I110: 6.431883311e-05 | J110: 5.996917362e-05 | K110: 0 | L110: 0 | M110: 0 | N110: 0 | O110: 0.001 | P110: 0.0002 | Q110: 7.467621941e-09 | R110: 3.126120226e-09 | S110: -7.0936 | U110: =G110-INDEX($C110:$G110,1,aux!$AL$1) -> -8.748 | V110: -0.0005203777438 | W110: -0.0003371480757 | X110: =+IF(INDEX($C110:$G110,1,aux!$AL$1)>0,(G110/INDEX($C110:$G110,1,aux!$AL$1))^(1/($G$3-INDEX($C$3:$G$3,1,aux!$AL$1)))-1,"n.d.") -> -1 | Y110: =IF(INDEX($C110:$G110,1,aux!$AL$1)>0,(G110-INDEX($C110:$G110,1,aux!$AL$1))/INDEX($C110:$G110,1,aux!$AL$1),"n.d.") -> -1 | AA110: =O110-INDEX($K110:$O110,1,aux!$AL$1) -> 0.001 | AB110: 9.543135737e-08 | AC110: 2.358816405e-08 | AD110: =+IF(INDEX($K110:$O110,1,aux!$AL$1)>0,(O110/INDEX($K110:$O110,1,aux!$AL$1))^(1/($O$3-INDEX($K$3:$O$3,1,aux!$AL$1)))-1,"n.d.") -> n.d. | AE110: =IF(INDEX($K110:$O110,1,aux!$AL$1)>0,(O110-INDEX($K110:$O110,1,aux!$AL$1))/INDEX($K110:$O110,1,aux!$AL$1),"n.d.") -> n.d. | AX110: 12
A111: 1205 | B111: Sementes de nabo silvestre ou de colza | C111: 0 | D111: 0 | E111: 0 | F111: 0 | G111: 0 | H111: 0 | I111: 0 | J111: 0 | K111: 0 | L111: 0 | M111: 0 | N111: 0 | O111: 0 | P111: 0 | Q111: 0 | R111: 0 | S111: 0 | U111: =G111-INDEX($C111:$G111,1,aux!$AL$1) -> 0 | V111: 0 | W111: 0 | X111: =+IF(INDEX($C111:$G111,1,aux!$AL$1)>0,(G111/INDEX($C111:$G111,1,aux!$AL$1))^(1/($G$3-INDEX($C$3:$G$3,1,aux!$AL$1)))-1,"n.d.") -> n.d. | Y111: =IF(INDEX($C111:$G111,1,aux!$AL$1)>0,(G111-INDEX($C111:$G111,1,aux!$AL$1))/INDEX($C111:$G111,1,aux!$AL$1),"n.d.") -> n.d. | AA111: =O111-INDEX($K111:$O111,1,aux!$AL$1) -> 0 | AB111: 0 | AC111: 0 | AD111: =+IF(INDEX($K111:$O111,1,aux!$AL$1)>0,(O111/INDEX($K111:$O111,1,aux!$AL$1))^(1/($O$3-INDEX($K$3:$O$3,1,aux!$AL$1)))-1,"n.d.") -> n.d. | AE111: =IF(INDEX($K111:$O111,1,aux!$AL$1)>0,(O111-INDEX($K111:$O111,1,aux!$AL$1))/INDEX($K111:$O111,1,aux!$AL$1),"n.d.") -> n.d. | AX111: 12
A112: 1206 | B112: Sementes de girassol | C112: 0 | D112: 0 | E112: 0 | F112: 0 | G112: 0 | H112: 0 | I112: 0 | J112: 0 | K112: 0 | L112: 1714.097 | M112: 719.863 | N112: 0.002 | O112: 5.63 | P112: 487.9184 | Q112: 0.01821795075 | R112: 0.007626457894 | S112: 487.9184 | U112: =G112-INDEX($C112:$G112,1,aux!$AL$1) -> 0 | V112: 0 | W112: 0 | X112: =+IF(INDEX($C112:$G112,1,aux!$AL$1)>0,(G112/INDEX($C112:$G112,1,aux!$AL$1))^(1/($G$3-INDEX($C$3:$G$3,1,aux!$AL$1)))-1,"n.d.") -> n.d. | Y112: =IF(INDEX($C112:$G112,1,aux!$AL$1)>0,(G112-INDEX($C112:$G112,1,aux!$AL$1))/INDEX($C112:$G112,1,aux!$AL$1),"n.d.") -> n.d. | AA112: =O112-INDEX($K112:$O112,1,aux!$AL$1) -> 5.63 | AB112: 0.000537278542 | AC112: 0.0001328013636 | AD112: =+IF(INDEX($K112:$O112,1,aux!$AL$1)>0,(O112/INDEX($K112:$O112,1,aux!$AL$1))^(1/($O$3-INDEX($K$3:$O$3,1,aux!$AL$1)))-1,"n.d.") -> n.d. | AE112: =IF(INDEX($K112:$O112,1,aux!$AL$1)>0,(O112-INDEX($K112:$O112,1,aux!$AL$1))/INDEX($K112:$O112,1,aux!$AL$1),"n.d.") -> n.d. | AX112: 12
A113: 1207 | B113: Sementes e frutos oleaginosos | C113: 0 | D113: 0 | E113: 0 | F113: 0 | G113: 0 | H113: 0 | I113: 0 | J113: 0 | K113: 27.43 | L113: 0 | M113: 11.781 | N113: 13.105 | O113: 13.203 | P113: 13.1038 | Q113: 0.0004892711219 | R113: 0.0002048202711 | S113: 13.1038 | U113: =G113-INDEX($C113:$G113,1,aux!$AL$1) -> 0 | V113: 0 | W113: 0 | X113: =+IF(INDEX($C113:$G113,1,aux!$AL$1)>0,(G113/INDEX($C113:$G113,1,aux!$AL$1))^(1/($G$3-INDEX($C$3:$G$3,1,aux!$AL$1)))-1,"n.d.") -> n.d. | Y113: =IF(INDEX($C113:$G113,1,aux!$AL$1)>0,(G113-INDEX($C113:$G113,1,aux!$AL$1))/INDEX($C113:$G113,1,aux!$AL$1),"n.d.") -> n.d. | AA113: =O113-INDEX($K113:$O113,1,aux!$AL$1) -> -14.227 | AB113: -0.001357701921 | AC113: -0.00033558881 | AD113: =+IF(INDEX($K113:$O113,1,aux!$AL$1)>0,(O113/INDEX($K113:$O113,1,aux!$AL$1))^(1/($O$3-INDEX($K$3:$O$3,1,aux!$AL$1)))-1,"n.d.") -> -0.1670638639 | AE113: =IF(INDEX($K113:$O113,1,aux!$AL$1)>0,(O113-INDEX($K113:$O113,1,aux!$AL$1))/INDEX($K113:$O113,1,aux!$AL$1),"n.d.") -> -0.5186656945 | AX113: 12
